Workbook

Sheet Data
A1: CONTERFEIT | B1: LENGTH | C1: LEFT | D1: RIGHT | E1: BOTTOM | F1: TOP
A2: 0 | B2: 214.8 | C2: 131 | D2: 131.1 | E2: 9 | F2: 9.7
A3: 0 | B3: 214.6 | C3: 129.7 | D3: 129.7 | E3: 8.1 | F3: 9.5
A4: 0 | B4: 214.8 | C4: 129.7 | D4: 129.7 | E4: 8.7 | F4: 9.6
A5: 0 | B5: 214.8 | C5: 129.7 | D5: 129.6 | E5: 7.5 | F5: 10.4
A6: 0 | B6: 215 | C6: 129.6 | D6: 129.7 | E6: 10.4 | F6: 7.7
A7: 0 | B7: 215.7 | C7: 130.8 | D7: 130.5 | E7: 9 | F7: 10.1
A8: 0 | B8: 215.5 | C8: 129.5 | D8: 129.7 | E8: 7.9 | F8: 9.6
A9: 0 | B9: 214.5 | C9: 129.6 | D9: 129.2 | E9: 7.2 | F9: 10.7
A10: 0 | B10: 214.9 | C10: 129.4 | D10: 129.7 | E10: 8.2 | F10: 11
A11: 0 | B11: 215.2 | C11: 130.4 | D11: 130.3 | E11: 9.2 | F11: 10
A12: 0 | B12: 215.3 | C12: 130.4 | D12: 130.3 | E12: 7.9 | F12: 11.7
A13: 0 | B13: 215.1 | C13: 129.5 | D13: 129.6 | E13: 7.7 | F13: 10.5
A14: 0 | B14: 215.2 | C14: 130.8 | D14: 129.6 | E14: 7.9 | F14: 10.8
A15: 0 | B15: 214.7 | C15: 129.7 | D15: 129.7 | E15: 7.7 | F15: 10.9
A16: 0 | B16: 215.1 | C16: 129.9 | D16: 129.7 | E16: 7.7 | F16: 10.8
A17: 0 | B17: 214.5 | C17: 129.8 | D17: 129.8 | E17: 9.3 | F17: 8.5
A18: 0 | B18: 214.6 | C18: 129.9 | D18: 130.1 | E18: 8.2 | F18: 9.8
A19: 0 | B19: 215 | C19: 129.9 | D19: 129.7 | E19: 9 | F19: 9
A20: 0 | B20: 215.2 | C20: 129.6 | D20: 129.6 | E20: 7.4 | F20: 11.5
A21: 0 | B21: 214.7 | C21: 130.2 | D21: 129.9 | E21: 8.6 | F21: 10
A22: 0 | B22: 215 | C22: 129.9 | D22: 129.3 | E22: 8.4 | F22: 10
A23: 0 | B23: 215.6 | C23: 130.5 | D23: 130 | E23: 8.1 | F23: 10.3
A24: 0 | B24: 215.3 | C24: 130.6 | D24: 130 | E24: 8.4 | F24: 10.8
A25: 0 | B25: 215.7 | C25: 130.2 | D25: 130 | E25: 8.7 | F25: 10
A26: 0 | B26: 215.1 | C26: 129.7 | D26: 129.9 | E26: 7.4 | F26: 10.8
A27: 0 | B27: 215.3 | C27: 130.4 | D27: 130.4 | E27: 8 | F27: 11
A28: 0 | B28: 215.5 | C28: 130.2 | D28: 130.1 | E28: 8.9 | F28: 9.8
A29: 0 | B29: 215.1 | C29: 130.3 | D29: 130.3 | E29: 9.8 | F29: 9.5
A30: 0 | B30: 215.1 | C30: 130 | D30: 130 | E30: 7.4 | F30: 10.5
A31: 0 | B31: 214.8 | C31: 129.7 | D31: 129.3 | E31: 8.3 | F31: 9
A32: 0 | B32: 215.2 | C32: 130.1 | D32: 129.8 | E32: 7.9 | F32: 10.7
A33: 0 | B33: 214.8 | C33: 129.7 | D33: 129.7 | E33: 8.6 | F33: 9.1
A34: 0 | B34: 215 | C34: 130 | D34: 129.6 | E34: 7.7 | F34: 10.5
A35: 0 | B35: 215.6 | C35: 130.4 | D35: 130.1 | E35: 8.4 | F35: 10.3
A36: 0 | B36: 215.9 | C36: 130.4 | D36: 130 | E36: 8.9 | F36: 10.6
A37: 0 | B37: 214.6 | C37: 130.2 | D37: 130.2 | E37: 9.4 | F37: 9.7
A38: 0 | B38: 215.5 | C38: 130.3 | D38: 130 | E38: 8.4 | F38: 9.7
A39: 0 | B39: 215.3 | C39: 129.9 | D39: 129.4 | E39: 7.9 | F39: 10
A40: 0 | B40: 215.3 | C40: 130.3 | D40: 130.1 | E40: 8.5 | F40: 9.3
A41: 0 | B41: 213.9 | C41: 130.3 | D41: 129 | E41: 8.1 | F41: 9.7
A42: 0 | B42: 214.4 | C42: 129.8 | D42: 129.2 | E42: 8.9 | F42: 9.4
A43: 0 | B43: 214.8 | C43: 130.1 | D43: 129.6 | E43: 8.8 | F43: 9.9
A44: 0 | B44: 214.9 | C44: 129.6 | D44: 129.4 | E44: 9.3 | F44: 9
A45: 0 | B45: 214.9 | C45: 130.4 | D45: 129.7 | E45: 9 | F45: 9.8
A46: 0 | B46: 214.8 | C46: 129.4 | D46: 129.1 | E46: 8.2 | F46: 10.2
A47: 0 | B47: 214.3 | C47: 129.5 | D47: 129.4 | E47: 8.3 | F47: 10.2
A48: 0 | B48: 214.8 | C48: 129.9 | D48: 129.7 | E48: 8.3 | F48: 10.2
A49: 0 | B49: 214.8 | C49: 129.9 | D49: 129.7 | E49: 7.3 | F49: 10.9
A50: 0 | B50: 214.6 | C50: 129.7 | D50: 129.8 | E50: 7.9 | F50: 10.3
A51: 0 | B51: 214.5 | C51: 129 | D51: 129.6 | E51: 7.8 | F51: 9.8
A52: 0 | B52: 214.6 | C52: 129.8 | D52: 129.4 | E52: 7.2 | F52: 10
A53: 0 | B53: 215.3 | C53: 130.6 | D53: 130 | E53: 9.5 | F53: 9.7
A54: 0 | B54: 214.5 | C54: 130.1 | D54: 130 | E54: 7.8 | F54: 10.9
A55: 0 | B55: 215.4 | C55: 130.2 | D55: 130.2 | E55: 7.6 | F55: 10.9
A56: 0 | B56: 214.5 | C56: 129.4 | D56: 129.5 | E56: 7.9 | F56: 10
A57: 0 | B57: 215.2 | C57: 129.7 | D57: 129.4 | E57: 9.2 | F57: 9.4
A58: 0 | B58: 215.7 | C58: 130 | D58: 129.4 | E58: 9.2 | F58: 10.4
A59: 0 | B59: 215 | C59: 129.6 | D59: 129.4 | E59: 8.8 | F59: 9
A60: 0 | B60: 215.1 | C60: 130.1 | D60: 129.9 | E60: 7.9 | F60: 11
A61: 0 | B61: 215.1 | C61: 130 | D61: 129.8 | E61: 8.2 | F61: 10.3
A62: 0 | B62: 215.1 | C62: 129.6 | D62: 129.3 | E62: 8.3 | F62: 9.9
A63: 0 | B63: 215.3 | C63: 129.7 | D63: 129.4 | E63: 7.5 | F63: 10.5
A64: 0 | B64: 215.4 | C64: 129.8 | D64: 129.4 | E64: 8 | F64: 10.6
A65: 0 | B65: 214.5 | C65: 130 | D65: 129.5 | E65: 8 | F65: 10.8
A66: 0 | B66: 215 | C66: 130 | D66: 129.8 | E66: 8.6 | F66: 10.6
A67: 0 | B67: 215.2 | C67: 130.6 | D67: 130 | E67: 8.8 | F67: 10.6
A68: 0 | B68: 214.6 | C68: 129.5 | D68: 129.2 | E68: 7.7 | F68: 10.3
A69: 0 | B69: 214.8 | C69: 129.7 | D69: 129.3 | E69: 9.1 | F69: 9.5
A70: 0 | B70: 215.1 | C70: 129.6 | D70: 129.8 | E70: 8.6 | F70: 9.8
A71: 0 | B71: 214.9 | C71: 130.2 | D71: 130.2 | E71: 8 | F71: 11.2
A72: 0 | B72: 213.8 | C72: 129.8 | D72: 129.5 | E72: 8.4 | F72: 11.1
A73: 0 | B73: 215.2 | C73: 129.9 | D73: 129.5 | E73: 8.2 | F73: 10.3
A74: 0 | B74: 215 | C74: 129.6 | D74: 130.2 | E74: 8.7 | F74: 10
A75: 0 | B75: 214.4 | C75: 129.9 | D75: 129.6 | E75: 7.5 | F75: 10.5
A76: 0 | B76: 215.2 | C76: 129.9 | D76: 129.7 | E76: 7.2 | F76: 10.6
A77: 0 | B77: 214.1 | C77: 129.6 | D77: 129.3 | E77: 7.6 | F77: 10.7
A78: 0 | B78: 214.9 | C78: 129.9 | D78: 130.1 | E78: 8.8 | F78: 10
A79: 0 | B79: 214.6 | C79: 129.8 | D79: 129.4 | E79: 7.4 | F79: 10.6
A80: 0 | B80: 215.2 | C80: 130.5 | D80: 129.8 | E80: 7.9 | F80: 10.9
A81: 0 | B81: 214.6 | C81: 129.9 | D81: 129.4 | E81: 7.9 | F81: 10
A82: 0 | B82: 215.1 | C82: 129.7 | D82: 129.7 | E82: 8.6 | F82: 10.3
A83: 0 | B83: 214.9 | C83: 129.8 | D83: 129.6 | E83: 7.5 | F83: 10.3
A84: 0 | B84: 215.2 | C84: 129.7 | D84: 129.1 | E84: 9 | F84: 9.7
A85: 0 | B85: 215.2 | C85: 130.1 | D85: 129.9 | E85: 7.9 | F85: 10.8
A86: 0 | B86: 215.4 | C86: 130.7 | D86: 130.2 | E86: 9 | F86: 11.1
A87: 0 | B87: 215.1 | C87: 129.9 | D87: 129.6 | E87: 8.9 | F87: 10.2
A88: 0 | B88: 215.2 | C88: 129.9 | D88: 129.7 | E88: 8.7 | F88: 9.5
A89: 0 | B89: 215 | C89: 129.6 | D89: 129.2 | E89: 8.4 | F89: 10.2
A90: 0 | B90: 214.9 | C90: 130.3 | D90: 129.9 | E90: 7.4 | F90: 11.2
A91: 0 | B91: 215 | C91: 129.9 | D91: 129.7 | E91: 8 | F91: 10.5
A92: 0 | B92: 214.7 | C92: 129.7 | D92: 129.3 | E92: 8.6 | F92: 9.6
A93: 0 | B93: 215.4 | C93: 130 | D93: 129.9 | E93: 8.5 | F93: 9.7
A94: 0 | B94: 214.9 | C94: 129.4 | D94: 129.5 | E94: 8.2 | F94: 9.9
A95: 0 | B95: 214.5 | C95: 129.5 | D95: 129.3 | E95: 7.4 | F95: 10.7
A96: 0 | B96: 214.7 | C96: 129.6 | D96: 129.5 | E96: 8.3 | F96: 10
A97: 0 | B97: 215.6 | C97: 129.9 | D97: 129.9 | E97: 9 | F97: 9.5
A98: 0 | B98: 215 | C98: 130.4 | D98: 130.3 | E98: 9.1 | F98: 10.2
A99: 0 | B99: 214.4 | C99: 129.7 | D99: 129.5 | E99: 8 | F99: 10.3
A100: 0 | B100: 215.1 | C100: 130 | D100: 129.8 | E100: 9.1 | F100: 10.2
A101: 0 | B101: 214.7 | C101: 130 | D101: 129.4 | E101: 7.8 | F101: 10
A102: 1 | B102: 214.4 | C102: 130.1 | D102: 130.3 | E102: 9.7 | F102: 11.7
A103: 1 | B103: 214.9 | C103: 130.5 | D103: 130.2 | E103: 11 | F103: 11.5
A104: 1 | B104: 214.9 | C104: 130.3 | D104: 130.1 | E104: 8.7 | F104: 11.7
A105: 1 | B105: 215 | C105: 130.4 | D105: 130.6 | E105: 9.9 | F105: 10.9
A106: 1 | B106: 214.7 | C106: 130.2 | D106: 130.3 | E106: 11.8 | F106: 10.9
A107: 1 | B107: 215 | C107: 130.2 | D107: 130.2 | E107: 10.6 | F107: 10.7
A108: 1 | B108: 215.3 | C108: 130.3 | D108: 130.1 | E108: 9.3 | F108: 12.1
A109: 1 | B109: 214.8 | C109: 130.1 | D109: 130.4 | E109: 9.8 | F109: 11.5
A110: 1 | B110: 215 | C110: 130.2 | D110: 129.9 | E110: 10 | F110: 11.9
A111: 1 | B111: 215.2 | C111: 130.6 | D111: 130.8 | E111: 10.4 | F111: 11.2
A112: 1 | B112: 215.2 | C112: 130.4 | D112: 130.3 | E112: 8 | F112: 11.5
A113: 1 | B113: 215.1 | C113: 130.5 | D113: 130.3 | E113: 10.6 | F113: 11.5
A114: 1 | B114: 215.4 | C114: 130.7 | D114: 131.1 | E114: 9.7 | F114: 11.8
A115: 1 | B115: 214.9 | C115: 130.4 | D115: 129.9 | E115: 11.4 | F115: 11
A116: 1 | B116: 215.1 | C116: 130.3 | D116: 130 | E116: 10.6 | F116: 10.8
A117: 1 | B117: 215.5 | C117: 130.4 | D117: 130 | E117: 8.2 | F117: 11.2
A118: 1 | B118: 214.7 | C118: 130.6 | D118: 130.1 | E118: 11.8 | F118: 10.5
A119: 1 | B119: 214.7 | C119: 130.4 | D119: 130.1 | E119: 12.1 | F119: 10.4
A120: 1 | B120: 214.8 | C120: 130.5 | D120: 130.2 | E120: 11 | F120: 11
A121: 1 | B121: 214.4 | C121: 130.2 | D121: 129.9 | E121: 10.1 | F121: 12
A122: 1 | B122: 214.8 | C122: 130.3 | D122: 130.4 | E122: 10.1 | F122: 12.1
A123: 1 | B123: 215.1 | C123: 130.6 | D123: 130.3 | E123: 12.3 | F123: 10.2
A124: 1 | B124: 215.3 | C124: 130.8 | D124: 131.1 | E124: 11.6 | F124: 10.6
A125: 1 | B125: 215.1 | C125: 130.7 | D125: 130.4 | E125: 10.5 | F125: 11.2
A126: 1 | B126: 214.7 | C126: 130.5 | D126: 130.5 | E126: 9.9 | F126: 10.3
A127: 1 | B127: 214.9 | C127: 130 | D127: 130.3 | E127: 10.2 | F127: 11.4
A128: 1 | B128: 215 | C128: 130.4 | D128: 130.4 | E128: 9.4 | F128: 11.6
A129: 1 | B129: 215.5 | C129: 130.7 | D129: 130.3 | E129: 10.2 | F129: 11.8
A130: 1 | B130: 215.1 | C130: 130.2 | D130: 130.2 | E130: 10.1 | F130: 11.3
A131: 1 | B131: 214.5 | C131: 130.2 | D131: 130.6 | E131: 9.8 | F131: 12.1
A132: 1 | B132: 214.3 | C132: 130.2 | D132: 130 | E132: 10.7 | F132: 10.5
A133: 1 | B133: 214.5 | C133: 130.2 | D133: 129.8 | E133: 12.3 | F133: 11.2
A134: 1 | B134: 214.9 | C134: 130.5 | D134: 130.2 | E134: 10.6 | F134: 11.5
A135: 1 | B135: 214.6 | C135: 130.2 | D135: 130.4 | E135: 10.5 | F135: 11.8
A136: 1 | B136: 214.2 | C136: 130 | D136: 130.2 | E136: 11 | F136: 11.2
A137: 1 | B137: 214.8 | C137: 130.1 | D137: 130.1 | E137: 11.9 | F137: 11.1
A138: 1 | B138: 214.6 | C138: 129.8 | D138: 130.2 | E138: 10.7 | F138: 11.1
A139: 1 | B139: 214.9 | C139: 130.7 | D139: 130.3 | E139: 9.3 | F139: 11.2
A140: 1 | B140: 214.6 | C140: 130.4 | D140: 130.4 | E140: 11.3 | F140: 10.8
A141: 1 | B141: 214.5 | C141: 130.5 | D141: 130.2 | E141: 11.8 | F141: 10.2
A142: 1 | B142: 214.8 | C142: 130.2 | D142: 130.3 | E142: 10 | F142: 11.9
A143: 1 | B143: 214.7 | C143: 130 | D143: 129.4 | E143: 10.2 | F143: 11
A144: 1 | B144: 214.6 | C144: 130.2 | D144: 130.4 | E144: 11.2 | F144: 10.7
A145: 1 | B145: 215 | C145: 130.5 | D145: 130.4 | E145: 10.6 | F145: 11.1
A146: 1 | B146: 214.5 | C146: 129.8 | D146: 129.8 | E146: 11.4 | F146: 10
A147: 1 | B147: 214.9 | C147: 130.6 | D147: 130.4 | E147: 11.9 | F147: 10.5
A148: 1 | B148: 215 | C148: 130.5 | D148: 130.4 | E148: 11.4 | F148: 10.7
A149: 1 | B149: 215.3 | C149: 130.6 | D149: 130.3 | E149: 9.3 | F149: 11.3
A150: 1 | B150: 214.7 | C150: 130.2 | D150: 130.1 | E150: 10.7 | F150: 11
A151: 1 | B151: 214.9 | C151: 129.9 | D151: 130 | E151: 9.9 | F151: 12.3
A152: 1 | B152: 214.9 | C152: 130.3 | D152: 129.9 | E152: 11.9 | F152: 10.6
A153: 1 | B153: 214.6 | C153: 129.9 | D153: 129.7 | E153: 11.9 | F153: 10.1
A154: 1 | B154: 214.6 | C154: 129.7 | D154: 129.3 | E154: 10.4 | F154: 11
A155: 1 | B155: 214.5 | C155: 130.1 | D155: 130.1 | E155: 12.1 | F155: 10.3
A156: 1 | B156: 214.5 | C156: 130.3 | D156: 130 | E156: 11 | F156: 11.5
A157: 1 | B157: 215.1 | C157: 130 | D157: 130.3 | E157: 11.6 | F157: 10.5
A158: 1 | B158: 214.2 | C158: 129.7 | D158: 129.6 | E158: 10.3 | F158: 11.4
A159: 1 | B159: 214.4 | C159: 130.1 | D159: 130 | E159: 11.3 | F159: 10.7
A160: 1 | B160: 214.8 | C160: 130.4 | D160: 130.6 | E160: 12.5 | F160: 10
A161: 1 | B161: 214.6 | C161: 130.6 | D161: 130.1 | E161: 8.1 | F161: 12.1
A162: 1 | B162: 215.6 | C162: 130.1 | D162: 129.7 | E162: 7.4 | F162: 12.2
A163: 1 | B163: 214.9 | C163: 130.5 | D163: 130.1 | E163: 9.9 | F163: 10.2
A164: 1 | B164: 214.6 | C164: 130.1 | D164: 130 | E164: 11.5 | F164: 10.6
A165: 1 | B165: 214.7 | C165: 130.1 | D165: 130.2 | E165: 11.6 | F165: 10.9
A166: 1 | B166: 214.3 | C166: 130.3 | D166: 130 | E166: 11.4 | F166: 10.5
A167: 1 | B167: 215.1 | C167: 130.3 | D167: 130.6 | E167: 10.3 | F167: 12
A168: 1 | B168: 216.3 | C168: 130.7 | D168: 130.4 | E168: 10 | F168: 10.1
A169: 1 | B169: 215.6 | C169: 130.4 | D169: 130.1 | E169: 9.6 | F169: 11.2
A170: 1 | B170: 214.8 | C170: 129.9 | D170: 129.8 | E170: 9.6 | F170: 12
A171: 1 | B171: 214.9 | C171: 130 | D171: 129.9 | E171: 11.4 | F171: 10.9
A172: 1 | B172: 213.9 | C172: 130.7 | D172: 130.5 | E172: 8.7 | F172: 11.5
A173: 1 | B173: 214.2 | C173: 130.6 | D173: 130.4 | E173: 12 | F173: 10.2
A174: 1 | B174: 214.8 | C174: 130.5 | D174: 130.3 | E174: 11.8 | F174: 10.5
A175: 1 | B175: 214.8 | C175: 129.6 | D175: 130 | E175: 10.4 | F175: 11.6
A176: 1 | B176: 214.8 | C176: 130.1 | D176: 130 | E176: 11.4 | F176: 10.5
A177: 1 | B177: 214.9 | C177: 130.4 | D177: 130.2 | E177: 11.9 | F177: 10.7
A178: 1 | B178: 214.3 | C178: 130.1 | D178: 130.1 | E178: 11.6 | F178: 10.5
A179: 1 | B179: 214.5 | C179: 130.4 | D179: 130 | E179: 9.9 | F179: 12
A180: 1 | B180: 214.8 | C180: 130.5 | D180: 130.3 | E180: 10.2 | F180: 12.1
A181: 1 | B181: 214.5 | C181: 130.2 | D181: 130.4 | E181: 8.2 | F181: 11.8
A182: 1 | B182: 215 | C182: 130.4 | D182: 130.1 | E182: 11.4 | F182: 10.7
A183: 1 | B183: 214.8 | C183: 130.6 | D183: 130.6 | E183: 8 | F183: 11.4
A184: 1 | B184: 215 | C184: 130.5 | D184: 130.1 | E184: 11 | F184: 11.4
A185: 1 | B185: 214.6 | C185: 130.5 | D185: 130.4 | E185: 10.1 | F185: 11.4
A186: 1 | B186: 214.7 | C186: 130.2 | D186: 130.1 | E186: 10.7 | F186: 11.1
A187: 1 | B187: 214.7 | C187: 130.4 | D187: 130 | E187: 11.5 | F187: 10.7
A188: 1 | B188: 214.5 | C188: 130.4 | D188: 130 | E188: 8 | F188: 12.2
A189: 1 | B189: 214.8 | C189: 130 | D189: 129.7 | E189: 11.4 | F189: 10.6
A190: 1 | B190: 214.8 | C190: 129.9 | D190: 130.2 | E190: 9.6 | F190: 11.9
A191: 1 | B191: 214.6 | C191: 130.3 | D191: 130.2 | E191: 12.7 | F191: 9.1
A192: 1 | B192: 215.1 | C192: 130.2 | D192: 129.8 | E192: 10.2 | F192: 12
A193: 1 | B193: 215.4 | C193: 130.5 | D193: 130.6 | E193: 8.8 | F193: 11
A194: 1 | B194: 214.7 | C194: 130.3 | D194: 130.2 | E194: 10.8 | F194: 11.1
A195: 1 | B195: 215 | C195: 130.5 | D195: 130.3 | E195: 9.6 | F195: 11
A196: 1 | B196: 214.9 | C196: 130.3 | D196: 130.5 | E196: 11.6 | F196: 10.6
A197: 1 | B197: 215 | C197: 130.4 | D197: 130.3 | E197: 9.9 | F197: 12.1
A198: 1 | B198: 215.1 | C198: 130.3 | D198: 129.9 | E198: 10.3 | F198: 11.5
A199: 1 | B199: 214.8 | C199: 130.3 | D199: 130.4 | E199: 10.6 | F199: 11.1
A200: 1 | B200: 214.7 | C200: 130.7 | D200: 130.8 | E200: 11.2 | F200: 11.2
... 1 more rows

Sheet GBM
B1: XLSTAT 2023.3.1.1416 - Extreme Gradient Boosting - Start time: 04/05/2024 at 14:18:31 / End time: 04/05/2024 at 14:18:33 / Microsoft Excel 16.017425
B2: Response variable: Workbook = demo-Extreme-Gradient-Boosting (1).xlsm / Sheet = Data / Range = 'Data'!$A:$A / 200 rows and 1 column
B3: Quantitative: Workbook = demo-Extreme-Gradient-Boosting (1).xlsm / Sheet = Data / Range = 'Data'!$B:$F / 200 rows and 5 columns
B4: Response type: Binary
B5: Maximum number of iterations: 50
B6: Seed (random numbers): 123456789
B11: Misclassification rate: | E11: 0.012
B12: Misclassification rate (Validation): | E12: 0.1
B14: Confusion matrix for the training sample:
B16: from \ to | C16: 0 | D16: 1 | E16: Total | F16: % correct
B17: 0 | C17: 81 | D17: 1 | E17: 82 | F17: 0.987804878
B18: 1 | C18: 1 | D18: 87 | E18: 88 | F18: 0.9886363636
B19: Total | C19: 82 | D19: 88 | E19: 170 | F19: 0.9882352941
B42: ROC Curve:
B64: Results by object:
B66: Observation | C66: CONTERFEIT | D66: Pred(CONTERFEIT) | E66: Pr(0) | F66: Pr(1)
B67: Obs1 | C67: 0 | D67: 0 | E67: 0.8487963974 | F67: 0.1512036026
B68: Obs3 | C68: 0 | D68: 0 | E68: 0.9825983867 | F68: 0.0174016133
B69: Obs4 | C69: 0 | D69: 0 | E69: 0.9929793309 | F69: 0.007020669058
B70: Obs6 | C70: 0 | D70: 0 | E70: 0.9704669639 | F70: 0.02953303605
B71: Obs7 | C71: 0 | D71: 0 | E71: 0.9984655196 | F71: 0.001534480369
B72: Obs8 | C72: 0 | D72: 0 | E72: 0.9929793309 | F72: 0.007020669058
B73: Obs9 | C73: 0 | D73: 0 | E73: 0.9459078908 | F73: 0.0540921092
B74: Obs10 | C74: 0 | D74: 0 | E74: 0.9704669639 | F74: 0.02953303605
B75: Obs11 | C75: 0 | D75: 1 | E75: 0.3859626055 | F75: 0.6140373945
B76: Obs12 | C76: 0 | D76: 0 | E76: 0.9984655196 | F76: 0.001534480369
B77: Obs13 | C77: 0 | D77: 0 | E77: 0.994426691 | F77: 0.005573309027
B78: Obs14 | C78: 0 | D78: 0 | E78: 0.9914485291 | F78: 0.008551470935
B79: Obs15 | C79: 0 | D79: 0 | E79: 0.9984655196 | F79: 0.001534480369
B80: Obs16 | C80: 0 | D80: 0 | E80: 0.9264040068 | F80: 0.07359599322
B81: Obs17 | C81: 0 | D81: 0 | E81: 0.9877589727 | F81: 0.01224102732
B82: Obs18 | C82: 0 | D82: 0 | E82: 0.9912572773 | F82: 0.008742722683
B83: Obs19 | C83: 0 | D83: 0 | E83: 0.8414268196 | F83: 0.1585731804
B84: Obs20 | C84: 0 | D84: 0 | E84: 0.9929793309 | F84: 0.007020669058
B85: Obs22 | C85: 0 | D85: 0 | E85: 0.9923386071 | F85: 0.007661392912
B86: Obs23 | C86: 0 | D86: 0 | E86: 0.9923386071 | F86: 0.007661392912
B87: Obs24 | C87: 0 | D87: 0 | E87: 0.9947251026 | F87: 0.005274897441
B88: Obs25 | C88: 0 | D88: 0 | E88: 0.9984655196 | F88: 0.001534480369
B89: Obs26 | C89: 0 | D89: 0 | E89: 0.9192414358 | F89: 0.08075856417
B90: Obs28 | C90: 0 | D90: 0 | E90: 0.7266005278 | F90: 0.2733994722
B91: Obs31 | C91: 0 | D91: 0 | E91: 0.9984655196 | F91: 0.001534480369
B92: Obs32 | C92: 0 | D92: 0 | E92: 0.9929793309 | F92: 0.007020669058
B93: Obs33 | C93: 0 | D93: 0 | E93: 0.9970960193 | F93: 0.002903980669
B94: Obs34 | C94: 0 | D94: 0 | E94: 0.9923386071 | F94: 0.007661392912
B95: Obs36 | C95: 0 | D95: 0 | E95: 0.8777735606 | F95: 0.1222264394
B96: Obs37 | C96: 0 | D96: 0 | E96: 0.9978874 | F96: 0.002112600021
B97: Obs40 | C97: 0 | D97: 0 | E97: 0.9929793309 | F97: 0.007020669058
B98: Obs41 | C98: 0 | D98: 0 | E98: 0.9790376183 | F98: 0.02096238174
B99: Obs42 | C99: 0 | D99: 0 | E99: 0.9790376183 | F99: 0.02096238174
B100: Obs44 | C100: 0 | D100: 0 | E100: 0.9485173263 | F100: 0.05148267373
B101: Obs47 | C101: 0 | D101: 0 | E101: 0.9929793309 | F101: 0.007020669058
B102: Obs48 | C102: 0 | D102: 0 | E102: 0.9914485291 | F102: 0.008551470935
B103: Obs49 | C103: 0 | D103: 0 | E103: 0.9929793309 | F103: 0.007020669058
B104: Obs50 | C104: 0 | D104: 0 | E104: 0.9929793309 | F104: 0.007020669058
B105: Obs51 | C105: 0 | D105: 0 | E105: 0.9929793309 | F105: 0.007020669058
B106: Obs52 | C106: 0 | D106: 0 | E106: 0.9342986941 | F106: 0.06570130587
B107: Obs53 | C107: 0 | D107: 0 | E107: 0.9851069832 | F107: 0.01489301678
B108: Obs54 | C108: 0 | D108: 0 | E108: 0.9974239902 | F108: 0.002576009836
B109: Obs55 | C109: 0 | D109: 0 | E109: 0.9929793309 | F109: 0.007020669058
B110: Obs56 | C110: 0 | D110: 0 | E110: 0.9953675056 | F110: 0.004632494412
B111: Obs57 | C111: 0 | D111: 0 | E111: 0.9953675056 | F111: 0.004632494412
B112: Obs58 | C112: 0 | D112: 0 | E112: 0.9912572773 | F112: 0.008742722683
B113: Obs59 | C113: 0 | D113: 0 | E113: 0.9867423465 | F113: 0.01325765345
B114: Obs60 | C114: 0 | D114: 0 | E114: 0.9984655196 | F114: 0.001534480369
B115: Obs61 | C115: 0 | D115: 0 | E115: 0.9984655196 | F115: 0.001534480369
B116: Obs62 | C116: 0 | D116: 0 | E116: 0.9984655196 | F116: 0.001534480369
B117: Obs65 | C117: 0 | D117: 0 | E117: 0.9970960193 | F117: 0.002903980669
B118: Obs66 | C118: 0 | D118: 0 | E118: 0.9771538135 | F118: 0.02284618653
B119: Obs67 | C119: 0 | D119: 0 | E119: 0.9929793309 | F119: 0.007020669058
B120: Obs68 | C120: 0 | D120: 0 | E120: 0.9790376183 | F120: 0.02096238174
B121: Obs69 | C121: 0 | D121: 0 | E121: 0.9984655196 | F121: 0.001534480369
B122: Obs70 | C122: 0 | D122: 0 | E122: 0.8599837273 | F122: 0.1400162727
B123: Obs71 | C123: 0 | D123: 0 | E123: 0.9239869192 | F123: 0.07601308078
B124: Obs72 | C124: 0 | D124: 0 | E124: 0.9984655196 | F124: 0.001534480369
B125: Obs73 | C125: 0 | D125: 0 | E125: 0.9873746652 | F125: 0.01262533478
B126: Obs74 | C126: 0 | D126: 0 | E126: 0.9929793309 | F126: 0.007020669058
B127: Obs77 | C127: 0 | D127: 0 | E127: 0.9745757226 | F127: 0.02542427741
B128: Obs78 | C128: 0 | D128: 0 | E128: 0.9929793309 | F128: 0.007020669058
B129: Obs79 | C129: 0 | D129: 0 | E129: 0.993209322 | F129: 0.006790678017
B130: Obs80 | C130: 0 | D130: 0 | E130: 0.9929793309 | F130: 0.007020669058
B131: Obs81 | C131: 0 | D131: 0 | E131: 0.9984655196 | F131: 0.001534480369
B132: Obs83 | C132: 0 | D132: 0 | E132: 0.9953675056 | F132: 0.004632494412
B133: Obs84 | C133: 0 | D133: 0 | E133: 0.9984655196 | F133: 0.001534480369
B134: Obs85 | C134: 0 | D134: 0 | E134: 0.6567492783 | F134: 0.3432507217
B135: Obs86 | C135: 0 | D135: 0 | E135: 0.9953675056 | F135: 0.004632494412
B136: Obs87 | C136: 0 | D136: 0 | E136: 0.9961652693 | F136: 0.003834730713
B137: Obs88 | C137: 0 | D137: 0 | E137: 0.9970960193 | F137: 0.002903980669
B138: Obs89 | C138: 0 | D138: 0 | E138: 0.9150068909 | F138: 0.08499310911
B139: Obs90 | C139: 0 | D139: 0 | E139: 0.9970960193 | F139: 0.002903980669
B140: Obs92 | C140: 0 | D140: 0 | E140: 0.9984655196 | F140: 0.001534480369
B141: Obs93 | C141: 0 | D141: 0 | E141: 0.9951092945 | F141: 0.004890705459
B142: Obs94 | C142: 0 | D142: 0 | E142: 0.9929793309 | F142: 0.007020669058
B143: Obs95 | C143: 0 | D143: 0 | E143: 0.9929793309 | F143: 0.007020669058
B144: Obs96 | C144: 0 | D144: 0 | E144: 0.9953675056 | F144: 0.004632494412
B145: Obs97 | C145: 0 | D145: 0 | E145: 0.9316365495 | F145: 0.06836345047
B146: Obs98 | C146: 0 | D146: 0 | E146: 0.9929793309 | F146: 0.007020669058
B147: Obs99 | C147: 0 | D147: 0 | E147: 0.9953675056 | F147: 0.004632494412
B148: Obs100 | C148: 0 | D148: 0 | E148: 0.9929793309 | F148: 0.007020669058
B149: Obs101 | C149: 1 | D149: 1 | E149: 0.008637368679 | F149: 0.9913626313
B150: Obs102 | C150: 1 | D150: 1 | E150: 0.002937734127 | F150: 0.9970622659
B151: Obs103 | C151: 1 | D151: 1 | E151: 0.1027233601 | F151: 0.8972766399
B152: Obs104 | C152: 1 | D152: 1 | E152: 0.008435130119 | F152: 0.9915648699
B153: Obs105 | C153: 1 | D153: 1 | E153: 0.007826447487 | F153: 0.9921735525
B154: Obs106 | C154: 1 | D154: 1 | E154: 0.03179883957 | F154: 0.9682011604
B155: Obs107 | C155: 1 | D155: 1 | E155: 0.1242229342 | F155: 0.8757770658
B156: Obs108 | C156: 1 | D156: 1 | E156: 0.008637368679 | F156: 0.9913626313
B157: Obs109 | C157: 1 | D157: 1 | E157: 0.01601672173 | F157: 0.9839832783
B158: Obs110 | C158: 1 | D158: 1 | E158: 0.009127020836 | F158: 0.9908729792
B159: Obs111 | C159: 1 | D159: 1 | E159: 0.3859626055 | F159: 0.6140373945
B160: Obs112 | C160: 1 | D160: 1 | E160: 0.009127020836 | F160: 0.9908729792
B161: Obs113 | C161: 1 | D161: 1 | E161: 0.0169596076 | F161: 0.9830403924
B162: Obs114 | C162: 1 | D162: 1 | E162: 0.005546629429 | F162: 0.9944533706
B163: Obs115 | C163: 1 | D163: 1 | E163: 0.05669379234 | F163: 0.9433062077
B164: Obs117 | C164: 1 | D164: 1 | E164: 0.005974173546 | F164: 0.9940258265
B165: Obs118 | C165: 1 | D165: 1 | E165: 0.005974173546 | F165: 0.9940258265
B166: Obs119 | C166: 1 | D166: 1 | E166: 0.002658903599 | F166: 0.9973410964
B167: Obs121 | C167: 1 | D167: 1 | E167: 0.003529667854 | F167: 0.9964703321
B168: Obs122 | C168: 1 | D168: 1 | E168: 0.03554320335 | F168: 0.9644567966
B169: Obs124 | C169: 1 | D169: 1 | E169: 0.009127020836 | F169: 0.9908729792
B170: Obs125 | C170: 1 | D170: 1 | E170: 0.004596233368 | F170: 0.9954037666
B171: Obs126 | C171: 1 | D171: 1 | E171: 0.00506991148 | F171: 0.9949300885
B172: Obs128 | C172: 1 | D172: 1 | E172: 0.009127020836 | F172: 0.9908729792
B173: Obs132 | C173: 1 | D173: 1 | E173: 0.006660401821 | F173: 0.9933395982
B174: Obs133 | C174: 1 | D174: 1 | E174: 0.002937734127 | F174: 0.9970622659
B175: Obs134 | C175: 1 | D175: 1 | E175: 0.003529667854 | F175: 0.9964703321
B176: Obs135 | C176: 1 | D176: 1 | E176: 0.004589259624 | F176: 0.9954107404
B177: Obs136 | C177: 1 | D177: 1 | E177: 0.005965411663 | F177: 0.9940345883
B178: Obs137 | C178: 1 | D178: 1 | E178: 0.005965411663 | F178: 0.9940345883
B179: Obs138 | C179: 1 | D179: 1 | E179: 0.02555525303 | F179: 0.974444747
B180: Obs139 | C180: 1 | D180: 1 | E180: 0.003491938114 | F180: 0.9965080619
B181: Obs140 | C181: 1 | D181: 1 | E181: 0.008127868176 | F181: 0.9918721318
B182: Obs141 | C182: 1 | D182: 1 | E182: 0.003529667854 | F182: 0.9964703321
B183: Obs142 | C183: 1 | D183: 1 | E183: 0.008652150631 | F183: 0.9913478494
B184: Obs143 | C184: 1 | D184: 1 | E184: 0.01028716564 | F184: 0.9897128344
B185: Obs144 | C185: 1 | D185: 1 | E185: 0.004947721958 | F185: 0.995052278
B186: Obs145 | C186: 1 | D186: 1 | E186: 0.04001492262 | F186: 0.9599850774
B187: Obs146 | C187: 1 | D187: 1 | E187: 0.006598770618 | F187: 0.9934012294
B188: Obs147 | C188: 1 | D188: 1 | E188: 0.01108509302 | F188: 0.988914907
B189: Obs148 | C189: 1 | D189: 1 | E189: 0.03818696737 | F189: 0.9618130326
B190: Obs149 | C190: 1 | D190: 1 | E190: 0.005965411663 | F190: 0.9940345883
B191: Obs150 | C191: 1 | D191: 1 | E191: 0.006588876247 | F191: 0.9934111238
B192: Obs151 | C192: 1 | D192: 1 | E192: 0.02752572298 | F192: 0.972474277
B193: Obs152 | C193: 1 | D193: 1 | E193: 0.04001492262 | F193: 0.9599850774
B194: Obs153 | C194: 1 | D194: 1 | E194: 0.008652150631 | F194: 0.9913478494
B195: Obs154 | C195: 1 | D195: 1 | E195: 0.01334834099 | F195: 0.986651659
B196: Obs156 | C196: 1 | D196: 1 | E196: 0.05735462904 | F196: 0.942645371
B197: Obs157 | C197: 1 | D197: 1 | E197: 0.006660401821 | F197: 0.9933395982
B198: Obs158 | C198: 1 | D198: 1 | E198: 0.01334834099 | F198: 0.986651659
B199: Obs159 | C199: 1 | D199: 1 | E199: 0.009687304497 | F199: 0.9903126955
B200: Obs160 | C200: 1 | D200: 1 | E200: 0.1226254106 | F200: 0.8773745894
B201: Obs162 | C201: 1 | D201: 1 | E201: 0.01165115833 | F201: 0.9883488417
B202: Obs163 | C202: 1 | D202: 1 | E202: 0.01334834099 | F202: 0.986651659
B203: Obs164 | C203: 1 | D203: 1 | E203: 0.01016277075 | F203: 0.9898372293
B204: Obs166 | C204: 1 | D204: 1 | E204: 0.02031356096 | F204: 0.979686439
B205: Obs167 | C205: 1 | D205: 1 | E205: 0.05416047573 | F205: 0.9458395243
B206: Obs168 | C206: 1 | D206: 1 | E206: 0.03754067421 | F206: 0.9624593258
B207: Obs169 | C207: 1 | D207: 1 | E207: 0.02502024174 | F207: 0.9749797583
B208: Obs170 | C208: 1 | D208: 1 | E208: 0.02102893591 | F208: 0.9789710641
B209: Obs171 | C209: 1 | D209: 1 | E209: 0.01648914814 | F209: 0.9835108519
B210: Obs173 | C210: 1 | D210: 1 | E210: 0.004596233368 | F210: 0.9954037666
B211: Obs174 | C211: 1 | D211: 1 | E211: 0.004589259624 | F211: 0.9954107404
B212: Obs175 | C212: 1 | D212: 1 | E212: 0.01334834099 | F212: 0.986651659
B213: Obs176 | C213: 1 | D213: 1 | E213: 0.008571922779 | F213: 0.9914280772
B214: Obs178 | C214: 1 | D214: 1 | E214: 0.002043962479 | F214: 0.9979560375
B215: Obs179 | C215: 1 | D215: 1 | E215: 0.001571118832 | F215: 0.9984288812
B216: Obs180 | C216: 1 | D216: 1 | E216: 0.2273374796 | F216: 0.7726625204
B217: Obs181 | C217: 1 | D217: 1 | E217: 0.0143802166 | F217: 0.9856197834
B218: Obs182 | C218: 1 | D218: 1 | E218: 0.1036623716 | F218: 0.8963376284
B219: Obs183 | C219: 1 | D219: 1 | E219: 0.00494748354 | F219: 0.9950525165
B220: Obs184 | C220: 1 | D220: 1 | E220: 0.001571118832 | F220: 0.9984288812
B221: Obs185 | C221: 1 | D221: 1 | E221: 0.005965411663 | F221: 0.9940345883
B222: Obs186 | C222: 1 | D222: 1 | E222: 0.005974173546 | F222: 0.9940258265
B223: Obs187 | C223: 1 | D223: 1 | E223: 0.1226254106 | F223: 0.8773745894
B224: Obs188 | C224: 1 | D224: 1 | E224: 0.01929575205 | F224: 0.980704248
B225: Obs189 | C225: 1 | D225: 1 | E225: 0.01121324301 | F225: 0.988786757
B226: Obs190 | C226: 1 | D226: 1 | E226: 0.02786290646 | F226: 0.9721370935
B227: Obs191 | C227: 1 | D227: 1 | E227: 0.02992397547 | F227: 0.9700760245
B228: Obs192 | C228: 1 | D228: 0 | E228: 0.5951386094 | F228: 0.4048613906
B229: Obs193 | C229: 1 | D229: 1 | E229: 0.005965411663 | F229: 0.9940345883
B230: Obs194 | C230: 1 | D230: 1 | E230: 0.01591908932 | F230: 0.9840809107
B231: Obs195 | C231: 1 | D231: 1 | E231: 0.01473259926 | F231: 0.9852674007
B232: Obs196 | C232: 1 | D232: 1 | E232: 0.003805398941 | F232: 0.9961946011
B233: Obs197 | C233: 1 | D233: 1 | E233: 0.02992397547 | F233: 0.9700760245
B234: Obs198 | C234: 1 | D234: 1 | E234: 0.004589498043 | F234: 0.995410502
B235: Obs199 | C235: 1 | D235: 1 | E235: 0.001571118832 | F235: 0.9984288812
B236: Obs200 | C236: 1 | D236: 1 | E236: 0.006660401821 | F236: 0.9933395982
B239: Variable importance:
B241: Variable | C241: Gain | D241: Cover | E241: Frequency
B242: BOTTOM | C242: 0.7790488644 | D242: 0.4585124481 | E242: 0.3194444444
B243: TOP | C243: 0.1863819016 | D243: 0.3349662553 | E243: 0.2916666667
B244: LENGTH | C244: 0.01268184252 | D244: 0.1012892455 | E244: 0.1944444444
B245: RIGHT | C245: 0.01254242153 | D245: 0.03631869944 | E245: 0.05555555556
B246: LEFT | C246: 0.009344969945 | D246: 0.06891335163 | E246: 0.1388888889
B269: Results for Validation sample:
B271: Confusion matrix for the validation sample:
B273: from \ to | C273: 0 | D273: 1 | E273: Total | F273: % correct
B274: 0 | C274: 17 | D274: 1 | E274: 18 | F274: 0.9444444444
B275: 1 | C275: 2 | D275: 10 | E275: 12 | F275: 0.8333333333
B276: Total | C276: 19 | D276: 11 | E276: 30 | F276: 0.9
B299: Validation:
... 32 more rows

Sheet XLSTAT_20240405_141829_1_HID2 (hidden)
A1: 0 | B1: 0
A2: 0 | B2: 0.08333333333
A3: 0 | B3: 0.1666666667
A4: 0 | B4: 0.25
A5: 0 | B5: 0.3333333333
A6: 0 | B6: 0.3333333333
A7: 0 | B7: 0.3333333333
A8: 0 | B8: 0.5833333333
A9: 0 | B9: 0.6666666667
A10: 0 | B10: 0.75
A11: 0 | B11: 0.8333333333
A12: 0.05555555556 | B12: 0.8333333333
A13: 0.05555555556 | B13: 0.9166666667
A14: 0.05555555556 | B14: 1
A15: 0.1111111111 | B15: 1
A16: 0.1666666667 | B16: 1
A17: 0.1666666667 | B17: 1
A18: 0.1666666667 | B18: 1
A19: 0.1666666667 | B19: 1
A20: 0.1666666667 | B20: 1
A21: 0.1666666667 | B21: 1
A22: 0.1666666667 | B22: 1
A23: 0.5555555556 | B23: 1
A24: 0.6111111111 | B24: 1
A25: 0.6666666667 | B25: 1
A26: 0.7222222222 | B26: 1
A27: 0.7222222222 | B27: 1
A28: 0.8333333333 | B28: 1
A29: 0.8333333333 | B29: 1
A30: 0.8333333333 | B30: 1
A31: 1 | B31: 1

Sheet XLSTAT_20240405_141829_1_HID1 (hidden)
A1: Variable importance:
A3: Variable | B3: Gain | C3: Cover | D3: Frequency
A4: BOTTOM | B4: 0.7790488644 | C4: 0.4585124481 | D4: 0.3194444444
A5: TOP | B5: 0.1863819016 | C5: 0.3349662553 | D5: 0.2916666667
A6: LENGTH | B6: 0.01268184252 | C6: 0.1012892455 | D6: 0.1944444444
A7: RIGHT | B7: 0.01254242153 | C7: 0.03631869944 | D7: 0.05555555556
A8: LEFT | B8: 0.009344969945 | C8: 0.06891335163 | D8: 0.1388888889
A11: Variable importance:
A13: Variable | B13: Gain | C13: Cover | D13: Frequency
A14: BOTTOM | B14: 0.7790488644 | C14: 0.4585124481 | D14: 0.3194444444
A15: TOP | B15: 0.1863819016 | C15: 0.3349662553 | D15: 0.2916666667
A16: LENGTH | B16: 0.01268184252 | C16: 0.1012892455 | D16: 0.1944444444
A17: RIGHT | B17: 0.01254242153 | C17: 0.03631869944 | D17: 0.05555555556
A18: LEFT | B18: 0.009344969945 | C18: 0.06891335163 | D18: 0.1388888889

Sheet XLSTAT_20240405_141829_1_HID (hidden)
A1: 1 | B1: =(A1-1) -> 0 | C1: =0.0173463504182886+B1*0.0013809832606058 -> 0.01734635042 | D1: =IF(B1/2-INT(B1/2)<0.1,1.01734635041829,1.98265364958171) -> 1.01734635 | E1: 1 | F1: =(E1-1) -> 0 | G1: =0.0202983881998766+F1*0.0013725368005726 -> 0.0202983882 | H1: =IF(F1/2-INT(F1/2)<0.1,1.02029838819988,1.97970161180012) -> 1.020298388 | I1: 1 | J1: =(I1-1) -> 0 | K1: =1.4466998209111+J1*0.0001525040889525 -> 1.446699821 | L1: =IF(J1/2-INT(J1/2)<0.1,1.4466998209111,1.5533001790889) -> 1.446699821 | M1: 1 | N1: =(M1-1) -> 0 | O1: =0.446699820911097+N1*0.0001525040889525 -> 0.4466998209 | P1: =IF(N1/2-INT(N1/2)<0.1,0.446699820911098,0.553300179088902) -> 0.4466998209 | Q1: 1 | R1: =(Q1-1) -> 0 | S1: =1+R1*0.0014306151645207 -> 1 | T1: =IF(R1/2-INT(R1/2)<0.1,0,1) -> 0 | U1: 1 | V1: =(U1-1) -> 0 | W1: =1.00284902604029+V1*0.001422463444806 -> 1.002849026 | X1: =IF(V1/2-INT(V1/2)<0.1,0.0028490260402874,0.997150973959713) -> 0.00284902604 | Y1: 1 | Z1: =(Y1-1) -> 0 | AA1: =0+Z1*0.0014306151645207 -> 0 | AB1: =IF(Z1/2-INT(Z1/2)<0.1,1,2) -> 1 | AC1: 1 | AD1: =(AC1-1) -> 0 | AE1: =0.014087342096225+AD1*0.0013903080340594 -> 0.0140873421 | AF1: =IF(AD1/2-INT(AD1/2)<0.1,1.01408734209623,1.98591265790377) -> 1.014087342 | AG1: 1 | AH1: =(AG1-1) -> 0 | AI1: =1.38214886980224+AH1*0.0003371992280336 -> 1.38214887 | AJ1: =IF(AH1/2-INT(AH1/2)<0.1,1.38214886980224,1.61785113019776) -> 1.38214887 | AK1: 1 | AL1: =(AK1-1) -> 0 | AM1: =0.333333333333333+AL1*0.0004768717215069 -> 0.3333333333 | AN1: =IF(AL1/2-INT(AL1/2)<0.1,0.333333333333333,0.666666666666667) -> 0.3333333333 | AO1: 1 | AP1: =(AO1-1) -> 0 | AQ1: =1.09175170953614+AP1*0.0011680923904545 -> 1.09175171 | AR1: =IF(AP1/2-INT(AP1/2)<0.1,0.0917517095361369,0.908248290463863) -> 0.09175170954 | AS1: 1 | AT1: =(AS1-1) -> 0 | AU1: =1.12732200375004+AT1*0.0010663175858368 -> 1.127322004 | AV1: =IF(AT1/2-INT(AT1/2)<0.1,0.127322003750035,0.872677996249965) -> 0.1273220038
A2: 2 | B2: 1 | C2: 0.01872733368 | D2: 1.98265365 | E2: 2 | F2: 1 | G2: 0.021670925 | H2: 1.979701612 | I2: 2 | J2: 1 | K2: 1.446852325 | L2: 1.553300179 | M2: 2 | N2: 1 | O2: 0.446852325 | P2: 0.5533001791 | Q2: 2 | R2: 1 | S2: 1.001430615 | T2: 1 | U2: 2 | V2: 1 | W2: 1.004271489 | X2: 0.997150974 | Y2: 2 | Z2: 1 | AA2: 0.001430615165 | AB2: 2 | AC2: 2 | AD2: 1 | AE2: 0.01547765013 | AF2: 1.985912658 | AG2: 2 | AH2: 1 | AI2: 1.382486069 | AJ2: 1.61785113 | AK2: 2 | AL2: 1 | AM2: 0.3338102051 | AN2: 0.6666666667 | AO2: 2 | AP2: 1 | AQ2: 1.092919802 | AR2: 0.9082482905 | AS2: 2 | AT2: 1 | AU2: 1.128388321 | AV2: 0.8726779962
A3: 3 | B3: 2 | C3: 0.02010831694 | D3: 1.01734635 | E3: 3 | F3: 2 | G3: 0.0230434618 | H3: 1.020298388 | I3: 3 | J3: 2 | K3: 1.447004829 | L3: 1.446699821 | M3: 3 | N3: 2 | O3: 0.4470048291 | P3: 0.4466998209 | Q3: 3 | R3: 2 | S3: 1.00286123 | T3: 0 | U3: 3 | V3: 2 | W3: 1.005693953 | X3: 0.00284902604 | Y3: 3 | Z3: 2 | AA3: 0.002861230329 | AB3: 1 | AC3: 3 | AD3: 2 | AE3: 0.01686795816 | AF3: 1.014087342 | AG3: 3 | AH3: 2 | AI3: 1.382823268 | AJ3: 1.38214887 | AK3: 3 | AL3: 2 | AM3: 0.3342870768 | AN3: 0.3333333333 | AO3: 3 | AP3: 2 | AQ3: 1.094087894 | AR3: 0.09175170954 | AS3: 3 | AT3: 2 | AU3: 1.129454639 | AV3: 0.1273220038
A4: 4 | B4: 3 | C4: 0.0214893002 | D4: 1.98265365 | E4: 4 | F4: 3 | G4: 0.0244159986 | H4: 1.979701612 | I4: 4 | J4: 3 | K4: 1.447157333 | L4: 1.553300179 | M4: 4 | N4: 3 | O4: 0.4471573332 | P4: 0.5533001791 | Q4: 4 | R4: 3 | S4: 1.004291845 | T4: 1 | U4: 4 | V4: 3 | W4: 1.007116416 | X4: 0.997150974 | Y4: 4 | Z4: 3 | AA4: 0.004291845494 | AB4: 2 | AC4: 4 | AD4: 3 | AE4: 0.0182582662 | AF4: 1.985912658 | AG4: 4 | AH4: 3 | AI4: 1.383160467 | AJ4: 1.61785113 | AK4: 4 | AL4: 3 | AM4: 0.3347639485 | AN4: 0.6666666667 | AO4: 4 | AP4: 3 | AQ4: 1.095255987 | AR4: 0.9082482905 | AS4: 4 | AT4: 3 | AU4: 1.130520957 | AV4: 0.8726779962
A5: 5 | B5: 4 | C5: 0.02287028346 | D5: 1.01734635 | E5: 5 | F5: 4 | G5: 0.0257885354 | H5: 1.020298388 | I5: 5 | J5: 4 | K5: 1.447309837 | L5: 1.446699821 | M5: 5 | N5: 4 | O5: 0.4473098373 | P5: 0.4466998209 | Q5: 5 | R5: 4 | S5: 1.005722461 | T5: 0 | U5: 5 | V5: 4 | W5: 1.00853888 | X5: 0.00284902604 | Y5: 5 | Z5: 4 | AA5: 0.005722460658 | AB5: 1 | AC5: 5 | AD5: 4 | AE5: 0.01964857423 | AF5: 1.014087342 | AG5: 5 | AH5: 4 | AI5: 1.383497667 | AJ5: 1.38214887 | AK5: 5 | AL5: 4 | AM5: 0.3352408202 | AN5: 0.3333333333 | AO5: 5 | AP5: 4 | AQ5: 1.096424079 | AR5: 0.09175170954 | AS5: 5 | AT5: 4 | AU5: 1.131587274 | AV5: 0.1273220038
A6: 6 | B6: 5 | C6: 0.02425126672 | D6: 1.98265365 | E6: 6 | F6: 5 | G6: 0.0271610722 | H6: 1.979701612 | I6: 6 | J6: 5 | K6: 1.447462341 | L6: 1.553300179 | M6: 6 | N6: 5 | O6: 0.4474623414 | P6: 0.5533001791 | Q6: 6 | R6: 5 | S6: 1.007153076 | T6: 1 | U6: 6 | V6: 5 | W6: 1.009961343 | X6: 0.997150974 | Y6: 6 | Z6: 5 | AA6: 0.007153075823 | AB6: 2 | AC6: 6 | AD6: 5 | AE6: 0.02103888227 | AF6: 1.985912658 | AG6: 6 | AH6: 5 | AI6: 1.383834866 | AJ6: 1.61785113 | AK6: 6 | AL6: 5 | AM6: 0.3357176919 | AN6: 0.6666666667 | AO6: 6 | AP6: 5 | AQ6: 1.097592171 | AR6: 0.9082482905 | AS6: 6 | AT6: 5 | AU6: 1.132653592 | AV6: 0.8726779962
A7: 7 | B7: 6 | C7: 0.02563224998 | D7: 1.01734635 | E7: 7 | F7: 6 | G7: 0.028533609 | H7: 1.020298388 | I7: 7 | J7: 6 | K7: 1.447614845 | L7: 1.446699821 | M7: 7 | N7: 6 | O7: 0.4476148454 | P7: 0.4466998209 | Q7: 7 | R7: 6 | S7: 1.008583691 | T7: 0 | U7: 7 | V7: 6 | W7: 1.011383807 | X7: 0.00284902604 | Y7: 7 | Z7: 6 | AA7: 0.008583690987 | AB7: 1 | AC7: 7 | AD7: 6 | AE7: 0.0224291903 | AF7: 1.014087342 | AG7: 7 | AH7: 6 | AI7: 1.384172065 | AJ7: 1.38214887 | AK7: 7 | AL7: 6 | AM7: 0.3361945637 | AN7: 0.3333333333 | AO7: 7 | AP7: 6 | AQ7: 1.098760264 | AR7: 0.09175170954 | AS7: 7 | AT7: 6 | AU7: 1.133719909 | AV7: 0.1273220038
A8: 8 | B8: 7 | C8: 0.02701323324 | D8: 1.98265365 | E8: 8 | F8: 7 | G8: 0.0299061458 | H8: 1.979701612 | I8: 8 | J8: 7 | K8: 1.44776735 | L8: 1.553300179 | M8: 8 | N8: 7 | O8: 0.4477673495 | P8: 0.5533001791 | Q8: 8 | R8: 7 | S8: 1.010014306 | T8: 1 | U8: 8 | V8: 7 | W8: 1.01280627 | X8: 0.997150974 | Y8: 8 | Z8: 7 | AA8: 0.01001430615 | AB8: 2 | AC8: 8 | AD8: 7 | AE8: 0.02381949833 | AF8: 1.985912658 | AG8: 8 | AH8: 7 | AI8: 1.384509264 | AJ8: 1.61785113 | AK8: 8 | AL8: 7 | AM8: 0.3366714354 | AN8: 0.6666666667 | AO8: 8 | AP8: 7 | AQ8: 1.099928356 | AR8: 0.9082482905 | AS8: 8 | AT8: 7 | AU8: 1.134786227 | AV8: 0.8726779962
A9: 9 | B9: 8 | C9: 0.0283942165 | D9: 1.01734635 | E9: 9 | F9: 8 | G9: 0.0312786826 | H9: 1.020298388 | I9: 9 | J9: 8 | K9: 1.447919854 | L9: 1.446699821 | M9: 9 | N9: 8 | O9: 0.4479198536 | P9: 0.4466998209 | Q9: 9 | R9: 8 | S9: 1.011444921 | T9: 0 | U9: 9 | V9: 8 | W9: 1.014228734 | X9: 0.00284902604 | Y9: 9 | Z9: 8 | AA9: 0.01144492132 | AB9: 1 | AC9: 9 | AD9: 8 | AE9: 0.02520980637 | AF9: 1.014087342 | AG9: 9 | AH9: 8 | AI9: 1.384846464 | AJ9: 1.38214887 | AK9: 9 | AL9: 8 | AM9: 0.3371483071 | AN9: 0.3333333333 | AO9: 9 | AP9: 8 | AQ9: 1.101096449 | AR9: 0.09175170954 | AS9: 9 | AT9: 8 | AU9: 1.135852544 | AV9: 0.1273220038
A10: 10 | B10: 9 | C10: 0.02977519976 | D10: 1.98265365 | E10: 10 | F10: 9 | G10: 0.03265121941 | H10: 1.979701612 | I10: 10 | J10: 9 | K10: 1.448072358 | L10: 1.553300179 | M10: 10 | N10: 9 | O10: 0.4480723577 | P10: 0.5533001791 | Q10: 10 | R10: 9 | S10: 1.012875536 | T10: 1 | U10: 10 | V10: 9 | W10: 1.015651197 | X10: 0.997150974 | Y10: 10 | Z10: 9 | AA10: 0.01287553648 | AB10: 2 | AC10: 10 | AD10: 9 | AE10: 0.0266001144 | AF10: 1.985912658 | AG10: 10 | AH10: 9 | AI10: 1.385183663 | AJ10: 1.61785113 | AK10: 10 | AL10: 9 | AM10: 0.3376251788 | AN10: 0.6666666667 | AO10: 10 | AP10: 9 | AQ10: 1.102264541 | AR10: 0.9082482905 | AS10: 10 | AT10: 9 | AU10: 1.136918862 | AV10: 0.8726779962
A11: 11 | B11: 10 | C11: 0.03115618302 | D11: 1.01734635 | E11: 11 | F11: 10 | G11: 0.03402375621 | H11: 1.020298388 | I11: 11 | J11: 10 | K11: 1.448224862 | L11: 1.446699821 | M11: 11 | N11: 10 | O11: 0.4482248618 | P11: 0.4466998209 | Q11: 11 | R11: 10 | S11: 1.014306152 | T11: 0 | U11: 11 | V11: 10 | W11: 1.01707366 | X11: 0.00284902604 | Y11: 11 | Z11: 10 | AA11: 0.01430615165 | AB11: 1 | AC11: 11 | AD11: 10 | AE11: 0.02799042244 | AF11: 1.014087342 | AG11: 11 | AH11: 10 | AI11: 1.385520862 | AJ11: 1.38214887 | AK11: 11 | AL11: 10 | AM11: 0.3381020505 | AN11: 0.3333333333 | AO11: 11 | AP11: 10 | AQ11: 1.103432633 | AR11: 0.09175170954 | AS11: 11 | AT11: 10 | AU11: 1.13798518 | AV11: 0.1273220038
A12: 12 | B12: 11 | C12: 0.03253716628 | D12: 1.98265365 | E12: 12 | F12: 11 | G12: 0.03539629301 | H12: 1.979701612 | I12: 12 | J12: 11 | K12: 1.448377366 | L12: 1.553300179 | M12: 12 | N12: 11 | O12: 0.4483773659 | P12: 0.5533001791 | Q12: 12 | R12: 11 | S12: 1.015736767 | T12: 1 | U12: 12 | V12: 11 | W12: 1.018496124 | X12: 0.997150974 | Y12: 12 | Z12: 11 | AA12: 0.01573676681 | AB12: 2 | AC12: 12 | AD12: 11 | AE12: 0.02938073047 | AF12: 1.985912658 | AG12: 12 | AH12: 11 | AI12: 1.385858061 | AJ12: 1.61785113 | AK12: 12 | AL12: 11 | AM12: 0.3385789223 | AN12: 0.6666666667 | AO12: 12 | AP12: 11 | AQ12: 1.104600726 | AR12: 0.9082482905 | AS12: 12 | AT12: 11 | AU12: 1.139051497 | AV12: 0.8726779962
A13: 13 | B13: 12 | C13: 0.03391814955 | D13: 1.01734635 | E13: 13 | F13: 12 | G13: 0.03676882981 | H13: 1.020298388 | I13: 13 | J13: 12 | K13: 1.44852987 | L13: 1.446699821 | M13: 13 | N13: 12 | O13: 0.44852987 | P13: 0.4466998209 | Q13: 13 | R13: 12 | S13: 1.017167382 | T13: 0 | U13: 13 | V13: 12 | W13: 1.019918587 | X13: 0.00284902604 | Y13: 13 | Z13: 12 | AA13: 0.01716738197 | AB13: 1 | AC13: 13 | AD13: 12 | AE13: 0.0307710385 | AF13: 1.014087342 | AG13: 13 | AH13: 12 | AI13: 1.386195261 | AJ13: 1.38214887 | AK13: 13 | AL13: 12 | AM13: 0.339055794 | AN13: 0.3333333333 | AO13: 13 | AP13: 12 | AQ13: 1.105768818 | AR13: 0.09175170954 | AS13: 13 | AT13: 12 | AU13: 1.140117815 | AV13: 0.1273220038
A14: 14 | B14: 13 | C14: 0.03529913281 | D14: 1.98265365 | E14: 14 | F14: 13 | G14: 0.03814136661 | H14: 1.979701612 | I14: 14 | J14: 13 | K14: 1.448682374 | L14: 1.553300179 | M14: 14 | N14: 13 | O14: 0.4486823741 | P14: 0.5533001791 | Q14: 14 | R14: 13 | S14: 1.018597997 | T14: 1 | U14: 14 | V14: 13 | W14: 1.021341051 | X14: 0.997150974 | Y14: 14 | Z14: 13 | AA14: 0.01859799714 | AB14: 2 | AC14: 14 | AD14: 13 | AE14: 0.03216134654 | AF14: 1.985912658 | AG14: 14 | AH14: 13 | AI14: 1.38653246 | AJ14: 1.61785113 | AK14: 14 | AL14: 13 | AM14: 0.3395326657 | AN14: 0.6666666667 | AO14: 14 | AP14: 13 | AQ14: 1.106936911 | AR14: 0.9082482905 | AS14: 14 | AT14: 13 | AU14: 1.141184132 | AV14: 0.8726779962
A15: 15 | B15: 14 | C15: 0.03668011607 | D15: 1.01734635 | E15: 15 | F15: 14 | G15: 0.03951390341 | H15: 1.020298388 | I15: 15 | J15: 14 | K15: 1.448834878 | L15: 1.446699821 | M15: 15 | N15: 14 | O15: 0.4488348782 | P15: 0.4466998209 | Q15: 15 | R15: 14 | S15: 1.020028612 | T15: 0 | U15: 15 | V15: 14 | W15: 1.022763514 | X15: 0.00284902604 | Y15: 15 | Z15: 14 | AA15: 0.0200286123 | AB15: 1 | AC15: 15 | AD15: 14 | AE15: 0.03355165457 | AF15: 1.014087342 | AG15: 15 | AH15: 14 | AI15: 1.386869659 | AJ15: 1.38214887 | AK15: 15 | AL15: 14 | AM15: 0.3400095374 | AN15: 0.3333333333 | AO15: 15 | AP15: 14 | AQ15: 1.108105003 | AR15: 0.09175170954 | AS15: 15 | AT15: 14 | AU15: 1.14225045 | AV15: 0.1273220038
A16: 16 | B16: 15 | C16: 0.03806109933 | D16: 1.98265365 | E16: 16 | F16: 15 | G16: 0.04088644021 | H16: 1.979701612 | I16: 16 | J16: 15 | K16: 1.448987382 | L16: 1.553300179 | M16: 16 | N16: 15 | O16: 0.4489873822 | P16: 0.5533001791 | Q16: 16 | R16: 15 | S16: 1.021459227 | T16: 1 | U16: 16 | V16: 15 | W16: 1.024185978 | X16: 0.997150974 | Y16: 16 | Z16: 15 | AA16: 0.02145922747 | AB16: 2 | AC16: 16 | AD16: 15 | AE16: 0.03494196261 | AF16: 1.985912658 | AG16: 16 | AH16: 15 | AI16: 1.387206858 | AJ16: 1.61785113 | AK16: 16 | AL16: 15 | AM16: 0.3404864092 | AN16: 0.6666666667 | AO16: 16 | AP16: 15 | AQ16: 1.109273095 | AR16: 0.9082482905 | AS16: 16 | AT16: 15 | AU16: 1.143316768 | AV16: 0.8726779962
A17: 17 | B17: 16 | C17: 0.03944208259 | D17: 1.01734635 | E17: 17 | F17: 16 | G17: 0.04225897701 | H17: 1.020298388 | I17: 17 | J17: 16 | K17: 1.449139886 | L17: 1.446699821 | M17: 17 | N17: 16 | O17: 0.4491398863 | P17: 0.4466998209 | Q17: 17 | R17: 16 | S17: 1.022889843 | T17: 0 | U17: 17 | V17: 16 | W17: 1.025608441 | X17: 0.00284902604 | Y17: 17 | Z17: 16 | AA17: 0.02288984263 | AB17: 1 | AC17: 17 | AD17: 16 | AE17: 0.03633227064 | AF17: 1.014087342 | AG17: 17 | AH17: 16 | AI17: 1.387544057 | AJ17: 1.38214887 | AK17: 17 | AL17: 16 | AM17: 0.3409632809 | AN17: 0.3333333333 | AO17: 17 | AP17: 16 | AQ17: 1.110441188 | AR17: 0.09175170954 | AS17: 17 | AT17: 16 | AU17: 1.144383085 | AV17: 0.1273220038
A18: 18 | B18: 17 | C18: 0.04082306585 | D18: 1.98265365 | E18: 18 | F18: 17 | G18: 0.04363151381 | H18: 1.979701612 | I18: 18 | J18: 17 | K18: 1.44929239 | L18: 1.553300179 | M18: 18 | N18: 17 | O18: 0.4492923904 | P18: 0.5533001791 | Q18: 18 | R18: 17 | S18: 1.024320458 | T18: 1 | U18: 18 | V18: 17 | W18: 1.027030905 | X18: 0.997150974 | Y18: 18 | Z18: 17 | AA18: 0.0243204578 | AB18: 2 | AC18: 18 | AD18: 17 | AE18: 0.03772257868 | AF18: 1.985912658 | AG18: 18 | AH18: 17 | AI18: 1.387881257 | AJ18: 1.61785113 | AK18: 18 | AL18: 17 | AM18: 0.3414401526 | AN18: 0.6666666667 | AO18: 18 | AP18: 17 | AQ18: 1.11160928 | AR18: 0.9082482905 | AS18: 18 | AT18: 17 | AU18: 1.145449403 | AV18: 0.8726779962
A19: 19 | B19: 18 | C19: 0.04220404911 | D19: 1.01734635 | E19: 19 | F19: 18 | G19: 0.04500405061 | H19: 1.020298388 | I19: 19 | J19: 18 | K19: 1.449444895 | L19: 1.446699821 | M19: 19 | N19: 18 | O19: 0.4494448945 | P19: 0.4466998209 | Q19: 19 | R19: 18 | S19: 1.025751073 | T19: 0 | U19: 19 | V19: 18 | W19: 1.028453368 | X19: 0.00284902604 | Y19: 19 | Z19: 18 | AA19: 0.02575107296 | AB19: 1 | AC19: 19 | AD19: 18 | AE19: 0.03911288671 | AF19: 1.014087342 | AG19: 19 | AH19: 18 | AI19: 1.388218456 | AJ19: 1.38214887 | AK19: 19 | AL19: 18 | AM19: 0.3419170243 | AN19: 0.3333333333 | AO19: 19 | AP19: 18 | AQ19: 1.112777373 | AR19: 0.09175170954 | AS19: 19 | AT19: 18 | AU19: 1.14651572 | AV19: 0.1273220038
A20: 20 | B20: 19 | C20: 0.04358503237 | D20: 1.98265365 | E20: 20 | F20: 19 | G20: 0.04637658741 | H20: 1.979701612 | I20: 20 | J20: 19 | K20: 1.449597399 | L20: 1.553300179 | M20: 20 | N20: 19 | O20: 0.4495973986 | P20: 0.5533001791 | Q20: 20 | R20: 19 | S20: 1.027181688 | T20: 1 | U20: 20 | V20: 19 | W20: 1.029875831 | X20: 0.997150974 | Y20: 20 | Z20: 19 | AA20: 0.02718168813 | AB20: 2 | AC20: 20 | AD20: 19 | AE20: 0.04050319474 | AF20: 1.985912658 | AG20: 20 | AH20: 19 | AI20: 1.388555655 | AJ20: 1.61785113 | AK20: 20 | AL20: 19 | AM20: 0.342393896 | AN20: 0.6666666667 | AO20: 20 | AP20: 19 | AQ20: 1.113945465 | AR20: 0.9082482905 | AS20: 20 | AT20: 19 | AU20: 1.147582038 | AV20: 0.8726779962
A21: 21 | B21: 20 | C21: 0.04496601563 | D21: 1.01734635 | E21: 21 | F21: 20 | G21: 0.04774912421 | H21: 1.020298388 | I21: 21 | J21: 20 | K21: 1.449749903 | L21: 1.446699821 | M21: 21 | N21: 20 | O21: 0.4497499027 | P21: 0.4466998209 | Q21: 21 | R21: 20 | S21: 1.028612303 | T21: 0 | U21: 21 | V21: 20 | W21: 1.031298295 | X21: 0.00284902604 | Y21: 21 | Z21: 20 | AA21: 0.02861230329 | AB21: 1 | AC21: 21 | AD21: 20 | AE21: 0.04189350278 | AF21: 1.014087342 | AG21: 21 | AH21: 20 | AI21: 1.388892854 | AJ21: 1.38214887 | AK21: 21 | AL21: 20 | AM21: 0.3428707678 | AN21: 0.3333333333 | AO21: 21 | AP21: 20 | AQ21: 1.115113557 | AR21: 0.09175170954 | AS21: 21 | AT21: 20 | AU21: 1.148648355 | AV21: 0.1273220038
A22: 22 | B22: 21 | C22: 0.04634699889 | D22: 1.98265365 | E22: 22 | F22: 21 | G22: 0.04912166101 | H22: 1.979701612 | I22: 22 | J22: 21 | K22: 1.449902407 | L22: 1.553300179 | M22: 22 | N22: 21 | O22: 0.4499024068 | P22: 0.5533001791 | Q22: 22 | R22: 21 | S22: 1.030042918 | T22: 1 | U22: 22 | V22: 21 | W22: 1.032720758 | X22: 0.997150974 | Y22: 22 | Z22: 21 | AA22: 0.03004291845 | AB22: 2 | AC22: 22 | AD22: 21 | AE22: 0.04328381081 | AF22: 1.985912658 | AG22: 22 | AH22: 21 | AI22: 1.389230054 | AJ22: 1.61785113 | AK22: 22 | AL22: 21 | AM22: 0.3433476395 | AN22: 0.6666666667 | AO22: 22 | AP22: 21 | AQ22: 1.11628165 | AR22: 0.9082482905 | AS22: 22 | AT22: 21 | AU22: 1.149714673 | AV22: 0.8726779962
A23: 23 | B23: 22 | C23: 0.04772798215 | D23: 1.01734635 | E23: 23 | F23: 22 | G23: 0.05049419781 | H23: 1.020298388 | I23: 23 | J23: 22 | K23: 1.450054911 | L23: 1.446699821 | M23: 23 | N23: 22 | O23: 0.4500549109 | P23: 0.4466998209 | Q23: 23 | R23: 22 | S23: 1.031473534 | T23: 0 | U23: 23 | V23: 22 | W23: 1.034143222 | X23: 0.00284902604 | Y23: 23 | Z23: 22 | AA23: 0.03147353362 | AB23: 1 | AC23: 23 | AD23: 22 | AE23: 0.04467411885 | AF23: 1.014087342 | AG23: 23 | AH23: 22 | AI23: 1.389567253 | AJ23: 1.38214887 | AK23: 23 | AL23: 22 | AM23: 0.3438245112 | AN23: 0.3333333333 | AO23: 23 | AP23: 22 | AQ23: 1.117449742 | AR23: 0.09175170954 | AS23: 23 | AT23: 22 | AU23: 1.150780991 | AV23: 0.1273220038
A24: 24 | B24: 23 | C24: 0.04910896541 | D24: 1.98265365 | E24: 24 | F24: 23 | G24: 0.05186673461 | H24: 1.979701612 | I24: 24 | J24: 23 | K24: 1.450207415 | L24: 1.553300179 | M24: 24 | N24: 23 | O24: 0.450207415 | P24: 0.5533001791 | Q24: 24 | R24: 23 | S24: 1.032904149 | T24: 1 | U24: 24 | V24: 23 | W24: 1.035565685 | X24: 0.997150974 | Y24: 24 | Z24: 23 | AA24: 0.03290414878 | AB24: 2 | AC24: 24 | AD24: 23 | AE24: 0.04606442688 | AF24: 1.985912658 | AG24: 24 | AH24: 23 | AI24: 1.389904452 | AJ24: 1.61785113 | AK24: 24 | AL24: 23 | AM24: 0.3443013829 | AN24: 0.6666666667 | AO24: 24 | AP24: 23 | AQ24: 1.118617835 | AR24: 0.9082482905 | AS24: 24 | AT24: 23 | AU24: 1.151847308 | AV24: 0.8726779962
A25: 25 | B25: 24 | C25: 0.05048994867 | D25: 1.01734635 | E25: 25 | F25: 24 | G25: 0.05323927141 | H25: 1.020298388 | I25: 25 | J25: 24 | K25: 1.450359919 | L25: 1.446699821 | M25: 25 | N25: 24 | O25: 0.450359919 | P25: 0.4466998209 | Q25: 25 | R25: 24 | S25: 1.034334764 | T25: 0 | U25: 25 | V25: 24 | W25: 1.036988149 | X25: 0.00284902604 | Y25: 25 | Z25: 24 | AA25: 0.03433476395 | AB25: 1 | AC25: 25 | AD25: 24 | AE25: 0.04745473491 | AF25: 1.014087342 | AG25: 25 | AH25: 24 | AI25: 1.390241651 | AJ25: 1.38214887 | AK25: 25 | AL25: 24 | AM25: 0.3447782546 | AN25: 0.3333333333 | AO25: 25 | AP25: 24 | AQ25: 1.119785927 | AR25: 0.09175170954 | AS25: 25 | AT25: 24 | AU25: 1.152913626 | AV25: 0.1273220038
A26: 26 | B26: 25 | C26: 0.05187093193 | D26: 1.98265365 | E26: 26 | F26: 25 | G26: 0.05461180821 | H26: 1.979701612 | I26: 26 | J26: 25 | K26: 1.450512423 | L26: 1.553300179 | M26: 26 | N26: 25 | O26: 0.4505124231 | P26: 0.5533001791 | Q26: 26 | R26: 25 | S26: 1.035765379 | T26: 1 | U26: 26 | V26: 25 | W26: 1.038410612 | X26: 0.997150974 | Y26: 26 | Z26: 25 | AA26: 0.03576537911 | AB26: 2 | AC26: 26 | AD26: 25 | AE26: 0.04884504295 | AF26: 1.985912658 | AG26: 26 | AH26: 25 | AI26: 1.390578851 | AJ26: 1.61785113 | AK26: 26 | AL26: 25 | AM26: 0.3452551264 | AN26: 0.6666666667 | AO26: 26 | AP26: 25 | AQ26: 1.120954019 | AR26: 0.9082482905 | AS26: 26 | AT26: 25 | AU26: 1.153979943 | AV26: 0.8726779962
A27: 27 | B27: 26 | C27: 0.05325191519 | D27: 1.01734635 | E27: 27 | F27: 26 | G27: 0.05598434501 | H27: 1.020298388 | I27: 27 | J27: 26 | K27: 1.450664927 | L27: 1.446699821 | M27: 27 | N27: 26 | O27: 0.4506649272 | P27: 0.4466998209 | Q27: 27 | R27: 26 | S27: 1.037195994 | T27: 0 | U27: 27 | V27: 26 | W27: 1.039833076 | X27: 0.00284902604 | Y27: 27 | Z27: 26 | AA27: 0.03719599428 | AB27: 1 | AC27: 27 | AD27: 26 | AE27: 0.05023535098 | AF27: 1.014087342 | AG27: 27 | AH27: 26 | AI27: 1.39091605 | AJ27: 1.38214887 | AK27: 27 | AL27: 26 | AM27: 0.3457319981 | AN27: 0.3333333333 | AO27: 27 | AP27: 26 | AQ27: 1.122122112 | AR27: 0.09175170954 | AS27: 27 | AT27: 26 | AU27: 1.155046261 | AV27: 0.1273220038
A28: 28 | B28: 27 | C28: 0.05463289845 | D28: 1.98265365 | E28: 28 | F28: 27 | G28: 0.05735688182 | H28: 1.979701612 | I28: 28 | J28: 27 | K28: 1.450817431 | L28: 1.553300179 | M28: 28 | N28: 27 | O28: 0.4508174313 | P28: 0.5533001791 | Q28: 28 | R28: 27 | S28: 1.038626609 | T28: 1 | U28: 28 | V28: 27 | W28: 1.041255539 | X28: 0.997150974 | Y28: 28 | Z28: 27 | AA28: 0.03862660944 | AB28: 2 | AC28: 28 | AD28: 27 | AE28: 0.05162565902 | AF28: 1.985912658 | AG28: 28 | AH28: 27 | AI28: 1.391253249 | AJ28: 1.61785113 | AK28: 28 | AL28: 27 | AM28: 0.3462088698 | AN28: 0.6666666667 | AO28: 28 | AP28: 27 | AQ28: 1.123290204 | AR28: 0.9082482905 | AS28: 28 | AT28: 27 | AU28: 1.156112579 | AV28: 0.8726779962
A29: 29 | B29: 28 | C29: 0.05601388172 | D29: 1.01734635 | E29: 29 | F29: 28 | G29: 0.05872941862 | H29: 1.020298388 | I29: 29 | J29: 28 | K29: 1.450969935 | L29: 1.446699821 | M29: 29 | N29: 28 | O29: 0.4509699354 | P29: 0.4466998209 | Q29: 29 | R29: 28 | S29: 1.040057225 | T29: 0 | U29: 29 | V29: 28 | W29: 1.042678002 | X29: 0.00284902604 | Y29: 29 | Z29: 28 | AA29: 0.04005722461 | AB29: 1 | AC29: 29 | AD29: 28 | AE29: 0.05301596705 | AF29: 1.014087342 | AG29: 29 | AH29: 28 | AI29: 1.391590448 | AJ29: 1.38214887 | AK29: 29 | AL29: 28 | AM29: 0.3466857415 | AN29: 0.3333333333 | AO29: 29 | AP29: 28 | AQ29: 1.124458296 | AR29: 0.09175170954 | AS29: 29 | AT29: 28 | AU29: 1.157178896 | AV29: 0.1273220038
A30: 30 | B30: 29 | C30: 0.05739486498 | D30: 1.98265365 | E30: 30 | F30: 29 | G30: 0.06010195542 | H30: 1.979701612 | I30: 30 | J30: 29 | K30: 1.451122439 | L30: 1.553300179 | M30: 30 | N30: 29 | O30: 0.4511224395 | P30: 0.5533001791 | Q30: 30 | R30: 29 | S30: 1.04148784 | T30: 1 | U30: 30 | V30: 29 | W30: 1.044100466 | X30: 0.997150974 | Y30: 30 | Z30: 29 | AA30: 0.04148783977 | AB30: 2 | AC30: 30 | AD30: 29 | AE30: 0.05440627508 | AF30: 1.985912658 | AG30: 30 | AH30: 29 | AI30: 1.391927647 | AJ30: 1.61785113 | AK30: 30 | AL30: 29 | AM30: 0.3471626133 | AN30: 0.6666666667 | AO30: 30 | AP30: 29 | AQ30: 1.125626389 | AR30: 0.9082482905 | AS30: 30 | AT30: 29 | AU30: 1.158245214 | AV30: 0.8726779962
A31: 31 | B31: 30 | C31: 0.05877584824 | D31: 1.01734635 | E31: 31 | F31: 30 | G31: 0.06147449222 | H31: 1.020298388 | I31: 31 | J31: 30 | K31: 1.451274944 | L31: 1.446699821 | M31: 31 | N31: 30 | O31: 0.4512749436 | P31: 0.4466998209 | Q31: 31 | R31: 30 | S31: 1.042918455 | T31: 0 | U31: 31 | V31: 30 | W31: 1.045522929 | X31: 0.00284902604 | Y31: 31 | Z31: 30 | AA31: 0.04291845494 | AB31: 1 | AC31: 31 | AD31: 30 | AE31: 0.05579658312 | AF31: 1.014087342 | AG31: 31 | AH31: 30 | AI31: 1.392264847 | AJ31: 1.38214887 | AK31: 31 | AL31: 30 | AM31: 0.347639485 | AN31: 0.3333333333 | AO31: 31 | AP31: 30 | AQ31: 1.126794481 | AR31: 0.09175170954 | AS31: 31 | AT31: 30 | AU31: 1.159311531 | AV31: 0.1273220038
A32: 32 | B32: 31 | C32: 0.0601568315 | D32: 1.98265365 | E32: 32 | F32: 31 | G32: 0.06284702902 | H32: 1.979701612 | I32: 32 | J32: 31 | K32: 1.451427448 | L32: 1.553300179 | M32: 32 | N32: 31 | O32: 0.4514274477 | P32: 0.5533001791 | Q32: 32 | R32: 31 | S32: 1.04434907 | T32: 1 | U32: 32 | V32: 31 | W32: 1.046945393 | X32: 0.997150974 | Y32: 32 | Z32: 31 | AA32: 0.0443490701 | AB32: 2 | AC32: 32 | AD32: 31 | AE32: 0.05718689115 | AF32: 1.985912658 | AG32: 32 | AH32: 31 | AI32: 1.392602046 | AJ32: 1.61785113 | AK32: 32 | AL32: 31 | AM32: 0.3481163567 | AN32: 0.6666666667 | AO32: 32 | AP32: 31 | AQ32: 1.127962574 | AR32: 0.9082482905 | AS32: 32 | AT32: 31 | AU32: 1.160377849 | AV32: 0.8726779962
A33: 33 | B33: 32 | C33: 0.06153781476 | D33: 1.01734635 | E33: 33 | F33: 32 | G33: 0.06421956582 | H33: 1.020298388 | I33: 33 | J33: 32 | K33: 1.451579952 | L33: 1.446699821 | M33: 33 | N33: 32 | O33: 0.4515799518 | P33: 0.4466998209 | Q33: 33 | R33: 32 | S33: 1.045779685 | T33: 0 | U33: 33 | V33: 32 | W33: 1.048367856 | X33: 0.00284902604 | Y33: 33 | Z33: 32 | AA33: 0.04577968526 | AB33: 1 | AC33: 33 | AD33: 32 | AE33: 0.05857719919 | AF33: 1.014087342 | AG33: 33 | AH33: 32 | AI33: 1.392939245 | AJ33: 1.38214887 | AK33: 33 | AL33: 32 | AM33: 0.3485932284 | AN33: 0.3333333333 | AO33: 33 | AP33: 32 | AQ33: 1.129130666 | AR33: 0.09175170954 | AS33: 33 | AT33: 32 | AU33: 1.161444166 | AV33: 0.1273220038
A34: 34 | B34: 33 | C34: 0.06291879802 | D34: 1.98265365 | E34: 34 | F34: 33 | G34: 0.06559210262 | H34: 1.979701612 | I34: 34 | J34: 33 | K34: 1.451732456 | L34: 1.553300179 | M34: 34 | N34: 33 | O34: 0.4517324558 | P34: 0.5533001791 | Q34: 34 | R34: 33 | S34: 1.0472103 | T34: 1 | U34: 34 | V34: 33 | W34: 1.04979032 | X34: 0.997150974 | Y34: 34 | Z34: 33 | AA34: 0.04721030043 | AB34: 2 | AC34: 34 | AD34: 33 | AE34: 0.05996750722 | AF34: 1.985912658 | AG34: 34 | AH34: 33 | AI34: 1.393276444 | AJ34: 1.61785113 | AK34: 34 | AL34: 33 | AM34: 0.3490701001 | AN34: 0.6666666667 | AO34: 34 | AP34: 33 | AQ34: 1.130298758 | AR34: 0.9082482905 | AS34: 34 | AT34: 33 | AU34: 1.162510484 | AV34: 0.8726779962
A35: 35 | B35: 34 | C35: 0.06429978128 | D35: 1.01734635 | E35: 35 | F35: 34 | G35: 0.06696463942 | H35: 1.020298388 | I35: 35 | J35: 34 | K35: 1.45188496 | L35: 1.446699821 | M35: 35 | N35: 34 | O35: 0.4518849599 | P35: 0.4466998209 | Q35: 35 | R35: 34 | S35: 1.048640916 | T35: 0 | U35: 35 | V35: 34 | W35: 1.051212783 | X35: 0.00284902604 | Y35: 35 | Z35: 34 | AA35: 0.04864091559 | AB35: 1 | AC35: 35 | AD35: 34 | AE35: 0.06135781525 | AF35: 1.014087342 | AG35: 35 | AH35: 34 | AI35: 1.393613644 | AJ35: 1.38214887 | AK35: 35 | AL35: 34 | AM35: 0.3495469719 | AN35: 0.3333333333 | AO35: 35 | AP35: 34 | AQ35: 1.131466851 | AR35: 0.09175170954 | AS35: 35 | AT35: 34 | AU35: 1.163576802 | AV35: 0.1273220038
A36: 36 | B36: 35 | C36: 0.06568076454 | D36: 1.98265365 | E36: 36 | F36: 35 | G36: 0.06833717622 | H36: 1.979701612 | I36: 36 | J36: 35 | K36: 1.452037464 | L36: 1.553300179 | M36: 36 | N36: 35 | O36: 0.452037464 | P36: 0.5533001791 | Q36: 36 | R36: 35 | S36: 1.050071531 | T36: 1 | U36: 36 | V36: 35 | W36: 1.052635247 | X36: 0.997150974 | Y36: 36 | Z36: 35 | AA36: 0.05007153076 | AB36: 2 | AC36: 36 | AD36: 35 | AE36: 0.06274812329 | AF36: 1.985912658 | AG36: 36 | AH36: 35 | AI36: 1.393950843 | AJ36: 1.61785113 | AK36: 36 | AL36: 35 | AM36: 0.3500238436 | AN36: 0.6666666667 | AO36: 36 | AP36: 35 | AQ36: 1.132634943 | AR36: 0.9082482905 | AS36: 36 | AT36: 35 | AU36: 1.164643119 | AV36: 0.8726779962
A37: 37 | B37: 36 | C37: 0.0670617478 | D37: 1.01734635 | E37: 37 | F37: 36 | G37: 0.06970971302 | H37: 1.020298388 | I37: 37 | J37: 36 | K37: 1.452189968 | L37: 1.446699821 | M37: 37 | N37: 36 | O37: 0.4521899681 | P37: 0.4466998209 | Q37: 37 | R37: 36 | S37: 1.051502146 | T37: 0 | U37: 37 | V37: 36 | W37: 1.05405771 | X37: 0.00284902604 | Y37: 37 | Z37: 36 | AA37: 0.05150214592 | AB37: 1 | AC37: 37 | AD37: 36 | AE37: 0.06413843132 | AF37: 1.014087342 | AG37: 37 | AH37: 36 | AI37: 1.394288042 | AJ37: 1.38214887 | AK37: 37 | AL37: 36 | AM37: 0.3505007153 | AN37: 0.3333333333 | AO37: 37 | AP37: 36 | AQ37: 1.133803036 | AR37: 0.09175170954 | AS37: 37 | AT37: 36 | AU37: 1.165709437 | AV37: 0.1273220038
A38: 38 | B38: 37 | C38: 0.06844273106 | D38: 1.98265365 | E38: 38 | F38: 37 | G38: 0.07108224982 | H38: 1.979701612 | I38: 38 | J38: 37 | K38: 1.452342472 | L38: 1.553300179 | M38: 38 | N38: 37 | O38: 0.4523424722 | P38: 0.5533001791 | Q38: 38 | R38: 37 | S38: 1.052932761 | T38: 1 | U38: 38 | V38: 37 | W38: 1.055480173 | X38: 0.997150974 | Y38: 38 | Z38: 37 | AA38: 0.05293276109 | AB38: 2 | AC38: 38 | AD38: 37 | AE38: 0.06552873936 | AF38: 1.985912658 | AG38: 38 | AH38: 37 | AI38: 1.394625241 | AJ38: 1.61785113 | AK38: 38 | AL38: 37 | AM38: 0.350977587 | AN38: 0.6666666667 | AO38: 38 | AP38: 37 | AQ38: 1.134971128 | AR38: 0.9082482905 | AS38: 38 | AT38: 37 | AU38: 1.166775754 | AV38: 0.8726779962
A39: 39 | B39: 38 | C39: 0.06982371432 | D39: 1.01734635 | E39: 39 | F39: 38 | G39: 0.07245478662 | H39: 1.020298388 | I39: 39 | J39: 38 | K39: 1.452494976 | L39: 1.446699821 | M39: 39 | N39: 38 | O39: 0.4524949763 | P39: 0.4466998209 | Q39: 39 | R39: 38 | S39: 1.054363376 | T39: 0 | U39: 39 | V39: 38 | W39: 1.056902637 | X39: 0.00284902604 | Y39: 39 | Z39: 38 | AA39: 0.05436337625 | AB39: 1 | AC39: 39 | AD39: 38 | AE39: 0.06691904739 | AF39: 1.014087342 | AG39: 39 | AH39: 38 | AI39: 1.39496244 | AJ39: 1.38214887 | AK39: 39 | AL39: 38 | AM39: 0.3514544588 | AN39: 0.3333333333 | AO39: 39 | AP39: 38 | AQ39: 1.13613922 | AR39: 0.09175170954 | AS39: 39 | AT39: 38 | AU39: 1.167842072 | AV39: 0.1273220038
A40: 40 | B40: 39 | C40: 0.07120469758 | D40: 1.98265365 | E40: 40 | F40: 39 | G40: 0.07382732342 | H40: 1.979701612 | I40: 40 | J40: 39 | K40: 1.45264748 | L40: 1.553300179 | M40: 40 | N40: 39 | O40: 0.4526474804 | P40: 0.5533001791 | Q40: 40 | R40: 39 | S40: 1.055793991 | T40: 1 | U40: 40 | V40: 39 | W40: 1.0583251 | X40: 0.997150974 | Y40: 40 | Z40: 39 | AA40: 0.05579399142 | AB40: 2 | AC40: 40 | AD40: 39 | AE40: 0.06830935542 | AF40: 1.985912658 | AG40: 40 | AH40: 39 | AI40: 1.39529964 | AJ40: 1.61785113 | AK40: 40 | AL40: 39 | AM40: 0.3519313305 | AN40: 0.6666666667 | AO40: 40 | AP40: 39 | AQ40: 1.137307313 | AR40: 0.9082482905 | AS40: 40 | AT40: 39 | AU40: 1.16890839 | AV40: 0.8726779962
A41: 41 | B41: 40 | C41: 0.07258568084 | D41: 1.01734635 | E41: 41 | F41: 40 | G41: 0.07519986022 | H41: 1.020298388 | I41: 41 | J41: 40 | K41: 1.452799984 | L41: 1.446699821 | M41: 41 | N41: 40 | O41: 0.4527999845 | P41: 0.4466998209 | Q41: 41 | R41: 40 | S41: 1.057224607 | T41: 0 | U41: 41 | V41: 40 | W41: 1.059747564 | X41: 0.00284902604 | Y41: 41 | Z41: 40 | AA41: 0.05722460658 | AB41: 1 | AC41: 41 | AD41: 40 | AE41: 0.06969966346 | AF41: 1.014087342 | AG41: 41 | AH41: 40 | AI41: 1.395636839 | AJ41: 1.38214887 | AK41: 41 | AL41: 40 | AM41: 0.3524082022 | AN41: 0.3333333333 | AO41: 41 | AP41: 40 | AQ41: 1.138475405 | AR41: 0.09175170954 | AS41: 41 | AT41: 40 | AU41: 1.169974707 | AV41: 0.1273220038
A42: 42 | B42: 41 | C42: 0.0739666641 | D42: 1.98265365 | E42: 42 | F42: 41 | G42: 0.07657239702 | H42: 1.979701612 | I42: 42 | J42: 41 | K42: 1.452952489 | L42: 1.553300179 | M42: 42 | N42: 41 | O42: 0.4529524886 | P42: 0.5533001791 | Q42: 42 | R42: 41 | S42: 1.058655222 | T42: 1 | U42: 42 | V42: 41 | W42: 1.061170027 | X42: 0.997150974 | Y42: 42 | Z42: 41 | AA42: 0.05865522175 | AB42: 2 | AC42: 42 | AD42: 41 | AE42: 0.07108997149 | AF42: 1.985912658 | AG42: 42 | AH42: 41 | AI42: 1.395974038 | AJ42: 1.61785113 | AK42: 42 | AL42: 41 | AM42: 0.3528850739 | AN42: 0.6666666667 | AO42: 42 | AP42: 41 | AQ42: 1.139643498 | AR42: 0.9082482905 | AS42: 42 | AT42: 41 | AU42: 1.171041025 | AV42: 0.8726779962
A43: 43 | B43: 42 | C43: 0.07534764736 | D43: 1.01734635 | E43: 43 | F43: 42 | G43: 0.07794493382 | H43: 1.020298388 | I43: 43 | J43: 42 | K43: 1.453104993 | L43: 1.446699821 | M43: 43 | N43: 42 | O43: 0.4531049926 | P43: 0.4466998209 | Q43: 43 | R43: 42 | S43: 1.060085837 | T43: 0 | U43: 43 | V43: 42 | W43: 1.062592491 | X43: 0.00284902604 | Y43: 43 | Z43: 42 | AA43: 0.06008583691 | AB43: 1 | AC43: 43 | AD43: 42 | AE43: 0.07248027953 | AF43: 1.014087342 | AG43: 43 | AH43: 42 | AI43: 1.396311237 | AJ43: 1.38214887 | AK43: 43 | AL43: 42 | AM43: 0.3533619456 | AN43: 0.3333333333 | AO43: 43 | AP43: 42 | AQ43: 1.14081159 | AR43: 0.09175170954 | AS43: 43 | AT43: 42 | AU43: 1.172107342 | AV43: 0.1273220038
A44: 44 | B44: 43 | C44: 0.07672863062 | D44: 1.98265365 | E44: 44 | F44: 43 | G44: 0.07931747062 | H44: 1.979701612 | I44: 44 | J44: 43 | K44: 1.453257497 | L44: 1.553300179 | M44: 44 | N44: 43 | O44: 0.4532574967 | P44: 0.5533001791 | Q44: 44 | R44: 43 | S44: 1.061516452 | T44: 1 | U44: 44 | V44: 43 | W44: 1.064014954 | X44: 0.997150974 | Y44: 44 | Z44: 43 | AA44: 0.06151645207 | AB44: 2 | AC44: 44 | AD44: 43 | AE44: 0.07387058756 | AF44: 1.985912658 | AG44: 44 | AH44: 43 | AI44: 1.396648437 | AJ44: 1.61785113 | AK44: 44 | AL44: 43 | AM44: 0.3538388174 | AN44: 0.6666666667 | AO44: 44 | AP44: 43 | AQ44: 1.141979682 | AR44: 0.9082482905 | AS44: 44 | AT44: 43 | AU44: 1.17317366 | AV44: 0.8726779962
A45: 45 | B45: 44 | C45: 0.07810961388 | D45: 1.01734635 | E45: 45 | F45: 44 | G45: 0.08069000743 | H45: 1.020298388 | I45: 45 | J45: 44 | K45: 1.453410001 | L45: 1.446699821 | M45: 45 | N45: 44 | O45: 0.4534100008 | P45: 0.4466998209 | Q45: 45 | R45: 44 | S45: 1.062947067 | T45: 0 | U45: 45 | V45: 44 | W45: 1.065437418 | X45: 0.00284902604 | Y45: 45 | Z45: 44 | AA45: 0.06294706724 | AB45: 1 | AC45: 45 | AD45: 44 | AE45: 0.07526089559 | AF45: 1.014087342 | AG45: 45 | AH45: 44 | AI45: 1.396985636 | AJ45: 1.38214887 | AK45: 45 | AL45: 44 | AM45: 0.3543156891 | AN45: 0.3333333333 | AO45: 45 | AP45: 44 | AQ45: 1.143147775 | AR45: 0.09175170954 | AS45: 45 | AT45: 44 | AU45: 1.174239978 | AV45: 0.1273220038
A46: 46 | B46: 45 | C46: 0.07949059715 | D46: 1.98265365 | E46: 46 | F46: 45 | G46: 0.08206254423 | H46: 1.979701612 | I46: 46 | J46: 45 | K46: 1.453562505 | L46: 1.553300179 | M46: 46 | N46: 45 | O46: 0.4535625049 | P46: 0.5533001791 | Q46: 46 | R46: 45 | S46: 1.064377682 | T46: 1 | U46: 46 | V46: 45 | W46: 1.066859881 | X46: 0.997150974 | Y46: 46 | Z46: 45 | AA46: 0.0643776824 | AB46: 2 | AC46: 46 | AD46: 45 | AE46: 0.07665120363 | AF46: 1.985912658 | AG46: 46 | AH46: 45 | AI46: 1.397322835 | AJ46: 1.61785113 | AK46: 46 | AL46: 45 | AM46: 0.3547925608 | AN46: 0.6666666667 | AO46: 46 | AP46: 45 | AQ46: 1.144315867 | AR46: 0.9082482905 | AS46: 46 | AT46: 45 | AU46: 1.175306295 | AV46: 0.8726779962
A47: 47 | B47: 46 | C47: 0.08087158041 | D47: 1.01734635 | E47: 47 | F47: 46 | G47: 0.08343508103 | H47: 1.020298388 | I47: 47 | J47: 46 | K47: 1.453715009 | L47: 1.446699821 | M47: 47 | N47: 46 | O47: 0.453715009 | P47: 0.4466998209 | Q47: 47 | R47: 46 | S47: 1.065808298 | T47: 0 | U47: 47 | V47: 46 | W47: 1.068282345 | X47: 0.00284902604 | Y47: 47 | Z47: 46 | AA47: 0.06580829757 | AB47: 1 | AC47: 47 | AD47: 46 | AE47: 0.07804151166 | AF47: 1.014087342 | AG47: 47 | AH47: 46 | AI47: 1.397660034 | AJ47: 1.38214887 | AK47: 47 | AL47: 46 | AM47: 0.3552694325 | AN47: 0.3333333333 | AO47: 47 | AP47: 46 | AQ47: 1.145483959 | AR47: 0.09175170954 | AS47: 47 | AT47: 46 | AU47: 1.176372613 | AV47: 0.1273220038
A48: 48 | B48: 47 | C48: 0.08225256367 | D48: 1.98265365 | E48: 48 | F48: 47 | G48: 0.08480761783 | H48: 1.979701612 | I48: 48 | J48: 47 | K48: 1.453867513 | L48: 1.553300179 | M48: 48 | N48: 47 | O48: 0.4538675131 | P48: 0.5533001791 | Q48: 48 | R48: 47 | S48: 1.067238913 | T48: 1 | U48: 48 | V48: 47 | W48: 1.069704808 | X48: 0.997150974 | Y48: 48 | Z48: 47 | AA48: 0.06723891273 | AB48: 2 | AC48: 48 | AD48: 47 | AE48: 0.0794318197 | AF48: 1.985912658 | AG48: 48 | AH48: 47 | AI48: 1.397997234 | AJ48: 1.61785113 | AK48: 48 | AL48: 47 | AM48: 0.3557463042 | AN48: 0.6666666667 | AO48: 48 | AP48: 47 | AQ48: 1.146652052 | AR48: 0.9082482905 | AS48: 48 | AT48: 47 | AU48: 1.17743893 | AV48: 0.8726779962
A49: 49 | B49: 48 | C49: 0.08363354693 | D49: 1.01734635 | E49: 49 | F49: 48 | G49: 0.08618015463 | H49: 1.020298388 | I49: 49 | J49: 48 | K49: 1.454020017 | L49: 1.446699821 | M49: 49 | N49: 48 | O49: 0.4540200172 | P49: 0.4466998209 | Q49: 49 | R49: 48 | S49: 1.068669528 | T49: 0 | U49: 49 | V49: 48 | W49: 1.071127271 | X49: 0.00284902604 | Y49: 49 | Z49: 48 | AA49: 0.0686695279 | AB49: 1 | AC49: 49 | AD49: 48 | AE49: 0.08082212773 | AF49: 1.014087342 | AG49: 49 | AH49: 48 | AI49: 1.398334433 | AJ49: 1.38214887 | AK49: 49 | AL49: 48 | AM49: 0.356223176 | AN49: 0.3333333333 | AO49: 49 | AP49: 48 | AQ49: 1.147820144 | AR49: 0.09175170954 | AS49: 49 | AT49: 48 | AU49: 1.178505248 | AV49: 0.1273220038
A50: 50 | B50: 49 | C50: 0.08501453019 | D50: 1.98265365 | E50: 50 | F50: 49 | G50: 0.08755269143 | H50: 1.979701612 | I50: 50 | J50: 49 | K50: 1.454172521 | L50: 1.553300179 | M50: 50 | N50: 49 | O50: 0.4541725213 | P50: 0.5533001791 | Q50: 50 | R50: 49 | S50: 1.070100143 | T50: 1 | U50: 50 | V50: 49 | W50: 1.072549735 | X50: 0.997150974 | Y50: 50 | Z50: 49 | AA50: 0.07010014306 | AB50: 2 | AC50: 50 | AD50: 49 | AE50: 0.08221243577 | AF50: 1.985912658 | AG50: 50 | AH50: 49 | AI50: 1.398671632 | AJ50: 1.61785113 | AK50: 50 | AL50: 49 | AM50: 0.3567000477 | AN50: 0.6666666667 | AO50: 50 | AP50: 49 | AQ50: 1.148988237 | AR50: 0.9082482905 | AS50: 50 | AT50: 49 | AU50: 1.179571565 | AV50: 0.8726779962
A51: 51 | B51: 50 | C51: 0.08639551345 | D51: 1.01734635 | E51: 51 | F51: 50 | G51: 0.08892522823 | H51: 1.020298388 | I51: 51 | J51: 50 | K51: 1.454325025 | L51: 1.446699821 | M51: 51 | N51: 50 | O51: 0.4543250254 | P51: 0.4466998209 | Q51: 51 | R51: 50 | S51: 1.071530758 | T51: 0 | U51: 51 | V51: 50 | W51: 1.073972198 | X51: 0.00284902604 | Y51: 51 | Z51: 50 | AA51: 0.07153075823 | AB51: 1 | AC51: 51 | AD51: 50 | AE51: 0.0836027438 | AF51: 1.014087342 | AG51: 51 | AH51: 50 | AI51: 1.399008831 | AJ51: 1.38214887 | AK51: 51 | AL51: 50 | AM51: 0.3571769194 | AN51: 0.3333333333 | AO51: 51 | AP51: 50 | AQ51: 1.150156329 | AR51: 0.09175170954 | AS51: 51 | AT51: 50 | AU51: 1.180637883 | AV51: 0.1273220038
A52: 52 | B52: 51 | C52: 0.08777649671 | D52: 1.98265365 | E52: 52 | F52: 51 | G52: 0.09029776503 | H52: 1.979701612 | I52: 52 | J52: 51 | K52: 1.454477529 | L52: 1.553300179 | M52: 52 | N52: 51 | O52: 0.4544775294 | P52: 0.5533001791 | Q52: 52 | R52: 51 | S52: 1.072961373 | T52: 1 | U52: 52 | V52: 51 | W52: 1.075394662 | X52: 0.997150974 | Y52: 52 | Z52: 51 | AA52: 0.07296137339 | AB52: 2 | AC52: 52 | AD52: 51 | AE52: 0.08499305183 | AF52: 1.985912658 | AG52: 52 | AH52: 51 | AI52: 1.39934603 | AJ52: 1.61785113 | AK52: 52 | AL52: 51 | AM52: 0.3576537911 | AN52: 0.6666666667 | AO52: 52 | AP52: 51 | AQ52: 1.151324421 | AR52: 0.9082482905 | AS52: 52 | AT52: 51 | AU52: 1.181704201 | AV52: 0.8726779962
A53: 53 | B53: 52 | C53: 0.08915747997 | D53: 1.01734635 | E53: 53 | F53: 52 | G53: 0.09167030183 | H53: 1.020298388 | I53: 53 | J53: 52 | K53: 1.454630034 | L53: 1.446699821 | M53: 53 | N53: 52 | O53: 0.4546300335 | P53: 0.4466998209 | Q53: 53 | R53: 52 | S53: 1.074391989 | T53: 0 | U53: 53 | V53: 52 | W53: 1.076817125 | X53: 0.00284902604 | Y53: 53 | Z53: 52 | AA53: 0.07439198856 | AB53: 1 | AC53: 53 | AD53: 52 | AE53: 0.08638335987 | AF53: 1.014087342 | AG53: 53 | AH53: 52 | AI53: 1.39968323 | AJ53: 1.38214887 | AK53: 53 | AL53: 52 | AM53: 0.3581306629 | AN53: 0.3333333333 | AO53: 53 | AP53: 52 | AQ53: 1.152492514 | AR53: 0.09175170954 | AS53: 53 | AT53: 52 | AU53: 1.182770518 | AV53: 0.1273220038
A54: 54 | B54: 53 | C54: 0.09053846323 | D54: 1.98265365 | E54: 54 | F54: 53 | G54: 0.09304283863 | H54: 1.979701612 | I54: 54 | J54: 53 | K54: 1.454782538 | L54: 1.553300179 | M54: 54 | N54: 53 | O54: 0.4547825376 | P54: 0.5533001791 | Q54: 54 | R54: 53 | S54: 1.075822604 | T54: 1 | U54: 54 | V54: 53 | W54: 1.078239589 | X54: 0.997150974 | Y54: 54 | Z54: 53 | AA54: 0.07582260372 | AB54: 2 | AC54: 54 | AD54: 53 | AE54: 0.0877736679 | AF54: 1.985912658 | AG54: 54 | AH54: 53 | AI54: 1.400020429 | AJ54: 1.61785113 | AK54: 54 | AL54: 53 | AM54: 0.3586075346 | AN54: 0.6666666667 | AO54: 54 | AP54: 53 | AQ54: 1.153660606 | AR54: 0.9082482905 | AS54: 54 | AT54: 53 | AU54: 1.183836836 | AV54: 0.8726779962
A55: 55 | B55: 54 | C55: 0.09191944649 | D55: 1.01734635 | E55: 55 | F55: 54 | G55: 0.09441537543 | H55: 1.020298388 | I55: 55 | J55: 54 | K55: 1.454935042 | L55: 1.446699821 | M55: 55 | N55: 54 | O55: 0.4549350417 | P55: 0.4466998209 | Q55: 55 | R55: 54 | S55: 1.077253219 | T55: 0 | U55: 55 | V55: 54 | W55: 1.079662052 | X55: 0.00284902604 | Y55: 55 | Z55: 54 | AA55: 0.07725321888 | AB55: 1 | AC55: 55 | AD55: 54 | AE55: 0.08916397594 | AF55: 1.014087342 | AG55: 55 | AH55: 54 | AI55: 1.400357628 | AJ55: 1.38214887 | AK55: 55 | AL55: 54 | AM55: 0.3590844063 | AN55: 0.3333333333 | AO55: 55 | AP55: 54 | AQ55: 1.154828699 | AR55: 0.09175170954 | AS55: 55 | AT55: 54 | AU55: 1.184903153 | AV55: 0.1273220038
A56: 56 | B56: 55 | C56: 0.09330042975 | D56: 1.98265365 | E56: 56 | F56: 55 | G56: 0.09578791223 | H56: 1.979701612 | I56: 56 | J56: 55 | K56: 1.455087546 | L56: 1.553300179 | M56: 56 | N56: 55 | O56: 0.4550875458 | P56: 0.5533001791 | Q56: 56 | R56: 55 | S56: 1.078683834 | T56: 1 | U56: 56 | V56: 55 | W56: 1.081084516 | X56: 0.997150974 | Y56: 56 | Z56: 55 | AA56: 0.07868383405 | AB56: 2 | AC56: 56 | AD56: 55 | AE56: 0.09055428397 | AF56: 1.985912658 | AG56: 56 | AH56: 55 | AI56: 1.400694827 | AJ56: 1.61785113 | AK56: 56 | AL56: 55 | AM56: 0.359561278 | AN56: 0.6666666667 | AO56: 56 | AP56: 55 | AQ56: 1.155996791 | AR56: 0.9082482905 | AS56: 56 | AT56: 55 | AU56: 1.185969471 | AV56: 0.8726779962
A57: 57 | B57: 56 | C57: 0.09468141301 | D57: 1.01734635 | E57: 57 | F57: 56 | G57: 0.09716044903 | H57: 1.020298388 | I57: 57 | J57: 56 | K57: 1.45524005 | L57: 1.446699821 | M57: 57 | N57: 56 | O57: 0.4552400499 | P57: 0.4466998209 | Q57: 57 | R57: 56 | S57: 1.080114449 | T57: 0 | U57: 57 | V57: 56 | W57: 1.082506979 | X57: 0.00284902604 | Y57: 57 | Z57: 56 | AA57: 0.08011444921 | AB57: 1 | AC57: 57 | AD57: 56 | AE57: 0.091944592 | AF57: 1.014087342 | AG57: 57 | AH57: 56 | AI57: 1.401032027 | AJ57: 1.38214887 | AK57: 57 | AL57: 56 | AM57: 0.3600381497 | AN57: 0.3333333333 | AO57: 57 | AP57: 56 | AQ57: 1.157164883 | AR57: 0.09175170954 | AS57: 57 | AT57: 56 | AU57: 1.187035789 | AV57: 0.1273220038
A58: 58 | B58: 57 | C58: 0.09606239627 | D58: 1.98265365 | E58: 58 | F58: 57 | G58: 0.09853298583 | H58: 1.979701612 | I58: 58 | J58: 57 | K58: 1.455392554 | L58: 1.553300179 | M58: 58 | N58: 57 | O58: 0.455392554 | P58: 0.5533001791 | Q58: 58 | R58: 57 | S58: 1.081545064 | T58: 1 | U58: 58 | V58: 57 | W58: 1.083929442 | X58: 0.997150974 | Y58: 58 | Z58: 57 | AA58: 0.08154506438 | AB58: 2 | AC58: 58 | AD58: 57 | AE58: 0.09333490004 | AF58: 1.985912658 | AG58: 58 | AH58: 57 | AI58: 1.401369226 | AJ58: 1.61785113 | AK58: 58 | AL58: 57 | AM58: 0.3605150215 | AN58: 0.6666666667 | AO58: 58 | AP58: 57 | AQ58: 1.158332976 | AR58: 0.9082482905 | AS58: 58 | AT58: 57 | AU58: 1.188102106 | AV58: 0.8726779962
A59: 59 | B59: 58 | C59: 0.09744337953 | D59: 1.01734635 | E59: 59 | F59: 58 | G59: 0.09990552263 | H59: 1.020298388 | I59: 59 | J59: 58 | K59: 1.455545058 | L59: 1.446699821 | M59: 59 | N59: 58 | O59: 0.4555450581 | P59: 0.4466998209 | Q59: 59 | R59: 58 | S59: 1.08297568 | T59: 0 | U59: 59 | V59: 58 | W59: 1.085351906 | X59: 0.00284902604 | Y59: 59 | Z59: 58 | AA59: 0.08297567954 | AB59: 1 | AC59: 59 | AD59: 58 | AE59: 0.09472520807 | AF59: 1.014087342 | AG59: 59 | AH59: 58 | AI59: 1.401706425 | AJ59: 1.38214887 | AK59: 59 | AL59: 58 | AM59: 0.3609918932 | AN59: 0.3333333333 | AO59: 59 | AP59: 58 | AQ59: 1.159501068 | AR59: 0.09175170954 | AS59: 59 | AT59: 58 | AU59: 1.189168424 | AV59: 0.1273220038
A60: 60 | B60: 59 | C60: 0.09882436279 | D60: 1.98265365 | E60: 60 | F60: 59 | G60: 0.1012780594 | H60: 1.979701612 | I60: 60 | J60: 59 | K60: 1.455697562 | L60: 1.553300179 | M60: 60 | N60: 59 | O60: 0.4556975622 | P60: 0.5533001791 | Q60: 60 | R60: 59 | S60: 1.084406295 | T60: 1 | U60: 60 | V60: 59 | W60: 1.086774369 | X60: 0.997150974 | Y60: 60 | Z60: 59 | AA60: 0.08440629471 | AB60: 2 | AC60: 60 | AD60: 59 | AE60: 0.09611551611 | AF60: 1.985912658 | AG60: 60 | AH60: 59 | AI60: 1.402043624 | AJ60: 1.61785113 | AK60: 60 | AL60: 59 | AM60: 0.3614687649 | AN60: 0.6666666667 | AO60: 60 | AP60: 59 | AQ60: 1.160669161 | AR60: 0.9082482905 | AS60: 60 | AT60: 59 | AU60: 1.190234741 | AV60: 0.8726779962
A61: 61 | B61: 60 | C61: 0.1002053461 | D61: 1.01734635 | E61: 61 | F61: 60 | G61: 0.1026505962 | H61: 1.020298388 | I61: 61 | J61: 60 | K61: 1.455850066 | L61: 1.446699821 | M61: 61 | N61: 60 | O61: 0.4558500662 | P61: 0.4466998209 | Q61: 61 | R61: 60 | S61: 1.08583691 | T61: 0 | U61: 61 | V61: 60 | W61: 1.088196833 | X61: 0.00284902604 | Y61: 61 | Z61: 60 | AA61: 0.08583690987 | AB61: 1 | AC61: 61 | AD61: 60 | AE61: 0.09750582414 | AF61: 1.014087342 | AG61: 61 | AH61: 60 | AI61: 1.402380823 | AJ61: 1.38214887 | AK61: 61 | AL61: 60 | AM61: 0.3619456366 | AN61: 0.3333333333 | AO61: 61 | AP61: 60 | AQ61: 1.161837253 | AR61: 0.09175170954 | AS61: 61 | AT61: 60 | AU61: 1.191301059 | AV61: 0.1273220038
A62: 62 | B62: 61 | C62: 0.1015863293 | D62: 1.98265365 | E62: 62 | F62: 61 | G62: 0.104023133 | H62: 1.979701612 | I62: 62 | J62: 61 | K62: 1.45600257 | L62: 1.553300179 | M62: 62 | N62: 61 | O62: 0.4560025703 | P62: 0.5533001791 | Q62: 62 | R62: 61 | S62: 1.087267525 | T62: 1 | U62: 62 | V62: 61 | W62: 1.089619296 | X62: 0.997150974 | Y62: 62 | Z62: 61 | AA62: 0.08726752504 | AB62: 2 | AC62: 62 | AD62: 61 | AE62: 0.09889613217 | AF62: 1.985912658 | AG62: 62 | AH62: 61 | AI62: 1.402718023 | AJ62: 1.61785113 | AK62: 62 | AL62: 61 | AM62: 0.3624225083 | AN62: 0.6666666667 | AO62: 62 | AP62: 61 | AQ62: 1.163005345 | AR62: 0.9082482905 | AS62: 62 | AT62: 61 | AU62: 1.192367376 | AV62: 0.8726779962
A63: 63 | B63: 62 | C63: 0.1029673126 | D63: 1.01734635 | E63: 63 | F63: 62 | G63: 0.1053956698 | H63: 1.020298388 | I63: 63 | J63: 62 | K63: 1.456155074 | L63: 1.446699821 | M63: 63 | N63: 62 | O63: 0.4561550744 | P63: 0.4466998209 | Q63: 63 | R63: 62 | S63: 1.08869814 | T63: 0 | U63: 63 | V63: 62 | W63: 1.09104176 | X63: 0.00284902604 | Y63: 63 | Z63: 62 | AA63: 0.0886981402 | AB63: 1 | AC63: 63 | AD63: 62 | AE63: 0.1002864402 | AF63: 1.014087342 | AG63: 63 | AH63: 62 | AI63: 1.403055222 | AJ63: 1.38214887 | AK63: 63 | AL63: 62 | AM63: 0.3628993801 | AN63: 0.3333333333 | AO63: 63 | AP63: 62 | AQ63: 1.164173438 | AR63: 0.09175170954 | AS63: 63 | AT63: 62 | AU63: 1.193433694 | AV63: 0.1273220038
A64: 64 | B64: 63 | C64: 0.1043482958 | D64: 1.98265365 | E64: 64 | F64: 63 | G64: 0.1067682066 | H64: 1.979701612 | I64: 64 | J64: 63 | K64: 1.456307579 | L64: 1.553300179 | M64: 64 | N64: 63 | O64: 0.4563075785 | P64: 0.5533001791 | Q64: 64 | R64: 63 | S64: 1.090128755 | T64: 1 | U64: 64 | V64: 63 | W64: 1.092464223 | X64: 0.997150974 | Y64: 64 | Z64: 63 | AA64: 0.09012875536 | AB64: 2 | AC64: 64 | AD64: 63 | AE64: 0.1016767482 | AF64: 1.985912658 | AG64: 64 | AH64: 63 | AI64: 1.403392421 | AJ64: 1.61785113 | AK64: 64 | AL64: 63 | AM64: 0.3633762518 | AN64: 0.6666666667 | AO64: 64 | AP64: 63 | AQ64: 1.16534153 | AR64: 0.9082482905 | AS64: 64 | AT64: 63 | AU64: 1.194500012 | AV64: 0.8726779962
A65: 65 | B65: =(A65-1) -> 64 | C65: =0.0173463504182886+B65*0.0013809832606058 -> 0.1057292791 | D65: =IF(B65/2-INT(B65/2)<0.1,1.01734635041829,1.98265364958171) -> 1.01734635 | E65: 65 | F65: =(E65-1) -> 64 | G65: =0.0202983881998766+F65*0.0013725368005726 -> 0.1081407434 | H65: =IF(F65/2-INT(F65/2)<0.1,1.02029838819988,1.97970161180012) -> 1.020298388 | I65: 65 | J65: =(I65-1) -> 64 | K65: =1.4466998209111+J65*0.0001525040889525 -> 1.456460083 | L65: =IF(J65/2-INT(J65/2)<0.1,1.4466998209111,1.5533001790889) -> 1.446699821 | M65: 65 | N65: =(M65-1) -> 64 | O65: =0.446699820911097+N65*0.0001525040889525 -> 0.4564600826 | P65: =IF(N65/2-INT(N65/2)<0.1,0.446699820911098,0.553300179088902) -> 0.4466998209 | Q65: 65 | R65: =(Q65-1) -> 64 | S65: =1+R65*0.0014306151645207 -> 1.091559371 | T65: =IF(R65/2-INT(R65/2)<0.1,0,1) -> 0 | U65: 65 | V65: =(U65-1) -> 64 | W65: =1.00284902604029+V65*0.001422463444806 -> 1.093886687 | X65: =IF(V65/2-INT(V65/2)<0.1,0.0028490260402874,0.997150973959713) -> 0.00284902604 | Y65: 65 | Z65: =(Y65-1) -> 64 | AA65: =0+Z65*0.0014306151645207 -> 0.09155937053 | AB65: =IF(Z65/2-INT(Z65/2)<0.1,1,2) -> 1 | AC65: 65 | AD65: =(AC65-1) -> 64 | AE65: =0.014087342096225+AD65*0.0013903080340594 -> 0.1030670563 | AF65: =IF(AD65/2-INT(AD65/2)<0.1,1.01408734209623,1.98591265790377) -> 1.014087342 | AG65: 65 | AH65: =(AG65-1) -> 64 | AI65: =1.38214886980224+AH65*0.0003371992280336 -> 1.40372962 | AJ65: =IF(AH65/2-INT(AH65/2)<0.1,1.38214886980224,1.61785113019776) -> 1.38214887 | AK65: 65 | AL65: =(AK65-1) -> 64 | AM65: =0.333333333333333+AL65*0.0004768717215069 -> 0.3638531235 | AN65: =IF(AL65/2-INT(AL65/2)<0.1,0.333333333333333,0.666666666666667) -> 0.3333333333 | AO65: 65 | AP65: =(AO65-1) -> 64 | AQ65: =1.09175170953614+AP65*0.0011680923904545 -> 1.166509623 | AR65: =IF(AP65/2-INT(AP65/2)<0.1,0.0917517095361369,0.908248290463863) -> 0.09175170954 | AS65: 65 | AT65: =(AS65-1) -> 64 | AU65: =1.12732200375004+AT65*0.0010663175858368 -> 1.195566329 | AV65: =IF(AT65/2-INT(AT65/2)<0.1,0.127322003750035,0.872677996249965) -> 0.1273220038
A66: 66 | B66: 65 | C66: 0.1071102624 | D66: 1.98265365 | E66: 66 | F66: 65 | G66: 0.1095132802 | H66: 1.979701612 | I66: 66 | J66: 65 | K66: 1.456612587 | L66: 1.553300179 | M66: 66 | N66: 65 | O66: 0.4566125867 | P66: 0.5533001791 | Q66: 66 | R66: 65 | S66: 1.092989986 | T66: 1 | U66: 66 | V66: 65 | W66: 1.09530915 | X66: 0.997150974 | Y66: 66 | Z66: 65 | AA66: 0.09298998569 | AB66: 2 | AC66: 66 | AD66: 65 | AE66: 0.1044573643 | AF66: 1.985912658 | AG66: 66 | AH66: 65 | AI66: 1.40406682 | AJ66: 1.61785113 | AK66: 66 | AL66: 65 | AM66: 0.3643299952 | AN66: 0.6666666667 | AO66: 66 | AP66: 65 | AQ66: 1.167677715 | AR66: 0.9082482905 | AS66: 66 | AT66: 65 | AU66: 1.196632647 | AV66: 0.8726779962
A67: 67 | B67: 66 | C67: 0.1084912456 | D67: 1.01734635 | E67: 67 | F67: 66 | G67: 0.110885817 | H67: 1.020298388 | I67: 67 | J67: 66 | K67: 1.456765091 | L67: 1.446699821 | M67: 67 | N67: 66 | O67: 0.4567650908 | P67: 0.4466998209 | Q67: 67 | R67: 66 | S67: 1.094420601 | T67: 0 | U67: 67 | V67: 66 | W67: 1.096731613 | X67: 0.00284902604 | Y67: 67 | Z67: 66 | AA67: 0.09442060086 | AB67: 1 | AC67: 67 | AD67: 66 | AE67: 0.1058476723 | AF67: 1.014087342 | AG67: 67 | AH67: 66 | AI67: 1.404404019 | AJ67: 1.38214887 | AK67: 67 | AL67: 66 | AM67: 0.364806867 | AN67: 0.3333333333 | AO67: 67 | AP67: 66 | AQ67: 1.168845807 | AR67: 0.09175170954 | AS67: 67 | AT67: 66 | AU67: 1.197698964 | AV67: 0.1273220038
A68: 68 | B68: 67 | C68: 0.1098722289 | D68: 1.98265365 | E68: 68 | F68: 67 | G68: 0.1122583538 | H68: 1.979701612 | I68: 68 | J68: 67 | K68: 1.456917595 | L68: 1.553300179 | M68: 68 | N68: 67 | O68: 0.4569175949 | P68: 0.5533001791 | Q68: 68 | R68: 67 | S68: 1.095851216 | T68: 1 | U68: 68 | V68: 67 | W68: 1.098154077 | X68: 0.997150974 | Y68: 68 | Z68: 67 | AA68: 0.09585121602 | AB68: 2 | AC68: 68 | AD68: 67 | AE68: 0.1072379804 | AF68: 1.985912658 | AG68: 68 | AH68: 67 | AI68: 1.404741218 | AJ68: 1.61785113 | AK68: 68 | AL68: 67 | AM68: 0.3652837387 | AN68: 0.6666666667 | AO68: 68 | AP68: 67 | AQ68: 1.1700139 | AR68: 0.9082482905 | AS68: 68 | AT68: 67 | AU68: 1.198765282 | AV68: 0.8726779962
A69: 69 | B69: 68 | C69: 0.1112532121 | D69: 1.01734635 | E69: 69 | F69: 68 | G69: 0.1136308906 | H69: 1.020298388 | I69: 69 | J69: 68 | K69: 1.457070099 | L69: 1.446699821 | M69: 69 | N69: 68 | O69: 0.457070099 | P69: 0.4466998209 | Q69: 69 | R69: 68 | S69: 1.097281831 | T69: 0 | U69: 69 | V69: 68 | W69: 1.09957654 | X69: 0.00284902604 | Y69: 69 | Z69: 68 | AA69: 0.09728183119 | AB69: 1 | AC69: 69 | AD69: 68 | AE69: 0.1086282884 | AF69: 1.014087342 | AG69: 69 | AH69: 68 | AI69: 1.405078417 | AJ69: 1.38214887 | AK69: 69 | AL69: 68 | AM69: 0.3657606104 | AN69: 0.3333333333 | AO69: 69 | AP69: 68 | AQ69: 1.171181992 | AR69: 0.09175170954 | AS69: 69 | AT69: 68 | AU69: 1.1998316 | AV69: 0.1273220038
A70: 70 | B70: 69 | C70: 0.1126341954 | D70: 1.98265365 | E70: 70 | F70: 69 | G70: 0.1150034274 | H70: 1.979701612 | I70: 70 | J70: 69 | K70: 1.457222603 | L70: 1.553300179 | M70: 70 | N70: 69 | O70: 0.457222603 | P70: 0.5533001791 | Q70: 70 | R70: 69 | S70: 1.098712446 | T70: 1 | U70: 70 | V70: 69 | W70: 1.100999004 | X70: 0.997150974 | Y70: 70 | Z70: 69 | AA70: 0.09871244635 | AB70: 2 | AC70: 70 | AD70: 69 | AE70: 0.1100185964 | AF70: 1.985912658 | AG70: 70 | AH70: 69 | AI70: 1.405415617 | AJ70: 1.61785113 | AK70: 70 | AL70: 69 | AM70: 0.3662374821 | AN70: 0.6666666667 | AO70: 70 | AP70: 69 | AQ70: 1.172350084 | AR70: 0.9082482905 | AS70: 70 | AT70: 69 | AU70: 1.200897917 | AV70: 0.8726779962
A71: 71 | B71: 70 | C71: 0.1140151787 | D71: 1.01734635 | E71: 71 | F71: 70 | G71: 0.1163759642 | H71: 1.020298388 | I71: 71 | J71: 70 | K71: 1.457375107 | L71: 1.446699821 | M71: 71 | N71: 70 | O71: 0.4573751071 | P71: 0.4466998209 | Q71: 71 | R71: 70 | S71: 1.100143062 | T71: 0 | U71: 71 | V71: 70 | W71: 1.102421467 | X71: 0.00284902604 | Y71: 71 | Z71: 70 | AA71: 0.1001430615 | AB71: 1 | AC71: 71 | AD71: 70 | AE71: 0.1114089045 | AF71: 1.014087342 | AG71: 71 | AH71: 70 | AI71: 1.405752816 | AJ71: 1.38214887 | AK71: 71 | AL71: 70 | AM71: 0.3667143538 | AN71: 0.3333333333 | AO71: 71 | AP71: 70 | AQ71: 1.173518177 | AR71: 0.09175170954 | AS71: 71 | AT71: 70 | AU71: 1.201964235 | AV71: 0.1273220038
A72: 72 | B72: 71 | C72: 0.1153961619 | D72: 1.98265365 | E72: 72 | F72: 71 | G72: 0.117748501 | H72: 1.979701612 | I72: 72 | J72: 71 | K72: 1.457527611 | L72: 1.553300179 | M72: 72 | N72: 71 | O72: 0.4575276112 | P72: 0.5533001791 | Q72: 72 | R72: 71 | S72: 1.101573677 | T72: 1 | U72: 72 | V72: 71 | W72: 1.103843931 | X72: 0.997150974 | Y72: 72 | Z72: 71 | AA72: 0.1015736767 | AB72: 2 | AC72: 72 | AD72: 71 | AE72: 0.1127992125 | AF72: 1.985912658 | AG72: 72 | AH72: 71 | AI72: 1.406090015 | AJ72: 1.61785113 | AK72: 72 | AL72: 71 | AM72: 0.3671912256 | AN72: 0.6666666667 | AO72: 72 | AP72: 71 | AQ72: 1.174686269 | AR72: 0.9082482905 | AS72: 72 | AT72: 71 | AU72: 1.203030552 | AV72: 0.8726779962
A73: 73 | B73: 72 | C73: 0.1167771452 | D73: 1.01734635 | E73: 73 | F73: 72 | G73: 0.1191210378 | H73: 1.020298388 | I73: 73 | J73: 72 | K73: 1.457680115 | L73: 1.446699821 | M73: 73 | N73: 72 | O73: 0.4576801153 | P73: 0.4466998209 | Q73: 73 | R73: 72 | S73: 1.103004292 | T73: 0 | U73: 73 | V73: 72 | W73: 1.105266394 | X73: 0.00284902604 | Y73: 73 | Z73: 72 | AA73: 0.1030042918 | AB73: 1 | AC73: 73 | AD73: 72 | AE73: 0.1141895205 | AF73: 1.014087342 | AG73: 73 | AH73: 72 | AI73: 1.406427214 | AJ73: 1.38214887 | AK73: 73 | AL73: 72 | AM73: 0.3676680973 | AN73: 0.3333333333 | AO73: 73 | AP73: 72 | AQ73: 1.175854362 | AR73: 0.09175170954 | AS73: 73 | AT73: 72 | AU73: 1.20409687 | AV73: 0.1273220038
A74: 74 | B74: 73 | C74: 0.1181581284 | D74: 1.98265365 | E74: 74 | F74: 73 | G74: 0.1204935746 | H74: 1.979701612 | I74: 74 | J74: 73 | K74: 1.457832619 | L74: 1.553300179 | M74: 74 | N74: 73 | O74: 0.4578326194 | P74: 0.5533001791 | Q74: 74 | R74: 73 | S74: 1.104434907 | T74: 1 | U74: 74 | V74: 73 | W74: 1.106688858 | X74: 0.997150974 | Y74: 74 | Z74: 73 | AA74: 0.104434907 | AB74: 2 | AC74: 74 | AD74: 73 | AE74: 0.1155798286 | AF74: 1.985912658 | AG74: 74 | AH74: 73 | AI74: 1.406764413 | AJ74: 1.61785113 | AK74: 74 | AL74: 73 | AM74: 0.368144969 | AN74: 0.6666666667 | AO74: 74 | AP74: 73 | AQ74: 1.177022454 | AR74: 0.9082482905 | AS74: 74 | AT74: 73 | AU74: 1.205163188 | AV74: 0.8726779962
A75: 75 | B75: 74 | C75: 0.1195391117 | D75: 1.01734635 | E75: 75 | F75: 74 | G75: 0.1218661114 | H75: 1.020298388 | I75: 75 | J75: 74 | K75: 1.457985123 | L75: 1.446699821 | M75: 75 | N75: 74 | O75: 0.4579851235 | P75: 0.4466998209 | Q75: 75 | R75: 74 | S75: 1.105865522 | T75: 0 | U75: 75 | V75: 74 | W75: 1.108111321 | X75: 0.00284902604 | Y75: 75 | Z75: 74 | AA75: 0.1058655222 | AB75: 1 | AC75: 75 | AD75: 74 | AE75: 0.1169701366 | AF75: 1.014087342 | AG75: 75 | AH75: 74 | AI75: 1.407101613 | AJ75: 1.38214887 | AK75: 75 | AL75: 74 | AM75: 0.3686218407 | AN75: 0.3333333333 | AO75: 75 | AP75: 74 | AQ75: 1.178190546 | AR75: 0.09175170954 | AS75: 75 | AT75: 74 | AU75: 1.206229505 | AV75: 0.1273220038
A76: 76 | B76: 75 | C76: 0.120920095 | D76: 1.98265365 | E76: 76 | F76: 75 | G76: 0.1232386482 | H76: 1.979701612 | I76: 76 | J76: 75 | K76: 1.458137628 | L76: 1.553300179 | M76: 76 | N76: 75 | O76: 0.4581376276 | P76: 0.5533001791 | Q76: 76 | R76: 75 | S76: 1.107296137 | T76: 1 | U76: 76 | V76: 75 | W76: 1.109533784 | X76: 0.997150974 | Y76: 76 | Z76: 75 | AA76: 0.1072961373 | AB76: 2 | AC76: 76 | AD76: 75 | AE76: 0.1183604447 | AF76: 1.985912658 | AG76: 76 | AH76: 75 | AI76: 1.407438812 | AJ76: 1.61785113 | AK76: 76 | AL76: 75 | AM76: 0.3690987124 | AN76: 0.6666666667 | AO76: 76 | AP76: 75 | AQ76: 1.179358639 | AR76: 0.9082482905 | AS76: 76 | AT76: 75 | AU76: 1.207295823 | AV76: 0.8726779962
A77: 77 | B77: 76 | C77: 0.1223010782 | D77: 1.01734635 | E77: 77 | F77: 76 | G77: 0.124611185 | H77: 1.020298388 | I77: 77 | J77: 76 | K77: 1.458290132 | L77: 1.446699821 | M77: 77 | N77: 76 | O77: 0.4582901317 | P77: 0.4466998209 | Q77: 77 | R77: 76 | S77: 1.108726753 | T77: 0 | U77: 77 | V77: 76 | W77: 1.110956248 | X77: 0.00284902604 | Y77: 77 | Z77: 76 | AA77: 0.1087267525 | AB77: 1 | AC77: 77 | AD77: 76 | AE77: 0.1197507527 | AF77: 1.014087342 | AG77: 77 | AH77: 76 | AI77: 1.407776011 | AJ77: 1.38214887 | AK77: 77 | AL77: 76 | AM77: 0.3695755842 | AN77: 0.3333333333 | AO77: 77 | AP77: 76 | AQ77: 1.180526731 | AR77: 0.09175170954 | AS77: 77 | AT77: 76 | AU77: 1.20836214 | AV77: 0.1273220038
A78: 78 | B78: 77 | C78: 0.1236820615 | D78: 1.98265365 | E78: 78 | F78: 77 | G78: 0.1259837218 | H78: 1.979701612 | I78: 78 | J78: 77 | K78: 1.458442636 | L78: 1.553300179 | M78: 78 | N78: 77 | O78: 0.4584426358 | P78: 0.5533001791 | Q78: 78 | R78: 77 | S78: 1.110157368 | T78: 1 | U78: 78 | V78: 77 | W78: 1.112378711 | X78: 0.997150974 | Y78: 78 | Z78: 77 | AA78: 0.1101573677 | AB78: 2 | AC78: 78 | AD78: 77 | AE78: 0.1211410607 | AF78: 1.985912658 | AG78: 78 | AH78: 77 | AI78: 1.40811321 | AJ78: 1.61785113 | AK78: 78 | AL78: 77 | AM78: 0.3700524559 | AN78: 0.6666666667 | AO78: 78 | AP78: 77 | AQ78: 1.181694824 | AR78: 0.9082482905 | AS78: 78 | AT78: 77 | AU78: 1.209428458 | AV78: 0.8726779962
A79: 79 | B79: 78 | C79: 0.1250630447 | D79: 1.01734635 | E79: 79 | F79: 78 | G79: 0.1273562586 | H79: 1.020298388 | I79: 79 | J79: 78 | K79: 1.45859514 | L79: 1.446699821 | M79: 79 | N79: 78 | O79: 0.4585951398 | P79: 0.4466998209 | Q79: 79 | R79: 78 | S79: 1.111587983 | T79: 0 | U79: 79 | V79: 78 | W79: 1.113801175 | X79: 0.00284902604 | Y79: 79 | Z79: 78 | AA79: 0.1115879828 | AB79: 1 | AC79: 79 | AD79: 78 | AE79: 0.1225313688 | AF79: 1.014087342 | AG79: 79 | AH79: 78 | AI79: 1.40845041 | AJ79: 1.38214887 | AK79: 79 | AL79: 78 | AM79: 0.3705293276 | AN79: 0.3333333333 | AO79: 79 | AP79: 78 | AQ79: 1.182862916 | AR79: 0.09175170954 | AS79: 79 | AT79: 78 | AU79: 1.210494775 | AV79: 0.1273220038
A80: 80 | B80: 79 | C80: 0.126444028 | D80: 1.98265365 | E80: 80 | F80: 79 | G80: 0.1287287954 | H80: 1.979701612 | I80: 80 | J80: 79 | K80: 1.458747644 | L80: 1.553300179 | M80: 80 | N80: 79 | O80: 0.4587476439 | P80: 0.5533001791 | Q80: 80 | R80: 79 | S80: 1.113018598 | T80: 1 | U80: 80 | V80: 79 | W80: 1.115223638 | X80: 0.997150974 | Y80: 80 | Z80: 79 | AA80: 0.113018598 | AB80: 2 | AC80: 80 | AD80: 79 | AE80: 0.1239216768 | AF80: 1.985912658 | AG80: 80 | AH80: 79 | AI80: 1.408787609 | AJ80: 1.61785113 | AK80: 80 | AL80: 79 | AM80: 0.3710061993 | AN80: 0.6666666667 | AO80: 80 | AP80: 79 | AQ80: 1.184031008 | AR80: 0.9082482905 | AS80: 80 | AT80: 79 | AU80: 1.211561093 | AV80: 0.8726779962
A81: 81 | B81: 80 | C81: 0.1278250113 | D81: 1.01734635 | E81: 81 | F81: 80 | G81: 0.1301013322 | H81: 1.020298388 | I81: 81 | J81: 80 | K81: 1.458900148 | L81: 1.446699821 | M81: 81 | N81: 80 | O81: 0.458900148 | P81: 0.4466998209 | Q81: 81 | R81: 80 | S81: 1.114449213 | T81: 0 | U81: 81 | V81: 80 | W81: 1.116646102 | X81: 0.00284902604 | Y81: 81 | Z81: 80 | AA81: 0.1144492132 | AB81: 1 | AC81: 81 | AD81: 80 | AE81: 0.1253119848 | AF81: 1.014087342 | AG81: 81 | AH81: 80 | AI81: 1.409124808 | AJ81: 1.38214887 | AK81: 81 | AL81: 80 | AM81: 0.3714830711 | AN81: 0.3333333333 | AO81: 81 | AP81: 80 | AQ81: 1.185199101 | AR81: 0.09175170954 | AS81: 81 | AT81: 80 | AU81: 1.212627411 | AV81: 0.1273220038
A82: 82 | B82: 81 | C82: 0.1292059945 | D82: 1.98265365 | E82: 82 | F82: 81 | G82: 0.131473869 | H82: 1.979701612 | I82: 82 | J82: 81 | K82: 1.459052652 | L82: 1.553300179 | M82: 82 | N82: 81 | O82: 0.4590526521 | P82: 0.5533001791 | Q82: 82 | R82: 81 | S82: 1.115879828 | T82: 1 | U82: 82 | V82: 81 | W82: 1.118068565 | X82: 0.997150974 | Y82: 82 | Z82: 81 | AA82: 0.1158798283 | AB82: 2 | AC82: 82 | AD82: 81 | AE82: 0.1267022929 | AF82: 1.985912658 | AG82: 82 | AH82: 81 | AI82: 1.409462007 | AJ82: 1.61785113 | AK82: 82 | AL82: 81 | AM82: 0.3719599428 | AN82: 0.6666666667 | AO82: 82 | AP82: 81 | AQ82: 1.186367193 | AR82: 0.9082482905 | AS82: 82 | AT82: 81 | AU82: 1.213693728 | AV82: 0.8726779962
A83: 83 | B83: 82 | C83: 0.1305869778 | D83: 1.01734635 | E83: 83 | F83: 82 | G83: 0.1328464058 | H83: 1.020298388 | I83: 83 | J83: 82 | K83: 1.459205156 | L83: 1.446699821 | M83: 83 | N83: 82 | O83: 0.4592051562 | P83: 0.4466998209 | Q83: 83 | R83: 82 | S83: 1.117310443 | T83: 0 | U83: 83 | V83: 82 | W83: 1.119491029 | X83: 0.00284902604 | Y83: 83 | Z83: 82 | AA83: 0.1173104435 | AB83: 1 | AC83: 83 | AD83: 82 | AE83: 0.1280926009 | AF83: 1.014087342 | AG83: 83 | AH83: 82 | AI83: 1.409799207 | AJ83: 1.38214887 | AK83: 83 | AL83: 82 | AM83: 0.3724368145 | AN83: 0.3333333333 | AO83: 83 | AP83: 82 | AQ83: 1.187535286 | AR83: 0.09175170954 | AS83: 83 | AT83: 82 | AU83: 1.214760046 | AV83: 0.1273220038
A84: 84 | B84: 83 | C84: 0.131967961 | D84: 1.98265365 | E84: 84 | F84: 83 | G84: 0.1342189426 | H84: 1.979701612 | I84: 84 | J84: 83 | K84: 1.45935766 | L84: 1.553300179 | M84: 84 | N84: 83 | O84: 0.4593576603 | P84: 0.5533001791 | Q84: 84 | R84: 83 | S84: 1.118741059 | T84: 1 | U84: 84 | V84: 83 | W84: 1.120913492 | X84: 0.997150974 | Y84: 84 | Z84: 83 | AA84: 0.1187410587 | AB84: 2 | AC84: 84 | AD84: 83 | AE84: 0.1294829089 | AF84: 1.985912658 | AG84: 84 | AH84: 83 | AI84: 1.410136406 | AJ84: 1.61785113 | AK84: 84 | AL84: 83 | AM84: 0.3729136862 | AN84: 0.6666666667 | AO84: 84 | AP84: 83 | AQ84: 1.188703378 | AR84: 0.9082482905 | AS84: 84 | AT84: 83 | AU84: 1.215826363 | AV84: 0.8726779962
A85: 85 | B85: 84 | C85: 0.1333489443 | D85: 1.01734635 | E85: 85 | F85: 84 | G85: 0.1355914794 | H85: 1.020298388 | I85: 85 | J85: 84 | K85: 1.459510164 | L85: 1.446699821 | M85: 85 | N85: 84 | O85: 0.4595101644 | P85: 0.4466998209 | Q85: 85 | R85: 84 | S85: 1.120171674 | T85: 0 | U85: 85 | V85: 84 | W85: 1.122335955 | X85: 0.00284902604 | Y85: 85 | Z85: 84 | AA85: 0.1201716738 | AB85: 1 | AC85: 85 | AD85: 84 | AE85: 0.130873217 | AF85: 1.014087342 | AG85: 85 | AH85: 84 | AI85: 1.410473605 | AJ85: 1.38214887 | AK85: 85 | AL85: 84 | AM85: 0.3733905579 | AN85: 0.3333333333 | AO85: 85 | AP85: 84 | AQ85: 1.18987147 | AR85: 0.09175170954 | AS85: 85 | AT85: 84 | AU85: 1.216892681 | AV85: 0.1273220038
A86: 86 | B86: 85 | C86: 0.1347299276 | D86: 1.98265365 | E86: 86 | F86: 85 | G86: 0.1369640162 | H86: 1.979701612 | I86: 86 | J86: 85 | K86: 1.459662668 | L86: 1.553300179 | M86: 86 | N86: 85 | O86: 0.4596626685 | P86: 0.5533001791 | Q86: 86 | R86: 85 | S86: 1.121602289 | T86: 1 | U86: 86 | V86: 85 | W86: 1.123758419 | X86: 0.997150974 | Y86: 86 | Z86: 85 | AA86: 0.121602289 | AB86: 2 | AC86: 86 | AD86: 85 | AE86: 0.132263525 | AF86: 1.985912658 | AG86: 86 | AH86: 85 | AI86: 1.410810804 | AJ86: 1.61785113 | AK86: 86 | AL86: 85 | AM86: 0.3738674297 | AN86: 0.6666666667 | AO86: 86 | AP86: 85 | AQ86: 1.191039563 | AR86: 0.9082482905 | AS86: 86 | AT86: 85 | AU86: 1.217958999 | AV86: 0.8726779962
A87: 87 | B87: 86 | C87: 0.1361109108 | D87: 1.01734635 | E87: 87 | F87: 86 | G87: 0.138336553 | H87: 1.020298388 | I87: 87 | J87: 86 | K87: 1.459815173 | L87: 1.446699821 | M87: 87 | N87: 86 | O87: 0.4598151726 | P87: 0.4466998209 | Q87: 87 | R87: 86 | S87: 1.123032904 | T87: 0 | U87: 87 | V87: 86 | W87: 1.125180882 | X87: 0.00284902604 | Y87: 87 | Z87: 86 | AA87: 0.1230329041 | AB87: 1 | AC87: 87 | AD87: 86 | AE87: 0.133653833 | AF87: 1.014087342 | AG87: 87 | AH87: 86 | AI87: 1.411148003 | AJ87: 1.38214887 | AK87: 87 | AL87: 86 | AM87: 0.3743443014 | AN87: 0.3333333333 | AO87: 87 | AP87: 86 | AQ87: 1.192207655 | AR87: 0.09175170954 | AS87: 87 | AT87: 86 | AU87: 1.219025316 | AV87: 0.1273220038
A88: 88 | B88: 87 | C88: 0.1374918941 | D88: 1.98265365 | E88: 88 | F88: 87 | G88: 0.1397090898 | H88: 1.979701612 | I88: 88 | J88: 87 | K88: 1.459967677 | L88: 1.553300179 | M88: 88 | N88: 87 | O88: 0.4599676766 | P88: 0.5533001791 | Q88: 88 | R88: 87 | S88: 1.124463519 | T88: 1 | U88: 88 | V88: 87 | W88: 1.126603346 | X88: 0.997150974 | Y88: 88 | Z88: 87 | AA88: 0.1244635193 | AB88: 2 | AC88: 88 | AD88: 87 | AE88: 0.1350441411 | AF88: 1.985912658 | AG88: 88 | AH88: 87 | AI88: 1.411485203 | AJ88: 1.61785113 | AK88: 88 | AL88: 87 | AM88: 0.3748211731 | AN88: 0.6666666667 | AO88: 88 | AP88: 87 | AQ88: 1.193375748 | AR88: 0.9082482905 | AS88: 88 | AT88: 87 | AU88: 1.220091634 | AV88: 0.8726779962
A89: 89 | B89: 88 | C89: 0.1388728774 | D89: 1.01734635 | E89: 89 | F89: 88 | G89: 0.1410816267 | H89: 1.020298388 | I89: 89 | J89: 88 | K89: 1.460120181 | L89: 1.446699821 | M89: 89 | N89: 88 | O89: 0.4601201807 | P89: 0.4466998209 | Q89: 89 | R89: 88 | S89: 1.125894134 | T89: 0 | U89: 89 | V89: 88 | W89: 1.128025809 | X89: 0.00284902604 | Y89: 89 | Z89: 88 | AA89: 0.1258941345 | AB89: 1 | AC89: 89 | AD89: 88 | AE89: 0.1364344491 | AF89: 1.014087342 | AG89: 89 | AH89: 88 | AI89: 1.411822402 | AJ89: 1.38214887 | AK89: 89 | AL89: 88 | AM89: 0.3752980448 | AN89: 0.3333333333 | AO89: 89 | AP89: 88 | AQ89: 1.19454384 | AR89: 0.09175170954 | AS89: 89 | AT89: 88 | AU89: 1.221157951 | AV89: 0.1273220038
A90: 90 | B90: 89 | C90: 0.1402538606 | D90: 1.98265365 | E90: 90 | F90: 89 | G90: 0.1424541635 | H90: 1.979701612 | I90: 90 | J90: 89 | K90: 1.460272685 | L90: 1.553300179 | M90: 90 | N90: 89 | O90: 0.4602726848 | P90: 0.5533001791 | Q90: 90 | R90: 89 | S90: 1.12732475 | T90: 1 | U90: 90 | V90: 89 | W90: 1.129448273 | X90: 0.997150974 | Y90: 90 | Z90: 89 | AA90: 0.1273247496 | AB90: 2 | AC90: 90 | AD90: 89 | AE90: 0.1378247571 | AF90: 1.985912658 | AG90: 90 | AH90: 89 | AI90: 1.412159601 | AJ90: 1.61785113 | AK90: 90 | AL90: 89 | AM90: 0.3757749165 | AN90: 0.6666666667 | AO90: 90 | AP90: 89 | AQ90: 1.195711932 | AR90: 0.9082482905 | AS90: 90 | AT90: 89 | AU90: 1.222224269 | AV90: 0.8726779962
A91: 91 | B91: 90 | C91: 0.1416348439 | D91: 1.01734635 | E91: 91 | F91: 90 | G91: 0.1438267003 | H91: 1.020298388 | I91: 91 | J91: 90 | K91: 1.460425189 | L91: 1.446699821 | M91: 91 | N91: 90 | O91: 0.4604251889 | P91: 0.4466998209 | Q91: 91 | R91: 90 | S91: 1.128755365 | T91: 0 | U91: 91 | V91: 90 | W91: 1.130870736 | X91: 0.00284902604 | Y91: 91 | Z91: 90 | AA91: 0.1287553648 | AB91: 1 | AC91: 91 | AD91: 90 | AE91: 0.1392150652 | AF91: 1.014087342 | AG91: 91 | AH91: 90 | AI91: 1.4124968 | AJ91: 1.38214887 | AK91: 91 | AL91: 90 | AM91: 0.3762517883 | AN91: 0.3333333333 | AO91: 91 | AP91: 90 | AQ91: 1.196880025 | AR91: 0.09175170954 | AS91: 91 | AT91: 90 | AU91: 1.223290586 | AV91: 0.1273220038
A92: 92 | B92: 91 | C92: 0.1430158271 | D92: 1.98265365 | E92: 92 | F92: 91 | G92: 0.1451992371 | H92: 1.979701612 | I92: 92 | J92: 91 | K92: 1.460577693 | L92: 1.553300179 | M92: 92 | N92: 91 | O92: 0.460577693 | P92: 0.5533001791 | Q92: 92 | R92: 91 | S92: 1.13018598 | T92: 1 | U92: 92 | V92: 91 | W92: 1.1322932 | X92: 0.997150974 | Y92: 92 | Z92: 91 | AA92: 0.13018598 | AB92: 2 | AC92: 92 | AD92: 91 | AE92: 0.1406053732 | AF92: 1.985912658 | AG92: 92 | AH92: 91 | AI92: 1.412834 | AJ92: 1.61785113 | AK92: 92 | AL92: 91 | AM92: 0.37672866 | AN92: 0.6666666667 | AO92: 92 | AP92: 91 | AQ92: 1.198048117 | AR92: 0.9082482905 | AS92: 92 | AT92: 91 | AU92: 1.224356904 | AV92: 0.8726779962
A93: 93 | B93: 92 | C93: 0.1443968104 | D93: 1.01734635 | E93: 93 | F93: 92 | G93: 0.1465717739 | H93: 1.020298388 | I93: 93 | J93: 92 | K93: 1.460730197 | L93: 1.446699821 | M93: 93 | N93: 92 | O93: 0.4607301971 | P93: 0.4466998209 | Q93: 93 | R93: 92 | S93: 1.131616595 | T93: 0 | U93: 93 | V93: 92 | W93: 1.133715663 | X93: 0.00284902604 | Y93: 93 | Z93: 92 | AA93: 0.1316165951 | AB93: 1 | AC93: 93 | AD93: 92 | AE93: 0.1419956812 | AF93: 1.014087342 | AG93: 93 | AH93: 92 | AI93: 1.413171199 | AJ93: 1.38214887 | AK93: 93 | AL93: 92 | AM93: 0.3772055317 | AN93: 0.3333333333 | AO93: 93 | AP93: 92 | AQ93: 1.199216209 | AR93: 0.09175170954 | AS93: 93 | AT93: 92 | AU93: 1.225423222 | AV93: 0.1273220038
A94: 94 | B94: 93 | C94: 0.1457777937 | D94: 1.98265365 | E94: 94 | F94: 93 | G94: 0.1479443107 | H94: 1.979701612 | I94: 94 | J94: 93 | K94: 1.460882701 | L94: 1.553300179 | M94: 94 | N94: 93 | O94: 0.4608827012 | P94: 0.5533001791 | Q94: 94 | R94: 93 | S94: 1.13304721 | T94: 1 | U94: 94 | V94: 93 | W94: 1.135138126 | X94: 0.997150974 | Y94: 94 | Z94: 93 | AA94: 0.1330472103 | AB94: 2 | AC94: 94 | AD94: 93 | AE94: 0.1433859893 | AF94: 1.985912658 | AG94: 94 | AH94: 93 | AI94: 1.413508398 | AJ94: 1.61785113 | AK94: 94 | AL94: 93 | AM94: 0.3776824034 | AN94: 0.6666666667 | AO94: 94 | AP94: 93 | AQ94: 1.200384302 | AR94: 0.9082482905 | AS94: 94 | AT94: 93 | AU94: 1.226489539 | AV94: 0.8726779962
A95: 95 | B95: 94 | C95: 0.1471587769 | D95: 1.01734635 | E95: 95 | F95: 94 | G95: 0.1493168475 | H95: 1.020298388 | I95: 95 | J95: 94 | K95: 1.461035205 | L95: 1.446699821 | M95: 95 | N95: 94 | O95: 0.4610352053 | P95: 0.4466998209 | Q95: 95 | R95: 94 | S95: 1.134477825 | T95: 0 | U95: 95 | V95: 94 | W95: 1.13656059 | X95: 0.00284902604 | Y95: 95 | Z95: 94 | AA95: 0.1344778255 | AB95: 1 | AC95: 95 | AD95: 94 | AE95: 0.1447762973 | AF95: 1.014087342 | AG95: 95 | AH95: 94 | AI95: 1.413845597 | AJ95: 1.38214887 | AK95: 95 | AL95: 94 | AM95: 0.3781592752 | AN95: 0.3333333333 | AO95: 95 | AP95: 94 | AQ95: 1.201552394 | AR95: 0.09175170954 | AS95: 95 | AT95: 94 | AU95: 1.227555857 | AV95: 0.1273220038
A96: 96 | B96: 95 | C96: 0.1485397602 | D96: 1.98265365 | E96: 96 | F96: 95 | G96: 0.1506893843 | H96: 1.979701612 | I96: 96 | J96: 95 | K96: 1.461187709 | L96: 1.553300179 | M96: 96 | N96: 95 | O96: 0.4611877094 | P96: 0.5533001791 | Q96: 96 | R96: 95 | S96: 1.135908441 | T96: 1 | U96: 96 | V96: 95 | W96: 1.137983053 | X96: 0.997150974 | Y96: 96 | Z96: 95 | AA96: 0.1359084406 | AB96: 2 | AC96: 96 | AD96: 95 | AE96: 0.1461666053 | AF96: 1.985912658 | AG96: 96 | AH96: 95 | AI96: 1.414182796 | AJ96: 1.61785113 | AK96: 96 | AL96: 95 | AM96: 0.3786361469 | AN96: 0.6666666667 | AO96: 96 | AP96: 95 | AQ96: 1.202720487 | AR96: 0.9082482905 | AS96: 96 | AT96: 95 | AU96: 1.228622174 | AV96: 0.8726779962
A97: 97 | B97: 96 | C97: 0.1499207434 | D97: 1.01734635 | E97: 97 | F97: 96 | G97: 0.1520619211 | H97: 1.020298388 | I97: 97 | J97: 96 | K97: 1.461340213 | L97: 1.446699821 | M97: 97 | N97: 96 | O97: 0.4613402135 | P97: 0.4466998209 | Q97: 97 | R97: 96 | S97: 1.137339056 | T97: 0 | U97: 97 | V97: 96 | W97: 1.139405517 | X97: 0.00284902604 | Y97: 97 | Z97: 96 | AA97: 0.1373390558 | AB97: 1 | AC97: 97 | AD97: 96 | AE97: 0.1475569134 | AF97: 1.014087342 | AG97: 97 | AH97: 96 | AI97: 1.414519996 | AJ97: 1.38214887 | AK97: 97 | AL97: 96 | AM97: 0.3791130186 | AN97: 0.3333333333 | AO97: 97 | AP97: 96 | AQ97: 1.203888579 | AR97: 0.09175170954 | AS97: 97 | AT97: 96 | AU97: 1.229688492 | AV97: 0.1273220038
A98: 98 | B98: 97 | C98: 0.1513017267 | D98: 1.98265365 | E98: 98 | F98: 97 | G98: 0.1534344579 | H98: 1.979701612 | I98: 98 | J98: 97 | K98: 1.461492718 | L98: 1.553300179 | M98: 98 | N98: 97 | O98: 0.4614927175 | P98: 0.5533001791 | Q98: 98 | R98: 97 | S98: 1.138769671 | T98: 1 | U98: 98 | V98: 97 | W98: 1.14082798 | X98: 0.997150974 | Y98: 98 | Z98: 97 | AA98: 0.138769671 | AB98: 2 | AC98: 98 | AD98: 97 | AE98: 0.1489472214 | AF98: 1.985912658 | AG98: 98 | AH98: 97 | AI98: 1.414857195 | AJ98: 1.61785113 | AK98: 98 | AL98: 97 | AM98: 0.3795898903 | AN98: 0.6666666667 | AO98: 98 | AP98: 97 | AQ98: 1.205056671 | AR98: 0.9082482905 | AS98: 98 | AT98: 97 | AU98: 1.23075481 | AV98: 0.8726779962
A99: 99 | B99: 98 | C99: 0.15268271 | D99: 1.01734635 | E99: 99 | F99: 98 | G99: 0.1548069947 | H99: 1.020298388 | I99: 99 | J99: 98 | K99: 1.461645222 | L99: 1.446699821 | M99: 99 | N99: 98 | O99: 0.4616452216 | P99: 0.4466998209 | Q99: 99 | R99: 98 | S99: 1.140200286 | T99: 0 | U99: 99 | V99: 98 | W99: 1.142250444 | X99: 0.00284902604 | Y99: 99 | Z99: 98 | AA99: 0.1402002861 | AB99: 1 | AC99: 99 | AD99: 98 | AE99: 0.1503375294 | AF99: 1.014087342 | AG99: 99 | AH99: 98 | AI99: 1.415194394 | AJ99: 1.38214887 | AK99: 99 | AL99: 98 | AM99: 0.380066762 | AN99: 0.3333333333 | AO99: 99 | AP99: 98 | AQ99: 1.206224764 | AR99: 0.09175170954 | AS99: 99 | AT99: 98 | AU99: 1.231821127 | AV99: 0.1273220038
A100: 100 | B100: 99 | C100: 0.1540636932 | D100: 1.98265365 | E100: 100 | F100: 99 | G100: 0.1561795315 | H100: 1.979701612 | I100: 100 | J100: 99 | K100: 1.461797726 | L100: 1.553300179 | M100: 100 | N100: 99 | O100: 0.4617977257 | P100: 0.5533001791 | Q100: 100 | R100: 99 | S100: 1.141630901 | T100: 1 | U100: 100 | V100: 99 | W100: 1.143672907 | X100: 0.997150974 | Y100: 100 | Z100: 99 | AA100: 0.1416309013 | AB100: 2 | AC100: 100 | AD100: 99 | AE100: 0.1517278375 | AF100: 1.985912658 | AG100: 100 | AH100: 99 | AI100: 1.415531593 | AJ100: 1.61785113 | AK100: 100 | AL100: 99 | AM100: 0.3805436338 | AN100: 0.6666666667 | AO100: 100 | AP100: 99 | AQ100: 1.207392856 | AR100: 0.9082482905 | AS100: 100 | AT100: 99 | AU100: 1.232887445 | AV100: 0.8726779962
A101: 101 | B101: 100 | C101: 0.1554446765 | D101: 1.01734635 | E101: 101 | F101: 100 | G101: 0.1575520683 | H101: 1.020298388 | I101: 101 | J101: 100 | K101: 1.46195023 | L101: 1.446699821 | M101: 101 | N101: 100 | O101: 0.4619502298 | P101: 0.4466998209 | Q101: 101 | R101: 100 | S101: 1.143061516 | T101: 0 | U101: 101 | V101: 100 | W101: 1.145095371 | X101: 0.00284902604 | Y101: 101 | Z101: 100 | AA101: 0.1430615165 | AB101: 1 | AC101: 101 | AD101: 100 | AE101: 0.1531181455 | AF101: 1.014087342 | AG101: 101 | AH101: 100 | AI101: 1.415868793 | AJ101: 1.38214887 | AK101: 101 | AL101: 100 | AM101: 0.3810205055 | AN101: 0.3333333333 | AO101: 101 | AP101: 100 | AQ101: 1.208560949 | AR101: 0.09175170954 | AS101: 101 | AT101: 100 | AU101: 1.233953762 | AV101: 0.1273220038
A102: 102 | B102: 101 | C102: 0.1568256597 | D102: 1.98265365 | E102: 102 | F102: 101 | G102: 0.1589246051 | H102: 1.979701612 | I102: 102 | J102: 101 | K102: 1.462102734 | L102: 1.553300179 | M102: 102 | N102: 101 | O102: 0.4621027339 | P102: 0.5533001791 | Q102: 102 | R102: 101 | S102: 1.144492132 | T102: 1 | U102: 102 | V102: 101 | W102: 1.146517834 | X102: 0.997150974 | Y102: 102 | Z102: 101 | AA102: 0.1444921316 | AB102: 2 | AC102: 102 | AD102: 101 | AE102: 0.1545084535 | AF102: 1.985912658 | AG102: 102 | AH102: 101 | AI102: 1.416205992 | AJ102: 1.61785113 | AK102: 102 | AL102: 101 | AM102: 0.3814973772 | AN102: 0.6666666667 | AO102: 102 | AP102: 101 | AQ102: 1.209729041 | AR102: 0.9082482905 | AS102: 102 | AT102: 101 | AU102: 1.23502008 | AV102: 0.8726779962
A103: 103 | B103: 102 | C103: 0.158206643 | D103: 1.01734635 | E103: 103 | F103: 102 | G103: 0.1602971419 | H103: 1.020298388 | I103: 103 | J103: 102 | K103: 1.462255238 | L103: 1.446699821 | M103: 103 | N103: 102 | O103: 0.462255238 | P103: 0.4466998209 | Q103: 103 | R103: 102 | S103: 1.145922747 | T103: 0 | U103: 103 | V103: 102 | W103: 1.147940297 | X103: 0.00284902604 | Y103: 103 | Z103: 102 | AA103: 0.1459227468 | AB103: 1 | AC103: 103 | AD103: 102 | AE103: 0.1558987616 | AF103: 1.014087342 | AG103: 103 | AH103: 102 | AI103: 1.416543191 | AJ103: 1.38214887 | AK103: 103 | AL103: 102 | AM103: 0.3819742489 | AN103: 0.3333333333 | AO103: 103 | AP103: 102 | AQ103: 1.210897133 | AR103: 0.09175170954 | AS103: 103 | AT103: 102 | AU103: 1.236086398 | AV103: 0.1273220038
A104: 104 | B104: 103 | C104: 0.1595876263 | D104: 1.98265365 | E104: 104 | F104: 103 | G104: 0.1616696787 | H104: 1.979701612 | I104: 104 | J104: 103 | K104: 1.462407742 | L104: 1.553300179 | M104: 104 | N104: 103 | O104: 0.4624077421 | P104: 0.5533001791 | Q104: 104 | R104: 103 | S104: 1.147353362 | T104: 1 | U104: 104 | V104: 103 | W104: 1.149362761 | X104: 0.997150974 | Y104: 104 | Z104: 103 | AA104: 0.1473533619 | AB104: 2 | AC104: 104 | AD104: 103 | AE104: 0.1572890696 | AF104: 1.985912658 | AG104: 104 | AH104: 103 | AI104: 1.41688039 | AJ104: 1.61785113 | AK104: 104 | AL104: 103 | AM104: 0.3824511206 | AN104: 0.6666666667 | AO104: 104 | AP104: 103 | AQ104: 1.212065226 | AR104: 0.9082482905 | AS104: 104 | AT104: 103 | AU104: 1.237152715 | AV104: 0.8726779962
A105: 105 | B105: 104 | C105: 0.1609686095 | D105: 1.01734635 | E105: 105 | F105: 104 | G105: 0.1630422155 | H105: 1.020298388 | I105: 105 | J105: 104 | K105: 1.462560246 | L105: 1.446699821 | M105: 105 | N105: 104 | O105: 0.4625602462 | P105: 0.4466998209 | Q105: 105 | R105: 104 | S105: 1.148783977 | T105: 0 | U105: 105 | V105: 104 | W105: 1.150785224 | X105: 0.00284902604 | Y105: 105 | Z105: 104 | AA105: 0.1487839771 | AB105: 1 | AC105: 105 | AD105: 104 | AE105: 0.1586793776 | AF105: 1.014087342 | AG105: 105 | AH105: 104 | AI105: 1.41721759 | AJ105: 1.38214887 | AK105: 105 | AL105: 104 | AM105: 0.3829279924 | AN105: 0.3333333333 | AO105: 105 | AP105: 104 | AQ105: 1.213233318 | AR105: 0.09175170954 | AS105: 105 | AT105: 104 | AU105: 1.238219033 | AV105: 0.1273220038
A106: 106 | B106: 105 | C106: 0.1623495928 | D106: 1.98265365 | E106: 106 | F106: 105 | G106: 0.1644147523 | H106: 1.979701612 | I106: 106 | J106: 105 | K106: 1.46271275 | L106: 1.553300179 | M106: 106 | N106: 105 | O106: 0.4627127503 | P106: 0.5533001791 | Q106: 106 | R106: 105 | S106: 1.150214592 | T106: 1 | U106: 106 | V106: 105 | W106: 1.152207688 | X106: 0.997150974 | Y106: 106 | Z106: 105 | AA106: 0.1502145923 | AB106: 2 | AC106: 106 | AD106: 105 | AE106: 0.1600696857 | AF106: 1.985912658 | AG106: 106 | AH106: 105 | AI106: 1.417554789 | AJ106: 1.61785113 | AK106: 106 | AL106: 105 | AM106: 0.3834048641 | AN106: 0.6666666667 | AO106: 106 | AP106: 105 | AQ106: 1.214401411 | AR106: 0.9082482905 | AS106: 106 | AT106: 105 | AU106: 1.23928535 | AV106: 0.8726779962
A107: 107 | B107: 106 | C107: 0.163730576 | D107: 1.01734635 | E107: 107 | F107: 106 | G107: 0.1657872891 | H107: 1.020298388 | I107: 107 | J107: 106 | K107: 1.462865254 | L107: 1.446699821 | M107: 107 | N107: 106 | O107: 0.4628652543 | P107: 0.4466998209 | Q107: 107 | R107: 106 | S107: 1.151645207 | T107: 0 | U107: 107 | V107: 106 | W107: 1.153630151 | X107: 0.00284902604 | Y107: 107 | Z107: 106 | AA107: 0.1516452074 | AB107: 1 | AC107: 107 | AD107: 106 | AE107: 0.1614599937 | AF107: 1.014087342 | AG107: 107 | AH107: 106 | AI107: 1.417891988 | AJ107: 1.38214887 | AK107: 107 | AL107: 106 | AM107: 0.3838817358 | AN107: 0.3333333333 | AO107: 107 | AP107: 106 | AQ107: 1.215569503 | AR107: 0.09175170954 | AS107: 107 | AT107: 106 | AU107: 1.240351668 | AV107: 0.1273220038
A108: 108 | B108: 107 | C108: 0.1651115593 | D108: 1.98265365 | E108: 108 | F108: 107 | G108: 0.1671598259 | H108: 1.979701612 | I108: 108 | J108: 107 | K108: 1.463017758 | L108: 1.553300179 | M108: 108 | N108: 107 | O108: 0.4630177584 | P108: 0.5533001791 | Q108: 108 | R108: 107 | S108: 1.153075823 | T108: 1 | U108: 108 | V108: 107 | W108: 1.155052615 | X108: 0.997150974 | Y108: 108 | Z108: 107 | AA108: 0.1530758226 | AB108: 2 | AC108: 108 | AD108: 107 | AE108: 0.1628503017 | AF108: 1.985912658 | AG108: 108 | AH108: 107 | AI108: 1.418229187 | AJ108: 1.61785113 | AK108: 108 | AL108: 107 | AM108: 0.3843586075 | AN108: 0.6666666667 | AO108: 108 | AP108: 107 | AQ108: 1.216737595 | AR108: 0.9082482905 | AS108: 108 | AT108: 107 | AU108: 1.241417985 | AV108: 0.8726779962
A109: 109 | B109: 108 | C109: 0.1664925426 | D109: 1.01734635 | E109: 109 | F109: 108 | G109: 0.1685323627 | H109: 1.020298388 | I109: 109 | J109: 108 | K109: 1.463170263 | L109: 1.446699821 | M109: 109 | N109: 108 | O109: 0.4631702625 | P109: 0.4466998209 | Q109: 109 | R109: 108 | S109: 1.154506438 | T109: 0 | U109: 109 | V109: 108 | W109: 1.156475078 | X109: 0.00284902604 | Y109: 109 | Z109: 108 | AA109: 0.1545064378 | AB109: 1 | AC109: 109 | AD109: 108 | AE109: 0.1642406098 | AF109: 1.014087342 | AG109: 109 | AH109: 108 | AI109: 1.418566386 | AJ109: 1.38214887 | AK109: 109 | AL109: 108 | AM109: 0.3848354793 | AN109: 0.3333333333 | AO109: 109 | AP109: 108 | AQ109: 1.217905688 | AR109: 0.09175170954 | AS109: 109 | AT109: 108 | AU109: 1.242484303 | AV109: 0.1273220038
A110: 110 | B110: 109 | C110: 0.1678735258 | D110: 1.98265365 | E110: 110 | F110: 109 | G110: 0.1699048995 | H110: 1.979701612 | I110: 110 | J110: 109 | K110: 1.463322767 | L110: 1.553300179 | M110: 110 | N110: 109 | O110: 0.4633227666 | P110: 0.5533001791 | Q110: 110 | R110: 109 | S110: 1.155937053 | T110: 1 | U110: 110 | V110: 109 | W110: 1.157897542 | X110: 0.997150974 | Y110: 110 | Z110: 109 | AA110: 0.1559370529 | AB110: 2 | AC110: 110 | AD110: 109 | AE110: 0.1656309178 | AF110: 1.985912658 | AG110: 110 | AH110: 109 | AI110: 1.418903586 | AJ110: 1.61785113 | AK110: 110 | AL110: 109 | AM110: 0.385312351 | AN110: 0.6666666667 | AO110: 110 | AP110: 109 | AQ110: 1.21907378 | AR110: 0.9082482905 | AS110: 110 | AT110: 109 | AU110: 1.243550621 | AV110: 0.8726779962
A111: 111 | B111: 110 | C111: 0.1692545091 | D111: 1.01734635 | E111: 111 | F111: 110 | G111: 0.1712774363 | H111: 1.020298388 | I111: 111 | J111: 110 | K111: 1.463475271 | L111: 1.446699821 | M111: 111 | N111: 110 | O111: 0.4634752707 | P111: 0.4466998209 | Q111: 111 | R111: 110 | S111: 1.157367668 | T111: 0 | U111: 111 | V111: 110 | W111: 1.159320005 | X111: 0.00284902604 | Y111: 111 | Z111: 110 | AA111: 0.1573676681 | AB111: 1 | AC111: 111 | AD111: 110 | AE111: 0.1670212258 | AF111: 1.014087342 | AG111: 111 | AH111: 110 | AI111: 1.419240785 | AJ111: 1.38214887 | AK111: 111 | AL111: 110 | AM111: 0.3857892227 | AN111: 0.3333333333 | AO111: 111 | AP111: 110 | AQ111: 1.220241872 | AR111: 0.09175170954 | AS111: 111 | AT111: 110 | AU111: 1.244616938 | AV111: 0.1273220038
A112: 112 | B112: 111 | C112: 0.1706354923 | D112: 1.98265365 | E112: 112 | F112: 111 | G112: 0.1726499731 | H112: 1.979701612 | I112: 112 | J112: 111 | K112: 1.463627775 | L112: 1.553300179 | M112: 112 | N112: 111 | O112: 0.4636277748 | P112: 0.5533001791 | Q112: 112 | R112: 111 | S112: 1.158798283 | T112: 1 | U112: 112 | V112: 111 | W112: 1.160742468 | X112: 0.997150974 | Y112: 112 | Z112: 111 | AA112: 0.1587982833 | AB112: 2 | AC112: 112 | AD112: 111 | AE112: 0.1684115339 | AF112: 1.985912658 | AG112: 112 | AH112: 111 | AI112: 1.419577984 | AJ112: 1.61785113 | AK112: 112 | AL112: 111 | AM112: 0.3862660944 | AN112: 0.6666666667 | AO112: 112 | AP112: 111 | AQ112: 1.221409965 | AR112: 0.9082482905 | AS112: 112 | AT112: 111 | AU112: 1.245683256 | AV112: 0.8726779962
A113: 113 | B113: 112 | C113: 0.1720164756 | D113: 1.01734635 | E113: 113 | F113: 112 | G113: 0.1740225099 | H113: 1.020298388 | I113: 113 | J113: 112 | K113: 1.463780279 | L113: 1.446699821 | M113: 113 | N113: 112 | O113: 0.4637802789 | P113: 0.4466998209 | Q113: 113 | R113: 112 | S113: 1.160228898 | T113: 0 | U113: 113 | V113: 112 | W113: 1.162164932 | X113: 0.00284902604 | Y113: 113 | Z113: 112 | AA113: 0.1602288984 | AB113: 1 | AC113: 113 | AD113: 112 | AE113: 0.1698018419 | AF113: 1.014087342 | AG113: 113 | AH113: 112 | AI113: 1.419915183 | AJ113: 1.38214887 | AK113: 113 | AL113: 112 | AM113: 0.3867429661 | AN113: 0.3333333333 | AO113: 113 | AP113: 112 | AQ113: 1.222578057 | AR113: 0.09175170954 | AS113: 113 | AT113: 112 | AU113: 1.246749573 | AV113: 0.1273220038
A114: 114 | B114: 113 | C114: 0.1733974589 | D114: 1.98265365 | E114: 114 | F114: 113 | G114: 0.1753950467 | H114: 1.979701612 | I114: 114 | J114: 113 | K114: 1.463932783 | L114: 1.553300179 | M114: 114 | N114: 113 | O114: 0.463932783 | P114: 0.5533001791 | Q114: 114 | R114: 113 | S114: 1.161659514 | T114: 1 | U114: 114 | V114: 113 | W114: 1.163587395 | X114: 0.997150974 | Y114: 114 | Z114: 113 | AA114: 0.1616595136 | AB114: 2 | AC114: 114 | AD114: 113 | AE114: 0.1711921499 | AF114: 1.985912658 | AG114: 114 | AH114: 113 | AI114: 1.420252383 | AJ114: 1.61785113 | AK114: 114 | AL114: 113 | AM114: 0.3872198379 | AN114: 0.6666666667 | AO114: 114 | AP114: 113 | AQ114: 1.22374615 | AR114: 0.9082482905 | AS114: 114 | AT114: 113 | AU114: 1.247815891 | AV114: 0.8726779962
A115: 115 | B115: 114 | C115: 0.1747784421 | D115: 1.01734635 | E115: 115 | F115: 114 | G115: 0.1767675835 | H115: 1.020298388 | I115: 115 | J115: 114 | K115: 1.464085287 | L115: 1.446699821 | M115: 115 | N115: 114 | O115: 0.4640852871 | P115: 0.4466998209 | Q115: 115 | R115: 114 | S115: 1.163090129 | T115: 0 | U115: 115 | V115: 114 | W115: 1.165009859 | X115: 0.00284902604 | Y115: 115 | Z115: 114 | AA115: 0.1630901288 | AB115: 1 | AC115: 115 | AD115: 114 | AE115: 0.172582458 | AF115: 1.014087342 | AG115: 115 | AH115: 114 | AI115: 1.420589582 | AJ115: 1.38214887 | AK115: 115 | AL115: 114 | AM115: 0.3876967096 | AN115: 0.3333333333 | AO115: 115 | AP115: 114 | AQ115: 1.224914242 | AR115: 0.09175170954 | AS115: 115 | AT115: 114 | AU115: 1.248882209 | AV115: 0.1273220038
A116: 116 | B116: 115 | C116: 0.1761594254 | D116: 1.98265365 | E116: 116 | F116: 115 | G116: 0.1781401203 | H116: 1.979701612 | I116: 116 | J116: 115 | K116: 1.464237791 | L116: 1.553300179 | M116: 116 | N116: 115 | O116: 0.4642377911 | P116: 0.5533001791 | Q116: 116 | R116: 115 | S116: 1.164520744 | T116: 1 | U116: 116 | V116: 115 | W116: 1.166432322 | X116: 0.997150974 | Y116: 116 | Z116: 115 | AA116: 0.1645207439 | AB116: 2 | AC116: 116 | AD116: 115 | AE116: 0.173972766 | AF116: 1.985912658 | AG116: 116 | AH116: 115 | AI116: 1.420926781 | AJ116: 1.61785113 | AK116: 116 | AL116: 115 | AM116: 0.3881735813 | AN116: 0.6666666667 | AO116: 116 | AP116: 115 | AQ116: 1.226082334 | AR116: 0.9082482905 | AS116: 116 | AT116: 115 | AU116: 1.249948526 | AV116: 0.8726779962
A117: 117 | B117: 116 | C117: 0.1775404086 | D117: 1.01734635 | E117: 117 | F117: 116 | G117: 0.1795126571 | H117: 1.020298388 | I117: 117 | J117: 116 | K117: 1.464390295 | L117: 1.446699821 | M117: 117 | N117: 116 | O117: 0.4643902952 | P117: 0.4466998209 | Q117: 117 | R117: 116 | S117: 1.165951359 | T117: 0 | U117: 117 | V117: 116 | W117: 1.167854786 | X117: 0.00284902604 | Y117: 117 | Z117: 116 | AA117: 0.1659513591 | AB117: 1 | AC117: 117 | AD117: 116 | AE117: 0.175363074 | AF117: 1.014087342 | AG117: 117 | AH117: 116 | AI117: 1.42126398 | AJ117: 1.38214887 | AK117: 117 | AL117: 116 | AM117: 0.388650453 | AN117: 0.3333333333 | AO117: 117 | AP117: 116 | AQ117: 1.227250427 | AR117: 0.09175170954 | AS117: 117 | AT117: 116 | AU117: 1.251014844 | AV117: 0.1273220038
A118: 118 | B118: 117 | C118: 0.1789213919 | D118: 1.98265365 | E118: 118 | F118: 117 | G118: 0.1808851939 | H118: 1.979701612 | I118: 118 | J118: 117 | K118: 1.464542799 | L118: 1.553300179 | M118: 118 | N118: 117 | O118: 0.4645427993 | P118: 0.5533001791 | Q118: 118 | R118: 117 | S118: 1.167381974 | T118: 1 | U118: 118 | V118: 117 | W118: 1.169277249 | X118: 0.997150974 | Y118: 118 | Z118: 117 | AA118: 0.1673819742 | AB118: 2 | AC118: 118 | AD118: 117 | AE118: 0.1767533821 | AF118: 1.985912658 | AG118: 118 | AH118: 117 | AI118: 1.421601179 | AJ118: 1.61785113 | AK118: 118 | AL118: 117 | AM118: 0.3891273247 | AN118: 0.6666666667 | AO118: 118 | AP118: 117 | AQ118: 1.228418519 | AR118: 0.9082482905 | AS118: 118 | AT118: 117 | AU118: 1.252081161 | AV118: 0.8726779962
A119: 119 | B119: 118 | C119: 0.1803023752 | D119: 1.01734635 | E119: 119 | F119: 118 | G119: 0.1822577307 | H119: 1.020298388 | I119: 119 | J119: 118 | K119: 1.464695303 | L119: 1.446699821 | M119: 119 | N119: 118 | O119: 0.4646953034 | P119: 0.4466998209 | Q119: 119 | R119: 118 | S119: 1.168812589 | T119: 0 | U119: 119 | V119: 118 | W119: 1.170699713 | X119: 0.00284902604 | Y119: 119 | Z119: 118 | AA119: 0.1688125894 | AB119: 1 | AC119: 119 | AD119: 118 | AE119: 0.1781436901 | AF119: 1.014087342 | AG119: 119 | AH119: 118 | AI119: 1.421938379 | AJ119: 1.38214887 | AK119: 119 | AL119: 118 | AM119: 0.3896041965 | AN119: 0.3333333333 | AO119: 119 | AP119: 118 | AQ119: 1.229586612 | AR119: 0.09175170954 | AS119: 119 | AT119: 118 | AU119: 1.253147479 | AV119: 0.1273220038
A120: 120 | B120: 119 | C120: 0.1816833584 | D120: 1.98265365 | E120: 120 | F120: 119 | G120: 0.1836302675 | H120: 1.979701612 | I120: 120 | J120: 119 | K120: 1.464847807 | L120: 1.553300179 | M120: 120 | N120: 119 | O120: 0.4648478075 | P120: 0.5533001791 | Q120: 120 | R120: 119 | S120: 1.170243205 | T120: 1 | U120: 120 | V120: 119 | W120: 1.172122176 | X120: 0.997150974 | Y120: 120 | Z120: 119 | AA120: 0.1702432046 | AB120: 2 | AC120: 120 | AD120: 119 | AE120: 0.1795339981 | AF120: 1.985912658 | AG120: 120 | AH120: 119 | AI120: 1.422275578 | AJ120: 1.61785113 | AK120: 120 | AL120: 119 | AM120: 0.3900810682 | AN120: 0.6666666667 | AO120: 120 | AP120: 119 | AQ120: 1.230754704 | AR120: 0.9082482905 | AS120: 120 | AT120: 119 | AU120: 1.254213796 | AV120: 0.8726779962
A121: 121 | B121: 120 | C121: 0.1830643417 | D121: 1.01734635 | E121: 121 | F121: 120 | G121: 0.1850028043 | H121: 1.020298388 | I121: 121 | J121: 120 | K121: 1.465000312 | L121: 1.446699821 | M121: 121 | N121: 120 | O121: 0.4650003116 | P121: 0.4466998209 | Q121: 121 | R121: 120 | S121: 1.17167382 | T121: 0 | U121: 121 | V121: 120 | W121: 1.173544639 | X121: 0.00284902604 | Y121: 121 | Z121: 120 | AA121: 0.1716738197 | AB121: 1 | AC121: 121 | AD121: 120 | AE121: 0.1809243062 | AF121: 1.014087342 | AG121: 121 | AH121: 120 | AI121: 1.422612777 | AJ121: 1.38214887 | AK121: 121 | AL121: 120 | AM121: 0.3905579399 | AN121: 0.3333333333 | AO121: 121 | AP121: 120 | AQ121: 1.231922796 | AR121: 0.09175170954 | AS121: 121 | AT121: 120 | AU121: 1.255280114 | AV121: 0.1273220038
A122: 122 | B122: 121 | C122: 0.184445325 | D122: 1.98265365 | E122: 122 | F122: 121 | G122: 0.1863753411 | H122: 1.979701612 | I122: 122 | J122: 121 | K122: 1.465152816 | L122: 1.553300179 | M122: 122 | N122: 121 | O122: 0.4651528157 | P122: 0.5533001791 | Q122: 122 | R122: 121 | S122: 1.173104435 | T122: 1 | U122: 122 | V122: 121 | W122: 1.174967103 | X122: 0.997150974 | Y122: 122 | Z122: 121 | AA122: 0.1731044349 | AB122: 2 | AC122: 122 | AD122: 121 | AE122: 0.1823146142 | AF122: 1.985912658 | AG122: 122 | AH122: 121 | AI122: 1.422949976 | AJ122: 1.61785113 | AK122: 122 | AL122: 121 | AM122: 0.3910348116 | AN122: 0.6666666667 | AO122: 122 | AP122: 121 | AQ122: 1.233090889 | AR122: 0.9082482905 | AS122: 122 | AT122: 121 | AU122: 1.256346432 | AV122: 0.8726779962
A123: 123 | B123: 122 | C123: 0.1858263082 | D123: 1.01734635 | E123: 123 | F123: 122 | G123: 0.1877478779 | H123: 1.020298388 | I123: 123 | J123: 122 | K123: 1.46530532 | L123: 1.446699821 | M123: 123 | N123: 122 | O123: 0.4653053198 | P123: 0.4466998209 | Q123: 123 | R123: 122 | S123: 1.17453505 | T123: 0 | U123: 123 | V123: 122 | W123: 1.176389566 | X123: 0.00284902604 | Y123: 123 | Z123: 122 | AA123: 0.1745350501 | AB123: 1 | AC123: 123 | AD123: 122 | AE123: 0.1837049223 | AF123: 1.014087342 | AG123: 123 | AH123: 122 | AI123: 1.423287176 | AJ123: 1.38214887 | AK123: 123 | AL123: 122 | AM123: 0.3915116834 | AN123: 0.3333333333 | AO123: 123 | AP123: 122 | AQ123: 1.234258981 | AR123: 0.09175170954 | AS123: 123 | AT123: 122 | AU123: 1.257412749 | AV123: 0.1273220038
A124: 124 | B124: 123 | C124: 0.1872072915 | D124: 1.98265365 | E124: 124 | F124: 123 | G124: 0.1891204147 | H124: 1.979701612 | I124: 124 | J124: 123 | K124: 1.465457824 | L124: 1.553300179 | M124: 124 | N124: 123 | O124: 0.4654578239 | P124: 0.5533001791 | Q124: 124 | R124: 123 | S124: 1.175965665 | T124: 1 | U124: 124 | V124: 123 | W124: 1.17781203 | X124: 0.997150974 | Y124: 124 | Z124: 123 | AA124: 0.1759656652 | AB124: 2 | AC124: 124 | AD124: 123 | AE124: 0.1850952303 | AF124: 1.985912658 | AG124: 124 | AH124: 123 | AI124: 1.423624375 | AJ124: 1.61785113 | AK124: 124 | AL124: 123 | AM124: 0.3919885551 | AN124: 0.6666666667 | AO124: 124 | AP124: 123 | AQ124: 1.235427074 | AR124: 0.9082482905 | AS124: 124 | AT124: 123 | AU124: 1.258479067 | AV124: 0.8726779962
A125: 125 | B125: 124 | C125: 0.1885882747 | D125: 1.01734635 | E125: 125 | F125: 124 | G125: 0.1904929515 | H125: 1.020298388 | I125: 125 | J125: 124 | K125: 1.465610328 | L125: 1.446699821 | M125: 125 | N125: 124 | O125: 0.4656103279 | P125: 0.4466998209 | Q125: 125 | R125: 124 | S125: 1.17739628 | T125: 0 | U125: 125 | V125: 124 | W125: 1.179234493 | X125: 0.00284902604 | Y125: 125 | Z125: 124 | AA125: 0.1773962804 | AB125: 1 | AC125: 125 | AD125: 124 | AE125: 0.1864855383 | AF125: 1.014087342 | AG125: 125 | AH125: 124 | AI125: 1.423961574 | AJ125: 1.38214887 | AK125: 125 | AL125: 124 | AM125: 0.3924654268 | AN125: 0.3333333333 | AO125: 125 | AP125: 124 | AQ125: 1.236595166 | AR125: 0.09175170954 | AS125: 125 | AT125: 124 | AU125: 1.259545384 | AV125: 0.1273220038
A126: 126 | B126: 125 | C126: 0.189969258 | D126: 1.98265365 | E126: 126 | F126: 125 | G126: 0.1918654883 | H126: 1.979701612 | I126: 126 | J126: 125 | K126: 1.465762832 | L126: 1.553300179 | M126: 126 | N126: 125 | O126: 0.465762832 | P126: 0.5533001791 | Q126: 126 | R126: 125 | S126: 1.178826896 | T126: 1 | U126: 126 | V126: 125 | W126: 1.180656957 | X126: 0.997150974 | Y126: 126 | Z126: 125 | AA126: 0.1788268956 | AB126: 2 | AC126: 126 | AD126: 125 | AE126: 0.1878758464 | AF126: 1.985912658 | AG126: 126 | AH126: 125 | AI126: 1.424298773 | AJ126: 1.61785113 | AK126: 126 | AL126: 125 | AM126: 0.3929422985 | AN126: 0.6666666667 | AO126: 126 | AP126: 125 | AQ126: 1.237763258 | AR126: 0.9082482905 | AS126: 126 | AT126: 125 | AU126: 1.260611702 | AV126: 0.8726779962
A127: 127 | B127: 126 | C127: 0.1913502413 | D127: 1.01734635 | E127: 127 | F127: 126 | G127: 0.1932380251 | H127: 1.020298388 | I127: 127 | J127: 126 | K127: 1.465915336 | L127: 1.446699821 | M127: 127 | N127: 126 | O127: 0.4659153361 | P127: 0.4466998209 | Q127: 127 | R127: 126 | S127: 1.180257511 | T127: 0 | U127: 127 | V127: 126 | W127: 1.18207942 | X127: 0.00284902604 | Y127: 127 | Z127: 126 | AA127: 0.1802575107 | AB127: 1 | AC127: 127 | AD127: 126 | AE127: 0.1892661544 | AF127: 1.014087342 | AG127: 127 | AH127: 126 | AI127: 1.424635973 | AJ127: 1.38214887 | AK127: 127 | AL127: 126 | AM127: 0.3934191702 | AN127: 0.3333333333 | AO127: 127 | AP127: 126 | AQ127: 1.238931351 | AR127: 0.09175170954 | AS127: 127 | AT127: 126 | AU127: 1.26167802 | AV127: 0.1273220038
A128: 128 | B128: 127 | C128: 0.1927312245 | D128: 1.98265365 | E128: 128 | F128: 127 | G128: 0.1946105619 | H128: 1.979701612 | I128: 128 | J128: 127 | K128: 1.46606784 | L128: 1.553300179 | M128: 128 | N128: 127 | O128: 0.4660678402 | P128: 0.5533001791 | Q128: 128 | R128: 127 | S128: 1.181688126 | T128: 1 | U128: 128 | V128: 127 | W128: 1.183501884 | X128: 0.997150974 | Y128: 128 | Z128: 127 | AA128: 0.1816881259 | AB128: 2 | AC128: 128 | AD128: 127 | AE128: 0.1906564624 | AF128: 1.985912658 | AG128: 128 | AH128: 127 | AI128: 1.424973172 | AJ128: 1.61785113 | AK128: 128 | AL128: 127 | AM128: 0.393896042 | AN128: 0.6666666667 | AO128: 128 | AP128: 127 | AQ128: 1.240099443 | AR128: 0.9082482905 | AS128: 128 | AT128: 127 | AU128: 1.262744337 | AV128: 0.8726779962
A129: 129 | B129: =(A129-1) -> 128 | C129: =0.0173463504182886+B129*0.0013809832606058 -> 0.1941122078 | D129: =IF(B129/2-INT(B129/2)<0.1,1.01734635041829,1.98265364958171) -> 1.01734635 | E129: 129 | F129: =(E129-1) -> 128 | G129: =0.0202983881998766+F129*0.0013725368005726 -> 0.1959830987 | H129: =IF(F129/2-INT(F129/2)<0.1,1.02029838819988,1.97970161180012) -> 1.020298388 | I129: 129 | J129: =(I129-1) -> 128 | K129: =1.4466998209111+J129*0.0001525040889525 -> 1.466220344 | L129: =IF(J129/2-INT(J129/2)<0.1,1.4466998209111,1.5533001790889) -> 1.446699821 | M129: 129 | N129: =(M129-1) -> 128 | O129: =0.446699820911097+N129*0.0001525040889525 -> 0.4662203443 | P129: =IF(N129/2-INT(N129/2)<0.1,0.446699820911098,0.553300179088902) -> 0.4466998209 | Q129: 129 | R129: =(Q129-1) -> 128 | S129: =1+R129*0.0014306151645207 -> 1.183118741 | T129: =IF(R129/2-INT(R129/2)<0.1,0,1) -> 0 | U129: 129 | V129: =(U129-1) -> 128 | W129: =1.00284902604029+V129*0.001422463444806 -> 1.184924347 | X129: =IF(V129/2-INT(V129/2)<0.1,0.0028490260402874,0.997150973959713) -> 0.00284902604 | Y129: 129 | Z129: =(Y129-1) -> 128 | AA129: =0+Z129*0.0014306151645207 -> 0.1831187411 | AB129: =IF(Z129/2-INT(Z129/2)<0.1,1,2) -> 1 | AC129: 129 | AD129: =(AC129-1) -> 128 | AE129: =0.014087342096225+AD129*0.0013903080340594 -> 0.1920467705 | AF129: =IF(AD129/2-INT(AD129/2)<0.1,1.01408734209623,1.98591265790377) -> 1.014087342 | AG129: 129 | AH129: =(AG129-1) -> 128 | AI129: =1.38214886980224+AH129*0.0003371992280336 -> 1.425310371 | AJ129: =IF(AH129/2-INT(AH129/2)<0.1,1.38214886980224,1.61785113019776) -> 1.38214887 | AK129: 129 | AL129: =(AK129-1) -> 128 | AM129: =0.333333333333333+AL129*0.0004768717215069 -> 0.3943729137 | AN129: =IF(AL129/2-INT(AL129/2)<0.1,0.333333333333333,0.666666666666667) -> 0.3333333333 | AO129: 129 | AP129: =(AO129-1) -> 128 | AQ129: =1.09175170953614+AP129*0.0011680923904545 -> 1.241267536 | AR129: =IF(AP129/2-INT(AP129/2)<0.1,0.0917517095361369,0.908248290463863) -> 0.09175170954 | AS129: 129 | AT129: =(AS129-1) -> 128 | AU129: =1.12732200375004+AT129*0.0010663175858368 -> 1.263810655 | AV129: =IF(AT129/2-INT(AT129/2)<0.1,0.127322003750035,0.872677996249965) -> 0.1273220038
A130: 130 | B130: 129 | C130: 0.195493191 | D130: 1.98265365 | E130: 130 | F130: 129 | G130: 0.1973556355 | H130: 1.979701612 | I130: 130 | J130: 129 | K130: 1.466372848 | L130: 1.553300179 | M130: 130 | N130: 129 | O130: 0.4663728484 | P130: 0.5533001791 | Q130: 130 | R130: 129 | S130: 1.184549356 | T130: 1 | U130: 130 | V130: 129 | W130: 1.18634681 | X130: 0.997150974 | Y130: 130 | Z130: 129 | AA130: 0.1845493562 | AB130: 2 | AC130: 130 | AD130: 129 | AE130: 0.1934370785 | AF130: 1.985912658 | AG130: 130 | AH130: 129 | AI130: 1.42564757 | AJ130: 1.61785113 | AK130: 130 | AL130: 129 | AM130: 0.3948497854 | AN130: 0.6666666667 | AO130: 130 | AP130: 129 | AQ130: 1.242435628 | AR130: 0.9082482905 | AS130: 130 | AT130: 129 | AU130: 1.264876972 | AV130: 0.8726779962
A131: 131 | B131: 130 | C131: 0.1968741743 | D131: 1.01734635 | E131: 131 | F131: 130 | G131: 0.1987281723 | H131: 1.020298388 | I131: 131 | J131: 130 | K131: 1.466525352 | L131: 1.446699821 | M131: 131 | N131: 130 | O131: 0.4665253525 | P131: 0.4466998209 | Q131: 131 | R131: 130 | S131: 1.185979971 | T131: 0 | U131: 131 | V131: 130 | W131: 1.187769274 | X131: 0.00284902604 | Y131: 131 | Z131: 130 | AA131: 0.1859799714 | AB131: 1 | AC131: 131 | AD131: 130 | AE131: 0.1948273865 | AF131: 1.014087342 | AG131: 131 | AH131: 130 | AI131: 1.425984769 | AJ131: 1.38214887 | AK131: 131 | AL131: 130 | AM131: 0.3953266571 | AN131: 0.3333333333 | AO131: 131 | AP131: 130 | AQ131: 1.24360372 | AR131: 0.09175170954 | AS131: 131 | AT131: 130 | AU131: 1.26594329 | AV131: 0.1273220038
A132: 132 | B132: 131 | C132: 0.1982551576 | D132: 1.98265365 | E132: 132 | F132: 131 | G132: 0.2001007091 | H132: 1.979701612 | I132: 132 | J132: 131 | K132: 1.466677857 | L132: 1.553300179 | M132: 132 | N132: 131 | O132: 0.4666778566 | P132: 0.5533001791 | Q132: 132 | R132: 131 | S132: 1.187410587 | T132: 1 | U132: 132 | V132: 131 | W132: 1.189191737 | X132: 0.997150974 | Y132: 132 | Z132: 131 | AA132: 0.1874105866 | AB132: 2 | AC132: 132 | AD132: 131 | AE132: 0.1962176946 | AF132: 1.985912658 | AG132: 132 | AH132: 131 | AI132: 1.426321969 | AJ132: 1.61785113 | AK132: 132 | AL132: 131 | AM132: 0.3958035289 | AN132: 0.6666666667 | AO132: 132 | AP132: 131 | AQ132: 1.244771813 | AR132: 0.9082482905 | AS132: 132 | AT132: 131 | AU132: 1.267009607 | AV132: 0.8726779962
A133: 133 | B133: 132 | C133: 0.1996361408 | D133: 1.01734635 | E133: 133 | F133: 132 | G133: 0.2014732459 | H133: 1.020298388 | I133: 133 | J133: 132 | K133: 1.466830361 | L133: 1.446699821 | M133: 133 | N133: 132 | O133: 0.4668303607 | P133: 0.4466998209 | Q133: 133 | R133: 132 | S133: 1.188841202 | T133: 0 | U133: 133 | V133: 132 | W133: 1.190614201 | X133: 0.00284902604 | Y133: 133 | Z133: 132 | AA133: 0.1888412017 | AB133: 1 | AC133: 133 | AD133: 132 | AE133: 0.1976080026 | AF133: 1.014087342 | AG133: 133 | AH133: 132 | AI133: 1.426659168 | AJ133: 1.38214887 | AK133: 133 | AL133: 132 | AM133: 0.3962804006 | AN133: 0.3333333333 | AO133: 133 | AP133: 132 | AQ133: 1.245939905 | AR133: 0.09175170954 | AS133: 133 | AT133: 132 | AU133: 1.268075925 | AV133: 0.1273220038
A134: 134 | B134: 133 | C134: 0.2010171241 | D134: 1.98265365 | E134: 134 | F134: 133 | G134: 0.2028457827 | H134: 1.979701612 | I134: 134 | J134: 133 | K134: 1.466982865 | L134: 1.553300179 | M134: 134 | N134: 133 | O134: 0.4669828647 | P134: 0.5533001791 | Q134: 134 | R134: 133 | S134: 1.190271817 | T134: 1 | U134: 134 | V134: 133 | W134: 1.192036664 | X134: 0.997150974 | Y134: 134 | Z134: 133 | AA134: 0.1902718169 | AB134: 2 | AC134: 134 | AD134: 133 | AE134: 0.1989983106 | AF134: 1.985912658 | AG134: 134 | AH134: 133 | AI134: 1.426996367 | AJ134: 1.61785113 | AK134: 134 | AL134: 133 | AM134: 0.3967572723 | AN134: 0.6666666667 | AO134: 134 | AP134: 133 | AQ134: 1.247107997 | AR134: 0.9082482905 | AS134: 134 | AT134: 133 | AU134: 1.269142243 | AV134: 0.8726779962
A135: 135 | B135: 134 | C135: 0.2023981073 | D135: 1.01734635 | E135: 135 | F135: 134 | G135: 0.2042183195 | H135: 1.020298388 | I135: 135 | J135: 134 | K135: 1.467135369 | L135: 1.446699821 | M135: 135 | N135: 134 | O135: 0.4671353688 | P135: 0.4466998209 | Q135: 135 | R135: 134 | S135: 1.191702432 | T135: 0 | U135: 135 | V135: 134 | W135: 1.193459128 | X135: 0.00284902604 | Y135: 135 | Z135: 134 | AA135: 0.191702432 | AB135: 1 | AC135: 135 | AD135: 134 | AE135: 0.2003886187 | AF135: 1.014087342 | AG135: 135 | AH135: 134 | AI135: 1.427333566 | AJ135: 1.38214887 | AK135: 135 | AL135: 134 | AM135: 0.397234144 | AN135: 0.3333333333 | AO135: 135 | AP135: 134 | AQ135: 1.24827609 | AR135: 0.09175170954 | AS135: 135 | AT135: 134 | AU135: 1.27020856 | AV135: 0.1273220038
A136: 136 | B136: 135 | C136: 0.2037790906 | D136: 1.98265365 | E136: 136 | F136: 135 | G136: 0.2055908563 | H136: 1.979701612 | I136: 136 | J136: 135 | K136: 1.467287873 | L136: 1.553300179 | M136: 136 | N136: 135 | O136: 0.4672878729 | P136: 0.5533001791 | Q136: 136 | R136: 135 | S136: 1.193133047 | T136: 1 | U136: 136 | V136: 135 | W136: 1.194881591 | X136: 0.997150974 | Y136: 136 | Z136: 135 | AA136: 0.1931330472 | AB136: 2 | AC136: 136 | AD136: 135 | AE136: 0.2017789267 | AF136: 1.985912658 | AG136: 136 | AH136: 135 | AI136: 1.427670766 | AJ136: 1.61785113 | AK136: 136 | AL136: 135 | AM136: 0.3977110157 | AN136: 0.6666666667 | AO136: 136 | AP136: 135 | AQ136: 1.249444182 | AR136: 0.9082482905 | AS136: 136 | AT136: 135 | AU136: 1.271274878 | AV136: 0.8726779962
A137: 137 | B137: 136 | C137: 0.2051600739 | D137: 1.01734635 | E137: 137 | F137: 136 | G137: 0.2069633931 | H137: 1.020298388 | I137: 137 | J137: 136 | K137: 1.467440377 | L137: 1.446699821 | M137: 137 | N137: 136 | O137: 0.467440377 | P137: 0.4466998209 | Q137: 137 | R137: 136 | S137: 1.194563662 | T137: 0 | U137: 137 | V137: 136 | W137: 1.196304055 | X137: 0.00284902604 | Y137: 137 | Z137: 136 | AA137: 0.1945636624 | AB137: 1 | AC137: 137 | AD137: 136 | AE137: 0.2031692347 | AF137: 1.014087342 | AG137: 137 | AH137: 136 | AI137: 1.428007965 | AJ137: 1.38214887 | AK137: 137 | AL137: 136 | AM137: 0.3981878875 | AN137: 0.3333333333 | AO137: 137 | AP137: 136 | AQ137: 1.250612275 | AR137: 0.09175170954 | AS137: 137 | AT137: 136 | AU137: 1.272341195 | AV137: 0.1273220038
A138: 138 | B138: 137 | C138: 0.2065410571 | D138: 1.98265365 | E138: 138 | F138: 137 | G138: 0.2083359299 | H138: 1.979701612 | I138: 138 | J138: 137 | K138: 1.467592881 | L138: 1.553300179 | M138: 138 | N138: 137 | O138: 0.4675928811 | P138: 0.5533001791 | Q138: 138 | R138: 137 | S138: 1.195994278 | T138: 1 | U138: 138 | V138: 137 | W138: 1.197726518 | X138: 0.997150974 | Y138: 138 | Z138: 137 | AA138: 0.1959942775 | AB138: 2 | AC138: 138 | AD138: 137 | AE138: 0.2045595428 | AF138: 1.985912658 | AG138: 138 | AH138: 137 | AI138: 1.428345164 | AJ138: 1.61785113 | AK138: 138 | AL138: 137 | AM138: 0.3986647592 | AN138: 0.6666666667 | AO138: 138 | AP138: 137 | AQ138: 1.251780367 | AR138: 0.9082482905 | AS138: 138 | AT138: 137 | AU138: 1.273407513 | AV138: 0.8726779962
A139: 139 | B139: 138 | C139: 0.2079220404 | D139: 1.01734635 | E139: 139 | F139: 138 | G139: 0.2097084667 | H139: 1.020298388 | I139: 139 | J139: 138 | K139: 1.467745385 | L139: 1.446699821 | M139: 139 | N139: 138 | O139: 0.4677453852 | P139: 0.4466998209 | Q139: 139 | R139: 138 | S139: 1.197424893 | T139: 0 | U139: 139 | V139: 138 | W139: 1.199148981 | X139: 0.00284902604 | Y139: 139 | Z139: 138 | AA139: 0.1974248927 | AB139: 1 | AC139: 139 | AD139: 138 | AE139: 0.2059498508 | AF139: 1.014087342 | AG139: 139 | AH139: 138 | AI139: 1.428682363 | AJ139: 1.38214887 | AK139: 139 | AL139: 138 | AM139: 0.3991416309 | AN139: 0.3333333333 | AO139: 139 | AP139: 138 | AQ139: 1.252948459 | AR139: 0.09175170954 | AS139: 139 | AT139: 138 | AU139: 1.274473831 | AV139: 0.1273220038
A140: 140 | B140: 139 | C140: 0.2093030236 | D140: 1.98265365 | E140: 140 | F140: 139 | G140: 0.2110810035 | H140: 1.979701612 | I140: 140 | J140: 139 | K140: 1.467897889 | L140: 1.553300179 | M140: 140 | N140: 139 | O140: 0.4678978893 | P140: 0.5533001791 | Q140: 140 | R140: 139 | S140: 1.198855508 | T140: 1 | U140: 140 | V140: 139 | W140: 1.200571445 | X140: 0.997150974 | Y140: 140 | Z140: 139 | AA140: 0.1988555079 | AB140: 2 | AC140: 140 | AD140: 139 | AE140: 0.2073401588 | AF140: 1.985912658 | AG140: 140 | AH140: 139 | AI140: 1.429019562 | AJ140: 1.61785113 | AK140: 140 | AL140: 139 | AM140: 0.3996185026 | AN140: 0.6666666667 | AO140: 140 | AP140: 139 | AQ140: 1.254116552 | AR140: 0.9082482905 | AS140: 140 | AT140: 139 | AU140: 1.275540148 | AV140: 0.8726779962
A141: 141 | B141: 140 | C141: 0.2106840069 | D141: 1.01734635 | E141: 141 | F141: 140 | G141: 0.2124535403 | H141: 1.020298388 | I141: 141 | J141: 140 | K141: 1.468050393 | L141: 1.446699821 | M141: 141 | N141: 140 | O141: 0.4680503934 | P141: 0.4466998209 | Q141: 141 | R141: 140 | S141: 1.200286123 | T141: 0 | U141: 141 | V141: 140 | W141: 1.201993908 | X141: 0.00284902604 | Y141: 141 | Z141: 140 | AA141: 0.200286123 | AB141: 1 | AC141: 141 | AD141: 140 | AE141: 0.2087304669 | AF141: 1.014087342 | AG141: 141 | AH141: 140 | AI141: 1.429356762 | AJ141: 1.38214887 | AK141: 141 | AL141: 140 | AM141: 0.4000953743 | AN141: 0.3333333333 | AO141: 141 | AP141: 140 | AQ141: 1.255284644 | AR141: 0.09175170954 | AS141: 141 | AT141: 140 | AU141: 1.276606466 | AV141: 0.1273220038
A142: 142 | B142: 141 | C142: 0.2120649902 | D142: 1.98265365 | E142: 142 | F142: 141 | G142: 0.2138260771 | H142: 1.979701612 | I142: 142 | J142: 141 | K142: 1.468202897 | L142: 1.553300179 | M142: 142 | N142: 141 | O142: 0.4682028975 | P142: 0.5533001791 | Q142: 142 | R142: 141 | S142: 1.201716738 | T142: 1 | U142: 142 | V142: 141 | W142: 1.203416372 | X142: 0.997150974 | Y142: 142 | Z142: 141 | AA142: 0.2017167382 | AB142: 2 | AC142: 142 | AD142: 141 | AE142: 0.2101207749 | AF142: 1.985912658 | AG142: 142 | AH142: 141 | AI142: 1.429693961 | AJ142: 1.61785113 | AK142: 142 | AL142: 141 | AM142: 0.4005722461 | AN142: 0.6666666667 | AO142: 142 | AP142: 141 | AQ142: 1.256452737 | AR142: 0.9082482905 | AS142: 142 | AT142: 141 | AU142: 1.277672783 | AV142: 0.8726779962
A143: 143 | B143: 142 | C143: 0.2134459734 | D143: 1.01734635 | E143: 143 | F143: 142 | G143: 0.2151986139 | H143: 1.020298388 | I143: 143 | J143: 142 | K143: 1.468355402 | L143: 1.446699821 | M143: 143 | N143: 142 | O143: 0.4683554015 | P143: 0.4466998209 | Q143: 143 | R143: 142 | S143: 1.203147353 | T143: 0 | U143: 143 | V143: 142 | W143: 1.204838835 | X143: 0.00284902604 | Y143: 143 | Z143: 142 | AA143: 0.2031473534 | AB143: 1 | AC143: 143 | AD143: 142 | AE143: 0.2115110829 | AF143: 1.014087342 | AG143: 143 | AH143: 142 | AI143: 1.43003116 | AJ143: 1.38214887 | AK143: 143 | AL143: 142 | AM143: 0.4010491178 | AN143: 0.3333333333 | AO143: 143 | AP143: 142 | AQ143: 1.257620829 | AR143: 0.09175170954 | AS143: 143 | AT143: 142 | AU143: 1.278739101 | AV143: 0.1273220038
A144: 144 | B144: 143 | C144: 0.2148269567 | D144: 1.98265365 | E144: 144 | F144: 143 | G144: 0.2165711507 | H144: 1.979701612 | I144: 144 | J144: 143 | K144: 1.468507906 | L144: 1.553300179 | M144: 144 | N144: 143 | O144: 0.4685079056 | P144: 0.5533001791 | Q144: 144 | R144: 143 | S144: 1.204577969 | T144: 1 | U144: 144 | V144: 143 | W144: 1.206261299 | X144: 0.997150974 | Y144: 144 | Z144: 143 | AA144: 0.2045779685 | AB144: 2 | AC144: 144 | AD144: 143 | AE144: 0.212901391 | AF144: 1.985912658 | AG144: 144 | AH144: 143 | AI144: 1.430368359 | AJ144: 1.61785113 | AK144: 144 | AL144: 143 | AM144: 0.4015259895 | AN144: 0.6666666667 | AO144: 144 | AP144: 143 | AQ144: 1.258788921 | AR144: 0.9082482905 | AS144: 144 | AT144: 143 | AU144: 1.279805419 | AV144: 0.8726779962
A145: 145 | B145: 144 | C145: 0.2162079399 | D145: 1.01734635 | E145: 145 | F145: 144 | G145: 0.2179436875 | H145: 1.020298388 | I145: 145 | J145: 144 | K145: 1.46866041 | L145: 1.446699821 | M145: 145 | N145: 144 | O145: 0.4686604097 | P145: 0.4466998209 | Q145: 145 | R145: 144 | S145: 1.206008584 | T145: 0 | U145: 145 | V145: 144 | W145: 1.207683762 | X145: 0.00284902604 | Y145: 145 | Z145: 144 | AA145: 0.2060085837 | AB145: 1 | AC145: 145 | AD145: 144 | AE145: 0.214291699 | AF145: 1.014087342 | AG145: 145 | AH145: 144 | AI145: 1.430705559 | AJ145: 1.38214887 | AK145: 145 | AL145: 144 | AM145: 0.4020028612 | AN145: 0.3333333333 | AO145: 145 | AP145: 144 | AQ145: 1.259957014 | AR145: 0.09175170954 | AS145: 145 | AT145: 144 | AU145: 1.280871736 | AV145: 0.1273220038
A146: 146 | B146: 145 | C146: 0.2175889232 | D146: 1.98265365 | E146: 146 | F146: 145 | G146: 0.2193162243 | H146: 1.979701612 | I146: 146 | J146: 145 | K146: 1.468812914 | L146: 1.553300179 | M146: 146 | N146: 145 | O146: 0.4688129138 | P146: 0.5533001791 | Q146: 146 | R146: 145 | S146: 1.207439199 | T146: 1 | U146: 146 | V146: 145 | W146: 1.209106226 | X146: 0.997150974 | Y146: 146 | Z146: 145 | AA146: 0.2074391989 | AB146: 2 | AC146: 146 | AD146: 145 | AE146: 0.215682007 | AF146: 1.985912658 | AG146: 146 | AH146: 145 | AI146: 1.431042758 | AJ146: 1.61785113 | AK146: 146 | AL146: 145 | AM146: 0.402479733 | AN146: 0.6666666667 | AO146: 146 | AP146: 145 | AQ146: 1.261125106 | AR146: 0.9082482905 | AS146: 146 | AT146: 145 | AU146: 1.281938054 | AV146: 0.8726779962
A147: 147 | B147: 146 | C147: 0.2189699065 | D147: 1.01734635 | E147: 147 | F147: 146 | G147: 0.2206887611 | H147: 1.020298388 | I147: 147 | J147: 146 | K147: 1.468965418 | L147: 1.446699821 | M147: 147 | N147: 146 | O147: 0.4689654179 | P147: 0.4466998209 | Q147: 147 | R147: 146 | S147: 1.208869814 | T147: 0 | U147: 147 | V147: 146 | W147: 1.210528689 | X147: 0.00284902604 | Y147: 147 | Z147: 146 | AA147: 0.208869814 | AB147: 1 | AC147: 147 | AD147: 146 | AE147: 0.2170723151 | AF147: 1.014087342 | AG147: 147 | AH147: 146 | AI147: 1.431379957 | AJ147: 1.38214887 | AK147: 147 | AL147: 146 | AM147: 0.4029566047 | AN147: 0.3333333333 | AO147: 147 | AP147: 146 | AQ147: 1.262293199 | AR147: 0.09175170954 | AS147: 147 | AT147: 146 | AU147: 1.283004371 | AV147: 0.1273220038
A148: 148 | B148: 147 | C148: 0.2203508897 | D148: 1.98265365 | E148: 148 | F148: 147 | G148: 0.2220612979 | H148: 1.979701612 | I148: 148 | J148: 147 | K148: 1.469117922 | L148: 1.553300179 | M148: 148 | N148: 147 | O148: 0.469117922 | P148: 0.5533001791 | Q148: 148 | R148: 147 | S148: 1.210300429 | T148: 1 | U148: 148 | V148: 147 | W148: 1.211951152 | X148: 0.997150974 | Y148: 148 | Z148: 147 | AA148: 0.2103004292 | AB148: 2 | AC148: 148 | AD148: 147 | AE148: 0.2184626231 | AF148: 1.985912658 | AG148: 148 | AH148: 147 | AI148: 1.431717156 | AJ148: 1.61785113 | AK148: 148 | AL148: 147 | AM148: 0.4034334764 | AN148: 0.6666666667 | AO148: 148 | AP148: 147 | AQ148: 1.263461291 | AR148: 0.9082482905 | AS148: 148 | AT148: 147 | AU148: 1.284070689 | AV148: 0.8726779962
A149: 149 | B149: 148 | C149: 0.221731873 | D149: 1.01734635 | E149: 149 | F149: 148 | G149: 0.2234338347 | H149: 1.020298388 | I149: 149 | J149: 148 | K149: 1.469270426 | L149: 1.446699821 | M149: 149 | N149: 148 | O149: 0.4692704261 | P149: 0.4466998209 | Q149: 149 | R149: 148 | S149: 1.211731044 | T149: 0 | U149: 149 | V149: 148 | W149: 1.213373616 | X149: 0.00284902604 | Y149: 149 | Z149: 148 | AA149: 0.2117310443 | AB149: 1 | AC149: 149 | AD149: 148 | AE149: 0.2198529311 | AF149: 1.014087342 | AG149: 149 | AH149: 148 | AI149: 1.432054356 | AJ149: 1.38214887 | AK149: 149 | AL149: 148 | AM149: 0.4039103481 | AN149: 0.3333333333 | AO149: 149 | AP149: 148 | AQ149: 1.264629383 | AR149: 0.09175170954 | AS149: 149 | AT149: 148 | AU149: 1.285137006 | AV149: 0.1273220038
A150: 150 | B150: 149 | C150: 0.2231128562 | D150: 1.98265365 | E150: 150 | F150: 149 | G150: 0.2248063715 | H150: 1.979701612 | I150: 150 | J150: 149 | K150: 1.46942293 | L150: 1.553300179 | M150: 150 | N150: 149 | O150: 0.4694229302 | P150: 0.5533001791 | Q150: 150 | R150: 149 | S150: 1.21316166 | T150: 1 | U150: 150 | V150: 149 | W150: 1.214796079 | X150: 0.997150974 | Y150: 150 | Z150: 149 | AA150: 0.2131616595 | AB150: 2 | AC150: 150 | AD150: 149 | AE150: 0.2212432392 | AF150: 1.985912658 | AG150: 150 | AH150: 149 | AI150: 1.432391555 | AJ150: 1.61785113 | AK150: 150 | AL150: 149 | AM150: 0.4043872198 | AN150: 0.6666666667 | AO150: 150 | AP150: 149 | AQ150: 1.265797476 | AR150: 0.9082482905 | AS150: 150 | AT150: 149 | AU150: 1.286203324 | AV150: 0.8726779962
A151: 151 | B151: 150 | C151: 0.2244938395 | D151: 1.01734635 | E151: 151 | F151: 150 | G151: 0.2261789083 | H151: 1.020298388 | I151: 151 | J151: 150 | K151: 1.469575434 | L151: 1.446699821 | M151: 151 | N151: 150 | O151: 0.4695754343 | P151: 0.4466998209 | Q151: 151 | R151: 150 | S151: 1.214592275 | T151: 0 | U151: 151 | V151: 150 | W151: 1.216218543 | X151: 0.00284902604 | Y151: 151 | Z151: 150 | AA151: 0.2145922747 | AB151: 1 | AC151: 151 | AD151: 150 | AE151: 0.2226335472 | AF151: 1.014087342 | AG151: 151 | AH151: 150 | AI151: 1.432728754 | AJ151: 1.38214887 | AK151: 151 | AL151: 150 | AM151: 0.4048640916 | AN151: 0.3333333333 | AO151: 151 | AP151: 150 | AQ151: 1.266965568 | AR151: 0.09175170954 | AS151: 151 | AT151: 150 | AU151: 1.287269642 | AV151: 0.1273220038
A152: 152 | B152: 151 | C152: 0.2258748228 | D152: 1.98265365 | E152: 152 | F152: 151 | G152: 0.2275514451 | H152: 1.979701612 | I152: 152 | J152: 151 | K152: 1.469727938 | L152: 1.553300179 | M152: 152 | N152: 151 | O152: 0.4697279383 | P152: 0.5533001791 | Q152: 152 | R152: 151 | S152: 1.21602289 | T152: 1 | U152: 152 | V152: 151 | W152: 1.217641006 | X152: 0.997150974 | Y152: 152 | Z152: 151 | AA152: 0.2160228898 | AB152: 2 | AC152: 152 | AD152: 151 | AE152: 0.2240238552 | AF152: 1.985912658 | AG152: 152 | AH152: 151 | AI152: 1.433065953 | AJ152: 1.61785113 | AK152: 152 | AL152: 151 | AM152: 0.4053409633 | AN152: 0.6666666667 | AO152: 152 | AP152: 151 | AQ152: 1.26813366 | AR152: 0.9082482905 | AS152: 152 | AT152: 151 | AU152: 1.288335959 | AV152: 0.8726779962
A153: 153 | B153: 152 | C153: 0.227255806 | D153: 1.01734635 | E153: 153 | F153: 152 | G153: 0.2289239819 | H153: 1.020298388 | I153: 153 | J153: 152 | K153: 1.469880442 | L153: 1.446699821 | M153: 153 | N153: 152 | O153: 0.4698804424 | P153: 0.4466998209 | Q153: 153 | R153: 152 | S153: 1.217453505 | T153: 0 | U153: 153 | V153: 152 | W153: 1.21906347 | X153: 0.00284902604 | Y153: 153 | Z153: 152 | AA153: 0.217453505 | AB153: 1 | AC153: 153 | AD153: 152 | AE153: 0.2254141633 | AF153: 1.014087342 | AG153: 153 | AH153: 152 | AI153: 1.433403152 | AJ153: 1.38214887 | AK153: 153 | AL153: 152 | AM153: 0.405817835 | AN153: 0.3333333333 | AO153: 153 | AP153: 152 | AQ153: 1.269301753 | AR153: 0.09175170954 | AS153: 153 | AT153: 152 | AU153: 1.289402277 | AV153: 0.1273220038
A154: 154 | B154: 153 | C154: 0.2286367893 | D154: 1.98265365 | E154: 154 | F154: 153 | G154: 0.2302965187 | H154: 1.979701612 | I154: 154 | J154: 153 | K154: 1.470032947 | L154: 1.553300179 | M154: 154 | N154: 153 | O154: 0.4700329465 | P154: 0.5533001791 | Q154: 154 | R154: 153 | S154: 1.21888412 | T154: 1 | U154: 154 | V154: 153 | W154: 1.220485933 | X154: 0.997150974 | Y154: 154 | Z154: 153 | AA154: 0.2188841202 | AB154: 2 | AC154: 154 | AD154: 153 | AE154: 0.2268044713 | AF154: 1.985912658 | AG154: 154 | AH154: 153 | AI154: 1.433740352 | AJ154: 1.61785113 | AK154: 154 | AL154: 153 | AM154: 0.4062947067 | AN154: 0.6666666667 | AO154: 154 | AP154: 153 | AQ154: 1.270469845 | AR154: 0.9082482905 | AS154: 154 | AT154: 153 | AU154: 1.290468594 | AV154: 0.8726779962
A155: 155 | B155: 154 | C155: 0.2300177726 | D155: 1.01734635 | E155: 155 | F155: 154 | G155: 0.2316690555 | H155: 1.020298388 | I155: 155 | J155: 154 | K155: 1.470185451 | L155: 1.446699821 | M155: 155 | N155: 154 | O155: 0.4701854506 | P155: 0.4466998209 | Q155: 155 | R155: 154 | S155: 1.220314735 | T155: 0 | U155: 155 | V155: 154 | W155: 1.221908397 | X155: 0.00284902604 | Y155: 155 | Z155: 154 | AA155: 0.2203147353 | AB155: 1 | AC155: 155 | AD155: 154 | AE155: 0.2281947793 | AF155: 1.014087342 | AG155: 155 | AH155: 154 | AI155: 1.434077551 | AJ155: 1.38214887 | AK155: 155 | AL155: 154 | AM155: 0.4067715784 | AN155: 0.3333333333 | AO155: 155 | AP155: 154 | AQ155: 1.271637938 | AR155: 0.09175170954 | AS155: 155 | AT155: 154 | AU155: 1.291534912 | AV155: 0.1273220038
A156: 156 | B156: 155 | C156: 0.2313987558 | D156: 1.98265365 | E156: 156 | F156: 155 | G156: 0.2330415923 | H156: 1.979701612 | I156: 156 | J156: 155 | K156: 1.470337955 | L156: 1.553300179 | M156: 156 | N156: 155 | O156: 0.4703379547 | P156: 0.5533001791 | Q156: 156 | R156: 155 | S156: 1.221745351 | T156: 1 | U156: 156 | V156: 155 | W156: 1.22333086 | X156: 0.997150974 | Y156: 156 | Z156: 155 | AA156: 0.2217453505 | AB156: 2 | AC156: 156 | AD156: 155 | AE156: 0.2295850874 | AF156: 1.985912658 | AG156: 156 | AH156: 155 | AI156: 1.43441475 | AJ156: 1.61785113 | AK156: 156 | AL156: 155 | AM156: 0.4072484502 | AN156: 0.6666666667 | AO156: 156 | AP156: 155 | AQ156: 1.27280603 | AR156: 0.9082482905 | AS156: 156 | AT156: 155 | AU156: 1.29260123 | AV156: 0.8726779962
A157: 157 | B157: 156 | C157: 0.2327797391 | D157: 1.01734635 | E157: 157 | F157: 156 | G157: 0.2344141291 | H157: 1.020298388 | I157: 157 | J157: 156 | K157: 1.470490459 | L157: 1.446699821 | M157: 157 | N157: 156 | O157: 0.4704904588 | P157: 0.4466998209 | Q157: 157 | R157: 156 | S157: 1.223175966 | T157: 0 | U157: 157 | V157: 156 | W157: 1.224753323 | X157: 0.00284902604 | Y157: 157 | Z157: 156 | AA157: 0.2231759657 | AB157: 1 | AC157: 157 | AD157: 156 | AE157: 0.2309753954 | AF157: 1.014087342 | AG157: 157 | AH157: 156 | AI157: 1.434751949 | AJ157: 1.38214887 | AK157: 157 | AL157: 156 | AM157: 0.4077253219 | AN157: 0.3333333333 | AO157: 157 | AP157: 156 | AQ157: 1.273974122 | AR157: 0.09175170954 | AS157: 157 | AT157: 156 | AU157: 1.293667547 | AV157: 0.1273220038
A158: 158 | B158: 157 | C158: 0.2341607223 | D158: 1.98265365 | E158: 158 | F158: 157 | G158: 0.2357866659 | H158: 1.979701612 | I158: 158 | J158: 157 | K158: 1.470642963 | L158: 1.553300179 | M158: 158 | N158: 157 | O158: 0.4706429629 | P158: 0.5533001791 | Q158: 158 | R158: 157 | S158: 1.224606581 | T158: 1 | U158: 158 | V158: 157 | W158: 1.226175787 | X158: 0.997150974 | Y158: 158 | Z158: 157 | AA158: 0.2246065808 | AB158: 2 | AC158: 158 | AD158: 157 | AE158: 0.2323657034 | AF158: 1.985912658 | AG158: 158 | AH158: 157 | AI158: 1.435089149 | AJ158: 1.61785113 | AK158: 158 | AL158: 157 | AM158: 0.4082021936 | AN158: 0.6666666667 | AO158: 158 | AP158: 157 | AQ158: 1.275142215 | AR158: 0.9082482905 | AS158: 158 | AT158: 157 | AU158: 1.294733865 | AV158: 0.8726779962
A159: 159 | B159: 158 | C159: 0.2355417056 | D159: 1.01734635 | E159: 159 | F159: 158 | G159: 0.2371592027 | H159: 1.020298388 | I159: 159 | J159: 158 | K159: 1.470795467 | L159: 1.446699821 | M159: 159 | N159: 158 | O159: 0.470795467 | P159: 0.4466998209 | Q159: 159 | R159: 158 | S159: 1.226037196 | T159: 0 | U159: 159 | V159: 158 | W159: 1.22759825 | X159: 0.00284902604 | Y159: 159 | Z159: 158 | AA159: 0.226037196 | AB159: 1 | AC159: 159 | AD159: 158 | AE159: 0.2337560115 | AF159: 1.014087342 | AG159: 159 | AH159: 158 | AI159: 1.435426348 | AJ159: 1.38214887 | AK159: 159 | AL159: 158 | AM159: 0.4086790653 | AN159: 0.3333333333 | AO159: 159 | AP159: 158 | AQ159: 1.276310307 | AR159: 0.09175170954 | AS159: 159 | AT159: 158 | AU159: 1.295800182 | AV159: 0.1273220038
A160: 160 | B160: 159 | C160: 0.2369226889 | D160: 1.98265365 | E160: 160 | F160: 159 | G160: 0.2385317395 | H160: 1.979701612 | I160: 160 | J160: 159 | K160: 1.470947971 | L160: 1.553300179 | M160: 160 | N160: 159 | O160: 0.4709479711 | P160: 0.5533001791 | Q160: 160 | R160: 159 | S160: 1.227467811 | T160: 1 | U160: 160 | V160: 159 | W160: 1.229020714 | X160: 0.997150974 | Y160: 160 | Z160: 159 | AA160: 0.2274678112 | AB160: 2 | AC160: 160 | AD160: 159 | AE160: 0.2351463195 | AF160: 1.985912658 | AG160: 160 | AH160: 159 | AI160: 1.435763547 | AJ160: 1.61785113 | AK160: 160 | AL160: 159 | AM160: 0.4091559371 | AN160: 0.6666666667 | AO160: 160 | AP160: 159 | AQ160: 1.2774784 | AR160: 0.9082482905 | AS160: 160 | AT160: 159 | AU160: 1.2968665 | AV160: 0.8726779962
A161: 161 | B161: 160 | C161: 0.2383036721 | D161: 1.01734635 | E161: 161 | F161: 160 | G161: 0.2399042763 | H161: 1.020298388 | I161: 161 | J161: 160 | K161: 1.471100475 | L161: 1.446699821 | M161: 161 | N161: 160 | O161: 0.4711004751 | P161: 0.4466998209 | Q161: 161 | R161: 160 | S161: 1.228898426 | T161: 0 | U161: 161 | V161: 160 | W161: 1.230443177 | X161: 0.00284902604 | Y161: 161 | Z161: 160 | AA161: 0.2288984263 | AB161: 1 | AC161: 161 | AD161: 160 | AE161: 0.2365366275 | AF161: 1.014087342 | AG161: 161 | AH161: 160 | AI161: 1.436100746 | AJ161: 1.38214887 | AK161: 161 | AL161: 160 | AM161: 0.4096328088 | AN161: 0.3333333333 | AO161: 161 | AP161: 160 | AQ161: 1.278646492 | AR161: 0.09175170954 | AS161: 161 | AT161: 160 | AU161: 1.297932817 | AV161: 0.1273220038
A162: 162 | B162: 161 | C162: 0.2396846554 | D162: 1.98265365 | E162: 162 | F162: 161 | G162: 0.2412768131 | H162: 1.979701612 | I162: 162 | J162: 161 | K162: 1.471252979 | L162: 1.553300179 | M162: 162 | N162: 161 | O162: 0.4712529792 | P162: 0.5533001791 | Q162: 162 | R162: 161 | S162: 1.230329041 | T162: 1 | U162: 162 | V162: 161 | W162: 1.231865641 | X162: 0.997150974 | Y162: 162 | Z162: 161 | AA162: 0.2303290415 | AB162: 2 | AC162: 162 | AD162: 161 | AE162: 0.2379269356 | AF162: 1.985912658 | AG162: 162 | AH162: 161 | AI162: 1.436437946 | AJ162: 1.61785113 | AK162: 162 | AL162: 161 | AM162: 0.4101096805 | AN162: 0.6666666667 | AO162: 162 | AP162: 161 | AQ162: 1.279814584 | AR162: 0.9082482905 | AS162: 162 | AT162: 161 | AU162: 1.298999135 | AV162: 0.8726779962
A163: 163 | B163: 162 | C163: 0.2410656386 | D163: 1.01734635 | E163: 163 | F163: 162 | G163: 0.2426493499 | H163: 1.020298388 | I163: 163 | J163: 162 | K163: 1.471405483 | L163: 1.446699821 | M163: 163 | N163: 162 | O163: 0.4714054833 | P163: 0.4466998209 | Q163: 163 | R163: 162 | S163: 1.231759657 | T163: 0 | U163: 163 | V163: 162 | W163: 1.233288104 | X163: 0.00284902604 | Y163: 163 | Z163: 162 | AA163: 0.2317596567 | AB163: 1 | AC163: 163 | AD163: 162 | AE163: 0.2393172436 | AF163: 1.014087342 | AG163: 163 | AH163: 162 | AI163: 1.436775145 | AJ163: 1.38214887 | AK163: 163 | AL163: 162 | AM163: 0.4105865522 | AN163: 0.3333333333 | AO163: 163 | AP163: 162 | AQ163: 1.280982677 | AR163: 0.09175170954 | AS163: 163 | AT163: 162 | AU163: 1.300065453 | AV163: 0.1273220038
A164: 164 | B164: 163 | C164: 0.2424466219 | D164: 1.98265365 | E164: 164 | F164: 163 | G164: 0.2440218867 | H164: 1.979701612 | I164: 164 | J164: 163 | K164: 1.471557987 | L164: 1.553300179 | M164: 164 | N164: 163 | O164: 0.4715579874 | P164: 0.5533001791 | Q164: 164 | R164: 163 | S164: 1.233190272 | T164: 1 | U164: 164 | V164: 163 | W164: 1.234710568 | X164: 0.997150974 | Y164: 164 | Z164: 163 | AA164: 0.2331902718 | AB164: 2 | AC164: 164 | AD164: 163 | AE164: 0.2407075516 | AF164: 1.985912658 | AG164: 164 | AH164: 163 | AI164: 1.437112344 | AJ164: 1.61785113 | AK164: 164 | AL164: 163 | AM164: 0.4110634239 | AN164: 0.6666666667 | AO164: 164 | AP164: 163 | AQ164: 1.282150769 | AR164: 0.9082482905 | AS164: 164 | AT164: 163 | AU164: 1.30113177 | AV164: 0.8726779962
A165: 165 | B165: 164 | C165: 0.2438276052 | D165: 1.01734635 | E165: 165 | F165: 164 | G165: 0.2453944235 | H165: 1.020298388 | I165: 165 | J165: 164 | K165: 1.471710491 | L165: 1.446699821 | M165: 165 | N165: 164 | O165: 0.4717104915 | P165: 0.4466998209 | Q165: 165 | R165: 164 | S165: 1.234620887 | T165: 0 | U165: 165 | V165: 164 | W165: 1.236133031 | X165: 0.00284902604 | Y165: 165 | Z165: 164 | AA165: 0.234620887 | AB165: 1 | AC165: 165 | AD165: 164 | AE165: 0.2420978597 | AF165: 1.014087342 | AG165: 165 | AH165: 164 | AI165: 1.437449543 | AJ165: 1.38214887 | AK165: 165 | AL165: 164 | AM165: 0.4115402957 | AN165: 0.3333333333 | AO165: 165 | AP165: 164 | AQ165: 1.283318862 | AR165: 0.09175170954 | AS165: 165 | AT165: 164 | AU165: 1.302198088 | AV165: 0.1273220038
A166: 166 | B166: 165 | C166: 0.2452085884 | D166: 1.98265365 | E166: 166 | F166: 165 | G166: 0.2467669603 | H166: 1.979701612 | I166: 166 | J166: 165 | K166: 1.471862996 | L166: 1.553300179 | M166: 166 | N166: 165 | O166: 0.4718629956 | P166: 0.5533001791 | Q166: 166 | R166: 165 | S166: 1.236051502 | T166: 1 | U166: 166 | V166: 165 | W166: 1.237555494 | X166: 0.997150974 | Y166: 166 | Z166: 165 | AA166: 0.2360515021 | AB166: 2 | AC166: 166 | AD166: 165 | AE166: 0.2434881677 | AF166: 1.985912658 | AG166: 166 | AH166: 165 | AI166: 1.437786742 | AJ166: 1.61785113 | AK166: 166 | AL166: 165 | AM166: 0.4120171674 | AN166: 0.6666666667 | AO166: 166 | AP166: 165 | AQ166: 1.284486954 | AR166: 0.9082482905 | AS166: 166 | AT166: 165 | AU166: 1.303264405 | AV166: 0.8726779962
A167: 167 | B167: 166 | C167: 0.2465895717 | D167: 1.01734635 | E167: 167 | F167: 166 | G167: 0.2481394971 | H167: 1.020298388 | I167: 167 | J167: 166 | K167: 1.4720155 | L167: 1.446699821 | M167: 167 | N167: 166 | O167: 0.4720154997 | P167: 0.4466998209 | Q167: 167 | R167: 166 | S167: 1.237482117 | T167: 0 | U167: 167 | V167: 166 | W167: 1.238977958 | X167: 0.00284902604 | Y167: 167 | Z167: 166 | AA167: 0.2374821173 | AB167: 1 | AC167: 167 | AD167: 166 | AE167: 0.2448784758 | AF167: 1.014087342 | AG167: 167 | AH167: 166 | AI167: 1.438123942 | AJ167: 1.38214887 | AK167: 167 | AL167: 166 | AM167: 0.4124940391 | AN167: 0.3333333333 | AO167: 167 | AP167: 166 | AQ167: 1.285655046 | AR167: 0.09175170954 | AS167: 167 | AT167: 166 | AU167: 1.304330723 | AV167: 0.1273220038
A168: 168 | B168: 167 | C168: 0.2479705549 | D168: 1.98265365 | E168: 168 | F168: 167 | G168: 0.2495120339 | H168: 1.979701612 | I168: 168 | J168: 167 | K168: 1.472168004 | L168: 1.553300179 | M168: 168 | N168: 167 | O168: 0.4721680038 | P168: 0.5533001791 | Q168: 168 | R168: 167 | S168: 1.238912732 | T168: 1 | U168: 168 | V168: 167 | W168: 1.240400421 | X168: 0.997150974 | Y168: 168 | Z168: 167 | AA168: 0.2389127325 | AB168: 2 | AC168: 168 | AD168: 167 | AE168: 0.2462687838 | AF168: 1.985912658 | AG168: 168 | AH168: 167 | AI168: 1.438461141 | AJ168: 1.61785113 | AK168: 168 | AL168: 167 | AM168: 0.4129709108 | AN168: 0.6666666667 | AO168: 168 | AP168: 167 | AQ168: 1.286823139 | AR168: 0.9082482905 | AS168: 168 | AT168: 167 | AU168: 1.305397041 | AV168: 0.8726779962
A169: 169 | B169: 168 | C169: 0.2493515382 | D169: 1.01734635 | E169: 169 | F169: 168 | G169: 0.2508845707 | H169: 1.020298388 | I169: 169 | J169: 168 | K169: 1.472320508 | L169: 1.446699821 | M169: 169 | N169: 168 | O169: 0.4723205079 | P169: 0.4466998209 | Q169: 169 | R169: 168 | S169: 1.240343348 | T169: 0 | U169: 169 | V169: 168 | W169: 1.241822885 | X169: 0.00284902604 | Y169: 169 | Z169: 168 | AA169: 0.2403433476 | AB169: 1 | AC169: 169 | AD169: 168 | AE169: 0.2476590918 | AF169: 1.014087342 | AG169: 169 | AH169: 168 | AI169: 1.43879834 | AJ169: 1.38214887 | AK169: 169 | AL169: 168 | AM169: 0.4134477825 | AN169: 0.3333333333 | AO169: 169 | AP169: 168 | AQ169: 1.287991231 | AR169: 0.09175170954 | AS169: 169 | AT169: 168 | AU169: 1.306463358 | AV169: 0.1273220038
A170: 170 | B170: 169 | C170: 0.2507325215 | D170: 1.98265365 | E170: 170 | F170: 169 | G170: 0.2522571075 | H170: 1.979701612 | I170: 170 | J170: 169 | K170: 1.472473012 | L170: 1.553300179 | M170: 170 | N170: 169 | O170: 0.4724730119 | P170: 0.5533001791 | Q170: 170 | R170: 169 | S170: 1.241773963 | T170: 1 | U170: 170 | V170: 169 | W170: 1.243245348 | X170: 0.997150974 | Y170: 170 | Z170: 169 | AA170: 0.2417739628 | AB170: 2 | AC170: 170 | AD170: 169 | AE170: 0.2490493999 | AF170: 1.985912658 | AG170: 170 | AH170: 169 | AI170: 1.439135539 | AJ170: 1.61785113 | AK170: 170 | AL170: 169 | AM170: 0.4139246543 | AN170: 0.6666666667 | AO170: 170 | AP170: 169 | AQ170: 1.289159324 | AR170: 0.9082482905 | AS170: 170 | AT170: 169 | AU170: 1.307529676 | AV170: 0.8726779962
A171: 171 | B171: 170 | C171: 0.2521135047 | D171: 1.01734635 | E171: 171 | F171: 170 | G171: 0.2536296443 | H171: 1.020298388 | I171: 171 | J171: 170 | K171: 1.472625516 | L171: 1.446699821 | M171: 171 | N171: 170 | O171: 0.472625516 | P171: 0.4466998209 | Q171: 171 | R171: 170 | S171: 1.243204578 | T171: 0 | U171: 171 | V171: 170 | W171: 1.244667812 | X171: 0.00284902604 | Y171: 171 | Z171: 170 | AA171: 0.243204578 | AB171: 1 | AC171: 171 | AD171: 170 | AE171: 0.2504397079 | AF171: 1.014087342 | AG171: 171 | AH171: 170 | AI171: 1.439472739 | AJ171: 1.38214887 | AK171: 171 | AL171: 170 | AM171: 0.414401526 | AN171: 0.3333333333 | AO171: 171 | AP171: 170 | AQ171: 1.290327416 | AR171: 0.09175170954 | AS171: 171 | AT171: 170 | AU171: 1.308595993 | AV171: 0.1273220038
A172: 172 | B172: 171 | C172: 0.253494488 | D172: 1.98265365 | E172: 172 | F172: 171 | G172: 0.2550021811 | H172: 1.979701612 | I172: 172 | J172: 171 | K172: 1.47277802 | L172: 1.553300179 | M172: 172 | N172: 171 | O172: 0.4727780201 | P172: 0.5533001791 | Q172: 172 | R172: 171 | S172: 1.244635193 | T172: 1 | U172: 172 | V172: 171 | W172: 1.246090275 | X172: 0.997150974 | Y172: 172 | Z172: 171 | AA172: 0.2446351931 | AB172: 2 | AC172: 172 | AD172: 171 | AE172: 0.2518300159 | AF172: 1.985912658 | AG172: 172 | AH172: 171 | AI172: 1.439809938 | AJ172: 1.61785113 | AK172: 172 | AL172: 171 | AM172: 0.4148783977 | AN172: 0.6666666667 | AO172: 172 | AP172: 171 | AQ172: 1.291495508 | AR172: 0.9082482905 | AS172: 172 | AT172: 171 | AU172: 1.309662311 | AV172: 0.8726779962
A173: 173 | B173: 172 | C173: 0.2548754712 | D173: 1.01734635 | E173: 173 | F173: 172 | G173: 0.2563747179 | H173: 1.020298388 | I173: 173 | J173: 172 | K173: 1.472930524 | L173: 1.446699821 | M173: 173 | N173: 172 | O173: 0.4729305242 | P173: 0.4466998209 | Q173: 173 | R173: 172 | S173: 1.246065808 | T173: 0 | U173: 173 | V173: 172 | W173: 1.247512739 | X173: 0.00284902604 | Y173: 173 | Z173: 172 | AA173: 0.2460658083 | AB173: 1 | AC173: 173 | AD173: 172 | AE173: 0.253220324 | AF173: 1.014087342 | AG173: 173 | AH173: 172 | AI173: 1.440147137 | AJ173: 1.38214887 | AK173: 173 | AL173: 172 | AM173: 0.4153552694 | AN173: 0.3333333333 | AO173: 173 | AP173: 172 | AQ173: 1.292663601 | AR173: 0.09175170954 | AS173: 173 | AT173: 172 | AU173: 1.310728629 | AV173: 0.1273220038
A174: 174 | B174: 173 | C174: 0.2562564545 | D174: 1.98265365 | E174: 174 | F174: 173 | G174: 0.2577472547 | H174: 1.979701612 | I174: 174 | J174: 173 | K174: 1.473083028 | L174: 1.553300179 | M174: 174 | N174: 173 | O174: 0.4730830283 | P174: 0.5533001791 | Q174: 174 | R174: 173 | S174: 1.247496423 | T174: 1 | U174: 174 | V174: 173 | W174: 1.248935202 | X174: 0.997150974 | Y174: 174 | Z174: 173 | AA174: 0.2474964235 | AB174: 2 | AC174: 174 | AD174: 173 | AE174: 0.254610632 | AF174: 1.985912658 | AG174: 174 | AH174: 173 | AI174: 1.440484336 | AJ174: 1.61785113 | AK174: 174 | AL174: 173 | AM174: 0.4158321412 | AN174: 0.6666666667 | AO174: 174 | AP174: 173 | AQ174: 1.293831693 | AR174: 0.9082482905 | AS174: 174 | AT174: 173 | AU174: 1.311794946 | AV174: 0.8726779962
A175: 175 | B175: 174 | C175: 0.2576374378 | D175: 1.01734635 | E175: 175 | F175: 174 | G175: 0.2591197915 | H175: 1.020298388 | I175: 175 | J175: 174 | K175: 1.473235532 | L175: 1.446699821 | M175: 175 | N175: 174 | O175: 0.4732355324 | P175: 0.4466998209 | Q175: 175 | R175: 174 | S175: 1.248927039 | T175: 0 | U175: 175 | V175: 174 | W175: 1.250357665 | X175: 0.00284902604 | Y175: 175 | Z175: 174 | AA175: 0.2489270386 | AB175: 1 | AC175: 175 | AD175: 174 | AE175: 0.25600094 | AF175: 1.014087342 | AG175: 175 | AH175: 174 | AI175: 1.440821535 | AJ175: 1.38214887 | AK175: 175 | AL175: 174 | AM175: 0.4163090129 | AN175: 0.3333333333 | AO175: 175 | AP175: 174 | AQ175: 1.294999785 | AR175: 0.09175170954 | AS175: 175 | AT175: 174 | AU175: 1.312861264 | AV175: 0.1273220038
A176: 176 | B176: 175 | C176: 0.259018421 | D176: 1.98265365 | E176: 176 | F176: 175 | G176: 0.2604923283 | H176: 1.979701612 | I176: 176 | J176: 175 | K176: 1.473388036 | L176: 1.553300179 | M176: 176 | N176: 175 | O176: 0.4733880365 | P176: 0.5533001791 | Q176: 176 | R176: 175 | S176: 1.250357654 | T176: 1 | U176: 176 | V176: 175 | W176: 1.251780129 | X176: 0.997150974 | Y176: 176 | Z176: 175 | AA176: 0.2503576538 | AB176: 2 | AC176: 176 | AD176: 175 | AE176: 0.2573912481 | AF176: 1.985912658 | AG176: 176 | AH176: 175 | AI176: 1.441158735 | AJ176: 1.61785113 | AK176: 176 | AL176: 175 | AM176: 0.4167858846 | AN176: 0.6666666667 | AO176: 176 | AP176: 175 | AQ176: 1.296167878 | AR176: 0.9082482905 | AS176: 176 | AT176: 175 | AU176: 1.313927581 | AV176: 0.8726779962
A177: 177 | B177: 176 | C177: 0.2603994043 | D177: 1.01734635 | E177: 177 | F177: 176 | G177: 0.2618648651 | H177: 1.020298388 | I177: 177 | J177: 176 | K177: 1.473540541 | L177: 1.446699821 | M177: 177 | N177: 176 | O177: 0.4735405406 | P177: 0.4466998209 | Q177: 177 | R177: 176 | S177: 1.251788269 | T177: 0 | U177: 177 | V177: 176 | W177: 1.253202592 | X177: 0.00284902604 | Y177: 177 | Z177: 176 | AA177: 0.251788269 | AB177: 1 | AC177: 177 | AD177: 176 | AE177: 0.2587815561 | AF177: 1.014087342 | AG177: 177 | AH177: 176 | AI177: 1.441495934 | AJ177: 1.38214887 | AK177: 177 | AL177: 176 | AM177: 0.4172627563 | AN177: 0.3333333333 | AO177: 177 | AP177: 176 | AQ177: 1.29733597 | AR177: 0.09175170954 | AS177: 177 | AT177: 176 | AU177: 1.314993899 | AV177: 0.1273220038
A178: 178 | B178: 177 | C178: 0.2617803875 | D178: 1.98265365 | E178: 178 | F178: 177 | G178: 0.2632374019 | H178: 1.979701612 | I178: 178 | J178: 177 | K178: 1.473693045 | L178: 1.553300179 | M178: 178 | N178: 177 | O178: 0.4736930447 | P178: 0.5533001791 | Q178: 178 | R178: 177 | S178: 1.253218884 | T178: 1 | U178: 178 | V178: 177 | W178: 1.254625056 | X178: 0.997150974 | Y178: 178 | Z178: 177 | AA178: 0.2532188841 | AB178: 2 | AC178: 178 | AD178: 177 | AE178: 0.2601718641 | AF178: 1.985912658 | AG178: 178 | AH178: 177 | AI178: 1.441833133 | AJ178: 1.61785113 | AK178: 178 | AL178: 177 | AM178: 0.417739628 | AN178: 0.6666666667 | AO178: 178 | AP178: 177 | AQ178: 1.298504063 | AR178: 0.9082482905 | AS178: 178 | AT178: 177 | AU178: 1.316060216 | AV178: 0.8726779962
A179: 179 | B179: 178 | C179: 0.2631613708 | D179: 1.01734635 | E179: 179 | F179: 178 | G179: 0.2646099387 | H179: 1.020298388 | I179: 179 | J179: 178 | K179: 1.473845549 | L179: 1.446699821 | M179: 179 | N179: 178 | O179: 0.4738455487 | P179: 0.4466998209 | Q179: 179 | R179: 178 | S179: 1.254649499 | T179: 0 | U179: 179 | V179: 178 | W179: 1.256047519 | X179: 0.00284902604 | Y179: 179 | Z179: 178 | AA179: 0.2546494993 | AB179: 1 | AC179: 179 | AD179: 178 | AE179: 0.2615621722 | AF179: 1.014087342 | AG179: 179 | AH179: 178 | AI179: 1.442170332 | AJ179: 1.38214887 | AK179: 179 | AL179: 178 | AM179: 0.4182164998 | AN179: 0.3333333333 | AO179: 179 | AP179: 178 | AQ179: 1.299672155 | AR179: 0.09175170954 | AS179: 179 | AT179: 178 | AU179: 1.317126534 | AV179: 0.1273220038
A180: 180 | B180: 179 | C180: 0.2645423541 | D180: 1.98265365 | E180: 180 | F180: 179 | G180: 0.2659824755 | H180: 1.979701612 | I180: 180 | J180: 179 | K180: 1.473998053 | L180: 1.553300179 | M180: 180 | N180: 179 | O180: 0.4739980528 | P180: 0.5533001791 | Q180: 180 | R180: 179 | S180: 1.256080114 | T180: 1 | U180: 180 | V180: 179 | W180: 1.257469983 | X180: 0.997150974 | Y180: 180 | Z180: 179 | AA180: 0.2560801144 | AB180: 2 | AC180: 180 | AD180: 179 | AE180: 0.2629524802 | AF180: 1.985912658 | AG180: 180 | AH180: 179 | AI180: 1.442507532 | AJ180: 1.61785113 | AK180: 180 | AL180: 179 | AM180: 0.4186933715 | AN180: 0.6666666667 | AO180: 180 | AP180: 179 | AQ180: 1.300840247 | AR180: 0.9082482905 | AS180: 180 | AT180: 179 | AU180: 1.318192852 | AV180: 0.8726779962
A181: 181 | B181: 180 | C181: 0.2659233373 | D181: 1.01734635 | E181: 181 | F181: 180 | G181: 0.2673550123 | H181: 1.020298388 | I181: 181 | J181: 180 | K181: 1.474150557 | L181: 1.446699821 | M181: 181 | N181: 180 | O181: 0.4741505569 | P181: 0.4466998209 | Q181: 181 | R181: 180 | S181: 1.25751073 | T181: 0 | U181: 181 | V181: 180 | W181: 1.258892446 | X181: 0.00284902604 | Y181: 181 | Z181: 180 | AA181: 0.2575107296 | AB181: 1 | AC181: 181 | AD181: 180 | AE181: 0.2643427882 | AF181: 1.014087342 | AG181: 181 | AH181: 180 | AI181: 1.442844731 | AJ181: 1.38214887 | AK181: 181 | AL181: 180 | AM181: 0.4191702432 | AN181: 0.3333333333 | AO181: 181 | AP181: 180 | AQ181: 1.30200834 | AR181: 0.09175170954 | AS181: 181 | AT181: 180 | AU181: 1.319259169 | AV181: 0.1273220038
A182: 182 | B182: 181 | C182: 0.2673043206 | D182: 1.98265365 | E182: 182 | F182: 181 | G182: 0.2687275491 | H182: 1.979701612 | I182: 182 | J182: 181 | K182: 1.474303061 | L182: 1.553300179 | M182: 182 | N182: 181 | O182: 0.474303061 | P182: 0.5533001791 | Q182: 182 | R182: 181 | S182: 1.258941345 | T182: 1 | U182: 182 | V182: 181 | W182: 1.26031491 | X182: 0.997150974 | Y182: 182 | Z182: 181 | AA182: 0.2589413448 | AB182: 2 | AC182: 182 | AD182: 181 | AE182: 0.2657330963 | AF182: 1.985912658 | AG182: 182 | AH182: 181 | AI182: 1.44318193 | AJ182: 1.61785113 | AK182: 182 | AL182: 181 | AM182: 0.4196471149 | AN182: 0.6666666667 | AO182: 182 | AP182: 181 | AQ182: 1.303176432 | AR182: 0.9082482905 | AS182: 182 | AT182: 181 | AU182: 1.320325487 | AV182: 0.8726779962
A183: 183 | B183: 182 | C183: 0.2686853038 | D183: 1.01734635 | E183: 183 | F183: 182 | G183: 0.2701000859 | H183: 1.020298388 | I183: 183 | J183: 182 | K183: 1.474455565 | L183: 1.446699821 | M183: 183 | N183: 182 | O183: 0.4744555651 | P183: 0.4466998209 | Q183: 183 | R183: 182 | S183: 1.26037196 | T183: 0 | U183: 183 | V183: 182 | W183: 1.261737373 | X183: 0.00284902604 | Y183: 183 | Z183: 182 | AA183: 0.2603719599 | AB183: 1 | AC183: 183 | AD183: 182 | AE183: 0.2671234043 | AF183: 1.014087342 | AG183: 183 | AH183: 182 | AI183: 1.443519129 | AJ183: 1.38214887 | AK183: 183 | AL183: 182 | AM183: 0.4201239866 | AN183: 0.3333333333 | AO183: 183 | AP183: 182 | AQ183: 1.304344525 | AR183: 0.09175170954 | AS183: 183 | AT183: 182 | AU183: 1.321391804 | AV183: 0.1273220038
A184: 184 | B184: 183 | C184: 0.2700662871 | D184: 1.98265365 | E184: 184 | F184: 183 | G184: 0.2714726227 | H184: 1.979701612 | I184: 184 | J184: 183 | K184: 1.474608069 | L184: 1.553300179 | M184: 184 | N184: 183 | O184: 0.4746080692 | P184: 0.5533001791 | Q184: 184 | R184: 183 | S184: 1.261802575 | T184: 1 | U184: 184 | V184: 183 | W184: 1.263159836 | X184: 0.997150974 | Y184: 184 | Z184: 183 | AA184: 0.2618025751 | AB184: 2 | AC184: 184 | AD184: 183 | AE184: 0.2685137123 | AF184: 1.985912658 | AG184: 184 | AH184: 183 | AI184: 1.443856329 | AJ184: 1.61785113 | AK184: 184 | AL184: 183 | AM184: 0.4206008584 | AN184: 0.6666666667 | AO184: 184 | AP184: 183 | AQ184: 1.305512617 | AR184: 0.9082482905 | AS184: 184 | AT184: 183 | AU184: 1.322458122 | AV184: 0.8726779962
A185: 185 | B185: 184 | C185: 0.2714472704 | D185: 1.01734635 | E185: 185 | F185: 184 | G185: 0.2728451595 | H185: 1.020298388 | I185: 185 | J185: 184 | K185: 1.474760573 | L185: 1.446699821 | M185: 185 | N185: 184 | O185: 0.4747605733 | P185: 0.4466998209 | Q185: 185 | R185: 184 | S185: 1.26323319 | T185: 0 | U185: 185 | V185: 184 | W185: 1.2645823 | X185: 0.00284902604 | Y185: 185 | Z185: 184 | AA185: 0.2632331903 | AB185: 1 | AC185: 185 | AD185: 184 | AE185: 0.2699040204 | AF185: 1.014087342 | AG185: 185 | AH185: 184 | AI185: 1.444193528 | AJ185: 1.38214887 | AK185: 185 | AL185: 184 | AM185: 0.4210777301 | AN185: 0.3333333333 | AO185: 185 | AP185: 184 | AQ185: 1.306680709 | AR185: 0.09175170954 | AS185: 185 | AT185: 184 | AU185: 1.32352444 | AV185: 0.1273220038
A186: 186 | B186: 185 | C186: 0.2728282536 | D186: 1.98265365 | E186: 186 | F186: 185 | G186: 0.2742176963 | H186: 1.979701612 | I186: 186 | J186: 185 | K186: 1.474913077 | L186: 1.553300179 | M186: 186 | N186: 185 | O186: 0.4749130774 | P186: 0.5533001791 | Q186: 186 | R186: 185 | S186: 1.264663805 | T186: 1 | U186: 186 | V186: 185 | W186: 1.266004763 | X186: 0.997150974 | Y186: 186 | Z186: 185 | AA186: 0.2646638054 | AB186: 2 | AC186: 186 | AD186: 185 | AE186: 0.2712943284 | AF186: 1.985912658 | AG186: 186 | AH186: 185 | AI186: 1.444530727 | AJ186: 1.61785113 | AK186: 186 | AL186: 185 | AM186: 0.4215546018 | AN186: 0.6666666667 | AO186: 186 | AP186: 185 | AQ186: 1.307848802 | AR186: 0.9082482905 | AS186: 186 | AT186: 185 | AU186: 1.324590757 | AV186: 0.8726779962
A187: 187 | B187: 186 | C187: 0.2742092369 | D187: 1.01734635 | E187: 187 | F187: 186 | G187: 0.2755902331 | H187: 1.020298388 | I187: 187 | J187: 186 | K187: 1.475065581 | L187: 1.446699821 | M187: 187 | N187: 186 | O187: 0.4750655815 | P187: 0.4466998209 | Q187: 187 | R187: 186 | S187: 1.266094421 | T187: 0 | U187: 187 | V187: 186 | W187: 1.267427227 | X187: 0.00284902604 | Y187: 187 | Z187: 186 | AA187: 0.2660944206 | AB187: 1 | AC187: 187 | AD187: 186 | AE187: 0.2726846364 | AF187: 1.014087342 | AG187: 187 | AH187: 186 | AI187: 1.444867926 | AJ187: 1.38214887 | AK187: 187 | AL187: 186 | AM187: 0.4220314735 | AN187: 0.3333333333 | AO187: 187 | AP187: 186 | AQ187: 1.309016894 | AR187: 0.09175170954 | AS187: 187 | AT187: 186 | AU187: 1.325657075 | AV187: 0.1273220038
A188: 188 | B188: 187 | C188: 0.2755902202 | D188: 1.98265365 | E188: 188 | F188: 187 | G188: 0.2769627699 | H188: 1.979701612 | I188: 188 | J188: 187 | K188: 1.475218086 | L188: 1.553300179 | M188: 188 | N188: 187 | O188: 0.4752180855 | P188: 0.5533001791 | Q188: 188 | R188: 187 | S188: 1.267525036 | T188: 1 | U188: 188 | V188: 187 | W188: 1.26884969 | X188: 0.997150974 | Y188: 188 | Z188: 187 | AA188: 0.2675250358 | AB188: 2 | AC188: 188 | AD188: 187 | AE188: 0.2740749445 | AF188: 1.985912658 | AG188: 188 | AH188: 187 | AI188: 1.445205125 | AJ188: 1.61785113 | AK188: 188 | AL188: 187 | AM188: 0.4225083453 | AN188: 0.6666666667 | AO188: 188 | AP188: 187 | AQ188: 1.310184987 | AR188: 0.9082482905 | AS188: 188 | AT188: 187 | AU188: 1.326723392 | AV188: 0.8726779962
A189: 189 | B189: 188 | C189: 0.2769712034 | D189: 1.01734635 | E189: 189 | F189: 188 | G189: 0.2783353067 | H189: 1.020298388 | I189: 189 | J189: 188 | K189: 1.47537059 | L189: 1.446699821 | M189: 189 | N189: 188 | O189: 0.4753705896 | P189: 0.4466998209 | Q189: 189 | R189: 188 | S189: 1.268955651 | T189: 0 | U189: 189 | V189: 188 | W189: 1.270272154 | X189: 0.00284902604 | Y189: 189 | Z189: 188 | AA189: 0.2689556509 | AB189: 1 | AC189: 189 | AD189: 188 | AE189: 0.2754652525 | AF189: 1.014087342 | AG189: 189 | AH189: 188 | AI189: 1.445542325 | AJ189: 1.38214887 | AK189: 189 | AL189: 188 | AM189: 0.422985217 | AN189: 0.3333333333 | AO189: 189 | AP189: 188 | AQ189: 1.311353079 | AR189: 0.09175170954 | AS189: 189 | AT189: 188 | AU189: 1.32778971 | AV189: 0.1273220038
A190: 190 | B190: 189 | C190: 0.2783521867 | D190: 1.98265365 | E190: 190 | F190: 189 | G190: 0.2797078435 | H190: 1.979701612 | I190: 190 | J190: 189 | K190: 1.475523094 | L190: 1.553300179 | M190: 190 | N190: 189 | O190: 0.4755230937 | P190: 0.5533001791 | Q190: 190 | R190: 189 | S190: 1.270386266 | T190: 1 | U190: 190 | V190: 189 | W190: 1.271694617 | X190: 0.997150974 | Y190: 190 | Z190: 189 | AA190: 0.2703862661 | AB190: 2 | AC190: 190 | AD190: 189 | AE190: 0.2768555605 | AF190: 1.985912658 | AG190: 190 | AH190: 189 | AI190: 1.445879524 | AJ190: 1.61785113 | AK190: 190 | AL190: 189 | AM190: 0.4234620887 | AN190: 0.6666666667 | AO190: 190 | AP190: 189 | AQ190: 1.312521171 | AR190: 0.9082482905 | AS190: 190 | AT190: 189 | AU190: 1.328856027 | AV190: 0.8726779962
A191: 191 | B191: 190 | C191: 0.2797331699 | D191: 1.01734635 | E191: 191 | F191: 190 | G191: 0.2810803803 | H191: 1.020298388 | I191: 191 | J191: 190 | K191: 1.475675598 | L191: 1.446699821 | M191: 191 | N191: 190 | O191: 0.4756755978 | P191: 0.4466998209 | Q191: 191 | R191: 190 | S191: 1.271816881 | T191: 0 | U191: 191 | V191: 190 | W191: 1.273117081 | X191: 0.00284902604 | Y191: 191 | Z191: 190 | AA191: 0.2718168813 | AB191: 1 | AC191: 191 | AD191: 190 | AE191: 0.2782458686 | AF191: 1.014087342 | AG191: 191 | AH191: 190 | AI191: 1.446216723 | AJ191: 1.38214887 | AK191: 191 | AL191: 190 | AM191: 0.4239389604 | AN191: 0.3333333333 | AO191: 191 | AP191: 190 | AQ191: 1.313689264 | AR191: 0.09175170954 | AS191: 191 | AT191: 190 | AU191: 1.329922345 | AV191: 0.1273220038
A192: 192 | B192: 191 | C192: 0.2811141532 | D192: 1.98265365 | E192: 192 | F192: 191 | G192: 0.2824529171 | H192: 1.979701612 | I192: 192 | J192: 191 | K192: 1.475828102 | L192: 1.553300179 | M192: 192 | N192: 191 | O192: 0.4758281019 | P192: 0.5533001791 | Q192: 192 | R192: 191 | S192: 1.273247496 | T192: 1 | U192: 192 | V192: 191 | W192: 1.274539544 | X192: 0.997150974 | Y192: 192 | Z192: 191 | AA192: 0.2732474964 | AB192: 2 | AC192: 192 | AD192: 191 | AE192: 0.2796361766 | AF192: 1.985912658 | AG192: 192 | AH192: 191 | AI192: 1.446553922 | AJ192: 1.61785113 | AK192: 192 | AL192: 191 | AM192: 0.4244158321 | AN192: 0.6666666667 | AO192: 192 | AP192: 191 | AQ192: 1.314857356 | AR192: 0.9082482905 | AS192: 192 | AT192: 191 | AU192: 1.330988663 | AV192: 0.8726779962
A193: 193 | B193: =(A193-1) -> 192 | C193: =0.0173463504182886+B193*0.0013809832606058 -> 0.2824951365 | D193: =IF(B193/2-INT(B193/2)<0.1,1.01734635041829,1.98265364958171) -> 1.01734635 | E193: 193 | F193: =(E193-1) -> 192 | G193: =0.0202983881998766+F193*0.0013725368005726 -> 0.2838254539 | H193: =IF(F193/2-INT(F193/2)<0.1,1.02029838819988,1.97970161180012) -> 1.020298388 | I193: 193 | J193: =(I193-1) -> 192 | K193: =1.4466998209111+J193*0.0001525040889525 -> 1.475980606 | L193: =IF(J193/2-INT(J193/2)<0.1,1.4466998209111,1.5533001790889) -> 1.446699821 | M193: 193 | N193: =(M193-1) -> 192 | O193: =0.446699820911097+N193*0.0001525040889525 -> 0.475980606 | P193: =IF(N193/2-INT(N193/2)<0.1,0.446699820911098,0.553300179088902) -> 0.4466998209 | Q193: 193 | R193: =(Q193-1) -> 192 | S193: =1+R193*0.0014306151645207 -> 1.274678112 | T193: =IF(R193/2-INT(R193/2)<0.1,0,1) -> 0 | U193: 193 | V193: =(U193-1) -> 192 | W193: =1.00284902604029+V193*0.001422463444806 -> 1.275962007 | X193: =IF(V193/2-INT(V193/2)<0.1,0.0028490260402874,0.997150973959713) -> 0.00284902604 | Y193: 193 | Z193: =(Y193-1) -> 192 | AA193: =0+Z193*0.0014306151645207 -> 0.2746781116 | AB193: =IF(Z193/2-INT(Z193/2)<0.1,1,2) -> 1 | AC193: 193 | AD193: =(AC193-1) -> 192 | AE193: =0.014087342096225+AD193*0.0013903080340594 -> 0.2810264846 | AF193: =IF(AD193/2-INT(AD193/2)<0.1,1.01408734209623,1.98591265790377) -> 1.014087342 | AG193: 193 | AH193: =(AG193-1) -> 192 | AI193: =1.38214886980224+AH193*0.0003371992280336 -> 1.446891122 | AJ193: =IF(AH193/2-INT(AH193/2)<0.1,1.38214886980224,1.61785113019776) -> 1.38214887 | AK193: 193 | AL193: =(AK193-1) -> 192 | AM193: =0.333333333333333+AL193*0.0004768717215069 -> 0.4248927039 | AN193: =IF(AL193/2-INT(AL193/2)<0.1,0.333333333333333,0.666666666666667) -> 0.3333333333 | AO193: 193 | AP193: =(AO193-1) -> 192 | AQ193: =1.09175170953614+AP193*0.0011680923904545 -> 1.316025449 | AR193: =IF(AP193/2-INT(AP193/2)<0.1,0.0917517095361369,0.908248290463863) -> 0.09175170954 | AS193: 193 | AT193: =(AS193-1) -> 192 | AU193: =1.12732200375004+AT193*0.0010663175858368 -> 1.33205498 | AV193: =IF(AT193/2-INT(AT193/2)<0.1,0.127322003750035,0.872677996249965) -> 0.1273220038
A194: 194 | B194: 193 | C194: 0.2838761197 | D194: 1.98265365 | E194: 194 | F194: 193 | G194: 0.2851979907 | H194: 1.979701612 | I194: 194 | J194: 193 | K194: 1.47613311 | L194: 1.553300179 | M194: 194 | N194: 193 | O194: 0.4761331101 | P194: 0.5533001791 | Q194: 194 | R194: 193 | S194: 1.276108727 | T194: 1 | U194: 194 | V194: 193 | W194: 1.277384471 | X194: 0.997150974 | Y194: 194 | Z194: 193 | AA194: 0.2761087268 | AB194: 2 | AC194: 194 | AD194: 193 | AE194: 0.2824167927 | AF194: 1.985912658 | AG194: 194 | AH194: 193 | AI194: 1.447228321 | AJ194: 1.61785113 | AK194: 194 | AL194: 193 | AM194: 0.4253695756 | AN194: 0.6666666667 | AO194: 194 | AP194: 193 | AQ194: 1.317193541 | AR194: 0.9082482905 | AS194: 194 | AT194: 193 | AU194: 1.333121298 | AV194: 0.8726779962
A195: 195 | B195: 194 | C195: 0.285257103 | D195: 1.01734635 | E195: 195 | F195: 194 | G195: 0.2865705275 | H195: 1.020298388 | I195: 195 | J195: 194 | K195: 1.476285614 | L195: 1.446699821 | M195: 195 | N195: 194 | O195: 0.4762856142 | P195: 0.4466998209 | Q195: 195 | R195: 194 | S195: 1.277539342 | T195: 0 | U195: 195 | V195: 194 | W195: 1.278806934 | X195: 0.00284902604 | Y195: 195 | Z195: 194 | AA195: 0.2775393419 | AB195: 1 | AC195: 195 | AD195: 194 | AE195: 0.2838071007 | AF195: 1.014087342 | AG195: 195 | AH195: 194 | AI195: 1.44756552 | AJ195: 1.38214887 | AK195: 195 | AL195: 194 | AM195: 0.4258464473 | AN195: 0.3333333333 | AO195: 195 | AP195: 194 | AQ195: 1.318361633 | AR195: 0.09175170954 | AS195: 195 | AT195: 194 | AU195: 1.334187615 | AV195: 0.1273220038
A196: 196 | B196: 195 | C196: 0.2866380862 | D196: 1.98265365 | E196: 196 | F196: 195 | G196: 0.2879430643 | H196: 1.979701612 | I196: 196 | J196: 195 | K196: 1.476438118 | L196: 1.553300179 | M196: 196 | N196: 195 | O196: 0.4764381183 | P196: 0.5533001791 | Q196: 196 | R196: 195 | S196: 1.278969957 | T196: 1 | U196: 196 | V196: 195 | W196: 1.280229398 | X196: 0.997150974 | Y196: 196 | Z196: 195 | AA196: 0.2789699571 | AB196: 2 | AC196: 196 | AD196: 195 | AE196: 0.2851974087 | AF196: 1.985912658 | AG196: 196 | AH196: 195 | AI196: 1.447902719 | AJ196: 1.61785113 | AK196: 196 | AL196: 195 | AM196: 0.426323319 | AN196: 0.6666666667 | AO196: 196 | AP196: 195 | AQ196: 1.319529726 | AR196: 0.9082482905 | AS196: 196 | AT196: 195 | AU196: 1.335253933 | AV196: 0.8726779962
A197: 197 | B197: 196 | C197: 0.2880190695 | D197: 1.01734635 | E197: 197 | F197: 196 | G197: 0.2893156011 | H197: 1.020298388 | I197: 197 | J197: 196 | K197: 1.476590622 | L197: 1.446699821 | M197: 197 | N197: 196 | O197: 0.4765906223 | P197: 0.4466998209 | Q197: 197 | R197: 196 | S197: 1.280400572 | T197: 0 | U197: 197 | V197: 196 | W197: 1.281651861 | X197: 0.00284902604 | Y197: 197 | Z197: 196 | AA197: 0.2804005722 | AB197: 1 | AC197: 197 | AD197: 196 | AE197: 0.2865877168 | AF197: 1.014087342 | AG197: 197 | AH197: 196 | AI197: 1.448239918 | AJ197: 1.38214887 | AK197: 197 | AL197: 196 | AM197: 0.4268001907 | AN197: 0.3333333333 | AO197: 197 | AP197: 196 | AQ197: 1.320697818 | AR197: 0.09175170954 | AS197: 197 | AT197: 196 | AU197: 1.336320251 | AV197: 0.1273220038
A198: 198 | B198: 197 | C198: 0.2894000528 | D198: 1.98265365 | E198: 198 | F198: 197 | G198: 0.2906881379 | H198: 1.979701612 | I198: 198 | J198: 197 | K198: 1.476743126 | L198: 1.553300179 | M198: 198 | N198: 197 | O198: 0.4767431264 | P198: 0.5533001791 | Q198: 198 | R198: 197 | S198: 1.281831187 | T198: 1 | U198: 198 | V198: 197 | W198: 1.283074325 | X198: 0.997150974 | Y198: 198 | Z198: 197 | AA198: 0.2818311874 | AB198: 2 | AC198: 198 | AD198: 197 | AE198: 0.2879780248 | AF198: 1.985912658 | AG198: 198 | AH198: 197 | AI198: 1.448577118 | AJ198: 1.61785113 | AK198: 198 | AL198: 197 | AM198: 0.4272770625 | AN198: 0.6666666667 | AO198: 198 | AP198: 197 | AQ198: 1.32186591 | AR198: 0.9082482905 | AS198: 198 | AT198: 197 | AU198: 1.337386568 | AV198: 0.8726779962
A199: 199 | B199: 198 | C199: 0.290781036 | D199: 1.01734635 | E199: 199 | F199: 198 | G199: 0.2920606747 | H199: 1.020298388 | I199: 199 | J199: 198 | K199: 1.476895631 | L199: 1.446699821 | M199: 199 | N199: 198 | O199: 0.4768956305 | P199: 0.4466998209 | Q199: 199 | R199: 198 | S199: 1.283261803 | T199: 0 | U199: 199 | V199: 198 | W199: 1.284496788 | X199: 0.00284902604 | Y199: 199 | Z199: 198 | AA199: 0.2832618026 | AB199: 1 | AC199: 199 | AD199: 198 | AE199: 0.2893683328 | AF199: 1.014087342 | AG199: 199 | AH199: 198 | AI199: 1.448914317 | AJ199: 1.38214887 | AK199: 199 | AL199: 198 | AM199: 0.4277539342 | AN199: 0.3333333333 | AO199: 199 | AP199: 198 | AQ199: 1.323034003 | AR199: 0.09175170954 | AS199: 199 | AT199: 198 | AU199: 1.338452886 | AV199: 0.1273220038
A200: 200 | B200: 199 | C200: 0.2921620193 | D200: 1.98265365 | E200: 200 | F200: 199 | G200: 0.2934332115 | H200: 1.979701612 | I200: 200 | J200: 199 | K200: 1.477048135 | L200: 1.553300179 | M200: 200 | N200: 199 | O200: 0.4770481346 | P200: 0.5533001791 | Q200: 200 | R200: 199 | S200: 1.284692418 | T200: 1 | U200: 200 | V200: 199 | W200: 1.285919252 | X200: 0.997150974 | Y200: 200 | Z200: 199 | AA200: 0.2846924177 | AB200: 2 | AC200: 200 | AD200: 199 | AE200: 0.2907586409 | AF200: 1.985912658 | AG200: 200 | AH200: 199 | AI200: 1.449251516 | AJ200: 1.61785113 | AK200: 200 | AL200: 199 | AM200: 0.4282308059 | AN200: 0.6666666667 | AO200: 200 | AP200: 199 | AQ200: 1.324202095 | AR200: 0.9082482905 | AS200: 200 | AT200: 199 | AU200: 1.339519203 | AV200: 0.8726779962
... 500 more rows

Sheet XLSTAT_20240405_141829_1_HID_HI (hidden)
A1: 0 | B1: 0
A2: 0 | B2: 0
A3: 0 | B3: 0
A4: 0 | B4: 0.03409090909
A5: 0 | B5: 0.04545454545
A6: 0 | B6: 0.05681818182
A7: 0 | B7: 0.05681818182
A8: 0 | B8: 0.07954545455
A9: 0 | B9: 0.09090909091
A10: 0 | B10: 0.09090909091
A11: 0 | B11: 0.09090909091
A12: 0 | B12: 0.125
A13: 0 | B13: 0.1363636364
A14: 0 | B14: 0.1363636364
A15: 0 | B15: 0.1590909091
A16: 0 | B16: 0.1704545455
A17: 0 | B17: 0.1704545455
A18: 0 | B18: 0.1931818182
A19: 0 | B19: 0.2045454545
A20: 0 | B20: 0.2159090909
A21: 0 | B21: 0.2272727273
A22: 0 | B22: 0.2386363636
A23: 0 | B23: 0.2386363636
A24: 0 | B24: 0.2386363636
A25: 0 | B25: 0.2386363636
A26: 0 | B26: 0.2386363636
A27: 0 | B27: 0.2954545455
A28: 0 | B28: 0.2954545455
A29: 0 | B29: 0.2954545455
A30: 0 | B30: 0.3295454545
A31: 0 | B31: 0.3409090909
A32: 0 | B32: 0.3522727273
A33: 0 | B33: 0.3522727273
A34: 0 | B34: 0.3522727273
A35: 0 | B35: 0.3863636364
A36: 0 | B36: 0.3977272727
A37: 0 | B37: 0.4090909091
A38: 0 | B38: 0.4204545455
A39: 0 | B39: 0.4318181818
A40: 0 | B40: 0.4318181818
A41: 0 | B41: 0.4545454545
A42: 0 | B42: 0.4545454545
A43: 0 | B43: 0.4772727273
A44: 0 | B44: 0.4772727273
A45: 0 | B45: 0.4772727273
A46: 0 | B46: 0.4772727273
A47: 0 | B47: 0.5227272727
A48: 0 | B48: 0.5340909091
A49: 0 | B49: 0.5454545455
A50: 0 | B50: 0.5568181818
A51: 0 | B51: 0.5681818182
A52: 0 | B52: 0.5795454545
A53: 0 | B53: 0.5909090909
A54: 0 | B54: 0.5909090909
A55: 0 | B55: 0.5909090909
A56: 0 | B56: 0.5909090909
A57: 0 | B57: 0.6363636364
A58: 0 | B58: 0.6477272727
A59: 0 | B59: 0.6590909091
A60: 0 | B60: 0.6704545455
A61: 0 | B61: 0.6818181818
A62: 0 | B62: 0.6931818182
A63: 0 | B63: 0.7045454545
A64: 0 | B64: 0.7159090909
A65: 0 | B65: 0.7272727273
A66: 0 | B66: 0.7386363636
A67: 0 | B67: 0.75
A68: 0 | B68: 0.7613636364
A69: 0 | B69: 0.7727272727
A70: 0 | B70: 0.7840909091
A71: 0 | B71: 0.7840909091
A72: 0 | B72: 0.8068181818
A73: 0 | B73: 0.8181818182
A74: 0 | B74: 0.8295454545
A75: 0 | B75: 0.8409090909
A76: 0 | B76: 0.8522727273
A77: 0 | B77: 0.8522727273
A78: 0 | B78: 0.875
A79: 0 | B79: 0.8863636364
A80: 0 | B80: 0.8977272727
A81: 0 | B81: 0.9090909091
A82: 0 | B82: 0.9204545455
A83: 0 | B83: 0.9318181818
A84: 0 | B84: 0.9318181818
A85: 0 | B85: 0.9545454545
A86: 0 | B86: 0.9659090909
A87: 0 | B87: 0.9772727273
A88: 0 | B88: 0.9772727273
A89: 0.01219512195 | B89: 0.9886363636
A90: 0.01219512195 | B90: 1
A91: 0.0243902439 | B91: 1
A92: 0.03658536585 | B92: 1
A93: 0.0487804878 | B93: 1
A94: 0.06097560976 | B94: 1
A95: 0.07317073171 | B95: 1
A96: 0.08536585366 | B96: 1
A97: 0.09756097561 | B97: 1
A98: 0.1097560976 | B98: 1
A99: 0.1219512195 | B99: 1
A100: 0.1341463415 | B100: 1
A101: 0.1463414634 | B101: 1
A102: 0.1585365854 | B102: 1
A103: 0.1707317073 | B103: 1
A104: 0.1829268293 | B104: 1
A105: 0.1829268293 | B105: 1
A106: 0.2073170732 | B106: 1
A107: 0.2195121951 | B107: 1
A108: 0.2317073171 | B108: 1
A109: 0.2317073171 | B109: 1
A110: 0.2317073171 | B110: 1
A111: 0.2682926829 | B111: 1
A112: 0.2804878049 | B112: 1
A113: 0.2926829268 | B113: 1
A114: 0.3048780488 | B114: 1
A115: 0.3170731707 | B115: 1
A116: 0.3292682927 | B116: 1
A117: 0.3292682927 | B117: 1
A118: 0.3536585366 | B118: 1
A119: 0.3536585366 | B119: 1
A120: 0.3780487805 | B120: 1
A121: 0.3780487805 | B121: 1
A122: 0.3780487805 | B122: 1
A123: 0.4146341463 | B123: 1
A124: 0.4146341463 | B124: 1
A125: 0.4146341463 | B125: 1
A126: 0.4146341463 | B126: 1
A127: 0.4146341463 | B127: 1
A128: 0.4146341463 | B128: 1
A129: 0.4146341463 | B129: 1
A130: 0.4146341463 | B130: 1
A131: 0.4146341463 | B131: 1
A132: 0.4146341463 | B132: 1
A133: 0.4146341463 | B133: 1
A134: 0.4146341463 | B134: 1
A135: 0.4146341463 | B135: 1
A136: 0.4146341463 | B136: 1
A137: 0.4146341463 | B137: 1
A138: 0.4146341463 | B138: 1
A139: 0.4146341463 | B139: 1
A140: 0.4146341463 | B140: 1
A141: 0.6341463415 | B141: 1
A142: 0.6463414634 | B142: 1
A143: 0.6585365854 | B143: 1
A144: 0.6707317073 | B144: 1
A145: 0.6829268293 | B145: 1
A146: 0.6829268293 | B146: 1
A147: 0.6829268293 | B147: 1
A148: 0.6829268293 | B148: 1
A149: 0.6829268293 | B149: 1
A150: 0.6829268293 | B150: 1
A151: 0.756097561 | B151: 1
A152: 0.7682926829 | B152: 1
A153: 0.7682926829 | B153: 1
A154: 0.7682926829 | B154: 1
A155: 0.7682926829 | B155: 1
A156: 0.8170731707 | B156: 1
A157: 0.8292682927 | B157: 1
A158: 0.8414634146 | B158: 1
A159: 0.8414634146 | B159: 1
A160: 0.8414634146 | B160: 1
A161: 0.8414634146 | B161: 1
A162: 0.8414634146 | B162: 1
A163: 0.8414634146 | B163: 1
A164: 0.8414634146 | B164: 1
A165: 0.8414634146 | B165: 1
A166: 0.8414634146 | B166: 1
A167: 0.8414634146 | B167: 1
A168: 0.8414634146 | B168: 1
A169: 0.8414634146 | B169: 1
A170: 0.8414634146 | B170: 1
A171: 1 | B171: 1

Sheet XLSTAT_20231215_114127_1_HID2 (hidden)
A1: 0 | B1: 0
A2: 0 | B2: 0.08333333333
A3: 0 | B3: 0.1666666667
A4: 0 | B4: 0.25
A5: 0 | B5: 0.3333333333
A6: 0 | B6: 0.3333333333
A7: 0 | B7: 0.3333333333
A8: 0 | B8: 0.5833333333
A9: 0 | B9: 0.6666666667
A10: 0 | B10: 0.75
A11: 0 | B11: 0.8333333333
A12: 0.05555555556 | B12: 0.8333333333
A13: 0.05555555556 | B13: 0.9166666667
A14: 0.05555555556 | B14: 1
A15: 0.1111111111 | B15: 1
A16: 0.1666666667 | B16: 1
A17: 0.1666666667 | B17: 1
A18: 0.1666666667 | B18: 1
A19: 0.1666666667 | B19: 1
A20: 0.1666666667 | B20: 1
A21: 0.1666666667 | B21: 1
A22: 0.1666666667 | B22: 1
A23: 0.5555555556 | B23: 1
A24: 0.6111111111 | B24: 1
A25: 0.6666666667 | B25: 1
A26: 0.7222222222 | B26: 1
A27: 0.7222222222 | B27: 1
A28: 0.8333333333 | B28: 1
A29: 0.8333333333 | B29: 1
A30: 0.8333333333 | B30: 1
A31: 1 | B31: 1

Sheet XLSTAT_20231215_114127_1_HID1 (hidden)
A1: Variable importance:
A3: Variable | B3: Gain | C3: Cover | D3: Frequency
A4: BOTTOM | B4: 0.7790488644 | C4: 0.4585124481 | D4: 0.3194444444
A5: TOP | B5: 0.1863819016 | C5: 0.3349662553 | D5: 0.2916666667
A6: LENGTH | B6: 0.01268184252 | C6: 0.1012892455 | D6: 0.1944444444
A7: RIGHT | B7: 0.01254242153 | C7: 0.03631869944 | D7: 0.05555555556
A8: LEFT | B8: 0.009344969945 | C8: 0.06891335163 | D8: 0.1388888889
A11: Variable importance:
A13: Variable | B13: Gain | C13: Cover | D13: Frequency
A14: BOTTOM | B14: 0.7790488644 | C14: 0.4585124481 | D14: 0.3194444444
A15: TOP | B15: 0.1863819016 | C15: 0.3349662553 | D15: 0.2916666667
A16: LENGTH | B16: 0.01268184252 | C16: 0.1012892455 | D16: 0.1944444444
A17: RIGHT | B17: 0.01254242153 | C17: 0.03631869944 | D17: 0.05555555556
A18: LEFT | B18: 0.009344969945 | C18: 0.06891335163 | D18: 0.1388888889

Sheet XLSTAT_20231215_114127_1_HID (hidden)
A1: 1 | B1: =(A1-1) -> 0 | C1: =0.0173463504+B1*0.0013809833 -> 0.0173463504 | D1: =IF(B1/2-INT(B1/2)<0.1,1.0173463504,1.9826536496) -> 1.01734635 | E1: 1 | F1: =(E1-1) -> 0 | G1: =0.0202983882+F1*0.0013725368 -> 0.0202983882 | H1: =IF(F1/2-INT(F1/2)<0.1,1.0202983882,1.9797016118) -> 1.020298388 | I1: 1 | J1: =(I1-1) -> 0 | K1: =1.4466998209+J1*0.0001525041 -> 1.446699821 | L1: =IF(J1/2-INT(J1/2)<0.1,1.4466998209,1.5533001791) -> 1.446699821 | M1: 1 | N1: =(M1-1) -> 0 | O1: =0.4466998209+N1*0.0001525041 -> 0.4466998209 | P1: =IF(N1/2-INT(N1/2)<0.1,0.4466998209,0.5533001791) -> 0.4466998209 | Q1: 1 | R1: =(Q1-1) -> 0 | S1: =1+R1*0.0014306152 -> 1 | T1: =IF(R1/2-INT(R1/2)<0.1,0,1) -> 0 | U1: 1 | V1: =(U1-1) -> 0 | W1: =1.002849026+V1*0.0014224634 -> 1.002849026 | X1: =IF(V1/2-INT(V1/2)<0.1,0.002849026,0.997150974) -> 0.002849026 | Y1: 1 | Z1: =(Y1-1) -> 0 | AA1: =0+Z1*0.0014306152 -> 0 | AB1: =IF(Z1/2-INT(Z1/2)<0.1,1,2) -> 1 | AC1: 1 | AD1: =(AC1-1) -> 0 | AE1: =0.0140873421+AD1*0.001390308 -> 0.0140873421 | AF1: =IF(AD1/2-INT(AD1/2)<0.1,1.0140873421,1.9859126579) -> 1.014087342 | AG1: 1 | AH1: =(AG1-1) -> 0 | AI1: =1.3821488698+AH1*0.0003371992 -> 1.38214887 | AJ1: =IF(AH1/2-INT(AH1/2)<0.1,1.3821488698,1.6178511302) -> 1.38214887 | AK1: 1 | AL1: =(AK1-1) -> 0 | AM1: =0.3333333333+AL1*0.0004768717 -> 0.3333333333 | AN1: =IF(AL1/2-INT(AL1/2)<0.1,0.3333333333,0.6666666667) -> 0.3333333333 | AO1: 1 | AP1: =(AO1-1) -> 0 | AQ1: =1.0917517095+AP1*0.0011680924 -> 1.09175171 | AR1: =IF(AP1/2-INT(AP1/2)<0.1,0.0917517095,0.9082482905) -> 0.0917517095 | AS1: 1 | AT1: =(AS1-1) -> 0 | AU1: =1.1273220038+AT1*0.0010663176 -> 1.127322004 | AV1: =IF(AT1/2-INT(AT1/2)<0.1,0.1273220038,0.8726779962) -> 0.1273220038
A2: 2 | B2: 1 | C2: 0.0187273337 | D2: 1.98265365 | E2: 2 | F2: 1 | G2: 0.021670925 | H2: 1.979701612 | I2: 2 | J2: 1 | K2: 1.446852325 | L2: 1.553300179 | M2: 2 | N2: 1 | O2: 0.446852325 | P2: 0.5533001791 | Q2: 2 | R2: 1 | S2: 1.001430615 | T2: 1 | U2: 2 | V2: 1 | W2: 1.004271489 | X2: 0.997150974 | Y2: 2 | Z2: 1 | AA2: 0.0014306152 | AB2: 2 | AC2: 2 | AD2: 1 | AE2: 0.0154776501 | AF2: 1.985912658 | AG2: 2 | AH2: 1 | AI2: 1.382486069 | AJ2: 1.61785113 | AK2: 2 | AL2: 1 | AM2: 0.333810205 | AN2: 0.6666666667 | AO2: 2 | AP2: 1 | AQ2: 1.092919802 | AR2: 0.9082482905 | AS2: 2 | AT2: 1 | AU2: 1.128388321 | AV2: 0.8726779962
A3: 3 | B3: 2 | C3: 0.020108317 | D3: 1.01734635 | E3: 3 | F3: 2 | G3: 0.0230434618 | H3: 1.020298388 | I3: 3 | J3: 2 | K3: 1.447004829 | L3: 1.446699821 | M3: 3 | N3: 2 | O3: 0.4470048291 | P3: 0.4466998209 | Q3: 3 | R3: 2 | S3: 1.00286123 | T3: 0 | U3: 3 | V3: 2 | W3: 1.005693953 | X3: 0.002849026 | Y3: 3 | Z3: 2 | AA3: 0.0028612304 | AB3: 1 | AC3: 3 | AD3: 2 | AE3: 0.0168679581 | AF3: 1.014087342 | AG3: 3 | AH3: 2 | AI3: 1.382823268 | AJ3: 1.38214887 | AK3: 3 | AL3: 2 | AM3: 0.3342870767 | AN3: 0.3333333333 | AO3: 3 | AP3: 2 | AQ3: 1.094087894 | AR3: 0.0917517095 | AS3: 3 | AT3: 2 | AU3: 1.129454639 | AV3: 0.1273220038
A4: 4 | B4: 3 | C4: 0.0214893003 | D4: 1.98265365 | E4: 4 | F4: 3 | G4: 0.0244159986 | H4: 1.979701612 | I4: 4 | J4: 3 | K4: 1.447157333 | L4: 1.553300179 | M4: 4 | N4: 3 | O4: 0.4471573332 | P4: 0.5533001791 | Q4: 4 | R4: 3 | S4: 1.004291846 | T4: 1 | U4: 4 | V4: 3 | W4: 1.007116416 | X4: 0.997150974 | Y4: 4 | Z4: 3 | AA4: 0.0042918456 | AB4: 2 | AC4: 4 | AD4: 3 | AE4: 0.0182582661 | AF4: 1.985912658 | AG4: 4 | AH4: 3 | AI4: 1.383160467 | AJ4: 1.61785113 | AK4: 4 | AL4: 3 | AM4: 0.3347639484 | AN4: 0.6666666667 | AO4: 4 | AP4: 3 | AQ4: 1.095255987 | AR4: 0.9082482905 | AS4: 4 | AT4: 3 | AU4: 1.130520957 | AV4: 0.8726779962
A5: 5 | B5: 4 | C5: 0.0228702836 | D5: 1.01734635 | E5: 5 | F5: 4 | G5: 0.0257885354 | H5: 1.020298388 | I5: 5 | J5: 4 | K5: 1.447309837 | L5: 1.446699821 | M5: 5 | N5: 4 | O5: 0.4473098373 | P5: 0.4466998209 | Q5: 5 | R5: 4 | S5: 1.005722461 | T5: 0 | U5: 5 | V5: 4 | W5: 1.00853888 | X5: 0.002849026 | Y5: 5 | Z5: 4 | AA5: 0.0057224608 | AB5: 1 | AC5: 5 | AD5: 4 | AE5: 0.0196485741 | AF5: 1.014087342 | AG5: 5 | AH5: 4 | AI5: 1.383497667 | AJ5: 1.38214887 | AK5: 5 | AL5: 4 | AM5: 0.3352408201 | AN5: 0.3333333333 | AO5: 5 | AP5: 4 | AQ5: 1.096424079 | AR5: 0.0917517095 | AS5: 5 | AT5: 4 | AU5: 1.131587274 | AV5: 0.1273220038
A6: 6 | B6: 5 | C6: 0.0242512669 | D6: 1.98265365 | E6: 6 | F6: 5 | G6: 0.0271610722 | H6: 1.979701612 | I6: 6 | J6: 5 | K6: 1.447462341 | L6: 1.553300179 | M6: 6 | N6: 5 | O6: 0.4474623414 | P6: 0.5533001791 | Q6: 6 | R6: 5 | S6: 1.007153076 | T6: 1 | U6: 6 | V6: 5 | W6: 1.009961343 | X6: 0.997150974 | Y6: 6 | Z6: 5 | AA6: 0.007153076 | AB6: 2 | AC6: 6 | AD6: 5 | AE6: 0.0210388821 | AF6: 1.985912658 | AG6: 6 | AH6: 5 | AI6: 1.383834866 | AJ6: 1.61785113 | AK6: 6 | AL6: 5 | AM6: 0.3357176918 | AN6: 0.6666666667 | AO6: 6 | AP6: 5 | AQ6: 1.097592172 | AR6: 0.9082482905 | AS6: 6 | AT6: 5 | AU6: 1.132653592 | AV6: 0.8726779962
A7: 7 | B7: 6 | C7: 0.0256322502 | D7: 1.01734635 | E7: 7 | F7: 6 | G7: 0.028533609 | H7: 1.020298388 | I7: 7 | J7: 6 | K7: 1.447614845 | L7: 1.446699821 | M7: 7 | N7: 6 | O7: 0.4476148455 | P7: 0.4466998209 | Q7: 7 | R7: 6 | S7: 1.008583691 | T7: 0 | U7: 7 | V7: 6 | W7: 1.011383806 | X7: 0.002849026 | Y7: 7 | Z7: 6 | AA7: 0.0085836912 | AB7: 1 | AC7: 7 | AD7: 6 | AE7: 0.0224291901 | AF7: 1.014087342 | AG7: 7 | AH7: 6 | AI7: 1.384172065 | AJ7: 1.38214887 | AK7: 7 | AL7: 6 | AM7: 0.3361945635 | AN7: 0.3333333333 | AO7: 7 | AP7: 6 | AQ7: 1.098760264 | AR7: 0.0917517095 | AS7: 7 | AT7: 6 | AU7: 1.133719909 | AV7: 0.1273220038
A8: 8 | B8: 7 | C8: 0.0270132335 | D8: 1.98265365 | E8: 8 | F8: 7 | G8: 0.0299061458 | H8: 1.979701612 | I8: 8 | J8: 7 | K8: 1.44776735 | L8: 1.553300179 | M8: 8 | N8: 7 | O8: 0.4477673496 | P8: 0.5533001791 | Q8: 8 | R8: 7 | S8: 1.010014306 | T8: 1 | U8: 8 | V8: 7 | W8: 1.01280627 | X8: 0.997150974 | Y8: 8 | Z8: 7 | AA8: 0.0100143064 | AB8: 2 | AC8: 8 | AD8: 7 | AE8: 0.0238194981 | AF8: 1.985912658 | AG8: 8 | AH8: 7 | AI8: 1.384509264 | AJ8: 1.61785113 | AK8: 8 | AL8: 7 | AM8: 0.3366714352 | AN8: 0.6666666667 | AO8: 8 | AP8: 7 | AQ8: 1.099928356 | AR8: 0.9082482905 | AS8: 8 | AT8: 7 | AU8: 1.134786227 | AV8: 0.8726779962
A9: 9 | B9: 8 | C9: 0.0283942168 | D9: 1.01734635 | E9: 9 | F9: 8 | G9: 0.0312786826 | H9: 1.020298388 | I9: 9 | J9: 8 | K9: 1.447919854 | L9: 1.446699821 | M9: 9 | N9: 8 | O9: 0.4479198537 | P9: 0.4466998209 | Q9: 9 | R9: 8 | S9: 1.011444922 | T9: 0 | U9: 9 | V9: 8 | W9: 1.014228733 | X9: 0.002849026 | Y9: 9 | Z9: 8 | AA9: 0.0114449216 | AB9: 1 | AC9: 9 | AD9: 8 | AE9: 0.0252098061 | AF9: 1.014087342 | AG9: 9 | AH9: 8 | AI9: 1.384846463 | AJ9: 1.38214887 | AK9: 9 | AL9: 8 | AM9: 0.3371483069 | AN9: 0.3333333333 | AO9: 9 | AP9: 8 | AQ9: 1.101096449 | AR9: 0.0917517095 | AS9: 9 | AT9: 8 | AU9: 1.135852545 | AV9: 0.1273220038
A10: 10 | B10: 9 | C10: 0.0297752001 | D10: 1.98265365 | E10: 10 | F10: 9 | G10: 0.0326512194 | H10: 1.979701612 | I10: 10 | J10: 9 | K10: 1.448072358 | L10: 1.553300179 | M10: 10 | N10: 9 | O10: 0.4480723578 | P10: 0.5533001791 | Q10: 10 | R10: 9 | S10: 1.012875537 | T10: 1 | U10: 10 | V10: 9 | W10: 1.015651197 | X10: 0.997150974 | Y10: 10 | Z10: 9 | AA10: 0.0128755368 | AB10: 2 | AC10: 10 | AD10: 9 | AE10: 0.0266001141 | AF10: 1.985912658 | AG10: 10 | AH10: 9 | AI10: 1.385183663 | AJ10: 1.61785113 | AK10: 10 | AL10: 9 | AM10: 0.3376251786 | AN10: 0.6666666667 | AO10: 10 | AP10: 9 | AQ10: 1.102264541 | AR10: 0.9082482905 | AS10: 10 | AT10: 9 | AU10: 1.136918862 | AV10: 0.8726779962
A11: 11 | B11: 10 | C11: 0.0311561834 | D11: 1.01734635 | E11: 11 | F11: 10 | G11: 0.0340237562 | H11: 1.020298388 | I11: 11 | J11: 10 | K11: 1.448224862 | L11: 1.446699821 | M11: 11 | N11: 10 | O11: 0.4482248619 | P11: 0.4466998209 | Q11: 11 | R11: 10 | S11: 1.014306152 | T11: 0 | U11: 11 | V11: 10 | W11: 1.01707366 | X11: 0.002849026 | Y11: 11 | Z11: 10 | AA11: 0.014306152 | AB11: 1 | AC11: 11 | AD11: 10 | AE11: 0.0279904221 | AF11: 1.014087342 | AG11: 11 | AH11: 10 | AI11: 1.385520862 | AJ11: 1.38214887 | AK11: 11 | AL11: 10 | AM11: 0.3381020503 | AN11: 0.3333333333 | AO11: 11 | AP11: 10 | AQ11: 1.103432633 | AR11: 0.0917517095 | AS11: 11 | AT11: 10 | AU11: 1.13798518 | AV11: 0.1273220038
A12: 12 | B12: 11 | C12: 0.0325371667 | D12: 1.98265365 | E12: 12 | F12: 11 | G12: 0.035396293 | H12: 1.979701612 | I12: 12 | J12: 11 | K12: 1.448377366 | L12: 1.553300179 | M12: 12 | N12: 11 | O12: 0.448377366 | P12: 0.5533001791 | Q12: 12 | R12: 11 | S12: 1.015736767 | T12: 1 | U12: 12 | V12: 11 | W12: 1.018496123 | X12: 0.997150974 | Y12: 12 | Z12: 11 | AA12: 0.0157367672 | AB12: 2 | AC12: 12 | AD12: 11 | AE12: 0.0293807301 | AF12: 1.985912658 | AG12: 12 | AH12: 11 | AI12: 1.385858061 | AJ12: 1.61785113 | AK12: 12 | AL12: 11 | AM12: 0.338578922 | AN12: 0.6666666667 | AO12: 12 | AP12: 11 | AQ12: 1.104600726 | AR12: 0.9082482905 | AS12: 12 | AT12: 11 | AU12: 1.139051497 | AV12: 0.8726779962
A13: 13 | B13: 12 | C13: 0.03391815 | D13: 1.01734635 | E13: 13 | F13: 12 | G13: 0.0367688298 | H13: 1.020298388 | I13: 13 | J13: 12 | K13: 1.44852987 | L13: 1.446699821 | M13: 13 | N13: 12 | O13: 0.4485298701 | P13: 0.4466998209 | Q13: 13 | R13: 12 | S13: 1.017167382 | T13: 0 | U13: 13 | V13: 12 | W13: 1.019918587 | X13: 0.002849026 | Y13: 13 | Z13: 12 | AA13: 0.0171673824 | AB13: 1 | AC13: 13 | AD13: 12 | AE13: 0.0307710381 | AF13: 1.014087342 | AG13: 13 | AH13: 12 | AI13: 1.38619526 | AJ13: 1.38214887 | AK13: 13 | AL13: 12 | AM13: 0.3390557937 | AN13: 0.3333333333 | AO13: 13 | AP13: 12 | AQ13: 1.105768818 | AR13: 0.0917517095 | AS13: 13 | AT13: 12 | AU13: 1.140117815 | AV13: 0.1273220038
A14: 14 | B14: 13 | C14: 0.0352991333 | D14: 1.98265365 | E14: 14 | F14: 13 | G14: 0.0381413666 | H14: 1.979701612 | I14: 14 | J14: 13 | K14: 1.448682374 | L14: 1.553300179 | M14: 14 | N14: 13 | O14: 0.4486823742 | P14: 0.5533001791 | Q14: 14 | R14: 13 | S14: 1.018597998 | T14: 1 | U14: 14 | V14: 13 | W14: 1.02134105 | X14: 0.997150974 | Y14: 14 | Z14: 13 | AA14: 0.0185979976 | AB14: 2 | AC14: 14 | AD14: 13 | AE14: 0.0321613461 | AF14: 1.985912658 | AG14: 14 | AH14: 13 | AI14: 1.386532459 | AJ14: 1.61785113 | AK14: 14 | AL14: 13 | AM14: 0.3395326654 | AN14: 0.6666666667 | AO14: 14 | AP14: 13 | AQ14: 1.106936911 | AR14: 0.9082482905 | AS14: 14 | AT14: 13 | AU14: 1.141184133 | AV14: 0.8726779962
A15: 15 | B15: 14 | C15: 0.0366801166 | D15: 1.01734635 | E15: 15 | F15: 14 | G15: 0.0395139034 | H15: 1.020298388 | I15: 15 | J15: 14 | K15: 1.448834878 | L15: 1.446699821 | M15: 15 | N15: 14 | O15: 0.4488348783 | P15: 0.4466998209 | Q15: 15 | R15: 14 | S15: 1.020028613 | T15: 0 | U15: 15 | V15: 14 | W15: 1.022763514 | X15: 0.002849026 | Y15: 15 | Z15: 14 | AA15: 0.0200286128 | AB15: 1 | AC15: 15 | AD15: 14 | AE15: 0.0335516541 | AF15: 1.014087342 | AG15: 15 | AH15: 14 | AI15: 1.386869659 | AJ15: 1.38214887 | AK15: 15 | AL15: 14 | AM15: 0.3400095371 | AN15: 0.3333333333 | AO15: 15 | AP15: 14 | AQ15: 1.108105003 | AR15: 0.0917517095 | AS15: 15 | AT15: 14 | AU15: 1.14225045 | AV15: 0.1273220038
A16: 16 | B16: 15 | C16: 0.0380610999 | D16: 1.98265365 | E16: 16 | F16: 15 | G16: 0.0408864402 | H16: 1.979701612 | I16: 16 | J16: 15 | K16: 1.448987382 | L16: 1.553300179 | M16: 16 | N16: 15 | O16: 0.4489873824 | P16: 0.5533001791 | Q16: 16 | R16: 15 | S16: 1.021459228 | T16: 1 | U16: 16 | V16: 15 | W16: 1.024185977 | X16: 0.997150974 | Y16: 16 | Z16: 15 | AA16: 0.021459228 | AB16: 2 | AC16: 16 | AD16: 15 | AE16: 0.0349419621 | AF16: 1.985912658 | AG16: 16 | AH16: 15 | AI16: 1.387206858 | AJ16: 1.61785113 | AK16: 16 | AL16: 15 | AM16: 0.3404864088 | AN16: 0.6666666667 | AO16: 16 | AP16: 15 | AQ16: 1.109273096 | AR16: 0.9082482905 | AS16: 16 | AT16: 15 | AU16: 1.143316768 | AV16: 0.8726779962
A17: 17 | B17: 16 | C17: 0.0394420832 | D17: 1.01734635 | E17: 17 | F17: 16 | G17: 0.042258977 | H17: 1.020298388 | I17: 17 | J17: 16 | K17: 1.449139887 | L17: 1.446699821 | M17: 17 | N17: 16 | O17: 0.4491398865 | P17: 0.4466998209 | Q17: 17 | R17: 16 | S17: 1.022889843 | T17: 0 | U17: 17 | V17: 16 | W17: 1.02560844 | X17: 0.002849026 | Y17: 17 | Z17: 16 | AA17: 0.0228898432 | AB17: 1 | AC17: 17 | AD17: 16 | AE17: 0.0363322701 | AF17: 1.014087342 | AG17: 17 | AH17: 16 | AI17: 1.387544057 | AJ17: 1.38214887 | AK17: 17 | AL17: 16 | AM17: 0.3409632805 | AN17: 0.3333333333 | AO17: 17 | AP17: 16 | AQ17: 1.110441188 | AR17: 0.0917517095 | AS17: 17 | AT17: 16 | AU17: 1.144383085 | AV17: 0.1273220038
A18: 18 | B18: 17 | C18: 0.0408230665 | D18: 1.98265365 | E18: 18 | F18: 17 | G18: 0.0436315138 | H18: 1.979701612 | I18: 18 | J18: 17 | K18: 1.449292391 | L18: 1.553300179 | M18: 18 | N18: 17 | O18: 0.4492923906 | P18: 0.5533001791 | Q18: 18 | R18: 17 | S18: 1.024320458 | T18: 1 | U18: 18 | V18: 17 | W18: 1.027030904 | X18: 0.997150974 | Y18: 18 | Z18: 17 | AA18: 0.0243204584 | AB18: 2 | AC18: 18 | AD18: 17 | AE18: 0.0377225781 | AF18: 1.985912658 | AG18: 18 | AH18: 17 | AI18: 1.387881256 | AJ18: 1.61785113 | AK18: 18 | AL18: 17 | AM18: 0.3414401522 | AN18: 0.6666666667 | AO18: 18 | AP18: 17 | AQ18: 1.11160928 | AR18: 0.9082482905 | AS18: 18 | AT18: 17 | AU18: 1.145449403 | AV18: 0.8726779962
A19: 19 | B19: 18 | C19: 0.0422040498 | D19: 1.01734635 | E19: 19 | F19: 18 | G19: 0.0450040506 | H19: 1.020298388 | I19: 19 | J19: 18 | K19: 1.449444895 | L19: 1.446699821 | M19: 19 | N19: 18 | O19: 0.4494448947 | P19: 0.4466998209 | Q19: 19 | R19: 18 | S19: 1.025751074 | T19: 0 | U19: 19 | V19: 18 | W19: 1.028453367 | X19: 0.002849026 | Y19: 19 | Z19: 18 | AA19: 0.0257510736 | AB19: 1 | AC19: 19 | AD19: 18 | AE19: 0.0391128861 | AF19: 1.014087342 | AG19: 19 | AH19: 18 | AI19: 1.388218455 | AJ19: 1.38214887 | AK19: 19 | AL19: 18 | AM19: 0.3419170239 | AN19: 0.3333333333 | AO19: 19 | AP19: 18 | AQ19: 1.112777373 | AR19: 0.0917517095 | AS19: 19 | AT19: 18 | AU19: 1.146515721 | AV19: 0.1273220038
A20: 20 | B20: 19 | C20: 0.0435850331 | D20: 1.98265365 | E20: 20 | F20: 19 | G20: 0.0463765874 | H20: 1.979701612 | I20: 20 | J20: 19 | K20: 1.449597399 | L20: 1.553300179 | M20: 20 | N20: 19 | O20: 0.4495973988 | P20: 0.5533001791 | Q20: 20 | R20: 19 | S20: 1.027181689 | T20: 1 | U20: 20 | V20: 19 | W20: 1.029875831 | X20: 0.997150974 | Y20: 20 | Z20: 19 | AA20: 0.0271816888 | AB20: 2 | AC20: 20 | AD20: 19 | AE20: 0.0405031941 | AF20: 1.985912658 | AG20: 20 | AH20: 19 | AI20: 1.388555655 | AJ20: 1.61785113 | AK20: 20 | AL20: 19 | AM20: 0.3423938956 | AN20: 0.6666666667 | AO20: 20 | AP20: 19 | AQ20: 1.113945465 | AR20: 0.9082482905 | AS20: 20 | AT20: 19 | AU20: 1.147582038 | AV20: 0.8726779962
A21: 21 | B21: 20 | C21: 0.0449660164 | D21: 1.01734635 | E21: 21 | F21: 20 | G21: 0.0477491242 | H21: 1.020298388 | I21: 21 | J21: 20 | K21: 1.449749903 | L21: 1.446699821 | M21: 21 | N21: 20 | O21: 0.4497499029 | P21: 0.4466998209 | Q21: 21 | R21: 20 | S21: 1.028612304 | T21: 0 | U21: 21 | V21: 20 | W21: 1.031298294 | X21: 0.002849026 | Y21: 21 | Z21: 20 | AA21: 0.028612304 | AB21: 1 | AC21: 21 | AD21: 20 | AE21: 0.0418935021 | AF21: 1.014087342 | AG21: 21 | AH21: 20 | AI21: 1.388892854 | AJ21: 1.38214887 | AK21: 21 | AL21: 20 | AM21: 0.3428707673 | AN21: 0.3333333333 | AO21: 21 | AP21: 20 | AQ21: 1.115113557 | AR21: 0.0917517095 | AS21: 21 | AT21: 20 | AU21: 1.148648356 | AV21: 0.1273220038
A22: 22 | B22: 21 | C22: 0.0463469997 | D22: 1.98265365 | E22: 22 | F22: 21 | G22: 0.049121661 | H22: 1.979701612 | I22: 22 | J22: 21 | K22: 1.449902407 | L22: 1.553300179 | M22: 22 | N22: 21 | O22: 0.449902407 | P22: 0.5533001791 | Q22: 22 | R22: 21 | S22: 1.030042919 | T22: 1 | U22: 22 | V22: 21 | W22: 1.032720757 | X22: 0.997150974 | Y22: 22 | Z22: 21 | AA22: 0.0300429192 | AB22: 2 | AC22: 22 | AD22: 21 | AE22: 0.0432838101 | AF22: 1.985912658 | AG22: 22 | AH22: 21 | AI22: 1.389230053 | AJ22: 1.61785113 | AK22: 22 | AL22: 21 | AM22: 0.343347639 | AN22: 0.6666666667 | AO22: 22 | AP22: 21 | AQ22: 1.11628165 | AR22: 0.9082482905 | AS22: 22 | AT22: 21 | AU22: 1.149714673 | AV22: 0.8726779962
A23: 23 | B23: 22 | C23: 0.047727983 | D23: 1.01734635 | E23: 23 | F23: 22 | G23: 0.0504941978 | H23: 1.020298388 | I23: 23 | J23: 22 | K23: 1.450054911 | L23: 1.446699821 | M23: 23 | N23: 22 | O23: 0.4500549111 | P23: 0.4466998209 | Q23: 23 | R23: 22 | S23: 1.031473534 | T23: 0 | U23: 23 | V23: 22 | W23: 1.034143221 | X23: 0.002849026 | Y23: 23 | Z23: 22 | AA23: 0.0314735344 | AB23: 1 | AC23: 23 | AD23: 22 | AE23: 0.0446741181 | AF23: 1.014087342 | AG23: 23 | AH23: 22 | AI23: 1.389567252 | AJ23: 1.38214887 | AK23: 23 | AL23: 22 | AM23: 0.3438245107 | AN23: 0.3333333333 | AO23: 23 | AP23: 22 | AQ23: 1.117449742 | AR23: 0.0917517095 | AS23: 23 | AT23: 22 | AU23: 1.150780991 | AV23: 0.1273220038
A24: 24 | B24: 23 | C24: 0.0491089663 | D24: 1.98265365 | E24: 24 | F24: 23 | G24: 0.0518667346 | H24: 1.979701612 | I24: 24 | J24: 23 | K24: 1.450207415 | L24: 1.553300179 | M24: 24 | N24: 23 | O24: 0.4502074152 | P24: 0.5533001791 | Q24: 24 | R24: 23 | S24: 1.03290415 | T24: 1 | U24: 24 | V24: 23 | W24: 1.035565684 | X24: 0.997150974 | Y24: 24 | Z24: 23 | AA24: 0.0329041496 | AB24: 2 | AC24: 24 | AD24: 23 | AE24: 0.0460644261 | AF24: 1.985912658 | AG24: 24 | AH24: 23 | AI24: 1.389904451 | AJ24: 1.61785113 | AK24: 24 | AL24: 23 | AM24: 0.3443013824 | AN24: 0.6666666667 | AO24: 24 | AP24: 23 | AQ24: 1.118617835 | AR24: 0.9082482905 | AS24: 24 | AT24: 23 | AU24: 1.151847309 | AV24: 0.8726779962
A25: 25 | B25: 24 | C25: 0.0504899496 | D25: 1.01734635 | E25: 25 | F25: 24 | G25: 0.0532392714 | H25: 1.020298388 | I25: 25 | J25: 24 | K25: 1.450359919 | L25: 1.446699821 | M25: 25 | N25: 24 | O25: 0.4503599193 | P25: 0.4466998209 | Q25: 25 | R25: 24 | S25: 1.034334765 | T25: 0 | U25: 25 | V25: 24 | W25: 1.036988148 | X25: 0.002849026 | Y25: 25 | Z25: 24 | AA25: 0.0343347648 | AB25: 1 | AC25: 25 | AD25: 24 | AE25: 0.0474547341 | AF25: 1.014087342 | AG25: 25 | AH25: 24 | AI25: 1.390241651 | AJ25: 1.38214887 | AK25: 25 | AL25: 24 | AM25: 0.3447782541 | AN25: 0.3333333333 | AO25: 25 | AP25: 24 | AQ25: 1.119785927 | AR25: 0.0917517095 | AS25: 25 | AT25: 24 | AU25: 1.152913626 | AV25: 0.1273220038
A26: 26 | B26: 25 | C26: 0.0518709329 | D26: 1.98265365 | E26: 26 | F26: 25 | G26: 0.0546118082 | H26: 1.979701612 | I26: 26 | J26: 25 | K26: 1.450512423 | L26: 1.553300179 | M26: 26 | N26: 25 | O26: 0.4505124234 | P26: 0.5533001791 | Q26: 26 | R26: 25 | S26: 1.03576538 | T26: 1 | U26: 26 | V26: 25 | W26: 1.038410611 | X26: 0.997150974 | Y26: 26 | Z26: 25 | AA26: 0.03576538 | AB26: 2 | AC26: 26 | AD26: 25 | AE26: 0.0488450421 | AF26: 1.985912658 | AG26: 26 | AH26: 25 | AI26: 1.39057885 | AJ26: 1.61785113 | AK26: 26 | AL26: 25 | AM26: 0.3452551258 | AN26: 0.6666666667 | AO26: 26 | AP26: 25 | AQ26: 1.12095402 | AR26: 0.9082482905 | AS26: 26 | AT26: 25 | AU26: 1.153979944 | AV26: 0.8726779962
A27: 27 | B27: 26 | C27: 0.0532519162 | D27: 1.01734635 | E27: 27 | F27: 26 | G27: 0.055984345 | H27: 1.020298388 | I27: 27 | J27: 26 | K27: 1.450664927 | L27: 1.446699821 | M27: 27 | N27: 26 | O27: 0.4506649275 | P27: 0.4466998209 | Q27: 27 | R27: 26 | S27: 1.037195995 | T27: 0 | U27: 27 | V27: 26 | W27: 1.039833074 | X27: 0.002849026 | Y27: 27 | Z27: 26 | AA27: 0.0371959952 | AB27: 1 | AC27: 27 | AD27: 26 | AE27: 0.0502353501 | AF27: 1.014087342 | AG27: 27 | AH27: 26 | AI27: 1.390916049 | AJ27: 1.38214887 | AK27: 27 | AL27: 26 | AM27: 0.3457319975 | AN27: 0.3333333333 | AO27: 27 | AP27: 26 | AQ27: 1.122122112 | AR27: 0.0917517095 | AS27: 27 | AT27: 26 | AU27: 1.155046261 | AV27: 0.1273220038
A28: 28 | B28: 27 | C28: 0.0546328995 | D28: 1.98265365 | E28: 28 | F28: 27 | G28: 0.0573568818 | H28: 1.979701612 | I28: 28 | J28: 27 | K28: 1.450817432 | L28: 1.553300179 | M28: 28 | N28: 27 | O28: 0.4508174316 | P28: 0.5533001791 | Q28: 28 | R28: 27 | S28: 1.03862661 | T28: 1 | U28: 28 | V28: 27 | W28: 1.041255538 | X28: 0.997150974 | Y28: 28 | Z28: 27 | AA28: 0.0386266104 | AB28: 2 | AC28: 28 | AD28: 27 | AE28: 0.0516256581 | AF28: 1.985912658 | AG28: 28 | AH28: 27 | AI28: 1.391253248 | AJ28: 1.61785113 | AK28: 28 | AL28: 27 | AM28: 0.3462088692 | AN28: 0.6666666667 | AO28: 28 | AP28: 27 | AQ28: 1.123290204 | AR28: 0.9082482905 | AS28: 28 | AT28: 27 | AU28: 1.156112579 | AV28: 0.8726779962
A29: 29 | B29: 28 | C29: 0.0560138828 | D29: 1.01734635 | E29: 29 | F29: 28 | G29: 0.0587294186 | H29: 1.020298388 | I29: 29 | J29: 28 | K29: 1.450969936 | L29: 1.446699821 | M29: 29 | N29: 28 | O29: 0.4509699357 | P29: 0.4466998209 | Q29: 29 | R29: 28 | S29: 1.040057226 | T29: 0 | U29: 29 | V29: 28 | W29: 1.042678001 | X29: 0.002849026 | Y29: 29 | Z29: 28 | AA29: 0.0400572256 | AB29: 1 | AC29: 29 | AD29: 28 | AE29: 0.0530159661 | AF29: 1.014087342 | AG29: 29 | AH29: 28 | AI29: 1.391590447 | AJ29: 1.38214887 | AK29: 29 | AL29: 28 | AM29: 0.3466857409 | AN29: 0.3333333333 | AO29: 29 | AP29: 28 | AQ29: 1.124458297 | AR29: 0.0917517095 | AS29: 29 | AT29: 28 | AU29: 1.157178897 | AV29: 0.1273220038
A30: 30 | B30: 29 | C30: 0.0573948661 | D30: 1.98265365 | E30: 30 | F30: 29 | G30: 0.0601019554 | H30: 1.979701612 | I30: 30 | J30: 29 | K30: 1.45112244 | L30: 1.553300179 | M30: 30 | N30: 29 | O30: 0.4511224398 | P30: 0.5533001791 | Q30: 30 | R30: 29 | S30: 1.041487841 | T30: 1 | U30: 30 | V30: 29 | W30: 1.044100465 | X30: 0.997150974 | Y30: 30 | Z30: 29 | AA30: 0.0414878408 | AB30: 2 | AC30: 30 | AD30: 29 | AE30: 0.0544062741 | AF30: 1.985912658 | AG30: 30 | AH30: 29 | AI30: 1.391927647 | AJ30: 1.61785113 | AK30: 30 | AL30: 29 | AM30: 0.3471626126 | AN30: 0.6666666667 | AO30: 30 | AP30: 29 | AQ30: 1.125626389 | AR30: 0.9082482905 | AS30: 30 | AT30: 29 | AU30: 1.158245214 | AV30: 0.8726779962
A31: 31 | B31: 30 | C31: 0.0587758494 | D31: 1.01734635 | E31: 31 | F31: 30 | G31: 0.0614744922 | H31: 1.020298388 | I31: 31 | J31: 30 | K31: 1.451274944 | L31: 1.446699821 | M31: 31 | N31: 30 | O31: 0.4512749439 | P31: 0.4466998209 | Q31: 31 | R31: 30 | S31: 1.042918456 | T31: 0 | U31: 31 | V31: 30 | W31: 1.045522928 | X31: 0.002849026 | Y31: 31 | Z31: 30 | AA31: 0.042918456 | AB31: 1 | AC31: 31 | AD31: 30 | AE31: 0.0557965821 | AF31: 1.014087342 | AG31: 31 | AH31: 30 | AI31: 1.392264846 | AJ31: 1.38214887 | AK31: 31 | AL31: 30 | AM31: 0.3476394843 | AN31: 0.3333333333 | AO31: 31 | AP31: 30 | AQ31: 1.126794481 | AR31: 0.0917517095 | AS31: 31 | AT31: 30 | AU31: 1.159311532 | AV31: 0.1273220038
A32: 32 | B32: 31 | C32: 0.0601568327 | D32: 1.98265365 | E32: 32 | F32: 31 | G32: 0.062847029 | H32: 1.979701612 | I32: 32 | J32: 31 | K32: 1.451427448 | L32: 1.553300179 | M32: 32 | N32: 31 | O32: 0.451427448 | P32: 0.5533001791 | Q32: 32 | R32: 31 | S32: 1.044349071 | T32: 1 | U32: 32 | V32: 31 | W32: 1.046945391 | X32: 0.997150974 | Y32: 32 | Z32: 31 | AA32: 0.0443490712 | AB32: 2 | AC32: 32 | AD32: 31 | AE32: 0.0571868901 | AF32: 1.985912658 | AG32: 32 | AH32: 31 | AI32: 1.392602045 | AJ32: 1.61785113 | AK32: 32 | AL32: 31 | AM32: 0.348116356 | AN32: 0.6666666667 | AO32: 32 | AP32: 31 | AQ32: 1.127962574 | AR32: 0.9082482905 | AS32: 32 | AT32: 31 | AU32: 1.160377849 | AV32: 0.8726779962
A33: 33 | B33: 32 | C33: 0.061537816 | D33: 1.01734635 | E33: 33 | F33: 32 | G33: 0.0642195658 | H33: 1.020298388 | I33: 33 | J33: 32 | K33: 1.451579952 | L33: 1.446699821 | M33: 33 | N33: 32 | O33: 0.4515799521 | P33: 0.4466998209 | Q33: 33 | R33: 32 | S33: 1.045779686 | T33: 0 | U33: 33 | V33: 32 | W33: 1.048367855 | X33: 0.002849026 | Y33: 33 | Z33: 32 | AA33: 0.0457796864 | AB33: 1 | AC33: 33 | AD33: 32 | AE33: 0.0585771981 | AF33: 1.014087342 | AG33: 33 | AH33: 32 | AI33: 1.392939244 | AJ33: 1.38214887 | AK33: 33 | AL33: 32 | AM33: 0.3485932277 | AN33: 0.3333333333 | AO33: 33 | AP33: 32 | AQ33: 1.129130666 | AR33: 0.0917517095 | AS33: 33 | AT33: 32 | AU33: 1.161444167 | AV33: 0.1273220038
A34: 34 | B34: 33 | C34: 0.0629187993 | D34: 1.98265365 | E34: 34 | F34: 33 | G34: 0.0655921026 | H34: 1.979701612 | I34: 34 | J34: 33 | K34: 1.451732456 | L34: 1.553300179 | M34: 34 | N34: 33 | O34: 0.4517324562 | P34: 0.5533001791 | Q34: 34 | R34: 33 | S34: 1.047210302 | T34: 1 | U34: 34 | V34: 33 | W34: 1.049790318 | X34: 0.997150974 | Y34: 34 | Z34: 33 | AA34: 0.0472103016 | AB34: 2 | AC34: 34 | AD34: 33 | AE34: 0.0599675061 | AF34: 1.985912658 | AG34: 34 | AH34: 33 | AI34: 1.393276443 | AJ34: 1.61785113 | AK34: 34 | AL34: 33 | AM34: 0.3490700994 | AN34: 0.6666666667 | AO34: 34 | AP34: 33 | AQ34: 1.130298759 | AR34: 0.9082482905 | AS34: 34 | AT34: 33 | AU34: 1.162510485 | AV34: 0.8726779962
A35: 35 | B35: 34 | C35: 0.0642997826 | D35: 1.01734635 | E35: 35 | F35: 34 | G35: 0.0669646394 | H35: 1.020298388 | I35: 35 | J35: 34 | K35: 1.45188496 | L35: 1.446699821 | M35: 35 | N35: 34 | O35: 0.4518849603 | P35: 0.4466998209 | Q35: 35 | R35: 34 | S35: 1.048640917 | T35: 0 | U35: 35 | V35: 34 | W35: 1.051212782 | X35: 0.002849026 | Y35: 35 | Z35: 34 | AA35: 0.0486409168 | AB35: 1 | AC35: 35 | AD35: 34 | AE35: 0.0613578141 | AF35: 1.014087342 | AG35: 35 | AH35: 34 | AI35: 1.393613643 | AJ35: 1.38214887 | AK35: 35 | AL35: 34 | AM35: 0.3495469711 | AN35: 0.3333333333 | AO35: 35 | AP35: 34 | AQ35: 1.131466851 | AR35: 0.0917517095 | AS35: 35 | AT35: 34 | AU35: 1.163576802 | AV35: 0.1273220038
A36: 36 | B36: 35 | C36: 0.0656807659 | D36: 1.98265365 | E36: 36 | F36: 35 | G36: 0.0683371762 | H36: 1.979701612 | I36: 36 | J36: 35 | K36: 1.452037464 | L36: 1.553300179 | M36: 36 | N36: 35 | O36: 0.4520374644 | P36: 0.5533001791 | Q36: 36 | R36: 35 | S36: 1.050071532 | T36: 1 | U36: 36 | V36: 35 | W36: 1.052635245 | X36: 0.997150974 | Y36: 36 | Z36: 35 | AA36: 0.050071532 | AB36: 2 | AC36: 36 | AD36: 35 | AE36: 0.0627481221 | AF36: 1.985912658 | AG36: 36 | AH36: 35 | AI36: 1.393950842 | AJ36: 1.61785113 | AK36: 36 | AL36: 35 | AM36: 0.3500238428 | AN36: 0.6666666667 | AO36: 36 | AP36: 35 | AQ36: 1.132634944 | AR36: 0.9082482905 | AS36: 36 | AT36: 35 | AU36: 1.16464312 | AV36: 0.8726779962
A37: 37 | B37: 36 | C37: 0.0670617492 | D37: 1.01734635 | E37: 37 | F37: 36 | G37: 0.069709713 | H37: 1.020298388 | I37: 37 | J37: 36 | K37: 1.452189968 | L37: 1.446699821 | M37: 37 | N37: 36 | O37: 0.4521899685 | P37: 0.4466998209 | Q37: 37 | R37: 36 | S37: 1.051502147 | T37: 0 | U37: 37 | V37: 36 | W37: 1.054057708 | X37: 0.002849026 | Y37: 37 | Z37: 36 | AA37: 0.0515021472 | AB37: 1 | AC37: 37 | AD37: 36 | AE37: 0.0641384301 | AF37: 1.014087342 | AG37: 37 | AH37: 36 | AI37: 1.394288041 | AJ37: 1.38214887 | AK37: 37 | AL37: 36 | AM37: 0.3505007145 | AN37: 0.3333333333 | AO37: 37 | AP37: 36 | AQ37: 1.133803036 | AR37: 0.0917517095 | AS37: 37 | AT37: 36 | AU37: 1.165709437 | AV37: 0.1273220038
A38: 38 | B38: 37 | C38: 0.0684427325 | D38: 1.98265365 | E38: 38 | F38: 37 | G38: 0.0710822498 | H38: 1.979701612 | I38: 38 | J38: 37 | K38: 1.452342473 | L38: 1.553300179 | M38: 38 | N38: 37 | O38: 0.4523424726 | P38: 0.5533001791 | Q38: 38 | R38: 37 | S38: 1.052932762 | T38: 1 | U38: 38 | V38: 37 | W38: 1.055480172 | X38: 0.997150974 | Y38: 38 | Z38: 37 | AA38: 0.0529327624 | AB38: 2 | AC38: 38 | AD38: 37 | AE38: 0.0655287381 | AF38: 1.985912658 | AG38: 38 | AH38: 37 | AI38: 1.39462524 | AJ38: 1.61785113 | AK38: 38 | AL38: 37 | AM38: 0.3509775862 | AN38: 0.6666666667 | AO38: 38 | AP38: 37 | AQ38: 1.134971128 | AR38: 0.9082482905 | AS38: 38 | AT38: 37 | AU38: 1.166775755 | AV38: 0.8726779962
A39: 39 | B39: 38 | C39: 0.0698237158 | D39: 1.01734635 | E39: 39 | F39: 38 | G39: 0.0724547866 | H39: 1.020298388 | I39: 39 | J39: 38 | K39: 1.452494977 | L39: 1.446699821 | M39: 39 | N39: 38 | O39: 0.4524949767 | P39: 0.4466998209 | Q39: 39 | R39: 38 | S39: 1.054363378 | T39: 0 | U39: 39 | V39: 38 | W39: 1.056902635 | X39: 0.002849026 | Y39: 39 | Z39: 38 | AA39: 0.0543633776 | AB39: 1 | AC39: 39 | AD39: 38 | AE39: 0.0669190461 | AF39: 1.014087342 | AG39: 39 | AH39: 38 | AI39: 1.394962439 | AJ39: 1.38214887 | AK39: 39 | AL39: 38 | AM39: 0.3514544579 | AN39: 0.3333333333 | AO39: 39 | AP39: 38 | AQ39: 1.136139221 | AR39: 0.0917517095 | AS39: 39 | AT39: 38 | AU39: 1.167842073 | AV39: 0.1273220038
A40: 40 | B40: 39 | C40: 0.0712046991 | D40: 1.98265365 | E40: 40 | F40: 39 | G40: 0.0738273234 | H40: 1.979701612 | I40: 40 | J40: 39 | K40: 1.452647481 | L40: 1.553300179 | M40: 40 | N40: 39 | O40: 0.4526474808 | P40: 0.5533001791 | Q40: 40 | R40: 39 | S40: 1.055793993 | T40: 1 | U40: 40 | V40: 39 | W40: 1.058325099 | X40: 0.997150974 | Y40: 40 | Z40: 39 | AA40: 0.0557939928 | AB40: 2 | AC40: 40 | AD40: 39 | AE40: 0.0683093541 | AF40: 1.985912658 | AG40: 40 | AH40: 39 | AI40: 1.395299639 | AJ40: 1.61785113 | AK40: 40 | AL40: 39 | AM40: 0.3519313296 | AN40: 0.6666666667 | AO40: 40 | AP40: 39 | AQ40: 1.137307313 | AR40: 0.9082482905 | AS40: 40 | AT40: 39 | AU40: 1.16890839 | AV40: 0.8726779962
A41: 41 | B41: 40 | C41: 0.0725856824 | D41: 1.01734635 | E41: 41 | F41: 40 | G41: 0.0751998602 | H41: 1.020298388 | I41: 41 | J41: 40 | K41: 1.452799985 | L41: 1.446699821 | M41: 41 | N41: 40 | O41: 0.4527999849 | P41: 0.4466998209 | Q41: 41 | R41: 40 | S41: 1.057224608 | T41: 0 | U41: 41 | V41: 40 | W41: 1.059747562 | X41: 0.002849026 | Y41: 41 | Z41: 40 | AA41: 0.057224608 | AB41: 1 | AC41: 41 | AD41: 40 | AE41: 0.0696996621 | AF41: 1.014087342 | AG41: 41 | AH41: 40 | AI41: 1.395636838 | AJ41: 1.38214887 | AK41: 41 | AL41: 40 | AM41: 0.3524082013 | AN41: 0.3333333333 | AO41: 41 | AP41: 40 | AQ41: 1.138475405 | AR41: 0.0917517095 | AS41: 41 | AT41: 40 | AU41: 1.169974708 | AV41: 0.1273220038
A42: 42 | B42: 41 | C42: 0.0739666657 | D42: 1.98265365 | E42: 42 | F42: 41 | G42: 0.076572397 | H42: 1.979701612 | I42: 42 | J42: 41 | K42: 1.452952489 | L42: 1.553300179 | M42: 42 | N42: 41 | O42: 0.452952489 | P42: 0.5533001791 | Q42: 42 | R42: 41 | S42: 1.058655223 | T42: 1 | U42: 42 | V42: 41 | W42: 1.061170025 | X42: 0.997150974 | Y42: 42 | Z42: 41 | AA42: 0.0586552232 | AB42: 2 | AC42: 42 | AD42: 41 | AE42: 0.0710899701 | AF42: 1.985912658 | AG42: 42 | AH42: 41 | AI42: 1.395974037 | AJ42: 1.61785113 | AK42: 42 | AL42: 41 | AM42: 0.352885073 | AN42: 0.6666666667 | AO42: 42 | AP42: 41 | AQ42: 1.139643498 | AR42: 0.9082482905 | AS42: 42 | AT42: 41 | AU42: 1.171041025 | AV42: 0.8726779962
A43: 43 | B43: 42 | C43: 0.075347649 | D43: 1.01734635 | E43: 43 | F43: 42 | G43: 0.0779449338 | H43: 1.020298388 | I43: 43 | J43: 42 | K43: 1.453104993 | L43: 1.446699821 | M43: 43 | N43: 42 | O43: 0.4531049931 | P43: 0.4466998209 | Q43: 43 | R43: 42 | S43: 1.060085838 | T43: 0 | U43: 43 | V43: 42 | W43: 1.062592489 | X43: 0.002849026 | Y43: 43 | Z43: 42 | AA43: 0.0600858384 | AB43: 1 | AC43: 43 | AD43: 42 | AE43: 0.0724802781 | AF43: 1.014087342 | AG43: 43 | AH43: 42 | AI43: 1.396311236 | AJ43: 1.38214887 | AK43: 43 | AL43: 42 | AM43: 0.3533619447 | AN43: 0.3333333333 | AO43: 43 | AP43: 42 | AQ43: 1.14081159 | AR43: 0.0917517095 | AS43: 43 | AT43: 42 | AU43: 1.172107343 | AV43: 0.1273220038
A44: 44 | B44: 43 | C44: 0.0767286323 | D44: 1.98265365 | E44: 44 | F44: 43 | G44: 0.0793174706 | H44: 1.979701612 | I44: 44 | J44: 43 | K44: 1.453257497 | L44: 1.553300179 | M44: 44 | N44: 43 | O44: 0.4532574972 | P44: 0.5533001791 | Q44: 44 | R44: 43 | S44: 1.061516454 | T44: 1 | U44: 44 | V44: 43 | W44: 1.064014952 | X44: 0.997150974 | Y44: 44 | Z44: 43 | AA44: 0.0615164536 | AB44: 2 | AC44: 44 | AD44: 43 | AE44: 0.0738705861 | AF44: 1.985912658 | AG44: 44 | AH44: 43 | AI44: 1.396648435 | AJ44: 1.61785113 | AK44: 44 | AL44: 43 | AM44: 0.3538388164 | AN44: 0.6666666667 | AO44: 44 | AP44: 43 | AQ44: 1.141979683 | AR44: 0.9082482905 | AS44: 44 | AT44: 43 | AU44: 1.173173661 | AV44: 0.8726779962
A45: 45 | B45: 44 | C45: 0.0781096156 | D45: 1.01734635 | E45: 45 | F45: 44 | G45: 0.0806900074 | H45: 1.020298388 | I45: 45 | J45: 44 | K45: 1.453410001 | L45: 1.446699821 | M45: 45 | N45: 44 | O45: 0.4534100013 | P45: 0.4466998209 | Q45: 45 | R45: 44 | S45: 1.062947069 | T45: 0 | U45: 45 | V45: 44 | W45: 1.065437416 | X45: 0.002849026 | Y45: 45 | Z45: 44 | AA45: 0.0629470688 | AB45: 1 | AC45: 45 | AD45: 44 | AE45: 0.0752608941 | AF45: 1.014087342 | AG45: 45 | AH45: 44 | AI45: 1.396985635 | AJ45: 1.38214887 | AK45: 45 | AL45: 44 | AM45: 0.3543156881 | AN45: 0.3333333333 | AO45: 45 | AP45: 44 | AQ45: 1.143147775 | AR45: 0.0917517095 | AS45: 45 | AT45: 44 | AU45: 1.174239978 | AV45: 0.1273220038
A46: 46 | B46: 45 | C46: 0.0794905989 | D46: 1.98265365 | E46: 46 | F46: 45 | G46: 0.0820625442 | H46: 1.979701612 | I46: 46 | J46: 45 | K46: 1.453562505 | L46: 1.553300179 | M46: 46 | N46: 45 | O46: 0.4535625054 | P46: 0.5533001791 | Q46: 46 | R46: 45 | S46: 1.064377684 | T46: 1 | U46: 46 | V46: 45 | W46: 1.066859879 | X46: 0.997150974 | Y46: 46 | Z46: 45 | AA46: 0.064377684 | AB46: 2 | AC46: 46 | AD46: 45 | AE46: 0.0766512021 | AF46: 1.985912658 | AG46: 46 | AH46: 45 | AI46: 1.397322834 | AJ46: 1.61785113 | AK46: 46 | AL46: 45 | AM46: 0.3547925598 | AN46: 0.6666666667 | AO46: 46 | AP46: 45 | AQ46: 1.144315868 | AR46: 0.9082482905 | AS46: 46 | AT46: 45 | AU46: 1.175306296 | AV46: 0.8726779962
A47: 47 | B47: 46 | C47: 0.0808715822 | D47: 1.01734635 | E47: 47 | F47: 46 | G47: 0.083435081 | H47: 1.020298388 | I47: 47 | J47: 46 | K47: 1.453715009 | L47: 1.446699821 | M47: 47 | N47: 46 | O47: 0.4537150095 | P47: 0.4466998209 | Q47: 47 | R47: 46 | S47: 1.065808299 | T47: 0 | U47: 47 | V47: 46 | W47: 1.068282342 | X47: 0.002849026 | Y47: 47 | Z47: 46 | AA47: 0.0658082992 | AB47: 1 | AC47: 47 | AD47: 46 | AE47: 0.0780415101 | AF47: 1.014087342 | AG47: 47 | AH47: 46 | AI47: 1.397660033 | AJ47: 1.38214887 | AK47: 47 | AL47: 46 | AM47: 0.3552694315 | AN47: 0.3333333333 | AO47: 47 | AP47: 46 | AQ47: 1.14548396 | AR47: 0.0917517095 | AS47: 47 | AT47: 46 | AU47: 1.176372613 | AV47: 0.1273220038
A48: 48 | B48: 47 | C48: 0.0822525655 | D48: 1.98265365 | E48: 48 | F48: 47 | G48: 0.0848076178 | H48: 1.979701612 | I48: 48 | J48: 47 | K48: 1.453867514 | L48: 1.553300179 | M48: 48 | N48: 47 | O48: 0.4538675136 | P48: 0.5533001791 | Q48: 48 | R48: 47 | S48: 1.067238914 | T48: 1 | U48: 48 | V48: 47 | W48: 1.069704806 | X48: 0.997150974 | Y48: 48 | Z48: 47 | AA48: 0.0672389144 | AB48: 2 | AC48: 48 | AD48: 47 | AE48: 0.0794318181 | AF48: 1.985912658 | AG48: 48 | AH48: 47 | AI48: 1.397997232 | AJ48: 1.61785113 | AK48: 48 | AL48: 47 | AM48: 0.3557463032 | AN48: 0.6666666667 | AO48: 48 | AP48: 47 | AQ48: 1.146652052 | AR48: 0.9082482905 | AS48: 48 | AT48: 47 | AU48: 1.177438931 | AV48: 0.8726779962
A49: 49 | B49: 48 | C49: 0.0836335488 | D49: 1.01734635 | E49: 49 | F49: 48 | G49: 0.0861801546 | H49: 1.020298388 | I49: 49 | J49: 48 | K49: 1.454020018 | L49: 1.446699821 | M49: 49 | N49: 48 | O49: 0.4540200177 | P49: 0.4466998209 | Q49: 49 | R49: 48 | S49: 1.06866953 | T49: 0 | U49: 49 | V49: 48 | W49: 1.071127269 | X49: 0.002849026 | Y49: 49 | Z49: 48 | AA49: 0.0686695296 | AB49: 1 | AC49: 49 | AD49: 48 | AE49: 0.0808221261 | AF49: 1.014087342 | AG49: 49 | AH49: 48 | AI49: 1.398334431 | AJ49: 1.38214887 | AK49: 49 | AL49: 48 | AM49: 0.3562231749 | AN49: 0.3333333333 | AO49: 49 | AP49: 48 | AQ49: 1.147820145 | AR49: 0.0917517095 | AS49: 49 | AT49: 48 | AU49: 1.178505249 | AV49: 0.1273220038
A50: 50 | B50: 49 | C50: 0.0850145321 | D50: 1.98265365 | E50: 50 | F50: 49 | G50: 0.0875526914 | H50: 1.979701612 | I50: 50 | J50: 49 | K50: 1.454172522 | L50: 1.553300179 | M50: 50 | N50: 49 | O50: 0.4541725218 | P50: 0.5533001791 | Q50: 50 | R50: 49 | S50: 1.070100145 | T50: 1 | U50: 50 | V50: 49 | W50: 1.072549733 | X50: 0.997150974 | Y50: 50 | Z50: 49 | AA50: 0.0701001448 | AB50: 2 | AC50: 50 | AD50: 49 | AE50: 0.0822124341 | AF50: 1.985912658 | AG50: 50 | AH50: 49 | AI50: 1.398671631 | AJ50: 1.61785113 | AK50: 50 | AL50: 49 | AM50: 0.3567000466 | AN50: 0.6666666667 | AO50: 50 | AP50: 49 | AQ50: 1.148988237 | AR50: 0.9082482905 | AS50: 50 | AT50: 49 | AU50: 1.179571566 | AV50: 0.8726779962
A51: 51 | B51: 50 | C51: 0.0863955154 | D51: 1.01734635 | E51: 51 | F51: 50 | G51: 0.0889252282 | H51: 1.020298388 | I51: 51 | J51: 50 | K51: 1.454325026 | L51: 1.446699821 | M51: 51 | N51: 50 | O51: 0.4543250259 | P51: 0.4466998209 | Q51: 51 | R51: 50 | S51: 1.07153076 | T51: 0 | U51: 51 | V51: 50 | W51: 1.073972196 | X51: 0.002849026 | Y51: 51 | Z51: 50 | AA51: 0.07153076 | AB51: 1 | AC51: 51 | AD51: 50 | AE51: 0.0836027421 | AF51: 1.014087342 | AG51: 51 | AH51: 50 | AI51: 1.39900883 | AJ51: 1.38214887 | AK51: 51 | AL51: 50 | AM51: 0.3571769183 | AN51: 0.3333333333 | AO51: 51 | AP51: 50 | AQ51: 1.150156329 | AR51: 0.0917517095 | AS51: 51 | AT51: 50 | AU51: 1.180637884 | AV51: 0.1273220038
A52: 52 | B52: 51 | C52: 0.0877764987 | D52: 1.98265365 | E52: 52 | F52: 51 | G52: 0.090297765 | H52: 1.979701612 | I52: 52 | J52: 51 | K52: 1.45447753 | L52: 1.553300179 | M52: 52 | N52: 51 | O52: 0.45447753 | P52: 0.5533001791 | Q52: 52 | R52: 51 | S52: 1.072961375 | T52: 1 | U52: 52 | V52: 51 | W52: 1.075394659 | X52: 0.997150974 | Y52: 52 | Z52: 51 | AA52: 0.0729613752 | AB52: 2 | AC52: 52 | AD52: 51 | AE52: 0.0849930501 | AF52: 1.985912658 | AG52: 52 | AH52: 51 | AI52: 1.399346029 | AJ52: 1.61785113 | AK52: 52 | AL52: 51 | AM52: 0.35765379 | AN52: 0.6666666667 | AO52: 52 | AP52: 51 | AQ52: 1.151324422 | AR52: 0.9082482905 | AS52: 52 | AT52: 51 | AU52: 1.181704201 | AV52: 0.8726779962
A53: 53 | B53: 52 | C53: 0.089157482 | D53: 1.01734635 | E53: 53 | F53: 52 | G53: 0.0916703018 | H53: 1.020298388 | I53: 53 | J53: 52 | K53: 1.454630034 | L53: 1.446699821 | M53: 53 | N53: 52 | O53: 0.4546300341 | P53: 0.4466998209 | Q53: 53 | R53: 52 | S53: 1.07439199 | T53: 0 | U53: 53 | V53: 52 | W53: 1.076817123 | X53: 0.002849026 | Y53: 53 | Z53: 52 | AA53: 0.0743919904 | AB53: 1 | AC53: 53 | AD53: 52 | AE53: 0.0863833581 | AF53: 1.014087342 | AG53: 53 | AH53: 52 | AI53: 1.399683228 | AJ53: 1.38214887 | AK53: 53 | AL53: 52 | AM53: 0.3581306617 | AN53: 0.3333333333 | AO53: 53 | AP53: 52 | AQ53: 1.152492514 | AR53: 0.0917517095 | AS53: 53 | AT53: 52 | AU53: 1.182770519 | AV53: 0.1273220038
A54: 54 | B54: 53 | C54: 0.0905384653 | D54: 1.98265365 | E54: 54 | F54: 53 | G54: 0.0930428386 | H54: 1.979701612 | I54: 54 | J54: 53 | K54: 1.454782538 | L54: 1.553300179 | M54: 54 | N54: 53 | O54: 0.4547825382 | P54: 0.5533001791 | Q54: 54 | R54: 53 | S54: 1.075822606 | T54: 1 | U54: 54 | V54: 53 | W54: 1.078239586 | X54: 0.997150974 | Y54: 54 | Z54: 53 | AA54: 0.0758226056 | AB54: 2 | AC54: 54 | AD54: 53 | AE54: 0.0877736661 | AF54: 1.985912658 | AG54: 54 | AH54: 53 | AI54: 1.400020427 | AJ54: 1.61785113 | AK54: 54 | AL54: 53 | AM54: 0.3586075334 | AN54: 0.6666666667 | AO54: 54 | AP54: 53 | AQ54: 1.153660607 | AR54: 0.9082482905 | AS54: 54 | AT54: 53 | AU54: 1.183836837 | AV54: 0.8726779962
A55: 55 | B55: 54 | C55: 0.0919194486 | D55: 1.01734635 | E55: 55 | F55: 54 | G55: 0.0944153754 | H55: 1.020298388 | I55: 55 | J55: 54 | K55: 1.454935042 | L55: 1.446699821 | M55: 55 | N55: 54 | O55: 0.4549350423 | P55: 0.4466998209 | Q55: 55 | R55: 54 | S55: 1.077253221 | T55: 0 | U55: 55 | V55: 54 | W55: 1.07966205 | X55: 0.002849026 | Y55: 55 | Z55: 54 | AA55: 0.0772532208 | AB55: 1 | AC55: 55 | AD55: 54 | AE55: 0.0891639741 | AF55: 1.014087342 | AG55: 55 | AH55: 54 | AI55: 1.400357627 | AJ55: 1.38214887 | AK55: 55 | AL55: 54 | AM55: 0.3590844051 | AN55: 0.3333333333 | AO55: 55 | AP55: 54 | AQ55: 1.154828699 | AR55: 0.0917517095 | AS55: 55 | AT55: 54 | AU55: 1.184903154 | AV55: 0.1273220038
A56: 56 | B56: 55 | C56: 0.0933004319 | D56: 1.98265365 | E56: 56 | F56: 55 | G56: 0.0957879122 | H56: 1.979701612 | I56: 56 | J56: 55 | K56: 1.455087546 | L56: 1.553300179 | M56: 56 | N56: 55 | O56: 0.4550875464 | P56: 0.5533001791 | Q56: 56 | R56: 55 | S56: 1.078683836 | T56: 1 | U56: 56 | V56: 55 | W56: 1.081084513 | X56: 0.997150974 | Y56: 56 | Z56: 55 | AA56: 0.078683836 | AB56: 2 | AC56: 56 | AD56: 55 | AE56: 0.0905542821 | AF56: 1.985912658 | AG56: 56 | AH56: 55 | AI56: 1.400694826 | AJ56: 1.61785113 | AK56: 56 | AL56: 55 | AM56: 0.3595612768 | AN56: 0.6666666667 | AO56: 56 | AP56: 55 | AQ56: 1.155996792 | AR56: 0.9082482905 | AS56: 56 | AT56: 55 | AU56: 1.185969472 | AV56: 0.8726779962
A57: 57 | B57: 56 | C57: 0.0946814152 | D57: 1.01734635 | E57: 57 | F57: 56 | G57: 0.097160449 | H57: 1.020298388 | I57: 57 | J57: 56 | K57: 1.45524005 | L57: 1.446699821 | M57: 57 | N57: 56 | O57: 0.4552400505 | P57: 0.4466998209 | Q57: 57 | R57: 56 | S57: 1.080114451 | T57: 0 | U57: 57 | V57: 56 | W57: 1.082506976 | X57: 0.002849026 | Y57: 57 | Z57: 56 | AA57: 0.0801144512 | AB57: 1 | AC57: 57 | AD57: 56 | AE57: 0.0919445901 | AF57: 1.014087342 | AG57: 57 | AH57: 56 | AI57: 1.401032025 | AJ57: 1.38214887 | AK57: 57 | AL57: 56 | AM57: 0.3600381485 | AN57: 0.3333333333 | AO57: 57 | AP57: 56 | AQ57: 1.157164884 | AR57: 0.0917517095 | AS57: 57 | AT57: 56 | AU57: 1.187035789 | AV57: 0.1273220038
A58: 58 | B58: 57 | C58: 0.0960623985 | D58: 1.98265365 | E58: 58 | F58: 57 | G58: 0.0985329858 | H58: 1.979701612 | I58: 58 | J58: 57 | K58: 1.455392555 | L58: 1.553300179 | M58: 58 | N58: 57 | O58: 0.4553925546 | P58: 0.5533001791 | Q58: 58 | R58: 57 | S58: 1.081545066 | T58: 1 | U58: 58 | V58: 57 | W58: 1.08392944 | X58: 0.997150974 | Y58: 58 | Z58: 57 | AA58: 0.0815450664 | AB58: 2 | AC58: 58 | AD58: 57 | AE58: 0.0933348981 | AF58: 1.985912658 | AG58: 58 | AH58: 57 | AI58: 1.401369224 | AJ58: 1.61785113 | AK58: 58 | AL58: 57 | AM58: 0.3605150202 | AN58: 0.6666666667 | AO58: 58 | AP58: 57 | AQ58: 1.158332976 | AR58: 0.9082482905 | AS58: 58 | AT58: 57 | AU58: 1.188102107 | AV58: 0.8726779962
A59: 59 | B59: 58 | C59: 0.0974433818 | D59: 1.01734635 | E59: 59 | F59: 58 | G59: 0.0999055226 | H59: 1.020298388 | I59: 59 | J59: 58 | K59: 1.455545059 | L59: 1.446699821 | M59: 59 | N59: 58 | O59: 0.4555450587 | P59: 0.4466998209 | Q59: 59 | R59: 58 | S59: 1.082975682 | T59: 0 | U59: 59 | V59: 58 | W59: 1.085351903 | X59: 0.002849026 | Y59: 59 | Z59: 58 | AA59: 0.0829756816 | AB59: 1 | AC59: 59 | AD59: 58 | AE59: 0.0947252061 | AF59: 1.014087342 | AG59: 59 | AH59: 58 | AI59: 1.401706423 | AJ59: 1.38214887 | AK59: 59 | AL59: 58 | AM59: 0.3609918919 | AN59: 0.3333333333 | AO59: 59 | AP59: 58 | AQ59: 1.159501069 | AR59: 0.0917517095 | AS59: 59 | AT59: 58 | AU59: 1.189168425 | AV59: 0.1273220038
A60: 60 | B60: 59 | C60: 0.0988243651 | D60: 1.98265365 | E60: 60 | F60: 59 | G60: 0.1012780594 | H60: 1.979701612 | I60: 60 | J60: 59 | K60: 1.455697563 | L60: 1.553300179 | M60: 60 | N60: 59 | O60: 0.4556975628 | P60: 0.5533001791 | Q60: 60 | R60: 59 | S60: 1.084406297 | T60: 1 | U60: 60 | V60: 59 | W60: 1.086774367 | X60: 0.997150974 | Y60: 60 | Z60: 59 | AA60: 0.0844062968 | AB60: 2 | AC60: 60 | AD60: 59 | AE60: 0.0961155141 | AF60: 1.985912658 | AG60: 60 | AH60: 59 | AI60: 1.402043623 | AJ60: 1.61785113 | AK60: 60 | AL60: 59 | AM60: 0.3614687636 | AN60: 0.6666666667 | AO60: 60 | AP60: 59 | AQ60: 1.160669161 | AR60: 0.9082482905 | AS60: 60 | AT60: 59 | AU60: 1.190234742 | AV60: 0.8726779962
A61: 61 | B61: 60 | C61: 0.1002053484 | D61: 1.01734635 | E61: 61 | F61: 60 | G61: 0.1026505962 | H61: 1.020298388 | I61: 61 | J61: 60 | K61: 1.455850067 | L61: 1.446699821 | M61: 61 | N61: 60 | O61: 0.4558500669 | P61: 0.4466998209 | Q61: 61 | R61: 60 | S61: 1.085836912 | T61: 0 | U61: 61 | V61: 60 | W61: 1.08819683 | X61: 0.002849026 | Y61: 61 | Z61: 60 | AA61: 0.085836912 | AB61: 1 | AC61: 61 | AD61: 60 | AE61: 0.0975058221 | AF61: 1.014087342 | AG61: 61 | AH61: 60 | AI61: 1.402380822 | AJ61: 1.38214887 | AK61: 61 | AL61: 60 | AM61: 0.3619456353 | AN61: 0.3333333333 | AO61: 61 | AP61: 60 | AQ61: 1.161837253 | AR61: 0.0917517095 | AS61: 61 | AT61: 60 | AU61: 1.19130106 | AV61: 0.1273220038
A62: 62 | B62: 61 | C62: 0.1015863317 | D62: 1.98265365 | E62: 62 | F62: 61 | G62: 0.104023133 | H62: 1.979701612 | I62: 62 | J62: 61 | K62: 1.456002571 | L62: 1.553300179 | M62: 62 | N62: 61 | O62: 0.456002571 | P62: 0.5533001791 | Q62: 62 | R62: 61 | S62: 1.087267527 | T62: 1 | U62: 62 | V62: 61 | W62: 1.089619293 | X62: 0.997150974 | Y62: 62 | Z62: 61 | AA62: 0.0872675272 | AB62: 2 | AC62: 62 | AD62: 61 | AE62: 0.0988961301 | AF62: 1.985912658 | AG62: 62 | AH62: 61 | AI62: 1.402718021 | AJ62: 1.61785113 | AK62: 62 | AL62: 61 | AM62: 0.362422507 | AN62: 0.6666666667 | AO62: 62 | AP62: 61 | AQ62: 1.163005346 | AR62: 0.9082482905 | AS62: 62 | AT62: 61 | AU62: 1.192367377 | AV62: 0.8726779962
A63: 63 | B63: 62 | C63: 0.102967315 | D63: 1.01734635 | E63: 63 | F63: 62 | G63: 0.1053956698 | H63: 1.020298388 | I63: 63 | J63: 62 | K63: 1.456155075 | L63: 1.446699821 | M63: 63 | N63: 62 | O63: 0.4561550751 | P63: 0.4466998209 | Q63: 63 | R63: 62 | S63: 1.088698142 | T63: 0 | U63: 63 | V63: 62 | W63: 1.091041757 | X63: 0.002849026 | Y63: 63 | Z63: 62 | AA63: 0.0886981424 | AB63: 1 | AC63: 63 | AD63: 62 | AE63: 0.1002864381 | AF63: 1.014087342 | AG63: 63 | AH63: 62 | AI63: 1.40305522 | AJ63: 1.38214887 | AK63: 63 | AL63: 62 | AM63: 0.3628993787 | AN63: 0.3333333333 | AO63: 63 | AP63: 62 | AQ63: 1.164173438 | AR63: 0.0917517095 | AS63: 63 | AT63: 62 | AU63: 1.193433695 | AV63: 0.1273220038
A64: 64 | B64: 63 | C64: 0.1043482983 | D64: 1.98265365 | E64: 64 | F64: 63 | G64: 0.1067682066 | H64: 1.979701612 | I64: 64 | J64: 63 | K64: 1.456307579 | L64: 1.553300179 | M64: 64 | N64: 63 | O64: 0.4563075792 | P64: 0.5533001791 | Q64: 64 | R64: 63 | S64: 1.090128758 | T64: 1 | U64: 64 | V64: 63 | W64: 1.09246422 | X64: 0.997150974 | Y64: 64 | Z64: 63 | AA64: 0.0901287576 | AB64: 2 | AC64: 64 | AD64: 63 | AE64: 0.1016767461 | AF64: 1.985912658 | AG64: 64 | AH64: 63 | AI64: 1.403392419 | AJ64: 1.61785113 | AK64: 64 | AL64: 63 | AM64: 0.3633762504 | AN64: 0.6666666667 | AO64: 64 | AP64: 63 | AQ64: 1.165341531 | AR64: 0.9082482905 | AS64: 64 | AT64: 63 | AU64: 1.194500013 | AV64: 0.8726779962
A65: 65 | B65: =(A65-1) -> 64 | C65: =0.0173463504+B65*0.0013809833 -> 0.1057292816 | D65: =IF(B65/2-INT(B65/2)<0.1,1.0173463504,1.9826536496) -> 1.01734635 | E65: 65 | F65: =(E65-1) -> 64 | G65: =0.0202983882+F65*0.0013725368 -> 0.1081407434 | H65: =IF(F65/2-INT(F65/2)<0.1,1.0202983882,1.9797016118) -> 1.020298388 | I65: 65 | J65: =(I65-1) -> 64 | K65: =1.4466998209+J65*0.0001525041 -> 1.456460083 | L65: =IF(J65/2-INT(J65/2)<0.1,1.4466998209,1.5533001791) -> 1.446699821 | M65: 65 | N65: =(M65-1) -> 64 | O65: =0.4466998209+N65*0.0001525041 -> 0.4564600833 | P65: =IF(N65/2-INT(N65/2)<0.1,0.4466998209,0.5533001791) -> 0.4466998209 | Q65: 65 | R65: =(Q65-1) -> 64 | S65: =1+R65*0.0014306152 -> 1.091559373 | T65: =IF(R65/2-INT(R65/2)<0.1,0,1) -> 0 | U65: 65 | V65: =(U65-1) -> 64 | W65: =1.002849026+V65*0.0014224634 -> 1.093886684 | X65: =IF(V65/2-INT(V65/2)<0.1,0.002849026,0.997150974) -> 0.002849026 | Y65: 65 | Z65: =(Y65-1) -> 64 | AA65: =0+Z65*0.0014306152 -> 0.0915593728 | AB65: =IF(Z65/2-INT(Z65/2)<0.1,1,2) -> 1 | AC65: 65 | AD65: =(AC65-1) -> 64 | AE65: =0.0140873421+AD65*0.001390308 -> 0.1030670541 | AF65: =IF(AD65/2-INT(AD65/2)<0.1,1.0140873421,1.9859126579) -> 1.014087342 | AG65: 65 | AH65: =(AG65-1) -> 64 | AI65: =1.3821488698+AH65*0.0003371992 -> 1.403729619 | AJ65: =IF(AH65/2-INT(AH65/2)<0.1,1.3821488698,1.6178511302) -> 1.38214887 | AK65: 65 | AL65: =(AK65-1) -> 64 | AM65: =0.3333333333+AL65*0.0004768717 -> 0.3638531221 | AN65: =IF(AL65/2-INT(AL65/2)<0.1,0.3333333333,0.6666666667) -> 0.3333333333 | AO65: 65 | AP65: =(AO65-1) -> 64 | AQ65: =1.0917517095+AP65*0.0011680924 -> 1.166509623 | AR65: =IF(AP65/2-INT(AP65/2)<0.1,0.0917517095,0.9082482905) -> 0.0917517095 | AS65: 65 | AT65: =(AS65-1) -> 64 | AU65: =1.1273220038+AT65*0.0010663176 -> 1.19556633 | AV65: =IF(AT65/2-INT(AT65/2)<0.1,0.1273220038,0.8726779962) -> 0.1273220038
A66: 66 | B66: 65 | C66: 0.1071102649 | D66: 1.98265365 | E66: 66 | F66: 65 | G66: 0.1095132802 | H66: 1.979701612 | I66: 66 | J66: 65 | K66: 1.456612587 | L66: 1.553300179 | M66: 66 | N66: 65 | O66: 0.4566125874 | P66: 0.5533001791 | Q66: 66 | R66: 65 | S66: 1.092989988 | T66: 1 | U66: 66 | V66: 65 | W66: 1.095309147 | X66: 0.997150974 | Y66: 66 | Z66: 65 | AA66: 0.092989988 | AB66: 2 | AC66: 66 | AD66: 65 | AE66: 0.1044573621 | AF66: 1.985912658 | AG66: 66 | AH66: 65 | AI66: 1.404066818 | AJ66: 1.61785113 | AK66: 66 | AL66: 65 | AM66: 0.3643299938 | AN66: 0.6666666667 | AO66: 66 | AP66: 65 | AQ66: 1.167677715 | AR66: 0.9082482905 | AS66: 66 | AT66: 65 | AU66: 1.196632648 | AV66: 0.8726779962
A67: 67 | B67: 66 | C67: 0.1084912482 | D67: 1.01734635 | E67: 67 | F67: 66 | G67: 0.110885817 | H67: 1.020298388 | I67: 67 | J67: 66 | K67: 1.456765091 | L67: 1.446699821 | M67: 67 | N67: 66 | O67: 0.4567650915 | P67: 0.4466998209 | Q67: 67 | R67: 66 | S67: 1.094420603 | T67: 0 | U67: 67 | V67: 66 | W67: 1.09673161 | X67: 0.002849026 | Y67: 67 | Z67: 66 | AA67: 0.0944206032 | AB67: 1 | AC67: 67 | AD67: 66 | AE67: 0.1058476701 | AF67: 1.014087342 | AG67: 67 | AH67: 66 | AI67: 1.404404017 | AJ67: 1.38214887 | AK67: 67 | AL67: 66 | AM67: 0.3648068655 | AN67: 0.3333333333 | AO67: 67 | AP67: 66 | AQ67: 1.168845808 | AR67: 0.0917517095 | AS67: 67 | AT67: 66 | AU67: 1.197698965 | AV67: 0.1273220038
A68: 68 | B68: 67 | C68: 0.1098722315 | D68: 1.98265365 | E68: 68 | F68: 67 | G68: 0.1122583538 | H68: 1.979701612 | I68: 68 | J68: 67 | K68: 1.456917596 | L68: 1.553300179 | M68: 68 | N68: 67 | O68: 0.4569175956 | P68: 0.5533001791 | Q68: 68 | R68: 67 | S68: 1.095851218 | T68: 1 | U68: 68 | V68: 67 | W68: 1.098154074 | X68: 0.997150974 | Y68: 68 | Z68: 67 | AA68: 0.0958512184 | AB68: 2 | AC68: 68 | AD68: 67 | AE68: 0.1072379781 | AF68: 1.985912658 | AG68: 68 | AH68: 67 | AI68: 1.404741216 | AJ68: 1.61785113 | AK68: 68 | AL68: 67 | AM68: 0.3652837372 | AN68: 0.6666666667 | AO68: 68 | AP68: 67 | AQ68: 1.1700139 | AR68: 0.9082482905 | AS68: 68 | AT68: 67 | AU68: 1.198765283 | AV68: 0.8726779962
A69: 69 | B69: 68 | C69: 0.1112532148 | D69: 1.01734635 | E69: 69 | F69: 68 | G69: 0.1136308906 | H69: 1.020298388 | I69: 69 | J69: 68 | K69: 1.4570701 | L69: 1.446699821 | M69: 69 | N69: 68 | O69: 0.4570700997 | P69: 0.4466998209 | Q69: 69 | R69: 68 | S69: 1.097281834 | T69: 0 | U69: 69 | V69: 68 | W69: 1.099576537 | X69: 0.002849026 | Y69: 69 | Z69: 68 | AA69: 0.0972818336 | AB69: 1 | AC69: 69 | AD69: 68 | AE69: 0.1086282861 | AF69: 1.014087342 | AG69: 69 | AH69: 68 | AI69: 1.405078415 | AJ69: 1.38214887 | AK69: 69 | AL69: 68 | AM69: 0.3657606089 | AN69: 0.3333333333 | AO69: 69 | AP69: 68 | AQ69: 1.171181993 | AR69: 0.0917517095 | AS69: 69 | AT69: 68 | AU69: 1.199831601 | AV69: 0.1273220038
A70: 70 | B70: 69 | C70: 0.1126341981 | D70: 1.98265365 | E70: 70 | F70: 69 | G70: 0.1150034274 | H70: 1.979701612 | I70: 70 | J70: 69 | K70: 1.457222604 | L70: 1.553300179 | M70: 70 | N70: 69 | O70: 0.4572226038 | P70: 0.5533001791 | Q70: 70 | R70: 69 | S70: 1.098712449 | T70: 1 | U70: 70 | V70: 69 | W70: 1.100999001 | X70: 0.997150974 | Y70: 70 | Z70: 69 | AA70: 0.0987124488 | AB70: 2 | AC70: 70 | AD70: 69 | AE70: 0.1100185941 | AF70: 1.985912658 | AG70: 70 | AH70: 69 | AI70: 1.405415615 | AJ70: 1.61785113 | AK70: 70 | AL70: 69 | AM70: 0.3662374806 | AN70: 0.6666666667 | AO70: 70 | AP70: 69 | AQ70: 1.172350085 | AR70: 0.9082482905 | AS70: 70 | AT70: 69 | AU70: 1.200897918 | AV70: 0.8726779962
A71: 71 | B71: 70 | C71: 0.1140151814 | D71: 1.01734635 | E71: 71 | F71: 70 | G71: 0.1163759642 | H71: 1.020298388 | I71: 71 | J71: 70 | K71: 1.457375108 | L71: 1.446699821 | M71: 71 | N71: 70 | O71: 0.4573751079 | P71: 0.4466998209 | Q71: 71 | R71: 70 | S71: 1.100143064 | T71: 0 | U71: 71 | V71: 70 | W71: 1.102421464 | X71: 0.002849026 | Y71: 71 | Z71: 70 | AA71: 0.100143064 | AB71: 1 | AC71: 71 | AD71: 70 | AE71: 0.1114089021 | AF71: 1.014087342 | AG71: 71 | AH71: 70 | AI71: 1.405752814 | AJ71: 1.38214887 | AK71: 71 | AL71: 70 | AM71: 0.3667143523 | AN71: 0.3333333333 | AO71: 71 | AP71: 70 | AQ71: 1.173518178 | AR71: 0.0917517095 | AS71: 71 | AT71: 70 | AU71: 1.201964236 | AV71: 0.1273220038
A72: 72 | B72: 71 | C72: 0.1153961647 | D72: 1.98265365 | E72: 72 | F72: 71 | G72: 0.117748501 | H72: 1.979701612 | I72: 72 | J72: 71 | K72: 1.457527612 | L72: 1.553300179 | M72: 72 | N72: 71 | O72: 0.457527612 | P72: 0.5533001791 | Q72: 72 | R72: 71 | S72: 1.101573679 | T72: 1 | U72: 72 | V72: 71 | W72: 1.103843927 | X72: 0.997150974 | Y72: 72 | Z72: 71 | AA72: 0.1015736792 | AB72: 2 | AC72: 72 | AD72: 71 | AE72: 0.1127992101 | AF72: 1.985912658 | AG72: 72 | AH72: 71 | AI72: 1.406090013 | AJ72: 1.61785113 | AK72: 72 | AL72: 71 | AM72: 0.367191224 | AN72: 0.6666666667 | AO72: 72 | AP72: 71 | AQ72: 1.17468627 | AR72: 0.9082482905 | AS72: 72 | AT72: 71 | AU72: 1.203030553 | AV72: 0.8726779962
A73: 73 | B73: 72 | C73: 0.116777148 | D73: 1.01734635 | E73: 73 | F73: 72 | G73: 0.1191210378 | H73: 1.020298388 | I73: 73 | J73: 72 | K73: 1.457680116 | L73: 1.446699821 | M73: 73 | N73: 72 | O73: 0.4576801161 | P73: 0.4466998209 | Q73: 73 | R73: 72 | S73: 1.103004294 | T73: 0 | U73: 73 | V73: 72 | W73: 1.105266391 | X73: 0.002849026 | Y73: 73 | Z73: 72 | AA73: 0.1030042944 | AB73: 1 | AC73: 73 | AD73: 72 | AE73: 0.1141895181 | AF73: 1.014087342 | AG73: 73 | AH73: 72 | AI73: 1.406427212 | AJ73: 1.38214887 | AK73: 73 | AL73: 72 | AM73: 0.3676680957 | AN73: 0.3333333333 | AO73: 73 | AP73: 72 | AQ73: 1.175854362 | AR73: 0.0917517095 | AS73: 73 | AT73: 72 | AU73: 1.204096871 | AV73: 0.1273220038
A74: 74 | B74: 73 | C74: 0.1181581313 | D74: 1.98265365 | E74: 74 | F74: 73 | G74: 0.1204935746 | H74: 1.979701612 | I74: 74 | J74: 73 | K74: 1.45783262 | L74: 1.553300179 | M74: 74 | N74: 73 | O74: 0.4578326202 | P74: 0.5533001791 | Q74: 74 | R74: 73 | S74: 1.10443491 | T74: 1 | U74: 74 | V74: 73 | W74: 1.106688854 | X74: 0.997150974 | Y74: 74 | Z74: 73 | AA74: 0.1044349096 | AB74: 2 | AC74: 74 | AD74: 73 | AE74: 0.1155798261 | AF74: 1.985912658 | AG74: 74 | AH74: 73 | AI74: 1.406764411 | AJ74: 1.61785113 | AK74: 74 | AL74: 73 | AM74: 0.3681449674 | AN74: 0.6666666667 | AO74: 74 | AP74: 73 | AQ74: 1.177022455 | AR74: 0.9082482905 | AS74: 74 | AT74: 73 | AU74: 1.205163189 | AV74: 0.8726779962
A75: 75 | B75: 74 | C75: 0.1195391146 | D75: 1.01734635 | E75: 75 | F75: 74 | G75: 0.1218661114 | H75: 1.020298388 | I75: 75 | J75: 74 | K75: 1.457985124 | L75: 1.446699821 | M75: 75 | N75: 74 | O75: 0.4579851243 | P75: 0.4466998209 | Q75: 75 | R75: 74 | S75: 1.105865525 | T75: 0 | U75: 75 | V75: 74 | W75: 1.108111318 | X75: 0.002849026 | Y75: 75 | Z75: 74 | AA75: 0.1058655248 | AB75: 1 | AC75: 75 | AD75: 74 | AE75: 0.1169701341 | AF75: 1.014087342 | AG75: 75 | AH75: 74 | AI75: 1.407101611 | AJ75: 1.38214887 | AK75: 75 | AL75: 74 | AM75: 0.3686218391 | AN75: 0.3333333333 | AO75: 75 | AP75: 74 | AQ75: 1.178190547 | AR75: 0.0917517095 | AS75: 75 | AT75: 74 | AU75: 1.206229506 | AV75: 0.1273220038
A76: 76 | B76: 75 | C76: 0.1209200979 | D76: 1.98265365 | E76: 76 | F76: 75 | G76: 0.1232386482 | H76: 1.979701612 | I76: 76 | J76: 75 | K76: 1.458137628 | L76: 1.553300179 | M76: 76 | N76: 75 | O76: 0.4581376284 | P76: 0.5533001791 | Q76: 76 | R76: 75 | S76: 1.10729614 | T76: 1 | U76: 76 | V76: 75 | W76: 1.109533781 | X76: 0.997150974 | Y76: 76 | Z76: 75 | AA76: 0.10729614 | AB76: 2 | AC76: 76 | AD76: 75 | AE76: 0.1183604421 | AF76: 1.985912658 | AG76: 76 | AH76: 75 | AI76: 1.40743881 | AJ76: 1.61785113 | AK76: 76 | AL76: 75 | AM76: 0.3690987108 | AN76: 0.6666666667 | AO76: 76 | AP76: 75 | AQ76: 1.179358639 | AR76: 0.9082482905 | AS76: 76 | AT76: 75 | AU76: 1.207295824 | AV76: 0.8726779962
A77: 77 | B77: 76 | C77: 0.1223010812 | D77: 1.01734635 | E77: 77 | F77: 76 | G77: 0.124611185 | H77: 1.020298388 | I77: 77 | J77: 76 | K77: 1.458290132 | L77: 1.446699821 | M77: 77 | N77: 76 | O77: 0.4582901325 | P77: 0.4466998209 | Q77: 77 | R77: 76 | S77: 1.108726755 | T77: 0 | U77: 77 | V77: 76 | W77: 1.110956244 | X77: 0.002849026 | Y77: 77 | Z77: 76 | AA77: 0.1087267552 | AB77: 1 | AC77: 77 | AD77: 76 | AE77: 0.1197507501 | AF77: 1.014087342 | AG77: 77 | AH77: 76 | AI77: 1.407776009 | AJ77: 1.38214887 | AK77: 77 | AL77: 76 | AM77: 0.3695755825 | AN77: 0.3333333333 | AO77: 77 | AP77: 76 | AQ77: 1.180526732 | AR77: 0.0917517095 | AS77: 77 | AT77: 76 | AU77: 1.208362141 | AV77: 0.1273220038
A78: 78 | B78: 77 | C78: 0.1236820645 | D78: 1.98265365 | E78: 78 | F78: 77 | G78: 0.1259837218 | H78: 1.979701612 | I78: 78 | J78: 77 | K78: 1.458442637 | L78: 1.553300179 | M78: 78 | N78: 77 | O78: 0.4584426366 | P78: 0.5533001791 | Q78: 78 | R78: 77 | S78: 1.11015737 | T78: 1 | U78: 78 | V78: 77 | W78: 1.112378708 | X78: 0.997150974 | Y78: 78 | Z78: 77 | AA78: 0.1101573704 | AB78: 2 | AC78: 78 | AD78: 77 | AE78: 0.1211410581 | AF78: 1.985912658 | AG78: 78 | AH78: 77 | AI78: 1.408113208 | AJ78: 1.61785113 | AK78: 78 | AL78: 77 | AM78: 0.3700524542 | AN78: 0.6666666667 | AO78: 78 | AP78: 77 | AQ78: 1.181694824 | AR78: 0.9082482905 | AS78: 78 | AT78: 77 | AU78: 1.209428459 | AV78: 0.8726779962
A79: 79 | B79: 78 | C79: 0.1250630478 | D79: 1.01734635 | E79: 79 | F79: 78 | G79: 0.1273562586 | H79: 1.020298388 | I79: 79 | J79: 78 | K79: 1.458595141 | L79: 1.446699821 | M79: 79 | N79: 78 | O79: 0.4585951407 | P79: 0.4466998209 | Q79: 79 | R79: 78 | S79: 1.111587986 | T79: 0 | U79: 79 | V79: 78 | W79: 1.113801171 | X79: 0.002849026 | Y79: 79 | Z79: 78 | AA79: 0.1115879856 | AB79: 1 | AC79: 79 | AD79: 78 | AE79: 0.1225313661 | AF79: 1.014087342 | AG79: 79 | AH79: 78 | AI79: 1.408450407 | AJ79: 1.38214887 | AK79: 79 | AL79: 78 | AM79: 0.3705293259 | AN79: 0.3333333333 | AO79: 79 | AP79: 78 | AQ79: 1.182862917 | AR79: 0.0917517095 | AS79: 79 | AT79: 78 | AU79: 1.210494777 | AV79: 0.1273220038
A80: 80 | B80: 79 | C80: 0.1264440311 | D80: 1.98265365 | E80: 80 | F80: 79 | G80: 0.1287287954 | H80: 1.979701612 | I80: 80 | J80: 79 | K80: 1.458747645 | L80: 1.553300179 | M80: 80 | N80: 79 | O80: 0.4587476448 | P80: 0.5533001791 | Q80: 80 | R80: 79 | S80: 1.113018601 | T80: 1 | U80: 80 | V80: 79 | W80: 1.115223635 | X80: 0.997150974 | Y80: 80 | Z80: 79 | AA80: 0.1130186008 | AB80: 2 | AC80: 80 | AD80: 79 | AE80: 0.1239216741 | AF80: 1.985912658 | AG80: 80 | AH80: 79 | AI80: 1.408787607 | AJ80: 1.61785113 | AK80: 80 | AL80: 79 | AM80: 0.3710061976 | AN80: 0.6666666667 | AO80: 80 | AP80: 79 | AQ80: 1.184031009 | AR80: 0.9082482905 | AS80: 80 | AT80: 79 | AU80: 1.211561094 | AV80: 0.8726779962
A81: 81 | B81: 80 | C81: 0.1278250144 | D81: 1.01734635 | E81: 81 | F81: 80 | G81: 0.1301013322 | H81: 1.020298388 | I81: 81 | J81: 80 | K81: 1.458900149 | L81: 1.446699821 | M81: 81 | N81: 80 | O81: 0.4589001489 | P81: 0.4466998209 | Q81: 81 | R81: 80 | S81: 1.114449216 | T81: 0 | U81: 81 | V81: 80 | W81: 1.116646098 | X81: 0.002849026 | Y81: 81 | Z81: 80 | AA81: 0.114449216 | AB81: 1 | AC81: 81 | AD81: 80 | AE81: 0.1253119821 | AF81: 1.014087342 | AG81: 81 | AH81: 80 | AI81: 1.409124806 | AJ81: 1.38214887 | AK81: 81 | AL81: 80 | AM81: 0.3714830693 | AN81: 0.3333333333 | AO81: 81 | AP81: 80 | AQ81: 1.185199102 | AR81: 0.0917517095 | AS81: 81 | AT81: 80 | AU81: 1.212627412 | AV81: 0.1273220038
A82: 82 | B82: 81 | C82: 0.1292059977 | D82: 1.98265365 | E82: 82 | F82: 81 | G82: 0.131473869 | H82: 1.979701612 | I82: 82 | J82: 81 | K82: 1.459052653 | L82: 1.553300179 | M82: 82 | N82: 81 | O82: 0.459052653 | P82: 0.5533001791 | Q82: 82 | R82: 81 | S82: 1.115879831 | T82: 1 | U82: 82 | V82: 81 | W82: 1.118068561 | X82: 0.997150974 | Y82: 82 | Z82: 81 | AA82: 0.1158798312 | AB82: 2 | AC82: 82 | AD82: 81 | AE82: 0.1267022901 | AF82: 1.985912658 | AG82: 82 | AH82: 81 | AI82: 1.409462005 | AJ82: 1.61785113 | AK82: 82 | AL82: 81 | AM82: 0.371959941 | AN82: 0.6666666667 | AO82: 82 | AP82: 81 | AQ82: 1.186367194 | AR82: 0.9082482905 | AS82: 82 | AT82: 81 | AU82: 1.213693729 | AV82: 0.8726779962
A83: 83 | B83: 82 | C83: 0.130586981 | D83: 1.01734635 | E83: 83 | F83: 82 | G83: 0.1328464058 | H83: 1.020298388 | I83: 83 | J83: 82 | K83: 1.459205157 | L83: 1.446699821 | M83: 83 | N83: 82 | O83: 0.4592051571 | P83: 0.4466998209 | Q83: 83 | R83: 82 | S83: 1.117310446 | T83: 0 | U83: 83 | V83: 82 | W83: 1.119491025 | X83: 0.002849026 | Y83: 83 | Z83: 82 | AA83: 0.1173104464 | AB83: 1 | AC83: 83 | AD83: 82 | AE83: 0.1280925981 | AF83: 1.014087342 | AG83: 83 | AH83: 82 | AI83: 1.409799204 | AJ83: 1.38214887 | AK83: 83 | AL83: 82 | AM83: 0.3724368127 | AN83: 0.3333333333 | AO83: 83 | AP83: 82 | AQ83: 1.187535286 | AR83: 0.0917517095 | AS83: 83 | AT83: 82 | AU83: 1.214760047 | AV83: 0.1273220038
A84: 84 | B84: 83 | C84: 0.1319679643 | D84: 1.98265365 | E84: 84 | F84: 83 | G84: 0.1342189426 | H84: 1.979701612 | I84: 84 | J84: 83 | K84: 1.459357661 | L84: 1.553300179 | M84: 84 | N84: 83 | O84: 0.4593576612 | P84: 0.5533001791 | Q84: 84 | R84: 83 | S84: 1.118741062 | T84: 1 | U84: 84 | V84: 83 | W84: 1.120913488 | X84: 0.997150974 | Y84: 84 | Z84: 83 | AA84: 0.1187410616 | AB84: 2 | AC84: 84 | AD84: 83 | AE84: 0.1294829061 | AF84: 1.985912658 | AG84: 84 | AH84: 83 | AI84: 1.410136403 | AJ84: 1.61785113 | AK84: 84 | AL84: 83 | AM84: 0.3729136844 | AN84: 0.6666666667 | AO84: 84 | AP84: 83 | AQ84: 1.188703379 | AR84: 0.9082482905 | AS84: 84 | AT84: 83 | AU84: 1.215826365 | AV84: 0.8726779962
A85: 85 | B85: 84 | C85: 0.1333489476 | D85: 1.01734635 | E85: 85 | F85: 84 | G85: 0.1355914794 | H85: 1.020298388 | I85: 85 | J85: 84 | K85: 1.459510165 | L85: 1.446699821 | M85: 85 | N85: 84 | O85: 0.4595101653 | P85: 0.4466998209 | Q85: 85 | R85: 84 | S85: 1.120171677 | T85: 0 | U85: 85 | V85: 84 | W85: 1.122335952 | X85: 0.002849026 | Y85: 85 | Z85: 84 | AA85: 0.1201716768 | AB85: 1 | AC85: 85 | AD85: 84 | AE85: 0.1308732141 | AF85: 1.014087342 | AG85: 85 | AH85: 84 | AI85: 1.410473603 | AJ85: 1.38214887 | AK85: 85 | AL85: 84 | AM85: 0.3733905561 | AN85: 0.3333333333 | AO85: 85 | AP85: 84 | AQ85: 1.189871471 | AR85: 0.0917517095 | AS85: 85 | AT85: 84 | AU85: 1.216892682 | AV85: 0.1273220038
A86: 86 | B86: 85 | C86: 0.1347299309 | D86: 1.98265365 | E86: 86 | F86: 85 | G86: 0.1369640162 | H86: 1.979701612 | I86: 86 | J86: 85 | K86: 1.459662669 | L86: 1.553300179 | M86: 86 | N86: 85 | O86: 0.4596626694 | P86: 0.5533001791 | Q86: 86 | R86: 85 | S86: 1.121602292 | T86: 1 | U86: 86 | V86: 85 | W86: 1.123758415 | X86: 0.997150974 | Y86: 86 | Z86: 85 | AA86: 0.121602292 | AB86: 2 | AC86: 86 | AD86: 85 | AE86: 0.1322635221 | AF86: 1.985912658 | AG86: 86 | AH86: 85 | AI86: 1.410810802 | AJ86: 1.61785113 | AK86: 86 | AL86: 85 | AM86: 0.3738674278 | AN86: 0.6666666667 | AO86: 86 | AP86: 85 | AQ86: 1.191039563 | AR86: 0.9082482905 | AS86: 86 | AT86: 85 | AU86: 1.217959 | AV86: 0.8726779962
A87: 87 | B87: 86 | C87: 0.1361109142 | D87: 1.01734635 | E87: 87 | F87: 86 | G87: 0.138336553 | H87: 1.020298388 | I87: 87 | J87: 86 | K87: 1.459815174 | L87: 1.446699821 | M87: 87 | N87: 86 | O87: 0.4598151735 | P87: 0.4466998209 | Q87: 87 | R87: 86 | S87: 1.123032907 | T87: 0 | U87: 87 | V87: 86 | W87: 1.125180878 | X87: 0.002849026 | Y87: 87 | Z87: 86 | AA87: 0.1230329072 | AB87: 1 | AC87: 87 | AD87: 86 | AE87: 0.1336538301 | AF87: 1.014087342 | AG87: 87 | AH87: 86 | AI87: 1.411148001 | AJ87: 1.38214887 | AK87: 87 | AL87: 86 | AM87: 0.3743442995 | AN87: 0.3333333333 | AO87: 87 | AP87: 86 | AQ87: 1.192207656 | AR87: 0.0917517095 | AS87: 87 | AT87: 86 | AU87: 1.219025317 | AV87: 0.1273220038
A88: 88 | B88: 87 | C88: 0.1374918975 | D88: 1.98265365 | E88: 88 | F88: 87 | G88: 0.1397090898 | H88: 1.979701612 | I88: 88 | J88: 87 | K88: 1.459967678 | L88: 1.553300179 | M88: 88 | N88: 87 | O88: 0.4599676776 | P88: 0.5533001791 | Q88: 88 | R88: 87 | S88: 1.124463522 | T88: 1 | U88: 88 | V88: 87 | W88: 1.126603342 | X88: 0.997150974 | Y88: 88 | Z88: 87 | AA88: 0.1244635224 | AB88: 2 | AC88: 88 | AD88: 87 | AE88: 0.1350441381 | AF88: 1.985912658 | AG88: 88 | AH88: 87 | AI88: 1.4114852 | AJ88: 1.61785113 | AK88: 88 | AL88: 87 | AM88: 0.3748211712 | AN88: 0.6666666667 | AO88: 88 | AP88: 87 | AQ88: 1.193375748 | AR88: 0.9082482905 | AS88: 88 | AT88: 87 | AU88: 1.220091635 | AV88: 0.8726779962
A89: 89 | B89: 88 | C89: 0.1388728808 | D89: 1.01734635 | E89: 89 | F89: 88 | G89: 0.1410816266 | H89: 1.020298388 | I89: 89 | J89: 88 | K89: 1.460120182 | L89: 1.446699821 | M89: 89 | N89: 88 | O89: 0.4601201817 | P89: 0.4466998209 | Q89: 89 | R89: 88 | S89: 1.125894138 | T89: 0 | U89: 89 | V89: 88 | W89: 1.128025805 | X89: 0.002849026 | Y89: 89 | Z89: 88 | AA89: 0.1258941376 | AB89: 1 | AC89: 89 | AD89: 88 | AE89: 0.1364344461 | AF89: 1.014087342 | AG89: 89 | AH89: 88 | AI89: 1.411822399 | AJ89: 1.38214887 | AK89: 89 | AL89: 88 | AM89: 0.3752980429 | AN89: 0.3333333333 | AO89: 89 | AP89: 88 | AQ89: 1.194543841 | AR89: 0.0917517095 | AS89: 89 | AT89: 88 | AU89: 1.221157953 | AV89: 0.1273220038
A90: 90 | B90: 89 | C90: 0.1402538641 | D90: 1.98265365 | E90: 90 | F90: 89 | G90: 0.1424541634 | H90: 1.979701612 | I90: 90 | J90: 89 | K90: 1.460272686 | L90: 1.553300179 | M90: 90 | N90: 89 | O90: 0.4602726858 | P90: 0.5533001791 | Q90: 90 | R90: 89 | S90: 1.127324753 | T90: 1 | U90: 90 | V90: 89 | W90: 1.129448269 | X90: 0.997150974 | Y90: 90 | Z90: 89 | AA90: 0.1273247528 | AB90: 2 | AC90: 90 | AD90: 89 | AE90: 0.1378247541 | AF90: 1.985912658 | AG90: 90 | AH90: 89 | AI90: 1.412159599 | AJ90: 1.61785113 | AK90: 90 | AL90: 89 | AM90: 0.3757749146 | AN90: 0.6666666667 | AO90: 90 | AP90: 89 | AQ90: 1.195711933 | AR90: 0.9082482905 | AS90: 90 | AT90: 89 | AU90: 1.22222427 | AV90: 0.8726779962
A91: 91 | B91: 90 | C91: 0.1416348474 | D91: 1.01734635 | E91: 91 | F91: 90 | G91: 0.1438267002 | H91: 1.020298388 | I91: 91 | J91: 90 | K91: 1.46042519 | L91: 1.446699821 | M91: 91 | N91: 90 | O91: 0.4604251899 | P91: 0.4466998209 | Q91: 91 | R91: 90 | S91: 1.128755368 | T91: 0 | U91: 91 | V91: 90 | W91: 1.130870732 | X91: 0.002849026 | Y91: 91 | Z91: 90 | AA91: 0.128755368 | AB91: 1 | AC91: 91 | AD91: 90 | AE91: 0.1392150621 | AF91: 1.014087342 | AG91: 91 | AH91: 90 | AI91: 1.412496798 | AJ91: 1.38214887 | AK91: 91 | AL91: 90 | AM91: 0.3762517863 | AN91: 0.3333333333 | AO91: 91 | AP91: 90 | AQ91: 1.196880026 | AR91: 0.0917517095 | AS91: 91 | AT91: 90 | AU91: 1.223290588 | AV91: 0.1273220038
A92: 92 | B92: 91 | C92: 0.1430158307 | D92: 1.98265365 | E92: 92 | F92: 91 | G92: 0.145199237 | H92: 1.979701612 | I92: 92 | J92: 91 | K92: 1.460577694 | L92: 1.553300179 | M92: 92 | N92: 91 | O92: 0.460577694 | P92: 0.5533001791 | Q92: 92 | R92: 91 | S92: 1.130185983 | T92: 1 | U92: 92 | V92: 91 | W92: 1.132293195 | X92: 0.997150974 | Y92: 92 | Z92: 91 | AA92: 0.1301859832 | AB92: 2 | AC92: 92 | AD92: 91 | AE92: 0.1406053701 | AF92: 1.985912658 | AG92: 92 | AH92: 91 | AI92: 1.412833997 | AJ92: 1.61785113 | AK92: 92 | AL92: 91 | AM92: 0.376728658 | AN92: 0.6666666667 | AO92: 92 | AP92: 91 | AQ92: 1.198048118 | AR92: 0.9082482905 | AS92: 92 | AT92: 91 | AU92: 1.224356905 | AV92: 0.8726779962
A93: 93 | B93: 92 | C93: 0.144396814 | D93: 1.01734635 | E93: 93 | F93: 92 | G93: 0.1465717738 | H93: 1.020298388 | I93: 93 | J93: 92 | K93: 1.460730198 | L93: 1.446699821 | M93: 93 | N93: 92 | O93: 0.4607301981 | P93: 0.4466998209 | Q93: 93 | R93: 92 | S93: 1.131616598 | T93: 0 | U93: 93 | V93: 92 | W93: 1.133715659 | X93: 0.002849026 | Y93: 93 | Z93: 92 | AA93: 0.1316165984 | AB93: 1 | AC93: 93 | AD93: 92 | AE93: 0.1419956781 | AF93: 1.014087342 | AG93: 93 | AH93: 92 | AI93: 1.413171196 | AJ93: 1.38214887 | AK93: 93 | AL93: 92 | AM93: 0.3772055297 | AN93: 0.3333333333 | AO93: 93 | AP93: 92 | AQ93: 1.19921621 | AR93: 0.0917517095 | AS93: 93 | AT93: 92 | AU93: 1.225423223 | AV93: 0.1273220038
A94: 94 | B94: 93 | C94: 0.1457777973 | D94: 1.98265365 | E94: 94 | F94: 93 | G94: 0.1479443106 | H94: 1.979701612 | I94: 94 | J94: 93 | K94: 1.460882702 | L94: 1.553300179 | M94: 94 | N94: 93 | O94: 0.4608827022 | P94: 0.5533001791 | Q94: 94 | R94: 93 | S94: 1.133047214 | T94: 1 | U94: 94 | V94: 93 | W94: 1.135138122 | X94: 0.997150974 | Y94: 94 | Z94: 93 | AA94: 0.1330472136 | AB94: 2 | AC94: 94 | AD94: 93 | AE94: 0.1433859861 | AF94: 1.985912658 | AG94: 94 | AH94: 93 | AI94: 1.413508395 | AJ94: 1.61785113 | AK94: 94 | AL94: 93 | AM94: 0.3776824014 | AN94: 0.6666666667 | AO94: 94 | AP94: 93 | AQ94: 1.200384303 | AR94: 0.9082482905 | AS94: 94 | AT94: 93 | AU94: 1.226489541 | AV94: 0.8726779962
A95: 95 | B95: 94 | C95: 0.1471587806 | D95: 1.01734635 | E95: 95 | F95: 94 | G95: 0.1493168474 | H95: 1.020298388 | I95: 95 | J95: 94 | K95: 1.461035206 | L95: 1.446699821 | M95: 95 | N95: 94 | O95: 0.4610352063 | P95: 0.4466998209 | Q95: 95 | R95: 94 | S95: 1.134477829 | T95: 0 | U95: 95 | V95: 94 | W95: 1.136560586 | X95: 0.002849026 | Y95: 95 | Z95: 94 | AA95: 0.1344778288 | AB95: 1 | AC95: 95 | AD95: 94 | AE95: 0.1447762941 | AF95: 1.014087342 | AG95: 95 | AH95: 94 | AI95: 1.413845595 | AJ95: 1.38214887 | AK95: 95 | AL95: 94 | AM95: 0.3781592731 | AN95: 0.3333333333 | AO95: 95 | AP95: 94 | AQ95: 1.201552395 | AR95: 0.0917517095 | AS95: 95 | AT95: 94 | AU95: 1.227555858 | AV95: 0.1273220038
A96: 96 | B96: 95 | C96: 0.1485397639 | D96: 1.98265365 | E96: 96 | F96: 95 | G96: 0.1506893842 | H96: 1.979701612 | I96: 96 | J96: 95 | K96: 1.46118771 | L96: 1.553300179 | M96: 96 | N96: 95 | O96: 0.4611877104 | P96: 0.5533001791 | Q96: 96 | R96: 95 | S96: 1.135908444 | T96: 1 | U96: 96 | V96: 95 | W96: 1.137983049 | X96: 0.997150974 | Y96: 96 | Z96: 95 | AA96: 0.135908444 | AB96: 2 | AC96: 96 | AD96: 95 | AE96: 0.1461666021 | AF96: 1.985912658 | AG96: 96 | AH96: 95 | AI96: 1.414182794 | AJ96: 1.61785113 | AK96: 96 | AL96: 95 | AM96: 0.3786361448 | AN96: 0.6666666667 | AO96: 96 | AP96: 95 | AQ96: 1.202720487 | AR96: 0.9082482905 | AS96: 96 | AT96: 95 | AU96: 1.228622176 | AV96: 0.8726779962
A97: 97 | B97: 96 | C97: 0.1499207472 | D97: 1.01734635 | E97: 97 | F97: 96 | G97: 0.152061921 | H97: 1.020298388 | I97: 97 | J97: 96 | K97: 1.461340214 | L97: 1.446699821 | M97: 97 | N97: 96 | O97: 0.4613402145 | P97: 0.4466998209 | Q97: 97 | R97: 96 | S97: 1.137339059 | T97: 0 | U97: 97 | V97: 96 | W97: 1.139405512 | X97: 0.002849026 | Y97: 97 | Z97: 96 | AA97: 0.1373390592 | AB97: 1 | AC97: 97 | AD97: 96 | AE97: 0.1475569101 | AF97: 1.014087342 | AG97: 97 | AH97: 96 | AI97: 1.414519993 | AJ97: 1.38214887 | AK97: 97 | AL97: 96 | AM97: 0.3791130165 | AN97: 0.3333333333 | AO97: 97 | AP97: 96 | AQ97: 1.20388858 | AR97: 0.0917517095 | AS97: 97 | AT97: 96 | AU97: 1.229688493 | AV97: 0.1273220038
A98: 98 | B98: 97 | C98: 0.1513017305 | D98: 1.98265365 | E98: 98 | F98: 97 | G98: 0.1534344578 | H98: 1.979701612 | I98: 98 | J98: 97 | K98: 1.461492719 | L98: 1.553300179 | M98: 98 | N98: 97 | O98: 0.4614927186 | P98: 0.5533001791 | Q98: 98 | R98: 97 | S98: 1.138769674 | T98: 1 | U98: 98 | V98: 97 | W98: 1.140827976 | X98: 0.997150974 | Y98: 98 | Z98: 97 | AA98: 0.1387696744 | AB98: 2 | AC98: 98 | AD98: 97 | AE98: 0.1489472181 | AF98: 1.985912658 | AG98: 98 | AH98: 97 | AI98: 1.414857192 | AJ98: 1.61785113 | AK98: 98 | AL98: 97 | AM98: 0.3795898882 | AN98: 0.6666666667 | AO98: 98 | AP98: 97 | AQ98: 1.205056672 | AR98: 0.9082482905 | AS98: 98 | AT98: 97 | AU98: 1.230754811 | AV98: 0.8726779962
A99: 99 | B99: 98 | C99: 0.1526827138 | D99: 1.01734635 | E99: 99 | F99: 98 | G99: 0.1548069946 | H99: 1.020298388 | I99: 99 | J99: 98 | K99: 1.461645223 | L99: 1.446699821 | M99: 99 | N99: 98 | O99: 0.4616452227 | P99: 0.4466998209 | Q99: 99 | R99: 98 | S99: 1.14020029 | T99: 0 | U99: 99 | V99: 98 | W99: 1.142250439 | X99: 0.002849026 | Y99: 99 | Z99: 98 | AA99: 0.1402002896 | AB99: 1 | AC99: 99 | AD99: 98 | AE99: 0.1503375261 | AF99: 1.014087342 | AG99: 99 | AH99: 98 | AI99: 1.415194391 | AJ99: 1.38214887 | AK99: 99 | AL99: 98 | AM99: 0.3800667599 | AN99: 0.3333333333 | AO99: 99 | AP99: 98 | AQ99: 1.206224765 | AR99: 0.0917517095 | AS99: 99 | AT99: 98 | AU99: 1.231821129 | AV99: 0.1273220038
A100: 100 | B100: 99 | C100: 0.1540636971 | D100: 1.98265365 | E100: 100 | F100: 99 | G100: 0.1561795314 | H100: 1.979701612 | I100: 100 | J100: 99 | K100: 1.461797727 | L100: 1.553300179 | M100: 100 | N100: 99 | O100: 0.4617977268 | P100: 0.5533001791 | Q100: 100 | R100: 99 | S100: 1.141630905 | T100: 1 | U100: 100 | V100: 99 | W100: 1.143672903 | X100: 0.997150974 | Y100: 100 | Z100: 99 | AA100: 0.1416309048 | AB100: 2 | AC100: 100 | AD100: 99 | AE100: 0.1517278341 | AF100: 1.985912658 | AG100: 100 | AH100: 99 | AI100: 1.415531591 | AJ100: 1.61785113 | AK100: 100 | AL100: 99 | AM100: 0.3805436316 | AN100: 0.6666666667 | AO100: 100 | AP100: 99 | AQ100: 1.207392857 | AR100: 0.9082482905 | AS100: 100 | AT100: 99 | AU100: 1.232887446 | AV100: 0.8726779962
A101: 101 | B101: 100 | C101: 0.1554446804 | D101: 1.01734635 | E101: 101 | F101: 100 | G101: 0.1575520682 | H101: 1.020298388 | I101: 101 | J101: 100 | K101: 1.461950231 | L101: 1.446699821 | M101: 101 | N101: 100 | O101: 0.4619502309 | P101: 0.4466998209 | Q101: 101 | R101: 100 | S101: 1.14306152 | T101: 0 | U101: 101 | V101: 100 | W101: 1.145095366 | X101: 0.002849026 | Y101: 101 | Z101: 100 | AA101: 0.14306152 | AB101: 1 | AC101: 101 | AD101: 100 | AE101: 0.1531181421 | AF101: 1.014087342 | AG101: 101 | AH101: 100 | AI101: 1.41586879 | AJ101: 1.38214887 | AK101: 101 | AL101: 100 | AM101: 0.3810205033 | AN101: 0.3333333333 | AO101: 101 | AP101: 100 | AQ101: 1.20856095 | AR101: 0.0917517095 | AS101: 101 | AT101: 100 | AU101: 1.233953764 | AV101: 0.1273220038
A102: 102 | B102: 101 | C102: 0.1568256637 | D102: 1.98265365 | E102: 102 | F102: 101 | G102: 0.158924605 | H102: 1.979701612 | I102: 102 | J102: 101 | K102: 1.462102735 | L102: 1.553300179 | M102: 102 | N102: 101 | O102: 0.462102735 | P102: 0.5533001791 | Q102: 102 | R102: 101 | S102: 1.144492135 | T102: 1 | U102: 102 | V102: 101 | W102: 1.146517829 | X102: 0.997150974 | Y102: 102 | Z102: 101 | AA102: 0.1444921352 | AB102: 2 | AC102: 102 | AD102: 101 | AE102: 0.1545084501 | AF102: 1.985912658 | AG102: 102 | AH102: 101 | AI102: 1.416205989 | AJ102: 1.61785113 | AK102: 102 | AL102: 101 | AM102: 0.381497375 | AN102: 0.6666666667 | AO102: 102 | AP102: 101 | AQ102: 1.209729042 | AR102: 0.9082482905 | AS102: 102 | AT102: 101 | AU102: 1.235020081 | AV102: 0.8726779962
A103: 103 | B103: 102 | C103: 0.158206647 | D103: 1.01734635 | E103: 103 | F103: 102 | G103: 0.1602971418 | H103: 1.020298388 | I103: 103 | J103: 102 | K103: 1.462255239 | L103: 1.446699821 | M103: 103 | N103: 102 | O103: 0.4622552391 | P103: 0.4466998209 | Q103: 103 | R103: 102 | S103: 1.14592275 | T103: 0 | U103: 103 | V103: 102 | W103: 1.147940293 | X103: 0.002849026 | Y103: 103 | Z103: 102 | AA103: 0.1459227504 | AB103: 1 | AC103: 103 | AD103: 102 | AE103: 0.1558987581 | AF103: 1.014087342 | AG103: 103 | AH103: 102 | AI103: 1.416543188 | AJ103: 1.38214887 | AK103: 103 | AL103: 102 | AM103: 0.3819742467 | AN103: 0.3333333333 | AO103: 103 | AP103: 102 | AQ103: 1.210897134 | AR103: 0.0917517095 | AS103: 103 | AT103: 102 | AU103: 1.236086399 | AV103: 0.1273220038
A104: 104 | B104: 103 | C104: 0.1595876303 | D104: 1.98265365 | E104: 104 | F104: 103 | G104: 0.1616696786 | H104: 1.979701612 | I104: 104 | J104: 103 | K104: 1.462407743 | L104: 1.553300179 | M104: 104 | N104: 103 | O104: 0.4624077432 | P104: 0.5533001791 | Q104: 104 | R104: 103 | S104: 1.147353366 | T104: 1 | U104: 104 | V104: 103 | W104: 1.149362756 | X104: 0.997150974 | Y104: 104 | Z104: 103 | AA104: 0.1473533656 | AB104: 2 | AC104: 104 | AD104: 103 | AE104: 0.1572890661 | AF104: 1.985912658 | AG104: 104 | AH104: 103 | AI104: 1.416880387 | AJ104: 1.61785113 | AK104: 104 | AL104: 103 | AM104: 0.3824511184 | AN104: 0.6666666667 | AO104: 104 | AP104: 103 | AQ104: 1.212065227 | AR104: 0.9082482905 | AS104: 104 | AT104: 103 | AU104: 1.237152717 | AV104: 0.8726779962
A105: 105 | B105: 104 | C105: 0.1609686136 | D105: 1.01734635 | E105: 105 | F105: 104 | G105: 0.1630422154 | H105: 1.020298388 | I105: 105 | J105: 104 | K105: 1.462560247 | L105: 1.446699821 | M105: 105 | N105: 104 | O105: 0.4625602473 | P105: 0.4466998209 | Q105: 105 | R105: 104 | S105: 1.148783981 | T105: 0 | U105: 105 | V105: 104 | W105: 1.15078522 | X105: 0.002849026 | Y105: 105 | Z105: 104 | AA105: 0.1487839808 | AB105: 1 | AC105: 105 | AD105: 104 | AE105: 0.1586793741 | AF105: 1.014087342 | AG105: 105 | AH105: 104 | AI105: 1.417217587 | AJ105: 1.38214887 | AK105: 105 | AL105: 104 | AM105: 0.3829279901 | AN105: 0.3333333333 | AO105: 105 | AP105: 104 | AQ105: 1.213233319 | AR105: 0.0917517095 | AS105: 105 | AT105: 104 | AU105: 1.238219034 | AV105: 0.1273220038
A106: 106 | B106: 105 | C106: 0.1623495969 | D106: 1.98265365 | E106: 106 | F106: 105 | G106: 0.1644147522 | H106: 1.979701612 | I106: 106 | J106: 105 | K106: 1.462712751 | L106: 1.553300179 | M106: 106 | N106: 105 | O106: 0.4627127514 | P106: 0.5533001791 | Q106: 106 | R106: 105 | S106: 1.150214596 | T106: 1 | U106: 106 | V106: 105 | W106: 1.152207683 | X106: 0.997150974 | Y106: 106 | Z106: 105 | AA106: 0.150214596 | AB106: 2 | AC106: 106 | AD106: 105 | AE106: 0.1600696821 | AF106: 1.985912658 | AG106: 106 | AH106: 105 | AI106: 1.417554786 | AJ106: 1.61785113 | AK106: 106 | AL106: 105 | AM106: 0.3834048618 | AN106: 0.6666666667 | AO106: 106 | AP106: 105 | AQ106: 1.214401411 | AR106: 0.9082482905 | AS106: 106 | AT106: 105 | AU106: 1.239285352 | AV106: 0.8726779962
A107: 107 | B107: 106 | C107: 0.1637305802 | D107: 1.01734635 | E107: 107 | F107: 106 | G107: 0.165787289 | H107: 1.020298388 | I107: 107 | J107: 106 | K107: 1.462865255 | L107: 1.446699821 | M107: 107 | N107: 106 | O107: 0.4628652555 | P107: 0.4466998209 | Q107: 107 | R107: 106 | S107: 1.151645211 | T107: 0 | U107: 107 | V107: 106 | W107: 1.153630146 | X107: 0.002849026 | Y107: 107 | Z107: 106 | AA107: 0.1516452112 | AB107: 1 | AC107: 107 | AD107: 106 | AE107: 0.1614599901 | AF107: 1.014087342 | AG107: 107 | AH107: 106 | AI107: 1.417891985 | AJ107: 1.38214887 | AK107: 107 | AL107: 106 | AM107: 0.3838817335 | AN107: 0.3333333333 | AO107: 107 | AP107: 106 | AQ107: 1.215569504 | AR107: 0.0917517095 | AS107: 107 | AT107: 106 | AU107: 1.240351669 | AV107: 0.1273220038
A108: 108 | B108: 107 | C108: 0.1651115635 | D108: 1.98265365 | E108: 108 | F108: 107 | G108: 0.1671598258 | H108: 1.979701612 | I108: 108 | J108: 107 | K108: 1.46301776 | L108: 1.553300179 | M108: 108 | N108: 107 | O108: 0.4630177596 | P108: 0.5533001791 | Q108: 108 | R108: 107 | S108: 1.153075826 | T108: 1 | U108: 108 | V108: 107 | W108: 1.15505261 | X108: 0.997150974 | Y108: 108 | Z108: 107 | AA108: 0.1530758264 | AB108: 2 | AC108: 108 | AD108: 107 | AE108: 0.1628502981 | AF108: 1.985912658 | AG108: 108 | AH108: 107 | AI108: 1.418229184 | AJ108: 1.61785113 | AK108: 108 | AL108: 107 | AM108: 0.3843586052 | AN108: 0.6666666667 | AO108: 108 | AP108: 107 | AQ108: 1.216737596 | AR108: 0.9082482905 | AS108: 108 | AT108: 107 | AU108: 1.241417987 | AV108: 0.8726779962
A109: 109 | B109: 108 | C109: 0.1664925468 | D109: 1.01734635 | E109: 109 | F109: 108 | G109: 0.1685323626 | H109: 1.020298388 | I109: 109 | J109: 108 | K109: 1.463170264 | L109: 1.446699821 | M109: 109 | N109: 108 | O109: 0.4631702637 | P109: 0.4466998209 | Q109: 109 | R109: 108 | S109: 1.154506442 | T109: 0 | U109: 109 | V109: 108 | W109: 1.156475073 | X109: 0.002849026 | Y109: 109 | Z109: 108 | AA109: 0.1545064416 | AB109: 1 | AC109: 109 | AD109: 108 | AE109: 0.1642406061 | AF109: 1.014087342 | AG109: 109 | AH109: 108 | AI109: 1.418566383 | AJ109: 1.38214887 | AK109: 109 | AL109: 108 | AM109: 0.3848354769 | AN109: 0.3333333333 | AO109: 109 | AP109: 108 | AQ109: 1.217905689 | AR109: 0.0917517095 | AS109: 109 | AT109: 108 | AU109: 1.242484305 | AV109: 0.1273220038
A110: 110 | B110: 109 | C110: 0.1678735301 | D110: 1.98265365 | E110: 110 | F110: 109 | G110: 0.1699048994 | H110: 1.979701612 | I110: 110 | J110: 109 | K110: 1.463322768 | L110: 1.553300179 | M110: 110 | N110: 109 | O110: 0.4633227678 | P110: 0.5533001791 | Q110: 110 | R110: 109 | S110: 1.155937057 | T110: 1 | U110: 110 | V110: 109 | W110: 1.157897537 | X110: 0.997150974 | Y110: 110 | Z110: 109 | AA110: 0.1559370568 | AB110: 2 | AC110: 110 | AD110: 109 | AE110: 0.1656309141 | AF110: 1.985912658 | AG110: 110 | AH110: 109 | AI110: 1.418903583 | AJ110: 1.61785113 | AK110: 110 | AL110: 109 | AM110: 0.3853123486 | AN110: 0.6666666667 | AO110: 110 | AP110: 109 | AQ110: 1.219073781 | AR110: 0.9082482905 | AS110: 110 | AT110: 109 | AU110: 1.243550622 | AV110: 0.8726779962
A111: 111 | B111: 110 | C111: 0.1692545134 | D111: 1.01734635 | E111: 111 | F111: 110 | G111: 0.1712774362 | H111: 1.020298388 | I111: 111 | J111: 110 | K111: 1.463475272 | L111: 1.446699821 | M111: 111 | N111: 110 | O111: 0.4634752719 | P111: 0.4466998209 | Q111: 111 | R111: 110 | S111: 1.157367672 | T111: 0 | U111: 111 | V111: 110 | W111: 1.15932 | X111: 0.002849026 | Y111: 111 | Z111: 110 | AA111: 0.157367672 | AB111: 1 | AC111: 111 | AD111: 110 | AE111: 0.1670212221 | AF111: 1.014087342 | AG111: 111 | AH111: 110 | AI111: 1.419240782 | AJ111: 1.38214887 | AK111: 111 | AL111: 110 | AM111: 0.3857892203 | AN111: 0.3333333333 | AO111: 111 | AP111: 110 | AQ111: 1.220241874 | AR111: 0.0917517095 | AS111: 111 | AT111: 110 | AU111: 1.24461694 | AV111: 0.1273220038
A112: 112 | B112: 111 | C112: 0.1706354967 | D112: 1.98265365 | E112: 112 | F112: 111 | G112: 0.172649973 | H112: 1.979701612 | I112: 112 | J112: 111 | K112: 1.463627776 | L112: 1.553300179 | M112: 112 | N112: 111 | O112: 0.463627776 | P112: 0.5533001791 | Q112: 112 | R112: 111 | S112: 1.158798287 | T112: 1 | U112: 112 | V112: 111 | W112: 1.160742463 | X112: 0.997150974 | Y112: 112 | Z112: 111 | AA112: 0.1587982872 | AB112: 2 | AC112: 112 | AD112: 111 | AE112: 0.1684115301 | AF112: 1.985912658 | AG112: 112 | AH112: 111 | AI112: 1.419577981 | AJ112: 1.61785113 | AK112: 112 | AL112: 111 | AM112: 0.386266092 | AN112: 0.6666666667 | AO112: 112 | AP112: 111 | AQ112: 1.221409966 | AR112: 0.9082482905 | AS112: 112 | AT112: 111 | AU112: 1.245683257 | AV112: 0.8726779962
A113: 113 | B113: 112 | C113: 0.17201648 | D113: 1.01734635 | E113: 113 | F113: 112 | G113: 0.1740225098 | H113: 1.020298388 | I113: 113 | J113: 112 | K113: 1.46378028 | L113: 1.446699821 | M113: 113 | N113: 112 | O113: 0.4637802801 | P113: 0.4466998209 | Q113: 113 | R113: 112 | S113: 1.160228902 | T113: 0 | U113: 113 | V113: 112 | W113: 1.162164927 | X113: 0.002849026 | Y113: 113 | Z113: 112 | AA113: 0.1602289024 | AB113: 1 | AC113: 113 | AD113: 112 | AE113: 0.1698018381 | AF113: 1.014087342 | AG113: 113 | AH113: 112 | AI113: 1.41991518 | AJ113: 1.38214887 | AK113: 113 | AL113: 112 | AM113: 0.3867429637 | AN113: 0.3333333333 | AO113: 113 | AP113: 112 | AQ113: 1.222578058 | AR113: 0.0917517095 | AS113: 113 | AT113: 112 | AU113: 1.246749575 | AV113: 0.1273220038
A114: 114 | B114: 113 | C114: 0.1733974633 | D114: 1.98265365 | E114: 114 | F114: 113 | G114: 0.1753950466 | H114: 1.979701612 | I114: 114 | J114: 113 | K114: 1.463932784 | L114: 1.553300179 | M114: 114 | N114: 113 | O114: 0.4639327842 | P114: 0.5533001791 | Q114: 114 | R114: 113 | S114: 1.161659518 | T114: 1 | U114: 114 | V114: 113 | W114: 1.16358739 | X114: 0.997150974 | Y114: 114 | Z114: 113 | AA114: 0.1616595176 | AB114: 2 | AC114: 114 | AD114: 113 | AE114: 0.1711921461 | AF114: 1.985912658 | AG114: 114 | AH114: 113 | AI114: 1.420252379 | AJ114: 1.61785113 | AK114: 114 | AL114: 113 | AM114: 0.3872198354 | AN114: 0.6666666667 | AO114: 114 | AP114: 113 | AQ114: 1.223746151 | AR114: 0.9082482905 | AS114: 114 | AT114: 113 | AU114: 1.247815893 | AV114: 0.8726779962
A115: 115 | B115: 114 | C115: 0.1747784466 | D115: 1.01734635 | E115: 115 | F115: 114 | G115: 0.1767675834 | H115: 1.020298388 | I115: 115 | J115: 114 | K115: 1.464085288 | L115: 1.446699821 | M115: 115 | N115: 114 | O115: 0.4640852883 | P115: 0.4466998209 | Q115: 115 | R115: 114 | S115: 1.163090133 | T115: 0 | U115: 115 | V115: 114 | W115: 1.165009854 | X115: 0.002849026 | Y115: 115 | Z115: 114 | AA115: 0.1630901328 | AB115: 1 | AC115: 115 | AD115: 114 | AE115: 0.1725824541 | AF115: 1.014087342 | AG115: 115 | AH115: 114 | AI115: 1.420589579 | AJ115: 1.38214887 | AK115: 115 | AL115: 114 | AM115: 0.3876967071 | AN115: 0.3333333333 | AO115: 115 | AP115: 114 | AQ115: 1.224914243 | AR115: 0.0917517095 | AS115: 115 | AT115: 114 | AU115: 1.24888221 | AV115: 0.1273220038
A116: 116 | B116: 115 | C116: 0.1761594299 | D116: 1.98265365 | E116: 116 | F116: 115 | G116: 0.1781401202 | H116: 1.979701612 | I116: 116 | J116: 115 | K116: 1.464237792 | L116: 1.553300179 | M116: 116 | N116: 115 | O116: 0.4642377924 | P116: 0.5533001791 | Q116: 116 | R116: 115 | S116: 1.164520748 | T116: 1 | U116: 116 | V116: 115 | W116: 1.166432317 | X116: 0.997150974 | Y116: 116 | Z116: 115 | AA116: 0.164520748 | AB116: 2 | AC116: 116 | AD116: 115 | AE116: 0.1739727621 | AF116: 1.985912658 | AG116: 116 | AH116: 115 | AI116: 1.420926778 | AJ116: 1.61785113 | AK116: 116 | AL116: 115 | AM116: 0.3881735788 | AN116: 0.6666666667 | AO116: 116 | AP116: 115 | AQ116: 1.226082336 | AR116: 0.9082482905 | AS116: 116 | AT116: 115 | AU116: 1.249948528 | AV116: 0.8726779962
A117: 117 | B117: 116 | C117: 0.1775404132 | D117: 1.01734635 | E117: 117 | F117: 116 | G117: 0.179512657 | H117: 1.020298388 | I117: 117 | J117: 116 | K117: 1.464390296 | L117: 1.446699821 | M117: 117 | N117: 116 | O117: 0.4643902965 | P117: 0.4466998209 | Q117: 117 | R117: 116 | S117: 1.165951363 | T117: 0 | U117: 117 | V117: 116 | W117: 1.16785478 | X117: 0.002849026 | Y117: 117 | Z117: 116 | AA117: 0.1659513632 | AB117: 1 | AC117: 117 | AD117: 116 | AE117: 0.1753630701 | AF117: 1.014087342 | AG117: 117 | AH117: 116 | AI117: 1.421263977 | AJ117: 1.38214887 | AK117: 117 | AL117: 116 | AM117: 0.3886504505 | AN117: 0.3333333333 | AO117: 117 | AP117: 116 | AQ117: 1.227250428 | AR117: 0.0917517095 | AS117: 117 | AT117: 116 | AU117: 1.251014845 | AV117: 0.1273220038
A118: 118 | B118: 117 | C118: 0.1789213965 | D118: 1.98265365 | E118: 118 | F118: 117 | G118: 0.1808851938 | H118: 1.979701612 | I118: 118 | J118: 117 | K118: 1.464542801 | L118: 1.553300179 | M118: 118 | N118: 117 | O118: 0.4645428006 | P118: 0.5533001791 | Q118: 118 | R118: 117 | S118: 1.167381978 | T118: 1 | U118: 118 | V118: 117 | W118: 1.169277244 | X118: 0.997150974 | Y118: 118 | Z118: 117 | AA118: 0.1673819784 | AB118: 2 | AC118: 118 | AD118: 117 | AE118: 0.1767533781 | AF118: 1.985912658 | AG118: 118 | AH118: 117 | AI118: 1.421601176 | AJ118: 1.61785113 | AK118: 118 | AL118: 117 | AM118: 0.3891273222 | AN118: 0.6666666667 | AO118: 118 | AP118: 117 | AQ118: 1.22841852 | AR118: 0.9082482905 | AS118: 118 | AT118: 117 | AU118: 1.252081163 | AV118: 0.8726779962
A119: 119 | B119: 118 | C119: 0.1803023798 | D119: 1.01734635 | E119: 119 | F119: 118 | G119: 0.1822577306 | H119: 1.020298388 | I119: 119 | J119: 118 | K119: 1.464695305 | L119: 1.446699821 | M119: 119 | N119: 118 | O119: 0.4646953047 | P119: 0.4466998209 | Q119: 119 | R119: 118 | S119: 1.168812594 | T119: 0 | U119: 119 | V119: 118 | W119: 1.170699707 | X119: 0.002849026 | Y119: 119 | Z119: 118 | AA119: 0.1688125936 | AB119: 1 | AC119: 119 | AD119: 118 | AE119: 0.1781436861 | AF119: 1.014087342 | AG119: 119 | AH119: 118 | AI119: 1.421938375 | AJ119: 1.38214887 | AK119: 119 | AL119: 118 | AM119: 0.3896041939 | AN119: 0.3333333333 | AO119: 119 | AP119: 118 | AQ119: 1.229586613 | AR119: 0.0917517095 | AS119: 119 | AT119: 118 | AU119: 1.253147481 | AV119: 0.1273220038
A120: 120 | B120: 119 | C120: 0.1816833631 | D120: 1.98265365 | E120: 120 | F120: 119 | G120: 0.1836302674 | H120: 1.979701612 | I120: 120 | J120: 119 | K120: 1.464847809 | L120: 1.553300179 | M120: 120 | N120: 119 | O120: 0.4648478088 | P120: 0.5533001791 | Q120: 120 | R120: 119 | S120: 1.170243209 | T120: 1 | U120: 120 | V120: 119 | W120: 1.172122171 | X120: 0.997150974 | Y120: 120 | Z120: 119 | AA120: 0.1702432088 | AB120: 2 | AC120: 120 | AD120: 119 | AE120: 0.1795339941 | AF120: 1.985912658 | AG120: 120 | AH120: 119 | AI120: 1.422275575 | AJ120: 1.61785113 | AK120: 120 | AL120: 119 | AM120: 0.3900810656 | AN120: 0.6666666667 | AO120: 120 | AP120: 119 | AQ120: 1.230754705 | AR120: 0.9082482905 | AS120: 120 | AT120: 119 | AU120: 1.254213798 | AV120: 0.8726779962
A121: 121 | B121: 120 | C121: 0.1830643464 | D121: 1.01734635 | E121: 121 | F121: 120 | G121: 0.1850028042 | H121: 1.020298388 | I121: 121 | J121: 120 | K121: 1.465000313 | L121: 1.446699821 | M121: 121 | N121: 120 | O121: 0.4650003129 | P121: 0.4466998209 | Q121: 121 | R121: 120 | S121: 1.171673824 | T121: 0 | U121: 121 | V121: 120 | W121: 1.173544634 | X121: 0.002849026 | Y121: 121 | Z121: 120 | AA121: 0.171673824 | AB121: 1 | AC121: 121 | AD121: 120 | AE121: 0.1809243021 | AF121: 1.014087342 | AG121: 121 | AH121: 120 | AI121: 1.422612774 | AJ121: 1.38214887 | AK121: 121 | AL121: 120 | AM121: 0.3905579373 | AN121: 0.3333333333 | AO121: 121 | AP121: 120 | AQ121: 1.231922797 | AR121: 0.0917517095 | AS121: 121 | AT121: 120 | AU121: 1.255280116 | AV121: 0.1273220038
A122: 122 | B122: 121 | C122: 0.1844453297 | D122: 1.98265365 | E122: 122 | F122: 121 | G122: 0.186375341 | H122: 1.979701612 | I122: 122 | J122: 121 | K122: 1.465152817 | L122: 1.553300179 | M122: 122 | N122: 121 | O122: 0.465152817 | P122: 0.5533001791 | Q122: 122 | R122: 121 | S122: 1.173104439 | T122: 1 | U122: 122 | V122: 121 | W122: 1.174967097 | X122: 0.997150974 | Y122: 122 | Z122: 121 | AA122: 0.1731044392 | AB122: 2 | AC122: 122 | AD122: 121 | AE122: 0.1823146101 | AF122: 1.985912658 | AG122: 122 | AH122: 121 | AI122: 1.422949973 | AJ122: 1.61785113 | AK122: 122 | AL122: 121 | AM122: 0.391034809 | AN122: 0.6666666667 | AO122: 122 | AP122: 121 | AQ122: 1.23309089 | AR122: 0.9082482905 | AS122: 122 | AT122: 121 | AU122: 1.256346433 | AV122: 0.8726779962
A123: 123 | B123: 122 | C123: 0.185826313 | D123: 1.01734635 | E123: 123 | F123: 122 | G123: 0.1877478778 | H123: 1.020298388 | I123: 123 | J123: 122 | K123: 1.465305321 | L123: 1.446699821 | M123: 123 | N123: 122 | O123: 0.4653053211 | P123: 0.4466998209 | Q123: 123 | R123: 122 | S123: 1.174535054 | T123: 0 | U123: 123 | V123: 122 | W123: 1.176389561 | X123: 0.002849026 | Y123: 123 | Z123: 122 | AA123: 0.1745350544 | AB123: 1 | AC123: 123 | AD123: 122 | AE123: 0.1837049181 | AF123: 1.014087342 | AG123: 123 | AH123: 122 | AI123: 1.423287172 | AJ123: 1.38214887 | AK123: 123 | AL123: 122 | AM123: 0.3915116807 | AN123: 0.3333333333 | AO123: 123 | AP123: 122 | AQ123: 1.234258982 | AR123: 0.0917517095 | AS123: 123 | AT123: 122 | AU123: 1.257412751 | AV123: 0.1273220038
A124: 124 | B124: 123 | C124: 0.1872072963 | D124: 1.98265365 | E124: 124 | F124: 123 | G124: 0.1891204146 | H124: 1.979701612 | I124: 124 | J124: 123 | K124: 1.465457825 | L124: 1.553300179 | M124: 124 | N124: 123 | O124: 0.4654578252 | P124: 0.5533001791 | Q124: 124 | R124: 123 | S124: 1.17596567 | T124: 1 | U124: 124 | V124: 123 | W124: 1.177812024 | X124: 0.997150974 | Y124: 124 | Z124: 123 | AA124: 0.1759656696 | AB124: 2 | AC124: 124 | AD124: 123 | AE124: 0.1850952261 | AF124: 1.985912658 | AG124: 124 | AH124: 123 | AI124: 1.423624371 | AJ124: 1.61785113 | AK124: 124 | AL124: 123 | AM124: 0.3919885524 | AN124: 0.6666666667 | AO124: 124 | AP124: 123 | AQ124: 1.235427075 | AR124: 0.9082482905 | AS124: 124 | AT124: 123 | AU124: 1.258479069 | AV124: 0.8726779962
A125: 125 | B125: 124 | C125: 0.1885882796 | D125: 1.01734635 | E125: 125 | F125: 124 | G125: 0.1904929514 | H125: 1.020298388 | I125: 125 | J125: 124 | K125: 1.465610329 | L125: 1.446699821 | M125: 125 | N125: 124 | O125: 0.4656103293 | P125: 0.4466998209 | Q125: 125 | R125: 124 | S125: 1.177396285 | T125: 0 | U125: 125 | V125: 124 | W125: 1.179234488 | X125: 0.002849026 | Y125: 125 | Z125: 124 | AA125: 0.1773962848 | AB125: 1 | AC125: 125 | AD125: 124 | AE125: 0.1864855341 | AF125: 1.014087342 | AG125: 125 | AH125: 124 | AI125: 1.423961571 | AJ125: 1.38214887 | AK125: 125 | AL125: 124 | AM125: 0.3924654241 | AN125: 0.3333333333 | AO125: 125 | AP125: 124 | AQ125: 1.236595167 | AR125: 0.0917517095 | AS125: 125 | AT125: 124 | AU125: 1.259545386 | AV125: 0.1273220038
A126: 126 | B126: 125 | C126: 0.1899692629 | D126: 1.98265365 | E126: 126 | F126: 125 | G126: 0.1918654882 | H126: 1.979701612 | I126: 126 | J126: 125 | K126: 1.465762833 | L126: 1.553300179 | M126: 126 | N126: 125 | O126: 0.4657628334 | P126: 0.5533001791 | Q126: 126 | R126: 125 | S126: 1.1788269 | T126: 1 | U126: 126 | V126: 125 | W126: 1.180656951 | X126: 0.997150974 | Y126: 126 | Z126: 125 | AA126: 0.1788269 | AB126: 2 | AC126: 126 | AD126: 125 | AE126: 0.1878758421 | AF126: 1.985912658 | AG126: 126 | AH126: 125 | AI126: 1.42429877 | AJ126: 1.61785113 | AK126: 126 | AL126: 125 | AM126: 0.3929422958 | AN126: 0.6666666667 | AO126: 126 | AP126: 125 | AQ126: 1.23776326 | AR126: 0.9082482905 | AS126: 126 | AT126: 125 | AU126: 1.260611704 | AV126: 0.8726779962
A127: 127 | B127: 126 | C127: 0.1913502462 | D127: 1.01734635 | E127: 127 | F127: 126 | G127: 0.193238025 | H127: 1.020298388 | I127: 127 | J127: 126 | K127: 1.465915338 | L127: 1.446699821 | M127: 127 | N127: 126 | O127: 0.4659153375 | P127: 0.4466998209 | Q127: 127 | R127: 126 | S127: 1.180257515 | T127: 0 | U127: 127 | V127: 126 | W127: 1.182079414 | X127: 0.002849026 | Y127: 127 | Z127: 126 | AA127: 0.1802575152 | AB127: 1 | AC127: 127 | AD127: 126 | AE127: 0.1892661501 | AF127: 1.014087342 | AG127: 127 | AH127: 126 | AI127: 1.424635969 | AJ127: 1.38214887 | AK127: 127 | AL127: 126 | AM127: 0.3934191675 | AN127: 0.3333333333 | AO127: 127 | AP127: 126 | AQ127: 1.238931352 | AR127: 0.0917517095 | AS127: 127 | AT127: 126 | AU127: 1.261678021 | AV127: 0.1273220038
A128: 128 | B128: 127 | C128: 0.1927312295 | D128: 1.98265365 | E128: 128 | F128: 127 | G128: 0.1946105618 | H128: 1.979701612 | I128: 128 | J128: 127 | K128: 1.466067842 | L128: 1.553300179 | M128: 128 | N128: 127 | O128: 0.4660678416 | P128: 0.5533001791 | Q128: 128 | R128: 127 | S128: 1.18168813 | T128: 1 | U128: 128 | V128: 127 | W128: 1.183501878 | X128: 0.997150974 | Y128: 128 | Z128: 127 | AA128: 0.1816881304 | AB128: 2 | AC128: 128 | AD128: 127 | AE128: 0.1906564581 | AF128: 1.985912658 | AG128: 128 | AH128: 127 | AI128: 1.424973168 | AJ128: 1.61785113 | AK128: 128 | AL128: 127 | AM128: 0.3938960392 | AN128: 0.6666666667 | AO128: 128 | AP128: 127 | AQ128: 1.240099444 | AR128: 0.9082482905 | AS128: 128 | AT128: 127 | AU128: 1.262744339 | AV128: 0.8726779962
A129: 129 | B129: =(A129-1) -> 128 | C129: =0.0173463504+B129*0.0013809833 -> 0.1941122128 | D129: =IF(B129/2-INT(B129/2)<0.1,1.0173463504,1.9826536496) -> 1.01734635 | E129: 129 | F129: =(E129-1) -> 128 | G129: =0.0202983882+F129*0.0013725368 -> 0.1959830986 | H129: =IF(F129/2-INT(F129/2)<0.1,1.0202983882,1.9797016118) -> 1.020298388 | I129: 129 | J129: =(I129-1) -> 128 | K129: =1.4466998209+J129*0.0001525041 -> 1.466220346 | L129: =IF(J129/2-INT(J129/2)<0.1,1.4466998209,1.5533001791) -> 1.446699821 | M129: 129 | N129: =(M129-1) -> 128 | O129: =0.4466998209+N129*0.0001525041 -> 0.4662203457 | P129: =IF(N129/2-INT(N129/2)<0.1,0.4466998209,0.5533001791) -> 0.4466998209 | Q129: 129 | R129: =(Q129-1) -> 128 | S129: =1+R129*0.0014306152 -> 1.183118746 | T129: =IF(R129/2-INT(R129/2)<0.1,0,1) -> 0 | U129: 129 | V129: =(U129-1) -> 128 | W129: =1.002849026+V129*0.0014224634 -> 1.184924341 | X129: =IF(V129/2-INT(V129/2)<0.1,0.002849026,0.997150974) -> 0.002849026 | Y129: 129 | Z129: =(Y129-1) -> 128 | AA129: =0+Z129*0.0014306152 -> 0.1831187456 | AB129: =IF(Z129/2-INT(Z129/2)<0.1,1,2) -> 1 | AC129: 129 | AD129: =(AC129-1) -> 128 | AE129: =0.0140873421+AD129*0.001390308 -> 0.1920467661 | AF129: =IF(AD129/2-INT(AD129/2)<0.1,1.0140873421,1.9859126579) -> 1.014087342 | AG129: 129 | AH129: =(AG129-1) -> 128 | AI129: =1.3821488698+AH129*0.0003371992 -> 1.425310367 | AJ129: =IF(AH129/2-INT(AH129/2)<0.1,1.3821488698,1.6178511302) -> 1.38214887 | AK129: 129 | AL129: =(AK129-1) -> 128 | AM129: =0.3333333333+AL129*0.0004768717 -> 0.3943729109 | AN129: =IF(AL129/2-INT(AL129/2)<0.1,0.3333333333,0.6666666667) -> 0.3333333333 | AO129: 129 | AP129: =(AO129-1) -> 128 | AQ129: =1.0917517095+AP129*0.0011680924 -> 1.241267537 | AR129: =IF(AP129/2-INT(AP129/2)<0.1,0.0917517095,0.9082482905) -> 0.0917517095 | AS129: 129 | AT129: =(AS129-1) -> 128 | AU129: =1.1273220038+AT129*0.0010663176 -> 1.263810657 | AV129: =IF(AT129/2-INT(AT129/2)<0.1,0.1273220038,0.8726779962) -> 0.1273220038
A130: 130 | B130: 129 | C130: 0.1954931961 | D130: 1.98265365 | E130: 130 | F130: 129 | G130: 0.1973556354 | H130: 1.979701612 | I130: 130 | J130: 129 | K130: 1.46637285 | L130: 1.553300179 | M130: 130 | N130: 129 | O130: 0.4663728498 | P130: 0.5533001791 | Q130: 130 | R130: 129 | S130: 1.184549361 | T130: 1 | U130: 130 | V130: 129 | W130: 1.186346805 | X130: 0.997150974 | Y130: 130 | Z130: 129 | AA130: 0.1845493608 | AB130: 2 | AC130: 130 | AD130: 129 | AE130: 0.1934370741 | AF130: 1.985912658 | AG130: 130 | AH130: 129 | AI130: 1.425647567 | AJ130: 1.61785113 | AK130: 130 | AL130: 129 | AM130: 0.3948497826 | AN130: 0.6666666667 | AO130: 130 | AP130: 129 | AQ130: 1.242435629 | AR130: 0.9082482905 | AS130: 130 | AT130: 129 | AU130: 1.264876974 | AV130: 0.8726779962
A131: 131 | B131: 130 | C131: 0.1968741794 | D131: 1.01734635 | E131: 131 | F131: 130 | G131: 0.1987281722 | H131: 1.020298388 | I131: 131 | J131: 130 | K131: 1.466525354 | L131: 1.446699821 | M131: 131 | N131: 130 | O131: 0.4665253539 | P131: 0.4466998209 | Q131: 131 | R131: 130 | S131: 1.185979976 | T131: 0 | U131: 131 | V131: 130 | W131: 1.187769268 | X131: 0.002849026 | Y131: 131 | Z131: 130 | AA131: 0.185979976 | AB131: 1 | AC131: 131 | AD131: 130 | AE131: 0.1948273821 | AF131: 1.014087342 | AG131: 131 | AH131: 130 | AI131: 1.425984766 | AJ131: 1.38214887 | AK131: 131 | AL131: 130 | AM131: 0.3953266543 | AN131: 0.3333333333 | AO131: 131 | AP131: 130 | AQ131: 1.243603721 | AR131: 0.0917517095 | AS131: 131 | AT131: 130 | AU131: 1.265943292 | AV131: 0.1273220038
A132: 132 | B132: 131 | C132: 0.1982551627 | D132: 1.98265365 | E132: 132 | F132: 131 | G132: 0.200100709 | H132: 1.979701612 | I132: 132 | J132: 131 | K132: 1.466677858 | L132: 1.553300179 | M132: 132 | N132: 131 | O132: 0.466677858 | P132: 0.5533001791 | Q132: 132 | R132: 131 | S132: 1.187410591 | T132: 1 | U132: 132 | V132: 131 | W132: 1.189191731 | X132: 0.997150974 | Y132: 132 | Z132: 131 | AA132: 0.1874105912 | AB132: 2 | AC132: 132 | AD132: 131 | AE132: 0.1962176901 | AF132: 1.985912658 | AG132: 132 | AH132: 131 | AI132: 1.426321965 | AJ132: 1.61785113 | AK132: 132 | AL132: 131 | AM132: 0.395803526 | AN132: 0.6666666667 | AO132: 132 | AP132: 131 | AQ132: 1.244771814 | AR132: 0.9082482905 | AS132: 132 | AT132: 131 | AU132: 1.267009609 | AV132: 0.8726779962
A133: 133 | B133: 132 | C133: 0.199636146 | D133: 1.01734635 | E133: 133 | F133: 132 | G133: 0.2014732458 | H133: 1.020298388 | I133: 133 | J133: 132 | K133: 1.466830362 | L133: 1.446699821 | M133: 133 | N133: 132 | O133: 0.4668303621 | P133: 0.4466998209 | Q133: 133 | R133: 132 | S133: 1.188841206 | T133: 0 | U133: 133 | V133: 132 | W133: 1.190614195 | X133: 0.002849026 | Y133: 133 | Z133: 132 | AA133: 0.1888412064 | AB133: 1 | AC133: 133 | AD133: 132 | AE133: 0.1976079981 | AF133: 1.014087342 | AG133: 133 | AH133: 132 | AI133: 1.426659164 | AJ133: 1.38214887 | AK133: 133 | AL133: 132 | AM133: 0.3962803977 | AN133: 0.3333333333 | AO133: 133 | AP133: 132 | AQ133: 1.245939906 | AR133: 0.0917517095 | AS133: 133 | AT133: 132 | AU133: 1.268075927 | AV133: 0.1273220038
A134: 134 | B134: 133 | C134: 0.2010171293 | D134: 1.98265365 | E134: 134 | F134: 133 | G134: 0.2028457826 | H134: 1.979701612 | I134: 134 | J134: 133 | K134: 1.466982866 | L134: 1.553300179 | M134: 134 | N134: 133 | O134: 0.4669828662 | P134: 0.5533001791 | Q134: 134 | R134: 133 | S134: 1.190271822 | T134: 1 | U134: 134 | V134: 133 | W134: 1.192036658 | X134: 0.997150974 | Y134: 134 | Z134: 133 | AA134: 0.1902718216 | AB134: 2 | AC134: 134 | AD134: 133 | AE134: 0.1989983061 | AF134: 1.985912658 | AG134: 134 | AH134: 133 | AI134: 1.426996363 | AJ134: 1.61785113 | AK134: 134 | AL134: 133 | AM134: 0.3967572694 | AN134: 0.6666666667 | AO134: 134 | AP134: 133 | AQ134: 1.247107999 | AR134: 0.9082482905 | AS134: 134 | AT134: 133 | AU134: 1.269142245 | AV134: 0.8726779962
A135: 135 | B135: 134 | C135: 0.2023981126 | D135: 1.01734635 | E135: 135 | F135: 134 | G135: 0.2042183194 | H135: 1.020298388 | I135: 135 | J135: 134 | K135: 1.46713537 | L135: 1.446699821 | M135: 135 | N135: 134 | O135: 0.4671353703 | P135: 0.4466998209 | Q135: 135 | R135: 134 | S135: 1.191702437 | T135: 0 | U135: 135 | V135: 134 | W135: 1.193459122 | X135: 0.002849026 | Y135: 135 | Z135: 134 | AA135: 0.1917024368 | AB135: 1 | AC135: 135 | AD135: 134 | AE135: 0.2003886141 | AF135: 1.014087342 | AG135: 135 | AH135: 134 | AI135: 1.427333563 | AJ135: 1.38214887 | AK135: 135 | AL135: 134 | AM135: 0.3972341411 | AN135: 0.3333333333 | AO135: 135 | AP135: 134 | AQ135: 1.248276091 | AR135: 0.0917517095 | AS135: 135 | AT135: 134 | AU135: 1.270208562 | AV135: 0.1273220038
A136: 136 | B136: 135 | C136: 0.2037790959 | D136: 1.98265365 | E136: 136 | F136: 135 | G136: 0.2055908562 | H136: 1.979701612 | I136: 136 | J136: 135 | K136: 1.467287874 | L136: 1.553300179 | M136: 136 | N136: 135 | O136: 0.4672878744 | P136: 0.5533001791 | Q136: 136 | R136: 135 | S136: 1.193133052 | T136: 1 | U136: 136 | V136: 135 | W136: 1.194881585 | X136: 0.997150974 | Y136: 136 | Z136: 135 | AA136: 0.193133052 | AB136: 2 | AC136: 136 | AD136: 135 | AE136: 0.2017789221 | AF136: 1.985912658 | AG136: 136 | AH136: 135 | AI136: 1.427670762 | AJ136: 1.61785113 | AK136: 136 | AL136: 135 | AM136: 0.3977110128 | AN136: 0.6666666667 | AO136: 136 | AP136: 135 | AQ136: 1.249444184 | AR136: 0.9082482905 | AS136: 136 | AT136: 135 | AU136: 1.27127488 | AV136: 0.8726779962
A137: 137 | B137: 136 | C137: 0.2051600792 | D137: 1.01734635 | E137: 137 | F137: 136 | G137: 0.206963393 | H137: 1.020298388 | I137: 137 | J137: 136 | K137: 1.467440378 | L137: 1.446699821 | M137: 137 | N137: 136 | O137: 0.4674403785 | P137: 0.4466998209 | Q137: 137 | R137: 136 | S137: 1.194563667 | T137: 0 | U137: 137 | V137: 136 | W137: 1.196304048 | X137: 0.002849026 | Y137: 137 | Z137: 136 | AA137: 0.1945636672 | AB137: 1 | AC137: 137 | AD137: 136 | AE137: 0.2031692301 | AF137: 1.014087342 | AG137: 137 | AH137: 136 | AI137: 1.428007961 | AJ137: 1.38214887 | AK137: 137 | AL137: 136 | AM137: 0.3981878845 | AN137: 0.3333333333 | AO137: 137 | AP137: 136 | AQ137: 1.250612276 | AR137: 0.0917517095 | AS137: 137 | AT137: 136 | AU137: 1.272341197 | AV137: 0.1273220038
A138: 138 | B138: 137 | C138: 0.2065410625 | D138: 1.98265365 | E138: 138 | F138: 137 | G138: 0.2083359298 | H138: 1.979701612 | I138: 138 | J138: 137 | K138: 1.467592883 | L138: 1.553300179 | M138: 138 | N138: 137 | O138: 0.4675928826 | P138: 0.5533001791 | Q138: 138 | R138: 137 | S138: 1.195994282 | T138: 1 | U138: 138 | V138: 137 | W138: 1.197726512 | X138: 0.997150974 | Y138: 138 | Z138: 137 | AA138: 0.1959942824 | AB138: 2 | AC138: 138 | AD138: 137 | AE138: 0.2045595381 | AF138: 1.985912658 | AG138: 138 | AH138: 137 | AI138: 1.42834516 | AJ138: 1.61785113 | AK138: 138 | AL138: 137 | AM138: 0.3986647562 | AN138: 0.6666666667 | AO138: 138 | AP138: 137 | AQ138: 1.251780368 | AR138: 0.9082482905 | AS138: 138 | AT138: 137 | AU138: 1.273407515 | AV138: 0.8726779962
A139: 139 | B139: 138 | C139: 0.2079220458 | D139: 1.01734635 | E139: 139 | F139: 138 | G139: 0.2097084666 | H139: 1.020298388 | I139: 139 | J139: 138 | K139: 1.467745387 | L139: 1.446699821 | M139: 139 | N139: 138 | O139: 0.4677453867 | P139: 0.4466998209 | Q139: 139 | R139: 138 | S139: 1.197424898 | T139: 0 | U139: 139 | V139: 138 | W139: 1.199148975 | X139: 0.002849026 | Y139: 139 | Z139: 138 | AA139: 0.1974248976 | AB139: 1 | AC139: 139 | AD139: 138 | AE139: 0.2059498461 | AF139: 1.014087342 | AG139: 139 | AH139: 138 | AI139: 1.428682359 | AJ139: 1.38214887 | AK139: 139 | AL139: 138 | AM139: 0.3991416279 | AN139: 0.3333333333 | AO139: 139 | AP139: 138 | AQ139: 1.252948461 | AR139: 0.0917517095 | AS139: 139 | AT139: 138 | AU139: 1.274473833 | AV139: 0.1273220038
A140: 140 | B140: 139 | C140: 0.2093030291 | D140: 1.98265365 | E140: 140 | F140: 139 | G140: 0.2110810034 | H140: 1.979701612 | I140: 140 | J140: 139 | K140: 1.467897891 | L140: 1.553300179 | M140: 140 | N140: 139 | O140: 0.4678978908 | P140: 0.5533001791 | Q140: 140 | R140: 139 | S140: 1.198855513 | T140: 1 | U140: 140 | V140: 139 | W140: 1.200571439 | X140: 0.997150974 | Y140: 140 | Z140: 139 | AA140: 0.1988555128 | AB140: 2 | AC140: 140 | AD140: 139 | AE140: 0.2073401541 | AF140: 1.985912658 | AG140: 140 | AH140: 139 | AI140: 1.429019559 | AJ140: 1.61785113 | AK140: 140 | AL140: 139 | AM140: 0.3996184996 | AN140: 0.6666666667 | AO140: 140 | AP140: 139 | AQ140: 1.254116553 | AR140: 0.9082482905 | AS140: 140 | AT140: 139 | AU140: 1.27554015 | AV140: 0.8726779962
A141: 141 | B141: 140 | C141: 0.2106840124 | D141: 1.01734635 | E141: 141 | F141: 140 | G141: 0.2124535402 | H141: 1.020298388 | I141: 141 | J141: 140 | K141: 1.468050395 | L141: 1.446699821 | M141: 141 | N141: 140 | O141: 0.4680503949 | P141: 0.4466998209 | Q141: 141 | R141: 140 | S141: 1.200286128 | T141: 0 | U141: 141 | V141: 140 | W141: 1.201993902 | X141: 0.002849026 | Y141: 141 | Z141: 140 | AA141: 0.200286128 | AB141: 1 | AC141: 141 | AD141: 140 | AE141: 0.2087304621 | AF141: 1.014087342 | AG141: 141 | AH141: 140 | AI141: 1.429356758 | AJ141: 1.38214887 | AK141: 141 | AL141: 140 | AM141: 0.4000953713 | AN141: 0.3333333333 | AO141: 141 | AP141: 140 | AQ141: 1.255284645 | AR141: 0.0917517095 | AS141: 141 | AT141: 140 | AU141: 1.276606468 | AV141: 0.1273220038
A142: 142 | B142: 141 | C142: 0.2120649957 | D142: 1.98265365 | E142: 142 | F142: 141 | G142: 0.213826077 | H142: 1.979701612 | I142: 142 | J142: 141 | K142: 1.468202899 | L142: 1.553300179 | M142: 142 | N142: 141 | O142: 0.468202899 | P142: 0.5533001791 | Q142: 142 | R142: 141 | S142: 1.201716743 | T142: 1 | U142: 142 | V142: 141 | W142: 1.203416365 | X142: 0.997150974 | Y142: 142 | Z142: 141 | AA142: 0.2017167432 | AB142: 2 | AC142: 142 | AD142: 141 | AE142: 0.2101207701 | AF142: 1.985912658 | AG142: 142 | AH142: 141 | AI142: 1.429693957 | AJ142: 1.61785113 | AK142: 142 | AL142: 141 | AM142: 0.400572243 | AN142: 0.6666666667 | AO142: 142 | AP142: 141 | AQ142: 1.256452738 | AR142: 0.9082482905 | AS142: 142 | AT142: 141 | AU142: 1.277672785 | AV142: 0.8726779962
A143: 143 | B143: 142 | C143: 0.213445979 | D143: 1.01734635 | E143: 143 | F143: 142 | G143: 0.2151986138 | H143: 1.020298388 | I143: 143 | J143: 142 | K143: 1.468355403 | L143: 1.446699821 | M143: 143 | N143: 142 | O143: 0.4683554031 | P143: 0.4466998209 | Q143: 143 | R143: 142 | S143: 1.203147358 | T143: 0 | U143: 143 | V143: 142 | W143: 1.204838829 | X143: 0.002849026 | Y143: 143 | Z143: 142 | AA143: 0.2031473584 | AB143: 1 | AC143: 143 | AD143: 142 | AE143: 0.2115110781 | AF143: 1.014087342 | AG143: 143 | AH143: 142 | AI143: 1.430031156 | AJ143: 1.38214887 | AK143: 143 | AL143: 142 | AM143: 0.4010491147 | AN143: 0.3333333333 | AO143: 143 | AP143: 142 | AQ143: 1.25762083 | AR143: 0.0917517095 | AS143: 143 | AT143: 142 | AU143: 1.278739103 | AV143: 0.1273220038
A144: 144 | B144: 143 | C144: 0.2148269623 | D144: 1.98265365 | E144: 144 | F144: 143 | G144: 0.2165711506 | H144: 1.979701612 | I144: 144 | J144: 143 | K144: 1.468507907 | L144: 1.553300179 | M144: 144 | N144: 143 | O144: 0.4685079072 | P144: 0.5533001791 | Q144: 144 | R144: 143 | S144: 1.204577974 | T144: 1 | U144: 144 | V144: 143 | W144: 1.206261292 | X144: 0.997150974 | Y144: 144 | Z144: 143 | AA144: 0.2045779736 | AB144: 2 | AC144: 144 | AD144: 143 | AE144: 0.2129013861 | AF144: 1.985912658 | AG144: 144 | AH144: 143 | AI144: 1.430368355 | AJ144: 1.61785113 | AK144: 144 | AL144: 143 | AM144: 0.4015259864 | AN144: 0.6666666667 | AO144: 144 | AP144: 143 | AQ144: 1.258788923 | AR144: 0.9082482905 | AS144: 144 | AT144: 143 | AU144: 1.279805421 | AV144: 0.8726779962
A145: 145 | B145: 144 | C145: 0.2162079456 | D145: 1.01734635 | E145: 145 | F145: 144 | G145: 0.2179436874 | H145: 1.020298388 | I145: 145 | J145: 144 | K145: 1.468660411 | L145: 1.446699821 | M145: 145 | N145: 144 | O145: 0.4686604113 | P145: 0.4466998209 | Q145: 145 | R145: 144 | S145: 1.206008589 | T145: 0 | U145: 145 | V145: 144 | W145: 1.207683756 | X145: 0.002849026 | Y145: 145 | Z145: 144 | AA145: 0.2060085888 | AB145: 1 | AC145: 145 | AD145: 144 | AE145: 0.2142916941 | AF145: 1.014087342 | AG145: 145 | AH145: 144 | AI145: 1.430705555 | AJ145: 1.38214887 | AK145: 145 | AL145: 144 | AM145: 0.4020028581 | AN145: 0.3333333333 | AO145: 145 | AP145: 144 | AQ145: 1.259957015 | AR145: 0.0917517095 | AS145: 145 | AT145: 144 | AU145: 1.280871738 | AV145: 0.1273220038
A146: 146 | B146: 145 | C146: 0.2175889289 | D146: 1.98265365 | E146: 146 | F146: 145 | G146: 0.2193162242 | H146: 1.979701612 | I146: 146 | J146: 145 | K146: 1.468812915 | L146: 1.553300179 | M146: 146 | N146: 145 | O146: 0.4688129154 | P146: 0.5533001791 | Q146: 146 | R146: 145 | S146: 1.207439204 | T146: 1 | U146: 146 | V146: 145 | W146: 1.209106219 | X146: 0.997150974 | Y146: 146 | Z146: 145 | AA146: 0.207439204 | AB146: 2 | AC146: 146 | AD146: 145 | AE146: 0.2156820021 | AF146: 1.985912658 | AG146: 146 | AH146: 145 | AI146: 1.431042754 | AJ146: 1.61785113 | AK146: 146 | AL146: 145 | AM146: 0.4024797298 | AN146: 0.6666666667 | AO146: 146 | AP146: 145 | AQ146: 1.261125108 | AR146: 0.9082482905 | AS146: 146 | AT146: 145 | AU146: 1.281938056 | AV146: 0.8726779962
A147: 147 | B147: 146 | C147: 0.2189699122 | D147: 1.01734635 | E147: 147 | F147: 146 | G147: 0.220688761 | H147: 1.020298388 | I147: 147 | J147: 146 | K147: 1.468965419 | L147: 1.446699821 | M147: 147 | N147: 146 | O147: 0.4689654195 | P147: 0.4466998209 | Q147: 147 | R147: 146 | S147: 1.208869819 | T147: 0 | U147: 147 | V147: 146 | W147: 1.210528682 | X147: 0.002849026 | Y147: 147 | Z147: 146 | AA147: 0.2088698192 | AB147: 1 | AC147: 147 | AD147: 146 | AE147: 0.2170723101 | AF147: 1.014087342 | AG147: 147 | AH147: 146 | AI147: 1.431379953 | AJ147: 1.38214887 | AK147: 147 | AL147: 146 | AM147: 0.4029566015 | AN147: 0.3333333333 | AO147: 147 | AP147: 146 | AQ147: 1.2622932 | AR147: 0.0917517095 | AS147: 147 | AT147: 146 | AU147: 1.283004373 | AV147: 0.1273220038
